Workbook

Sheet Admin

Sheet Uebersetzung
A1: 1 | B1: Deutsch | C1: Englisch | D1: Französisch | E1: Spanisch
A2: =INDEX(B2:C2,1,$A$1) -> Nr. | B2: Nr. | C2: No.
A3: =INDEX(B3:C3,1,$A$1) -> Bezeichnung | B3: Bezeichnung | C3: Description
A4: =INDEX(B4:C4,1,$A$1) -> L [mm] | B4: L [mm] | C4: L [mm]
A5: =INDEX(B5:C5,1,$A$1) -> B [mm] | B5: B [mm] | C5: W [mm]
A6: H [mm] | B6: H [mm] | C6: H [mm]
A7: R außen [mm] | B7: R außen [mm] | C7: R external [mm]
A8: R innen [mm] | B8: R innen [mm] | C8: R internal [mm]
A9: Typ | B9: Typ | C9: Type
A10: Masse [kg] | B10: Masse [kg] | C10: Mass [kg]
A11: Eigenträgheit [kg*m²] | B11: Eigenträgheit [kg*m²] | C11: Moment of Inertia [kg*m²]
A12: Abstand Schwerpkt. X [mm] | B12: Abstand Schwerpkt. X [mm] | C12: Center of mass distance X [mm]
A13: Abstand Schwerpkt. Y [mm] | B13: Abstand Schwerpkt. Y [mm] | C13: Center of mass distance Y [mm]
A14: Abstand Schwerpkt. Z [mm] | B14: Abstand Schwerpkt. Z [mm] | C14: Center of mass distance Z [mm]
A15: Massenträgheit [kg*m²] | B15: Massenträgheit [kg*m²] | C15: Mass moment of Inertia [kg*m²]
A16: Bestellnr. | B16: Bestellnr. | C16: ID. Nr.
A17: Löschen | B17: Löschen | C17: Delete
A18: Editieren | B18: Editieren | C18: Edit
A19: Quader | B19: Quader | C19: Cuboid
A20: Zylinder | B20: Zylinder | C20: Cylinder
A21: Hohlzylinder | B21: Hohlzylinder | C21: Hollow Cylinder
A22: Kugel | B22: Kugel | C22: Sphere
A23: Freier Aufbau | B23: Freier Aufbau | C23: Custom layout
A24: Greifer | B24: Greifer | C24: Gripper
A25: Schwenkmodule | B25: Schwenkmodule | C25: Swivel Units
A26: Zeilen/Spalten ausblenden | B26: Zeilen/Spalten ausblenden | C26: Hide rows/columns
A27: Zeilen/Spalten einblenden | B27: Zeilen/Spalten einblenden | C27: Show rows/columns
A28: =INDEX(B28:C28,1,$A$1) -> Ansicht XZ | B28: Ansicht XZ | C28: XZ View
A29: Ansicht YZ | B29: Ansicht YZ | C29: YZ View
A30: Ansicht XY | B30: Ansicht XY | C30: XY View
A31: Drucken | B31: Drucken | C31: Print
A32: Schwenkeinheit auswählen | B32: Schwenkeinheit auswählen | C32: Select Rotary Unit
A33: Max. Radius Arbeitsbereich [mm] | B33: Max. Radius Arbeitsbereich [mm] | C33: Max. Working area radius [mm]
A34: Kundenname: | B34: Kundenname: | C34: Customer:
A35: Angebot-Nr: | B35: Angebot-Nr: | C35: Quote Nr.:
A36: Bearbeiter: | B36: Bearbeiter: | C36: Responsbile person:
A37: Datum: | B37: Datum: | C37: Date:
A38: Schwerpunktsabstand Rs [mm] | B38: Schwerpunktsabstand Rs [mm] | C38: Center of mass distance Rs [mm]
A39: Schwerpunktsabstand Xs [mm] | B39: Schwerpunktsabstand Xs [mm] | C39: Center of mass distance Xs [mm]
A40: Schwerpunktsabstand Ys [mm] | B40: Schwerpunktsabstand Ys [mm] | C40: Center of mass distance Ys [mm]
A41: Schwerpunktsabstand Zs [mm] | B41: Schwerpunktsabstand Zs [mm] | C41: Center of mass distance Zs [mm]
A42: =INDEX(B42:C42,1,$A$1) -> SSE 7.3.0 - Übersicht Schwenkmodule | B42: SSE 7.3.0 - Übersicht Schwenkmodule | C42: SSE 7.3.0 - Rotary Units Overview
A43: Parameter | B43: Parameter | C43: Parameters
A44: Schwenkwinkel [Grad] | B44: Schwenkwinkel [Grad] | C44: Swivel angle [deg.]
A45: Betriebsdruck [bar] | B45: Betriebsdruck [bar] | C45: Operating pressure [bar]
A46: Lage des Aufbaus | B46: Lage des Aufbaus | C46: Position of the construction
A47: =INDEX(B47:C47,1,$A$1) -> Massenträgheitsmoment Aufbau [kgm²] | B47: Massenträgheitsmoment Aufbau [kgm²] | C47: Mass moment of inertia of the input [kgm²]
A48: stehend | B48: stehend | C48: stationary
A49: hängend | B49: hängend | C49: hanging
A50: hebend | B50: hebend | C50: lifting
A51: fallend | B51: fallend | C51: falling
A52: Datum (TT.MM.JJJJ): | B52: Datum (TT.MM.JJJJ): | C52: Date (dd.mm.yyyy):
A53: Aufbau anpassen | B53: Aufbau anpassen | C53: Adjust the input
A54: Parameter anpassen | B54: Parameter anpassen | C54: Adjust the parameters
A55: Auswahl | B55: Auswahl | C55: Select
A56: Eignung | B56: Eignung | C56: Applicability
A57: Massenträgheitsmoment | B57: Massenträgheitsmoment | C57: Mass moment of Inertia
A58: Lastmoment | B58: Lastmoment | C58: Load torque
A59: Energie pro Zyklus | B59: Energie pro Zyklus | C59: Energy per cycle
A60: Energie pro Stunde | B60: Energie pro Stunde | C60: Energy per hour
A61: Antriebsmoment | B61: Antriebsmoment | C61: Drive torque
A62: Lagerbelastung 1 | B62: Lagerbelastung 1 | C62: Bearing 1 load
A63: Lagerbelastung 2 | B63: Lagerbelastung 2 | C63: Bearing 2 load
A64: Schwenkzeit | B64: Schwenkzeit | C64: Swivel time
A65: Zyklen pro Stunde | B65: Zyklen pro Stunde | C65: Cycles per hour
A66: Berechnung durchgeführt von: | B66: Berechnung durchgeführt von: | C66: Calculated by:
A67: Modulname: | B67: Modulname: | C67: Swivel Unit:
A68: Schwenkwinkel: | B68: Schwenkwinkel: | C68: Swivel angle:
A69: =INDEX(B69:C69,1,$A$1) -> Betriebsdruck: | B69: Betriebsdruck: | C69: Operating pressure:
A70: Lage des Aufbaus: | B70: Lage des Aufbaus: | C70: Position of the construction:
A71: Schwenkzeit [s] | B71: Schwenkzeit [s] | C71: Swivel time [s]
A72: Zyklen pro Stunde [1/h] | B72: Zyklen pro Stunde [1/h] | C72: Cycles per hour [1/h]
A73: Parameter Eignung | B73: Parameter Eignung | C73: Parameters applicable
A74: Lastmoment [Nm] | B74: Lastmoment [Nm] | C74: Load torque [Nm]
A75: Massenträgheitsmoment [kgm²] | B75: Massenträgheitsmoment [kgm²] | C75: Mass moment of inertia [kgm²]
A76: Energie pro Hub [Nm] | B76: Energie pro Hub [Nm] | C76: Enery per stroke [Nm]
A77: Energie pro Stunde [Nm/h] | B77: Energie pro Stunde [Nm/h] | C77: Energy per hour [Nm/h]
A78: Antriebsmoment [Nm] | B78: Antriebsmoment [Nm] | C78: Drive torque [Nm]
A79: Lagerbelastung 1 [N] | B79: Lagerbelastung 1 [N] | C79: Bearing 1 load [N]
A80: Lagerbelastung 2 [N] | B80: Lagerbelastung 2 [N] | C80: Bearing 2 load [N]
A81: Modulwerte | B81: Modulwerte | C81: Swivel Unit Values
A82: Berechnete Werte | B82: Berechnete Werte | C82: Calculated values
A83: Prozentuale Auslastung | B83: Prozentuale Auslastung | C83: Percent
A84: Gesamtergebnis | B84: Gesamtergebnis | C84: Result
A85: Bemerkungen | B85: Bemerkungen | C85: Notes
A86: Zurück zur Auswahl | B86: Zurück zur Auswahl | C86: Back to selection
A87: rot | B87: rot | C87: red
A88: grün | B88: grün | C88: green
A89: blau | B89: blau | C89: blue
A90: schwarz | B90: schwarz | C90: black
A91: orange | B91: orange | C91: orange
A92: lila | B92: lila | C92: purple
A93: hellblau | B93: hellblau | C93: light blue
A94: hellgrün | B94: hellgrün | C94: light green
A95: braun | B95: braun | C95: brown
A96: grau | B96: grau | C96: grey
A97: =INDEX(B97:C97,1,$A$1) -> Länge in x-Richtung: | B97: Länge in x-Richtung: | C97: Length in x-direction:
A98: Breite in y-Richtung: | B98: Breite in y-Richtung: | C98: Width in y-direction:
A99: Höhe in z-Richtung: | B99: Höhe in z-Richtung: | C99: Height in z-direction:
A100: Stahl | B100: Stahl | C100: Steel
A101: Aluminium | B101: Aluminium | C101: Aluminium
A102: Sonstiges | B102: Sonstiges | C102: Other
A103: Eingabe Gewicht | B103: Eingabe Gewicht | C103: Weight input
A104: Eingabe Dichte | B104: Eingabe Dichte | C104: Density input
A105: Schwerpunktsabstand X: | B105: Schwerpunktsabstand X: | C105: Center of mass distance X:
A106: Schwerpunktsabstand Y: | B106: Schwerpunktsabstand Y: | C106: Center of mass distance Y:
A107: Schwerpunktsabstand Z: | B107: Schwerpunktsabstand Z: | C107: Center of mass distance Z:
A108: Farbe: | B108: Farbe: | C108: Colour:
A109: Ansicht XZ | B109: Ansicht XZ | C109: View XY
A110: Ansicht YZ | B110: Ansicht YZ | C110: View YZ
A111: Ansicht XY | B111: Ansicht XY | C111: View XY
A112: Einfügen | B112: Einfügen | C112: Insert
A113: Ende | B113: Ende | C113: Exit
A114: Radius Zylinder: | B114: Radius Zylinder: | C114: Cylinder radius:
A115: Höhe Zylinder: | B115: Höhe Zylinder: | C115: Cylinder height:
A116: Symmetrieachse parallel zu: | B116: Symmetrieachse parallel zu: | C116: Axis parallel to:
A117: =INDEX(B117:C117,1,$A$1) -> X-Achse | B117: X-Achse | C117: X-Axis
A118: Y-Achse | B118: Y-Achse | C118: Y-Axis
A119: Z-Achse | B119: Z-Achse | C119: Z-Axis
A120: Außenradius Zylinder: | B120: Außenradius Zylinder: | C120: Cylinder outer radius:
A121: Innenradius Zylinder: | B121: Innenradius Zylinder: | C121: Cylinder inner radius:
A122: Radius Kugel: | B122: Radius Kugel: | C122: Radius of the sphere:
A123: Radius Darstellungsobjekt: | B123: Radius Darstellungsobjekt: | C123: Radius of the object:
A124: Masse: | B124: Masse: | C124: Mass:
A125: Eingabe Massenträgheitsmoment J | B125: Eingabe Massenträgheitsmoment J | C125: Input mass moment of inertia J
A126: Eingabe Massenträgheitsmoment J0 | B126: Eingabe Massenträgheitsmoment J0 | C126: Input mass moment of inertia J0
A127: 2-Finger Parallelgreifer | B127: 2-Finger Parallelgreifer | C127: 2-finger parallel gripper
A128: 2-Finger Winkelgreifer | B128: 2-Finger Winkelgreifer | C128: 2-finger angular gripper
A129: 2-Finger Radialgreifer | B129: 2-Finger Radialgreifer | C129: 2-finger radial gripper
A130: 3-Finger Zentrischgreifer | B130: 3-Finger Zentrischgreifer | C130: 3-finger centric gripper
A131: 3-Finger Winkelgreifer | B131: 3-Finger Winkelgreifer | C131: 4-finger centric gripper
A132: 4-Finger Zentrischgreifer | B132: 4-Finger Zentrischgreifer | C132: 3-finger angular gripper
A133: =INDEX(B133:C133,1,$A$1) -> Spezialgreifer | B133: Spezialgreifer | C133: Special gripper
A134: Richtung + | B134: Richtung + | C134: Direction +
A135: Richtung - | B135: Richtung - | C135: Direction -
A136: Greiferart: | B136: Greiferart: | C136: Gripper type:
A137: Greifertyp: | B137: Greifertyp: | C137: Gripper model:
A138: Bestellnummer: | B138: Bestellnummer: | C138: ID-Nr.:
A139: Länge: | B139: Länge: | C139: Length:
A140: Breite: | B140: Breite: | C140: Width:
A141: Höhe: | B141: Höhe: | C141: Height:
A142: Durchmesser: | B142: Durchmesser: | C142: Diameter:
A143: Z-Achse Greifer parallel zu: | B143: Z-Achse Greifer parallel zu: | C143: Z-axis of the gripper parallel to:
A144: Orientierung Grundbacken: | B144: Orientierung Grundbacken: | C144: Orientation of the base jaws:
A145: Grundbackenbewegung parallel zu: | B145: Grundbackenbewegung parallel zu: | C145: Base jaw movement parallel to:
A146: Greiferfinger | B146: Greiferfinger | C146: Gripper finger
A147: Bezeichnung: | B147: Bezeichnung: | C147: Description:
A148: Schwenkmodul | B148: Schwenkmodul | C148: Swivel Unit
A149: Typ: | B149: Typ: | C149: Type:
A150: Ursprungsabstand X: | B150: Ursprungsabstand X: | C150: X Distance to origin:
A151: Ursprungsabstand Y: | B151: Ursprungsabstand Y: | C151: Y Distance to origin:
A152: Ursprungsabstand Z: | B152: Ursprungsabstand Z: | C152: Z Distance to origin:
A153: Orientierung Anschluss Aufbau: | B153: Orientierung Anschluss Aufbau: | C153: Orientation of the connection setup:
A154: Massenträgheiten dürfen nicht 0 oder kleiner 0 sein! | B154: Massenträgheiten dürfen nicht 0 oder kleiner 0 sein! | C154: Moment of inertia must be larger than 0!
A155: Dateneingabe unvollständig! Bitte alle Pflichtfelder ausfüllen. | B155: Dateneingabe unvollständig! Bitte alle Pflichtfelder ausfüllen. | C155: Data entry isn't complete! Please fill in all of the required fields.
A156: Bitte nur Ziffern eingeben! | B156: Bitte nur Ziffern eingeben! | C156: Only enter numbers!
A157: Erstes Zeichen muss ein Buchstabe sein! | B157: Erstes Zeichen muss ein Buchstabe sein! | C157: The first character must be a letter!
A158: Diese Anordnung ist nicht möglich. Bitte eine andere Achsenkombinationen auswählen. | B158: Diese Anordnung ist nicht möglich. Bitte eine andere Achsenkombinationen auswählen. | C158: This combination isn't possible. Please choose another combination.
A159: Keine doppelte Bezeichnung zulässig! | B159: Keine doppelte Bezeichnung zulässig! | C159: Duplicated descriptions aren't allowed!
A160: Maximalzahl an Geometrieelement erreicht. Hinzufügen nicht möglich! | B160: Maximalzahl an Geometrieelement erreicht. Hinzufügen nicht möglich! | C160: The maximum number of elements has been reached. It is not possible to add more elements!
A161: Bitte Bezeichnung eingeben! | B161: Bitte Bezeichnung eingeben! | C161: Please enter a description!
A162: Bezeichnung darf keine Zahl sein! | B162: Bezeichnung darf keine Zahl sein! | C162: The description can't be a number!
A163: Startwinkel wird automatisch zugewiesen | B163: Startwinkel wird automatisch zugewiesen | C163: Launching angle is allocated automatically
A164: Ungültige Dateneingabe! | B164: Ungültige Dateneingabe! | C164: Invalid data input!
A165: Innenradius muss kleiner sein als Außenradius | B165: Innenradius muss kleiner sein als Außenradius | C165: Inner Radius has to be smaller than outer radius
A166: Nicht möglich bei Schwenkwinkel 90° | B166: Nicht möglich bei Schwenkwinkel 90° | C166: For swivel angle 90 ° not possible
A167: Nicht möglich bei Schwenkwinkel 90° und Lage Aufbau hebend | B167: Nicht möglich bei Schwenkwinkel 90° und Lage Aufbau hebend | C167: For swivel angle 90 ° and position of construction not possible
A168: Bitte mindestens einen Greifer oder ein Geometrieelement hinzufügen | B168: Bitte mindestens einen Greifer oder ein Geometrieelement hinzufügen | C168: Please add at least a gripper or a geometrical feature
A169: Sprache auswählen | B169: Sprache auswählen | C169: Change Language
A170: Z-Achse Schwenkeinheit parallel zu: | B170: Z-Achse Schwenkeinheit parallel zu: | C170: Z-axis of the swivel unit parallel to:
A171: X-Achse Schwenkeinheit parallel zu: | B171: X-Achse Schwenkeinheit parallel zu: | C171: X-axis of the swivel unit parallel to:
A172: zulässig | B172: zulässig | C172: acceptable
A173: unzulässig | B173: unzulässig | C173: unacceptable
A174: irrelevant | B174: irrelevant | C174: irrelevant
A175: nicht sinnvoll | B175: nicht sinnvoll | C175: not practical
A176: Gesamtergebnis | B176: Gesamtergebnis | C176: Overall result
A177: Neuaufbau | B177: Neuaufbau | C177: Refresh
A178: Schwerpunkt zeigen/löschen | B178: Schwerpunkt zeigen/löschen | C178: Show/delete center of mass
A179: Schwenkbewegung vor berechnen | B179: Schwenkbewegung vor berechnen | C179: Pivoting forward
A180: Schwenkbewegung zurück berechnen | B180: Schwenkbewegung zurück berechnen | C180: Pivoting backward
A181: Neigungswinkel [Grad] | B181: Neigungswinkel [Grad] | C181: Tilt angle [deg.]
A182: Startposition | B182: Startposition | C182: Start position
A183: Endposition | B183: Endposition | C183: End position
A184: Schwenkbewegung | B184: Schwenkbewegung | C184: Direction of movement
A185: Schwenkbewegung Schwerpunkt | B185: Schwenkbewegung Schwerpunkt | C185: Direction of movement of center of mass
A186: Startposition Schwerpunkt | B186: Startposition Schwerpunkt | C186: Start position of center of mass
A187: Endposition Schwerpunkt | B187: Endposition Schwerpunkt | C187: End position of center of mass
A188: Uhrzeigersinn | B188: Uhrzeigersinn | C188: clockwise
A189: gegen Uhrzeigersinn | B189: gegen Uhrzeigersinn | C189: anticlockwise
A190: Neigungswinkel | B190: Neigungswinkel | C190: Tilt angle
A191: Schwenkrichtung | B191: Schwenkrichtung | C191: Direction of rotation
A192: Beenden | B192: Beenden | C192: Quit
A193: 3 Uhr | B193: 3 Uhr | C193: 3 o' clock
A194: 6 Uhr | B194: 6 Uhr | C194: 6 o' clock
A195: 9 Uhr | B195: 9 Uhr | C195: 9 o' clock
A196: 12 Uhr | B196: 12 Uhr | C196: 12 o' clock
A197: Uhr | B197: Uhr | C197: o' clock
A198: 9 auf 3 über 6 | B198: 9 auf 3 über 6 | C198: 9 to 3 via 6
A199: 9 auf 3 über 12 | B199: 9 auf 3 über 12 | C199: 9 to 3 via 12
A200: Mittelstellung
... 5 more rows

Sheet DB-Parameter
A1: Jmax_sort | B1: ID_Modul | C1: ID_order | D1: Module | E1: Type_Damper | F1: Name_Damper | G1: Fv | H1: J0 | I1: R1 | J1: S_damp | K1: Z1 | L1: Z2 | M1: C1 | N1: C2 | O1: W3_max | P1: W4_max | Q1: Jmin | R1: Jmax | S1: Meff_max | T1: D_Kolben | U1: Wirkungsgrad | V1: Fv_hebend | W1: Fv_fallend | X1: Jmin_hebend | Y1: Jmin_fallend | Z1: Jmax_hebend | AA1: Jmax_fallend | AE1: J-bereich | AG1: J-bereich hor
A2: 265 | B2: 1 | C2: 1 | D2: SRU 08-H | E2: Hydraulikstossdaempfer | F2: WS-M6x4-394 | G2: 4 | H2: 3.7 | I2: 0.0042 | J2: 0.004 | K2: 0.0065 | L2: 0.01365 | M2: 582 | N2: 513 | O2: 1 | P2: 2800 | Q2: 0 | R2: =A2 -> 265 | S2: 24 | T2: 0.008 | U2: 0.85 | V2: 4 | W2: 4 | X2: 31 | Y2: 31 | Z2: 220.9 | AA2: 220.9 | AC2: Fv_ hebend/fallend noch nicht definiert | AE2: =Datensaetze[[#This Row],[Jmax]]-Datensaetze[[#This Row],[Jmin]] -> 265 | AG2: =Datensaetze[[#This Row],[Jmax_hebend]]-Datensaetze[[#This Row],[Jmin_hebend]] -> 189.9
A3: 465.4 | B3: 3 | C3: 3 | D3: SRU 08-W | E3: Elastomer | F3: - | G3: 1.3 | H3: 3.7 | I3: 0.0042 | J3: 0.0007 | K3: 0.0065 | L3: 0.01365 | M3: 582 | N3: 513 | Q3: 0 | R3: =A3 -> 465.4 | S3: 0 | T3: 0.008 | U3: 0.85 | V3: 1.3 | W3: 1.3 | X3: 31.7 | Y3: 31.7 | Z3: 265 | AA3: 265 | AC3: Fv_ hebend/fallend noch nicht definiert | AE3: =Datensaetze[[#This Row],[Jmax]]-Datensaetze[[#This Row],[Jmin]] -> 465.4 | AG3: =Datensaetze[[#This Row],[Jmax_hebend]]-Datensaetze[[#This Row],[Jmin_hebend]] -> 233.3
A4: 340 | B4: 2 | C4: 2 | D4: SRU 10-H | E4: Hydraulikstossdaempfer | F4: WS-M6x4-394 | G4: 4.3 | H4: 5.87 | I4: 0.0056 | J4: 0.004 | K4: 0.0065 | L4: 0.01365 | M4: 582 | N4: 513 | O4: 1 | P4: 2800 | Q4: 0 | R4: =A4 -> 340 | S4: 24 | T4: 0.01 | U4: 0.85 | V4: 4.3 | W4: 4.3 | X4: 31 | Y4: 31 | Z4: 284.6 | AA4: 284.6 | AC4: Fv_ hebend/fallend noch nicht definiert | AE4: =Datensaetze[[#This Row],[Jmax]]-Datensaetze[[#This Row],[Jmin]] -> 340 | AG4: =Datensaetze[[#This Row],[Jmax_hebend]]-Datensaetze[[#This Row],[Jmin_hebend]] -> 253.6
A5: 400 | B5: 22 | C5: 22 | D5: SRU 10-S | E5: Elastomer | F5: - | G5: 1.25 | H5: 5.87 | I5: 0.0056 | J5: 0.0007 | K5: 0.0065 | L5: 0.01365 | M5: 582 | N5: 513 | Q5: 0 | R5: 400 | S5: 0 | T5: 0.01 | U5: 0.85 | V5: 1.25 | W5: 1.25 | X5: 30.8 | Y5: 30.8 | Z5: 350 | AA5: 350 | AC5: Fv_ hebend/fallend noch nicht definiert | AE5: =Datensaetze[[#This Row],[Jmax]]-Datensaetze[[#This Row],[Jmin]] -> 400 | AG5: =Datensaetze[[#This Row],[Jmax_hebend]]-Datensaetze[[#This Row],[Jmin_hebend]] -> 319.2
A6: 679.6 | B6: 4 | C6: 4 | D6: SRU 10-W | E6: Elastomer | F6: - | G6: 1.25 | H6: 5.87 | I6: 0.0056 | J6: 0.0007 | K6: 0.0065 | L6: 0.01365 | M6: 582 | N6: 513 | Q6: 0 | R6: =A6 -> 679.6 | S6: 0 | T6: 0.01 | U6: 0.85 | V6: 1.25 | W6: 1.25 | X6: 30.8 | Y6: 30.8 | Z6: 462.3 | AA6: 462.3 | AC6: Fv_ hebend/fallend noch nicht definiert | AE6: =Datensaetze[[#This Row],[Jmax]]-Datensaetze[[#This Row],[Jmin]] -> 679.6 | AG6: =Datensaetze[[#This Row],[Jmax_hebend]]-Datensaetze[[#This Row],[Jmin_hebend]] -> 431.5
A7: 3036 | B7: 6 | C7: 6 | D7: SRU 12-H | E7: Hydraulikstossdaempfer | F7: WP-M0.1-166 | G7: 4.1 | H7: 70.63 | I7: 0.007 | J7: 0.007 | K7: 0.008 | L7: 0.0194 | M7: 930 | N7: 670 | O7: 5 | P7: 12000 | Q7: 0 | R7: =A7 -> 3036 | S7: 100 | T7: 0.012 | U7: 0.85 | V7: 4.1 | W7: 4.1 | X7: 265 | Y7: 265 | Z7: 2511.7 | AA7: 2511.7 | AC7: Fv_ hebend/fallend noch nicht definiert | AE7: =Datensaetze[[#This Row],[Jmax]]-Datensaetze[[#This Row],[Jmin]] -> 3036 | AG7: =Datensaetze[[#This Row],[Jmax_hebend]]-Datensaetze[[#This Row],[Jmin_hebend]] -> 2246.7
A8: 2523 | B8: 23 | C8: 23 | D8: SRU 12-S | E8: Elastomer | F8: - | G8: 1.4 | H8: 70.63 | I8: 0.007 | J8: 0.0006 | K8: 0.008 | L8: 0.0194 | M8: 930 | N8: 670 | Q8: 0 | R8: 2523 | S8: 0 | T8: 0.012 | U8: 0.85 | V8: 1.4 | W8: 1.4 | X8: 88 | Y8: 88 | Z8: 2512 | AA8: 2512 | AC8: Fv_ hebend/fallend noch nicht definiert | AE8: =Datensaetze[[#This Row],[Jmax]]-Datensaetze[[#This Row],[Jmin]] -> 2523 | AG8: =Datensaetze[[#This Row],[Jmax_hebend]]-Datensaetze[[#This Row],[Jmin_hebend]] -> 2424
A9: 2526 | B9: 5 | C9: 5 | D9: SRU 12-W | E9: Elastomer | F9: - | G9: 1.4 | H9: 70.63 | I9: 0.007 | J9: 0.0006 | K9: 0.008 | L9: 0.0194 | M9: 930 | N9: 670 | Q9: 0 | R9: =A9 -> 2526 | S9: 0 | T9: 0.012 | U9: 0.85 | V9: 1.4 | W9: 1.4 | X9: 266.7 | Y9: 266.7 | Z9: 2008 | AA9: 2008 | AC9: Fv_ hebend/fallend noch nicht definiert | AE9: =Datensaetze[[#This Row],[Jmax]]-Datensaetze[[#This Row],[Jmin]] -> 2526 | AG9: =Datensaetze[[#This Row],[Jmax_hebend]]-Datensaetze[[#This Row],[Jmin_hebend]] -> 1741.3
A10: 10291 | B10: 8 | C10: 8 | D10: SRU 14-H | E10: Hydraulikstossdaempfer | F10: WP-M0.15-186 | G10: 3.7 | H10: 117.5 | I10: 0.007 | J10: 0.0085 | K10: 0.008 | L10: 0.0214 | M10: 930 | N10: 670 | O10: 10 | P10: 25000 | Q10: 0 | R10: =A10 -> 10291 | S10: 500 | T10: 0.014 | U10: 0.85 | V10: 3.7 | W10: 3.7 | X10: 265 | Y10: 265 | Z10: 6992 | AA10: 6992 | AC10: Fv_ hebend/fallend noch nicht definiert | AE10: =Datensaetze[[#This Row],[Jmax]]-Datensaetze[[#This Row],[Jmin]] -> 10291 | AG10: =Datensaetze[[#This Row],[Jmax_hebend]]-Datensaetze[[#This Row],[Jmin_hebend]] -> 6727
A11: 5000 | B11: 24 | C11: 24 | D11: SRU 14-S | E11: Elastomer | F11: - | G11: 1.7 | H11: 117.5 | I11: 0.007 | J11: 0.0004 | K11: 0.008 | L11: 0.0214 | M11: 930 | N11: 670 | Q11: 0 | R11: =A11 -> 5000 | S11: 0 | T11: 0.014 | U11: 0.85 | V11: 1.7 | W11: 1.7 | X11: 66.4 | Y11: 66.4 | Z11: 4987 | AA11: 4987 | AC11: Fv_ hebend/fallend noch nicht definiert | AE11: =Datensaetze[[#This Row],[Jmax]]-Datensaetze[[#This Row],[Jmin]] -> 5000 | AG11: =Datensaetze[[#This Row],[Jmax_hebend]]-Datensaetze[[#This Row],[Jmin_hebend]] -> 4920.6
A12: 5981.9 | B12: 7 | C12: 7 | D12: SRU 14-W | E12: Elastomer | F12: - | G12: 1.7 | H12: 117.5 | I12: 0.007 | J12: 0.0004 | K12: 0.008 | L12: 0.0214 | M12: 930 | N12: 670 | Q12: 0 | R12: =A12 -> 5981.9 | S12: 0 | T12: 0.014 | U12: 0.85 | V12: 1.7 | W12: 1.7 | X12: 66.4 | Y12: 66.4 | Z12: 3685.8 | AA12: 3685.8 | AC12: Fv_ hebend/fallend noch nicht definiert | AE12: =Datensaetze[[#This Row],[Jmax]]-Datensaetze[[#This Row],[Jmin]] -> 5981.9 | AG12: =Datensaetze[[#This Row],[Jmax_hebend]]-Datensaetze[[#This Row],[Jmin_hebend]] -> 3619.4
A13: 44155 | B13: 21 | C13: 21 | D13: SRU-plus 20 DED | E13: Elastomer | F13: - | I13: 0.011 | K13: 0.0095 | L13: 0.027 | M13: 2600 | N13: 930 | Q13: 2508 | R13: 44155 | S13: 0 | T13: 0.02 | U13: 0.8 | X13: 6309 | Y13: 6309 | Z13: 17943 | AA13: 17943 | AC13: Fv_ hebend/fallend noch nicht definiert | AE13: =Datensaetze[[#This Row],[Jmax]]-Datensaetze[[#This Row],[Jmin]] -> 41647 | AG13: =Datensaetze[[#This Row],[Jmax_hebend]]-Datensaetze[[#This Row],[Jmin_hebend]] -> 11634
A14: 23000 | B14: 9 | C14: 9 | D14: SRU-plus 20 FED | E14: Elastomer | F14: - | G14: 2.5 | I14: 0.011 | K14: 0.0095 | L14: 0.027 | M14: 2600 | N14: 930 | Q14: 2300 | R14: =A14 -> 23000 | S14: 0 | T14: 0.02 | U14: 0.8 | V14: 3.1 | W14: 2.9 | X14: 6309 | Y14: 6309 | Z14: 17943 | AA14: 17943 | AE14: =Datensaetze[[#This Row],[Jmax]]-Datensaetze[[#This Row],[Jmin]] -> 20700 | AG14: =Datensaetze[[#This Row],[Jmax_hebend]]-Datensaetze[[#This Row],[Jmin_hebend]] -> 11634
A15: 521000 | B15: 11 | C15: 11 | D15: SRU-plus 25 (hard) | E15: Hydraulikstossdaempfer | F15: WP-M0.4-366 (hard) | G15: 3.2 | H15: 11710.724 | I15: 0.01 | J15: 0.014 | K15: 0.0095 | L15: 0.035 | M15: 2600 | N15: 930 | O15: 40 | P15: 60000 | Q15: 44000 | R15: 521000 | S15: 2500 | T15: 0.025 | U15: 0.8 | V15: - | W15: - | X15: 4880 | Y15: 4880 | Z15: 337000 | AA15: 337000 | AE15: =Datensaetze[[#This Row],[Jmax]]-Datensaetze[[#This Row],[Jmin]] -> 477000 | AG15: =Datensaetze[[#This Row],[Jmax_hebend]]-Datensaetze[[#This Row],[Jmin_hebend]] -> 332120
A16: 63800 | B16: 10 | C16: 10 | D16: SRU-plus 25 (soft) | E16: Hydraulikstossdaempfer | F16: WP-M0.4-266 (soft) | G16: 3.45 | H16: 11710.724 | I16: 0.01 | J16: 0.014 | K16: 0.0095 | L16: 0.035 | M16: 2600 | N16: 930 | O16: 35 | P16: 50000 | Q16: 2000 | R16: 63800 | S16: 400 | T16: 0.025 | U16: 0.8 | V16: 4.1 | W16: 4.9 | X16: 546 | Y16: 546 | Z16: 64000 | AA16: 64000 | AE16: =Datensaetze[[#This Row],[Jmax]]-Datensaetze[[#This Row],[Jmin]] -> 61800 | AG16: =Datensaetze[[#This Row],[Jmax_hebend]]-Datensaetze[[#This Row],[Jmin_hebend]] -> 63454
A17: 2590000 | B17: 14 | C17: 14 | D17: SRU-plus 30 (hard) | E17: Hydraulikstossdaempfer | F17: WP-M0.6-566 (hard) | G17: 3.3 | H17: 2277 | I17: 0.011 | J17: 0.0195 | K17: 0.006 | L17: 0.0415 | M17: 2600 | N17: 930 | O17: 140 | P17: 90000 | Q17: 355796 | R17: 2590000 | S17: 11500 | T17: 0.03 | U17: 0.8 | V17: - | W17: - | X17: 7737 | Y17: 7737 | Z17: 534000 | AA17: 534000 | AD17: 0.00035 | AE17: =Datensaetze[[#This Row],[Jmax]]-Datensaetze[[#This Row],[Jmin]] -> 2234204 | AG17: =Datensaetze[[#This Row],[Jmax_hebend]]-Datensaetze[[#This Row],[Jmin_hebend]] -> 526263
A18: 596338 | B18: 12 | C18: 12 | D18: SRU-plus 30 (soft) | E18: Hydraulikstossdaempfer | F18: WP-M0.6-466 (soft) | G18: 3.8 | H18: 2277 | I18: 0.011 | J18: 0.0195 | K18: 0.006 | L18: 0.0415 | M18: 2600 | N18: 930 | O18: 140 | P18: 95000 | Q18: 2315 | R18: 596338 | S18: 3000 | T18: 0.03 | U18: 0.8 | V18: 3.3 | W18: 5.7 | X18: 2315 | Y18: 2315 | Z18: 125339 | AA18: 125339 | AE18: =Datensaetze[[#This Row],[Jmax]]-Datensaetze[[#This Row],[Jmin]] -> 594023 | AG18: =Datensaetze[[#This Row],[Jmax_hebend]]-Datensaetze[[#This Row],[Jmin_hebend]] -> 123024
A19: 4465000 | B19: 15 | C19: 15 | D19: SRU-plus 35 (soft) | E19: Hydraulikstossdaempfer | F19: WP-M0.6-366 (soft) | G19: 4 | H19: 51860.715 | I19: 0.01375 | J19: 0.0195 | K19: 0.0095 | L19: 0.042 | M19: 2900 | N19: 1500 | O19: 140 | P19: 85000 | Q19: 15000 | R19: 4465000 | S19: 18000 | T19: 0.035 | U19: 0.8 | V19: 3.5 | W19: 6 | X19: 5890 | Y19: 5890 | Z19: 246350 | AA19: 246350 | AE19: =Datensaetze[[#This Row],[Jmax]]-Datensaetze[[#This Row],[Jmin]] -> 4450000 | AG19: =Datensaetze[[#This Row],[Jmax_hebend]]-Datensaetze[[#This Row],[Jmin_hebend]] -> 240460
A20: 6434720 | B20: 16 | C20: 16 | D20: SRU-plus 40 (hard) | E20: Hydraulikstossdaempfer | F20: WP-M1.0-466 (hard) | G20: 3.4 | H20: 108851.677 | I20: 0.016 | J20: 0.023 | K20: 0.0095 | L20: 0.0425 | M20: 3450 | N20: 2900 | O20: 190 | P20: 120000 | Q20: 359000 | R20: 6434720 | S20: 25000 | T20: 0.04 | U20: 0.8 | V20: - | W20: - | X20: 14000 | Y20: 14000 | Z20: 720000 | AA20: 720000 | AE20: =Datensaetze[[#This Row],[Jmax]]-Datensaetze[[#This Row],[Jmin]] -> 6075720 | AG20: =Datensaetze[[#This Row],[Jmax_hebend]]-Datensaetze[[#This Row],[Jmin_hebend]] -> 706000
A21: 1309050 | B21: 13 | C21: 13 | D21: SRU-plus 40 (soft) | E21: Hydraulikstossdaempfer | F21: WP-M1.0-266 (soft) | G21: 4.3 | H21: 108851.677 | I21: 0.016 | J21: 0.023 | K21: 0.0095 | L21: 0.0425 | M21: 3450 | N21: 2900 | O21: 245 | P21: 140000 | Q21: 15060 | R21: 1309050 | S21: 60000 | T21: 0.04 | U21: 0.8 | V21: 2.7 | W21: 5 | X21: 15610 | Y21: 15610 | Z21: 359114 | AA21: 359114 | AE21: =Datensaetze[[#This Row],[Jmax]]-Datensaetze[[#This Row],[Jmin]] -> 1293990 | AG21: =Datensaetze[[#This Row],[Jmax_hebend]]-Datensaetze[[#This Row],[Jmin_hebend]] -> 343504
A22: 15381317 | B22: 18 | C22: 18 | D22: SRU-plus 50 (hard) | E22: Hydraulikstossdaempfer | F22: WP-M1.0-466 (hard) | G22: 3.7 | H22: 961097.3 | I22: 0.026 | J22: 0.023 | K22: 0.0105 | L22: 0.0695 | M22: 12000 | N22: 10800 | O22: 190 | P22: 120000 | Q22: 5320000 | R22: 15381317 | S22: 25000 | T22: 0.05 | U22: 0.8 | V22: - | W22: - | X22: 16940 | Y22: 16940 | Z22: 1170000 | AA22: 1170000 | AE22: =Datensaetze[[#This Row],[Jmax]]-Datensaetze[[#This Row],[Jmin]] -> 10061317 | AG22: =Datensaetze[[#This Row],[Jmax_hebend]]-Datensaetze[[#This Row],[Jmin_hebend]] -> 1153060
A23: 6852464 | B23: 17 | C23: 17 | D23: SRU-plus 50 (soft) | E23: Hydraulikstossdaempfer | F23: WP-M1.0-266 (soft) | G23: 3.4 | H23: 961097.3 | I23: 0.026 | J23: 0.023 | K23: 0.0105 | L23: 0.0695 | M23: 12000 | N23: 10800 | O23: 245 | P23: 140000 | Q23: 30491 | R23: 6852464 | S23: 60000 | T23: 0.05 | U23: 0.8 | V23: 3 | W23: 5.4 | X23: 30491 | Y23: 30491 | Z23: 1037900 | AA23: 1037900 | AC23: Fv_ hebend/fallend noch nicht definiert | AE23: =Datensaetze[[#This Row],[Jmax]]-Datensaetze[[#This Row],[Jmin]] -> 6821973 | AG23: =Datensaetze[[#This Row],[Jmax_hebend]]-Datensaetze[[#This Row],[Jmin_hebend]] -> 1007409
A24: 22111047 | B24: 19 | C24: 19 | D24: SRU-plus 60 (soft) | E24: Hydraulikstossdaempfer | F24: WP-M1.25x1-166 | G24: 3.5 | I24: 0.026 | J24: 0.023 | K24: 0.0105 | L24: 0.0826 | M24: 12000 | N24: 10800 | O24: 320 | P24: 80000 | Q24: 31419 | R24: 22111047 | S24: 57614 | T24: 0.06 | U24: 0.8 | V24: 2.3 | W24: 4.5 | X24: 31419 | Y24: 31419 | Z24: 1291635 | AA24: 1291635 | AE24: =Datensaetze[[#This Row],[Jmax]]-Datensaetze[[#This Row],[Jmin]] -> 22079628 | AG24: =Datensaetze[[#This Row],[Jmax_hebend]]-Datensaetze[[#This Row],[Jmin_hebend]] -> 1260216
A25: 31132600 | B25: 20 | C25: 20 | D25: SRU-plus 63 | E25: Hydraulikstossdaempfer | F25: WP-M1.5x2-166 | G25: 3.8 | I25: 0.036 | J25: 0.023 | K25: 0.0262 | L25: 0.0818 | M25: 40000 | N25: 21200 | O25: 400 | P25: 100000 | Q25: 466238 | R25: 31132600 | S25: 38553 | T25: 0.063 | U25: 0.8 | X25: 466283 | Y25: 466283 | Z25: 4555129 | AA25: 4555129
A26: 265 | D26: SRU 08-H-M | E26: Hydraulikstossdaempfer | F26: WS-M6x4-394 | I26: 0.0042 | J26: 0.004 | K26: 0.0065 | L26: 0.01365 | M26: 582 | N26: 513 | O26: 1 | P26: 2800 | Q26: 0 | R26: =A26 -> 265 | T26: 0.008 | U26: 0.8
A27: 465 | D27: SRU 08-W-M | E27: Elastomer | F27: - | I27: 0.0042 | J27: 0.0007 | K27: 0.0065 | L27: 0.01365 | M27: 582 | N27: 513 | Q27: 0 | R27: =A27 -> 465 | T27: 0.008 | U27: 0.8
A28: 340 | D28: SRU 10-H-M | E28: Hydraulikstossdaempfer | F28: WS-M6x4-394 | I28: 0.0056 | J28: 0.004 | K28: 0.0065 | L28: 0.01365 | M28: 582 | N28: 513 | O28: 1 | P28: 2800 | Q28: 0 | R28: 340 | T28: 0.01 | U28: 0.8
A29: 400 | D29: SRU 10-S-M | E29: Elastomer | F29: WS-M6x4-394 | I29: 0.0056 | J29: 0.0007 | K29: 0.0065 | L29: 0.01365 | M29: 582 | N29: 513 | Q29: 0 | R29: 400 | T29: 0.01 | U29: 0.8 | Z29: 400 | AA29: 400
A30: 680 | D30: SRU 10-W-M | E30: Elastomer | F30: - | I30: 0.0056 | J30: 0.0007 | K30: 0.0065 | L30: 0.01365 | M30: 582 | N30: 513 | Q30: 0 | R30: 680 | T30: 0.01 | U30: 0.8
A31: 3000 | D31: SRU 12-H-M | E31: Hydraulikstossdaempfer | F31: WP-M0.1-166 | I31: 0.007 | J31: 0.007 | K31: 0.008 | L31: 0.0194 | M31: 930 | N31: 670 | O31: 5 | P31: 12000 | Q31: 0 | R31: 3000 | T31: 0.012 | U31: 0.8
A32: 3000 | D32: SRU 12-S-M | E32: Elastomer | F32: WP-M0,1-166 | I32: 0.007 | J32: 0.0006 | K32: 0.008 | L32: 0.0194 | M32: 930 | N32: 670 | Q32: 0 | R32: 3000 | T32: 0.012 | U32: 0.8 | Z32: 3000 | AA32: 3000
A33: 3000 | D33: SRU 12-W-M | E33: Elastomer | F33: - | I33: 0.007 | J33: 0.0006 | K33: 0.008 | L33: 0.0194 | M33: 930 | N33: 670 | Q33: 0 | R33: 3000 | T33: 0.012 | U33: 0.8
A34: 5000 | D34: SRU 14-H-M | E34: Hydraulikstossdaempfer | F34: WP-M0.15-186 | I34: 0.007 | J34: 0.0085 | K34: 0.008 | L34: 0.0214 | M34: 930 | N34: 670 | O34: 10 | P34: 25000 | Q34: 0 | R34: 5000 | T34: 0.014 | U34: 0.8
A35: 5000 | D35: SRU 14-S-M | E35: Elastomer | F35: WP-M0,15-196 | I35: 0.007 | J35: 0.0004 | K35: 0.008 | L35: 0.0214 | M35: 930 | N35: 670 | Q35: 0 | R35: 5000 | T35: 0.014 | U35: 0.8 | Z35: 4250 | AA35: 4250
A36: 5000 | D36: SRU 14-W-M | E36: Elastomer | F36: - | I36: 0.007 | J36: 0.0004 | K36: 0.008 | L36: 0.0214 | M36: 930 | N36: 670 | Q36: 0 | R36: 5000 | T36: 0.014 | U36: 0.8
A37: 23000 | D37: SRU-plus 20 DED-M | E37: Elastomer | F37: - | I37: 0.011 | K37: 0.0095 | L37: 0.027 | M37: 2600 | N37: 930 | Q37: 2508 | R37: 23000 | T37: 0.02 | U37: 0.8 | X37: 2508 | Y37: 2508 | Z37: 8426 | AA37: 8426
A38: 22000 | D38: SRU-plus 25-M | E38: Hydraulikstossdaempfer | F38: WP-M0.4-266 (soft) | I38: 0.01 | J38: 0.014 | K38: 0.0095 | L38: 0.035 | M38: 2600 | N38: 930 | O38: 35 | P38: 50000 | Q38: 2000 | R38: 22000 | T38: 0.025 | U38: 0.8 | X38: 2577 | Y38: 2577 | Z38: 44400 | AA38: 44400
A39: 85000 | D39: SRU-plus 30-M | E39: Hydraulikstossdaempfer | F39: WP-M0.6-466 (soft) | I39: 0.011 | J39: 0.0195 | K39: 0.006 | L39: 0.0415 | M39: 2600 | N39: 930 | O39: 140 | P39: 95000 | Q39: 2315 | R39: 85000 | T39: 0.03 | U39: 0.8 | X39: 14240 | Y39: 14240 | Z39: 34878 | AA39: 34878
A40: 100000 | D40: SRU-plus 35-M | E40: Hydraulikstossdaempfer | F40: WP-M0.6-366 (soft) | I40: 0.01375 | J40: 0.0195 | K40: 0.0095 | L40: 0.042 | M40: 2900 | N40: 1500 | O40: 140 | P40: 85000 | Q40: 15000 | R40: 100000 | T40: 0.035 | U40: 0.8 | X40: 14000 | Y40: 14000 | Z40: 80878 | AA40: 80878
A41: 560000 | D41: SRU-plus 40-M | E41: Hydraulikstossdaempfer | F41: WP-M1.0-266 (soft) | I41: 0.016 | J41: 0.023 | K41: 0.0095 | L41: 0.0425 | M41: 3450 | N41: 2900 | O41: 245 | P41: 140000 | Q41: 15060 | R41: 560000 | T41: 0.04 | U41: 0.8 | X41: 15601 | Y41: 15601 | Z41: 187358 | AA41: 187358
A42: 1000000 | D42: SRU-plus 50-M | E42: Hydraulikstossdaempfer | F42: WP-M1.0-266 (soft) | I42: 0.026 | J42: 0.023 | K42: 0.0105 | L42: 0.0695 | M42: 12000 | N42: 10800 | O42: 245 | P42: 140000 | Q42: 30491 | R42: 1000000 | T42: 0.05 | U42: 0.8 | X42: 30891 | Y42: 30891 | Z42: 534638 | AA42: 534638
A43: 1400000 | D43: SRU-plus 60-M | E43: Hydraulikstossdaempfer | F43: WP-M1.25x1-166 | I43: 0.026 | J43: 0.023 | K43: 0.0105 | L43: 0.0826 | M43: 12000 | N43: 10800 | O43: 320 | P43: 80000 | Q43: 31419 | R43: 1400000 | T43: 0.06 | U43: 0.8 | X43: 31419 | Y43: 31419 | Z43: 661042 | AA43: 661042
A44: 5981.9 | D44: SRM-14-E | E44: Elastomer | F44: - | G44: 1.7 | H44: 117.5 | I44: 0.007 | J44: 0.0004 | K44: 0.0058 | L44: 0.0214 | M44: 2550 | N44: 910 | Q44: 0 | R44: =A44 -> 5981.9 | S44: 0 | T44: 0.014 | U44: 0.8 | V44: 1.7 | W44: 1.7 | X44: 66.4 | Y44: 66.4 | Z44: 3685.8 | AA44: 3685.8
A45: 14000 | D45: SRM-14-X | E45: Hydraulikstossdaempfer | F45: WP-M0,15-186 | I45: 0.007 | J45: 0.0089 | K45: 0.019 | L45: 0.0214 | M45: 2550 | N45: 910 | O45: 13 | P45: 30000 | R45: 14000 | S45: 0 | T45: 0.014 | U45: 0.8 | X45: 256 | Y45: 256 | Z45: 4786 | AA45: 4786
A46: 10000 | D46: SRM-14-H | E46: Hydraulikstossdaempfer | F46: WP-M0,15-186 | I46: 0.007 | J46: 0.0089 | K46: 0.0058 | L46: 0.0214 | M46: 2550 | N46: 910 | O46: 10 | P46: 25000 | Q46: 280 | R46: 10000 | S46: 500 | T46: 0.014 | U46: 0.8 | X46: 256 | Y46: 256 | Z46: 3141 | AA46: 3141
A47: 80000 | D47: SRM-16-H | E47: Hydraulikstossdaempfer | F47: WP-M0,15-130 | I47: 0.008 | J47: 0.008 | K47: 0.0075 | L47: 0.037 | M47: 1422 | N47: 562 | O47: 12 | P47: 25000 | Q47: 2500 | R47: 80000 | S47: 600 | T47: 0.016 | U47: 0.8 | X47: 700 | Y47: 700 | Z47: 23000 | AA47: 23000
A48: 520000 | D48: SRM-25-H | E48: Hydraulikstossdaempfer | F48: WP-M 0,4-609 | I48: 0.0125 | J48: 0.014 | K48: 0.008 | L48: 0.055 | M48: 2726 | N48: 1179 | O48: 35 | P48: 50000 | Q48: 3000 | R48: 520000 | S48: 400 | T48: 0.025 | U48: 0.8 | X48: 2000 | Y48: 2000 | Z48: 102410 | AA48: 102410
A49: 7000000 | D49: SRM-40-H | E49: Hydraulikstossdaempfer | F49: WP-M 1,0-703 | I49: 0.02 | J49: 0.02 | K49: 0.01 | L49: 0.083 | M49: 2970 | N49: 2133 | O49: 200 | P49: 115000 | Q49: 1000000 | R49: =A49 -> 7000000 | S49: 60000 | T49: 0.04 | U49: 0.8 | X49: 80000 | Y49: 80000 | Z49: 460200 | AA49: 460200
D56: 1 | E56: 2 | F56: 3 | G56: 4 | H56: 5 | I56: 6 | J56: 7 | K56: 8 | L56: 9 | M56: 10 | N56: 11 | O56: 12 | P56: 13 | Q56: 14 | R56: 15 | S56: 16 | T56: 17 | U56: 18 | V56: 19 | W56: 20 | X56: 21 | Y56: 22 | Z56: 23 | AA56: 24
B58: Achtung:
B59: Zeilen nicht sortieren!!!

Sheet DB-Schwenkeinheiten
A1: Produktklasse | B1: Typ | C1: Bestellnr | D1: Laenge | E1: Breite | F1: Hoehe | G1: Eigenmasse | H1: xs | I1: ys | J1: zs | K1: Jxs | L1: Jys | M1: Jzs
A2: Universal-Schwenkeinheit | B2: SRU+20-W-90-3 | C2: 361400 | D2: 157.9 | E2: 76 | F2: 47 | G2: 1.2 | H2: -3.77 | I2: 1.26 | J2: 22.34 | K2: 0.000691 | L2: 0.001749 | M2: 0.00207
A3: Universal-Schwenkeinheit | B3: SRU+20-W-180-3 | C3: 361420 | D3: 157.9 | E3: 76 | F3: 47 | G3: 1.2 | H3: -3.77 | I3: 1.26 | J3: 22.34 | K3: 0.000691 | L3: 0.001749 | M3: 0.00207
A4: Universal-Schwenkeinheit | B4: SRU+20-W-180-90 | C4: 361450 | D4: 157.9 | E4: 76 | F4: 47 | G4: 1.24 | H4: -7 | I4: 1.18 | J4: 22.28 | K4: 0.00072 | L4: 0.001945 | M4: 0.002288
A5: Universal-Schwenkeinheit | B5: SRU+20-W-90-3-4 | C5: 361402 | D5: 157.9 | E5: 76 | F5: 47 | G5: 1.4 | H5: -2.74 | I5: 0.91 | J5: 31.42 | K5: 0.001068 | L5: 0.002318 | M5: 0.002387
A6: Universal-Schwenkeinheit | B6: SRU+20-W-180-3-4 | C6: 361422 | D6: 157.9 | E6: 76 | F6: 47 | G6: 1.4 | H6: -2.74 | I6: 0.91 | J6: 31.42 | K6: 0.001068 | L6: 0.002318 | M6: 0.002387
A7: Universal-Schwenkeinheit | B7: SRU+20-W-180-90-4 | C7: 361452 | D7: 157.9 | E7: 76 | F7: 47 | G7: 1.44 | H7: -5.17 | I7: 0.98 | J7: 31.46 | K7: 0.0011 | L7: 0.00263 | M7: 0.002717
A8: Universal-Schwenkeinheit | B8: SRU+25-W-90-3 | C8: 361600 | D8: 159 | E8: 86 | F8: 55 | G8: 1.6 | H8: -5.91 | I8: 1.73 | J8: 26.23 | K8: 0.001217 | L8: 0.002657 | M8: 0.003195
A9: Universal-Schwenkeinheit | B9: SRU+25-H-90-3 | C9: 361700 | D9: 159 | E9: 86 | F9: 55 | G9: 1.6 | H9: -5.91 | I9: 1.73 | J9: 26.23 | K9: 0.001217 | L9: 0.002657 | M9: 0.003195
A10: Universal-Schwenkeinheit | B10: SRU+25-W-180-3 | C10: 361620 | D10: 159 | E10: 86 | F10: 55 | G10: 1.6 | H10: -5.91 | I10: 1.73 | J10: 26.23 | K10: 0.001217 | L10: 0.002657 | M10: 0.003195
A11: Universal-Schwenkeinheit | B11: SRU+25-H-180-3 | C11: 361720 | D11: 159 | E11: 86 | F11: 55 | G11: 1.6 | H11: -5.91 | I11: 1.73 | J11: 26.23 | K11: 0.001217 | L11: 0.002657 | M11: 0.003195
A12: Universal-Schwenkeinheit | B12: SRU+25-W-180-90 | C12: 361650 | D12: 159 | E12: 86 | F12: 55 | G12: 1.65 | H12: -7.42 | I12: 1.64 | J12: 26.17 | K12: 0.001242 | L12: 0.002731 | M12: 0.003283
A13: Universal-Schwenkeinheit | B13: SRU+25-H-180-90 | C13: 361750 | D13: 159 | E13: 86 | F13: 55 | G13: 1.65 | H13: -7.42 | I13: 1.64 | J13: 26.17 | K13: 0.001242 | L13: 0.002731 | M13: 0.003283
A14: Universal-Schwenkeinheit | B14: SRU+25-W-90-3-4 | C14: 361602 | D14: 159 | E14: 86 | F14: 55 | G14: 1.8 | H14: -4.78 | I14: 1.24 | J14: 36.13 | K14: 0.001692 | L14: 0.003321 | M14: 0.00349
A15: Universal-Schwenkeinheit | B15: SRU+25-H-90-3-4 | C15: 361702 | D15: 159 | E15: 86 | F15: 55 | G15: 1.8 | H15: -4.78 | I15: 1.24 | J15: 36.13 | K15: 0.001692 | L15: 0.003321 | M15: 0.00349
A16: Universal-Schwenkeinheit | B16: SRU+25-W-180-3-4 | C16: 361622 | D16: 159 | E16: 86 | F16: 55 | G16: 1.8 | H16: -4.78 | I16: 1.24 | J16: 36.13 | K16: 0.001692 | L16: 0.003321 | M16: 0.00349
A17: Universal-Schwenkeinheit | B17: SRU+25-H-180-3-4 | C17: 361722 | D17: 159 | E17: 86 | F17: 55 | G17: 1.8 | H17: -4.78 | I17: 1.24 | J17: 36.13 | K17: 0.001692 | L17: 0.003321 | M17: 0.00349
A18: Universal-Schwenkeinheit | B18: SRU+25-W-180-90-4 | C18: 361652 | D18: 159 | E18: 86 | F18: 55 | G18: 1.85 | H18: -5.98 | I18: 1.32 | J18: 36.37 | K18: 0.001706 | L18: 0.003525 | M18: 0.003738
A19: Universal-Schwenkeinheit | B19: SRU+25-H-180-90-4 | C19: 361752 | D19: 159 | E19: 86 | F19: 55 | G19: 1.85 | H19: -5.98 | I19: 1.32 | J19: 36.37 | K19: 0.001706 | L19: 0.003525 | M19: 0.003738
A20: Universal-Schwenkeinheit | B20: SRU+30-W-90-3 | C20: 361800 | D20: 187.4 | E20: 96 | F20: 55 | G20: 2.4 | H20: -7.4 | I20: 3.2 | J20: 26.5 | K20: 0.002187 | L20: 0.007162 | M20: 0.008331
A21: Universal-Schwenkeinheit | B21: SRU+30-H-90-3 | C21: 361900 | D21: 187.4 | E21: 96 | F21: 55 | G21: 2.4 | H21: -7.4 | I21: 3.2 | J21: 26.5 | K21: 0.002187 | L21: 0.007162 | M21: 0.008331
A22: Universal-Schwenkeinheit | B22: SRU+30-W-180-3 | C22: 361820 | D22: 187.4 | E22: 96 | F22: 55 | G22: 2.4 | H22: -7.4 | I22: 3.2 | J22: 26.5 | K22: 0.002187 | L22: 0.007162 | M22: 0.008331
A23: Universal-Schwenkeinheit | B23: SRU+30-H-180-3 | C23: 361920 | D23: 187.4 | E23: 96 | F23: 55 | G23: 2.4 | H23: -7.4 | I23: 3.2 | J23: 26.5 | K23: 0.002187 | L23: 0.007162 | M23: 0.008331
A24: Universal-Schwenkeinheit | B24: SRU+30-W-180-90 | C24: 361850 | D24: 187.4 | E24: 96 | F24: 55 | G24: 2.4 | H24: -15.9 | I24: 1.2 | J24: 26.5 | K24: 0.002022 | L24: 0.006393 | M24: 0.007482
A25: Universal-Schwenkeinheit | B25: SRU+30-H-180-90 | C25: 361950 | D25: 187.4 | E25: 96 | F25: 55 | G25: 2.4 | H25: -15.9 | I25: 1.2 | J25: 26.5 | K25: 0.002022 | L25: 0.006393 | M25: 0.007482
A26: Universal-Schwenkeinheit | B26: SRU+30-W-90-3-4 | C26: 361802 | D26: 187.4 | E26: 96 | F26: 55 | G26: 2.7 | H26: -6.6 | I26: 2.8 | J26: 23.1 | K26: 0.002571 | L26: 0.007673 | M26: 0.008614
A27: Universal-Schwenkeinheit | B27: SRU+30-H-90-3-4 | C27: 361902 | D27: 187.4 | E27: 96 | F27: 55 | G27: 2.7 | H27: -6.6 | I27: 2.8 | J27: 23.1 | K27: 0.002571 | L27: 0.007673 | M27: 0.008614
A28: Universal-Schwenkeinheit | B28: SRU+30-W-180-3-4 | C28: 361822 | D28: 187.4 | E28: 96 | F28: 55 | G28: 2.7 | H28: -6.6 | I28: 2.8 | J28: 23.1 | K28: 0.002571 | L28: 0.007673 | M28: 0.008614
A29: Universal-Schwenkeinheit | B29: SRU+30-H-180-3-4 | C29: 361922 | D29: 187.4 | E29: 96 | F29: 55 | G29: 2.7 | H29: -6.6 | I29: 2.8 | J29: 23.1 | K29: 0.002571 | L29: 0.007673 | M29: 0.008614
A30: Universal-Schwenkeinheit | B30: SRU+30-W-180-90-4 | C30: 361852 | D30: 187.4 | E30: 96 | F30: 55 | G30: 2.7 | H30: -14.1 | I30: 1.1 | J30: 23 | K30: 0.002403 | L30: 0.006954 | M30: 0.007814
A31: Universal-Schwenkeinheit | B31: SRU+30-H-180-90-4 | C31: 361952 | D31: 187.4 | E31: 96 | F31: 55 | G31: 2.7 | H31: -14.1 | I31: 1.1 | J31: 23 | K31: 0.002403 | L31: 0.006954 | M31: 0.007814
A32: Universal-Schwenkeinheit | B32: SRU+35-W-90-3 | C32: 362000 | D32: 195.9 | E32: 107 | F32: 60 | G32: 2.65 | H32: -7.47 | I32: 1.63 | J32: 28.76 | K32: 0.002959 | L32: 0.006935 | M32: 0.00853
A33: Universal-Schwenkeinheit | B33: SRU+35-W-180-3 | C33: 362020 | D33: 195.9 | E33: 107 | F33: 60 | G33: 2.65 | H33: -7.47 | I33: 1.63 | J33: 28.76 | K33: 0.002959 | L33: 0.006935 | M33: 0.00853
A34: Universal-Schwenkeinheit | B34: SRU+35-W-180-90 | C34: 362050 | D34: 195.9 | E34: 107 | F34: 60 | G34: 2.75 | H34: -11.58 | I34: 1.51 | J34: 28.73 | K34: 0.003124 | L34: 0.007911 | M34: 0.009616
A35: Universal-Schwenkeinheit | B35: SRU+35-W-90-3-4 | C35: 362002 | D35: 195.9 | E35: 107 | F35: 60 | G35: 2.95 | H35: -5.89 | I35: 1.29 | J35: 42.16 | K35: 0.00397 | L35: 0.008246 | M35: 0.009142
A36: Universal-Schwenkeinheit | B36: SRU+35-W-180-3-4 | C36: 362022 | D36: 195.9 | E36: 107 | F36: 60 | G36: 2.95 | H36: -5.89 | I36: 1.29 | J36: 42.16 | K36: 0.00397 | L36: 0.008246 | M36: 0.009142
A37: Universal-Schwenkeinheit | B37: SRU+35-W-180-90-4 | C37: 362052 | D37: 195.9 | E37: 107 | F37: 60 | G37: 3.05 | H37: -9.38 | I37: 1.22 | J37: 42.46 | K37: 0.004154 | L37: 0.009317 | M37: 0.010293
A38: Universal-Schwenkeinheit | B38: SRU+40-W-90-3 | C38: 362200 | D38: 222.5 | E38: 121 | F38: 69 | G38: 4.2 | H38: -7.21 | I38: 1.1 | J38: 33.21 | K38: 0.00598 | L38: 0.012446 | M38: 0.01562
A39: Universal-Schwenkeinheit | B39: SRU+40-H-90-3 | C39: 362300 | D39: 222.5 | E39: 121 | F39: 69 | G39: 4.2 | H39: -7.21 | I39: 1.1 | J39: 33.21 | K39: 0.00598 | L39: 0.012446 | M39: 0.01562
A40: Universal-Schwenkeinheit | B40: SRU+40-W-180-3 | C40: 362220 | D40: 222.5 | E40: 121 | F40: 69 | G40: 4.2 | H40: -7.21 | I40: 1.1 | J40: 33.21 | K40: 0.00598 | L40: 0.012446 | M40: 0.01562
A41: Universal-Schwenkeinheit | B41: SRU+40-H-180-3 | C41: 362320 | D41: 222.5 | E41: 121 | F41: 69 | G41: 4.2 | H41: -7.21 | I41: 1.1 | J41: 33.21 | K41: 0.00598 | L41: 0.012446 | M41: 0.01562
A42: Universal-Schwenkeinheit | B42: SRU+40-W-180-90 | C42: 362250 | D42: 222.5 | E42: 121 | F42: 69 | G42: 4.3 | H42: -11.21 | I42: 1.02 | J42: 33.18 | K42: 0.006261 | L42: 0.015302 | M42: 0.018658
A43: Universal-Schwenkeinheit | B43: SRU+40-H-180-90 | C43: 362350 | D43: 222.5 | E43: 121 | F43: 69 | G43: 4.3 | H43: -11.21 | I43: 1.02 | J43: 33.18 | K43: 0.006261 | L43: 0.015302 | M43: 0.018658
A44: Universal-Schwenkeinheit | B44: SRU+40-W-90-3-8 | C44: 362202 | D44: 222.5 | E44: 121 | F44: 69 | G44: 4.9 | H44: -5.23 | I44: 0.79 | J44: 52.54 | K44: 0.009565 | L44: 0.018406 | M44: 0.019075
A45: Universal-Schwenkeinheit | B45: SRU+40-H-90-3-8 | C45: 362302 | D45: 222.5 | E45: 121 | F45: 69 | G45: 4.9 | H45: -5.23 | I45: 0.79 | J45: 52.54 | K45: 0.009565 | L45: 0.018406 | M45: 0.019075
A46: Universal-Schwenkeinheit | B46: SRU+40-W-180-3-8 | C46: 362222 | D46: 222.5 | E46: 121 | F46: 69 | G46: 4.9 | H46: -5.23 | I46: 0.79 | J46: 52.54 | K46: 0.009565 | L46: 0.018406 | M46: 0.019075
A47: Universal-Schwenkeinheit | B47: SRU+40-H-180-3-8 | C47: 362322 | D47: 222.5 | E47: 121 | F47: 69 | G47: 4.9 | H47: -5.23 | I47: 0.79 | J47: 52.54 | K47: 0.009565 | L47: 0.018406 | M47: 0.019075
A48: Universal-Schwenkeinheit | B48: SRU+40-W-180-90-8 | C48: 362252 | D48: 222.5 | E48: 121 | F48: 69 | G48: 5 | H48: -8.25 | I48: 0.74 | J48: 53.19 | K48: 0.009899 | L48: 0.020484 | M48: 0.021138
A49: Universal-Schwenkeinheit | B49: SRU+40-H-180-90-8 | C49: 362352 | D49: 222.5 | E49: 121 | F49: 69 | G49: 5 | H49: -8.25 | I49: 0.74 | J49: 53.19 | K49: 0.009899 | L49: 0.020484 | M49: 0.021138
A50: Universal-Schwenkeinheit | B50: SRU+50-W-90-3 | C50: 362600 | D50: 314.6 | E50: 150 | F50: 85.5 | G50: 9.4 | H50: -6.88 | I50: 1.43 | J50: 58.12 | K50: 0.022273 | L50: 0.062975 | M50: 0.072985
A51: Universal-Schwenkeinheit | B51: SRU+50-H-90-3 | C51: 362700 | D51: 314.6 | E51: 150 | F51: 85.5 | G51: 9.4 | H51: -6.88 | I51: 1.43 | J51: 58.12 | K51: 0.022273 | L51: 0.062975 | M51: 0.072985
A52: Universal-Schwenkeinheit | B52: SRU+50-W-180-3 | C52: 362620 | D52: 314.6 | E52: 150 | F52: 85.5 | G52: 9.4 | H52: -6.88 | I52: 1.43 | J52: 58.12 | K52: 0.022273 | L52: 0.062975 | M52: 0.072985
A53: Universal-Schwenkeinheit | B53: SRU+50-H-180-3 | C53: 362720 | D53: 314.6 | E53: 150 | F53: 85.5 | G53: 9.4 | H53: -6.88 | I53: 1.43 | J53: 58.12 | K53: 0.022273 | L53: 0.062975 | M53: 0.072985
A54: Universal-Schwenkeinheit | B54: SRU+50-W-180-90 | C54: 362650 | D54: 314.6 | E54: 150 | F54: 85.5 | G54: 9.8 | H54: -17.42 | I54: 1.29 | J54: 47.23 | K54: 0.023886 | L54: 0.077617 | M54: 0.089197
A55: Universal-Schwenkeinheit | B55: SRU+50-H-180-90 | C55: 362750 | D55: 314.6 | E55: 150 | F55: 85.5 | G55: 9.8 | H55: -17.42 | I55: 1.29 | J55: 47.23 | K55: 0.023886 | L55: 0.077617 | M55: 0.089197
A56: Universal-Schwenkeinheit | B56: SRU+50-W-90-3-8 | C56: 362602 | D56: 314.6 | E56: 150 | F56: 85.5 | G56: 9.6 | H56: -6.22 | I56: 1.32 | J56: 48.35 | K56: 0.022825 | L56: 0.063368 | M56: 0.073226
A57: Universal-Schwenkeinheit | B57: SRU+50-H-90-3-8 | C57: 362702 | D57: 314.6 | E57: 150 | F57: 85.5 | G57: 9.6 | H57: -6.22 | I57: 1.32 | J57: 48.35 | K57: 0.022825 | L57: 0.063368 | M57: 0.073226
A58: Universal-Schwenkeinheit | B58: SRU+50-W-180-3-8 | C58: 362622 | D58: 314.6 | E58: 150 | F58: 85.5 | G58: 9.6 | H58: -6.22 | I58: 1.32 | J58: 48.35 | K58: 0.022825 | L58: 0.063368 | M58: 0.073226
A59: Universal-Schwenkeinheit | B59: SRU+50-H-180-3-8 | C59: 362722 | D59: 314.6 | E59: 150 | F59: 85.5 | G59: 9.6 | H59: -6.22 | I59: 1.32 | J59: 48.35 | K59: 0.022825 | L59: 0.063368 | M59: 0.073226
A60: Universal-Schwenkeinheit | B60: SRU+50-W-180-90-8 | C60: 362652 | D60: 314.6 | E60: 150 | F60: 85.5 | G60: 10 | H60: -15.51 | I60: -1.87 | J60: 56.8 | K60: 0.025303 | L60: 0.102462 | M60: 0.091042
A61: Universal-Schwenkeinheit | B61: SRU+50-H-180-90-8 | C61: 362752 | D61: 314.6 | E61: 150 | F61: 85.5 | G61: 10 | H61: -15.51 | I61: -1.87 | J61: 56.8 | K61: 0.025303 | L61: 0.102462 | M61: 0.091042
A62: Universal-Schwenkeinheit | B62: SRU+60-W-180-3 | C62: 362820 | D62: 317.5 | E62: 174 | F62: 101 | G62: 12.8 | H62: -7.26 | I62: 2.05 | J62: 54.81 | K62: 0.039647 | L62: 0.090375 | M62: 0.109227
A63: Universal-Schwenkeinheit | B63: SRU+60-H-180-3 | C63: 362920 | D63: 317.5 | E63: 174 | F63: 101 | G63: 12.8 | H63: -7.26 | I63: 2.05 | J63: 54.81 | K63: 0.039647 | L63: 0.090375 | M63: 0.109227
A64: Universal-Schwenkeinheit | B64: SRU+60-W-90-3 | C64: 362800 | D64: 317.5 | E64: 174 | F64: 101 | G64: 12.8 | H64: -7.26 | I64: 2.05 | J64: 54.81 | K64: 0.039647 | L64: 0.090375 | M64: 0.109227
A65: Universal-Schwenkeinheit | B65: SRU+60-H-90-3 | C65: 362900 | D65: 317.5 | E65: 174 | F65: 101 | G65: 12.8 | H65: -7.26 | I65: 2.05 | J65: 54.81 | K65: 0.039647 | L65: 0.090375 | M65: 0.109227
A66: Universal-Schwenkeinheit | B66: SRU+60-W-180-90 | C66: 362850 | D66: 317.5 | E66: 174 | F66: 101 | G66: 13.5 | H66: -18.39 | I66: 1.85 | J66: 47.71 | K66: 0.043102 | L66: 0.111868 | M66: 0.13326
A67: Universal-Schwenkeinheit | B67: SRU+60-H-180-90 | C67: 362950 | D67: 317.5 | E67: 174 | F67: 101 | G67: 13.5 | H67: -18.39 | I67: 1.85 | J67: 47.71 | K67: 0.043102 | L67: 0.111868 | M67: 0.13326
A68: Universal-Schwenkeinheit | B68: SRU+60-W-180-3-8 | C68: 362822 | D68: 317.5 | E68: 174 | F68: 101 | G68: 13 | H68: -7.4 | I68: 2.08 | J68: 64.55 | K68: 0.038697 | L68: 0.893763 | M68: 0.108338
A69: Universal-Schwenkeinheit | B69: SRU+60-H-180-3-8 | C69: 362922 | D69: 317.5 | E69: 174 | F69: 101 | G69: 13 | H69: -7.4 | I69: 2.08 | J69: 64.55 | K69: 0.038697 | L69: 0.893763 | M69: 0.108338
A70: Universal-Schwenkeinheit | B70: SRU+60-W-90-3-8 | C70: 362802 | D70: 317.5 | E70: 174 | F70: 101 | G70: 13 | H70: -7.4 | I70: 2.08 | J70: 64.55 | K70: 0.038697 | L70: 0.893763 | M70: 0.108338
A71: Miniatur-Schwenkeinheit | B71: SRM-16-H-90-3 | C71: 1347181 | D71: 125.5 | E71: 56.5 | F71: 36.5 | G71: 0.62 | H71: -3.77 | I71: 1.26 | J71: 22.34 | K71: 0.000691 | L71: 0.001749 | M71: 0.00207
A72: Miniatur-Schwenkeinheit | B72: SRM-16-H-90-3 | C72: 1347181 | D72: 125.5 | E72: 56.5 | F72: 36.5 | G72: 0.62 | H72: -3.77 | I72: 1.26 | J72: 22.34 | K72: 0.000691 | L72: 0.001749 | M72: 0.00207
A73: Miniatur-Schwenkeinheit | B73: SRM-16-H-180-3 | C73: 1331286 | D73: 125.5 | E73: 56.5 | F73: 36.5 | G73: 0.62 | H73: -3.77 | I73: 1.26 | J73: 22.34 | K73: 0.000691 | L73: 0.001749 | M73: 0.00207
A74: Miniatur-Schwenkeinheit | B74: SRM-16-H-190-90 | C74: 1347230 | D74: 125.5 | E74: 56.5 | F74: 36.5 | G74: 0.62 | H74: -3.77 | I74: 1.26 | J74: 22.34 | K74: 0.000691 | L74: 0.001749 | M74: 0.00207
A75: Miniatur-Schwenkeinheit | B75: SRM-25-H-90-3 | C75: 1347287 | D75: 175 | E75: 80 | F75: 51 | G75: 1.71 | H75: -7.4 | I75: 3.2 | J75: 26.5 | K75: 0.002187 | L75: 0.007162 | M75: 0.008331
A76: Miniatur-Schwenkeinheit | B76: SRM-25-H-180-3 | C76: 1324471 | D76: 175 | E76: 80 | F76: 51 | G76: 1.71 | H76: -7.4 | I76: 3.2 | J76: 26.5 | K76: 0.002187 | L76: 0.007162 | M76: 0.008331
A77: Miniatur-Schwenkeinheit | B77: SRM-25-H-180-90 | C77: 1347317 | D77: 175 | E77: 80 | F77: 51 | G77: 1.71 | H77: -7.4 | I77: 3.2 | J77: 26.5 | K77: 0.002187 | L77: 0.007162 | M77: 0.008331
A78: Miniatur-Schwenkeinheit | B78: SRM-40-H-90-3 | C78: 1347385 | D78: 260.1 | E78: 120 | F78: 72 | G78: 5.93 | H78: -7.21 | I78: 1.1 | J78: 33.21 | K78: 0.00598 | L78: 0.012446 | M78: 0.01562
A79: Miniatur-Schwenkeinheit | B79: SRM-40-H-180-3 | C79: 1331301 | D79: 260.1 | E79: 120 | F79: 72 | G79: 5.93 | H79: -7.21 | I79: 1.1 | J79: 33.21 | K79: 0.00598 | L79: 0.012446 | M79: 0.01562
A80: Universal-Schwenkeinheit | B80: SRM-40-H-180-90 | C80: 1331301 | D80: 260.1 | E80: 120 | F80: 72 | G80: 5.93 | H80: -7.21 | I80: 1.1 | J80: 33.21 | K80: 0.00598 | L80: 0.012446 | M80: 0.01562
A81: Miniatur-Schwenkeinheit | B81: SRM-14-E | C81: 1331282 | D81: 118 | E81: 45 | F81: 33 | G81: 0.44 | H81: -1.48 | I81: -0.59 | J81: 16.19 | K81: 0.0001068 | L81: 0.000683 | M81: 0.000716
A82: Miniatur-Schwenkeinheit | B82: SRM-14-X | C82: 1347008 | D82: 154.8 | E82: 52 | F82: 46.2 | G82: 0.61 | H82: -1.48 | I82: -0.59 | J82: 16.19 | K82: 0.0001068 | L82: 0.000683 | M82: 0.000716
A83: Miniatur-Schwenkeinheit | B83: SRM-14-H | C83: 1331278 | D83: 143.5 | E83: 45 | F83: 33 | G83: 0.47 | H83: -1.48 | I83: -0.59 | J83: 16.19 | K83: 0.0001068 | L83: 0.000683 | M83: 0.000716
A84: Miniatur-Schwenkeinheit | B84: SRU 8.2-W | C84: 356810 | D84: 83 | E84: 29 | F84: 25 | G84: 0.15 | H84: -4.83 | I84: -0.59 | J84: 11.96 | K84: 1.51e-05 | L84: 7.1e-05 | M84: 7.34e-05
A85: Miniatur-Schwenkeinheit | B85: SRU 10.2-W | C85: 356830 | D85: 95 | E85: 31 | F85: 25 | G85: 0.18 | H85: -4.69 | I85: 0.6 | J85: 11.81 | K85: 1.99e-05 | L85: 0.000113 | M85: 0.0001178
A86: Miniatur-Schwenkeinheit | B86: SRU 12.2-W | C86: 356850 | D86: 101 | E86: 39 | F86: 29 | G86: 0.4 | H86: -8.55 | I86: -0.62 | J86: 15.36 | K86: 7.08e-05 | L86: 0.0004032 | M86: 0.0004195
A87: Miniatur-Schwenkeinheit | B87: SRU 14.2-W | C87: 356870 | D87: 101 | E87: 43 | F87: 31 | G87: 0.5 | H87: -10.04 | I87: -0.63 | J87: 16.24 | K87: 0.0001021 | L87: 0.0005221 | M87: 0.0005515
A88: Miniatur-Schwenkeinheit | B88: SRU 8.2-H | C88: 356814 | D88: 83 | E88: 29 | F88: 25 | G88: 0.17 | H88: -9.44 | I88: -0.53 | J88: 11.86 | K88: 1.6e-05 | L88: 0.0001045 | M88: 0.0001076
A89: Miniatur-Schwenkeinheit | B89: SRU 10.2-H | C89: 356834 | D89: 95 | E89: 31 | F89: 25 | G89: 0.2 | H89: -8.11 | I89: 0.56 | J89: 11.76 | K89: 2.07e-05 | L89: 0.0001482 | M89: 0.0001537
A90: Miniatur-Schwenkeinheit | B90: SRU 12.2-H | C90: 356854 | D90: 101 | E90: 39 | F90: 29 | G90: 0.46 | H90: -11.41 | I90: 0.58 | J90: 15.31 | K90: 7.29e-05 | L90: 0.0004713 | M90: 0.0004911
A91: Miniatur-Schwenkeinheit | B91: SRU 14.2-H | C91: 356874 | D91: 101 | E91: 43 | F91: 31 | G91: 0.54 | H91: -1.48 | I91: -0.59 | J91: 16.19 | K91: 0.0001068 | L91: 0.000683 | M91: 0.000716

Sheet DB-Greifer
A1: Produktklasse | B1: Typ | C1: Bestellnr | D1: Laenge | E1: Breite | F1: Hoehe | G1: Durchmesser | H1: FingerLaenge | I1: FingerMasseMax | J1: EmpfGewicht | K1: Eigenmasse | L1: xs | M1: ys | N1: zs | O1: Jxs | P1: Jys | Q1: Jzs | S1: [mm] | T1: Abstand Schwerpunkt zu Anschraubfläche
A2: 2-Finger Parallelgreifer | B2: DKG 44 | C2: 340030 | D2: 44 | E2: 20 | F2: 30 | G2: 0 | H2: 30 | I2: 0 | J2: 0.35 | K2: 0.11 | L2: 0 | M2: 0 | N2: 15.5 | O2: 1.3e-05 | P2: 2.5e-05 | Q2: 2.4e-05 | S2: [kg m^2] | T2: Trägheiten im Schwerpunkt
A3: 2-Finger Parallelgreifer | B3: DKG 44-AS | C3: 340033 | D3: 44 | E3: 20 | F3: 40 | G3: 0 | H3: 30 | I3: 0 | J3: 0.35 | K3: 0.38 | L3: 0 | M3: 0 | N3: 22.3 | O3: 2.2e-05 | P3: 3.8e-05 | Q3: 3e-05
A4: 2-Finger Parallelgreifer | B4: DKG 64 | C4: 340031 | D4: 64 | E4: 25 | F4: 40 | G4: 0 | H4: 50 | I4: 0 | J4: 0.71 | K4: 0.26 | L4: 0 | M4: 0 | N4: 21.2 | O4: 3.3e-05 | P4: 0.000116 | Q4: 0.000102
A5: 2-Finger Parallelgreifer | B5: DKG 64-AS | C5: 340034 | D5: 64 | E5: 25 | F5: 55 | G5: 0 | H5: 50 | I5: 0 | J5: 0.71 | K5: 0.32 | L5: 0 | M5: 0 | N5: 30.9 | O5: 8.5e-05 | P5: 0.000171 | Q5: 0.000123
A6: 2-Finger Parallelgreifer | B6: DKG 78 | C6: 340032 | D6: 78 | E6: 30 | F6: 50 | G6: 0 | H6: 70 | I6: 0 | J6: 1.2 | K6: 0.48 | L6: 0 | M6: 0 | N6: 26.8 | O6: 0.000111 | P6: 0.000315 | Q6: 0.000277
A7: 2-Finger Parallelgreifer | B7: DKG 78-AS | C7: 340035 | D7: 78 | E7: 30 | F7: 70 | G7: 0 | H7: 70 | I7: 0 | J7: 1.2 | K7: 0.6 | L7: 0 | M7: 0 | N7: 40.5 | O7: 0.000233 | P7: 0.000475 | Q7: 0.000329
A8: 2-Finger Parallelgreifer | B8: DKG-RR 44 | C8: 340027 | D8: 44 | E8: 20 | F8: 30 | G8: 0 | H8: 30 | I8: 0 | J8: 0.1 | K8: 0.11 | L8: 0 | M8: 0 | N8: 22.3 | O8: 2.2e-05 | P8: 3.8e-05 | Q8: 3e-05
A9: 2-Finger Parallelgreifer | B9: DPG 100 | C9: 370253 | D9: 120.6 | E9: 50.1 | F9: 63 | G9: 0 | H9: 100 | I9: 0 | J9: 2.15 | K9: 1.3 | L9: 0 | M9: 0 | N9: 45.4 | O9: 0.000656 | P9: 0.001957 | Q9: 0.001718
A10: 2-Finger Parallelgreifer | B10: DPG 100 AS | C10: 370263 | D10: 120.6 | E10: 50.1 | F10: 89.5 | G10: 0 | H10: 100 | I10: 0 | J10: 2.15 | K10: 1.48 | L10: 0 | M10: 0 | N10: 40.5 | O10: 0.001077 | P10: 0.002386 | Q10: 0.001786
A11: 2-Finger Parallelgreifer | B11: DPG 125 | C11: 370254 | D11: 138 | E11: 59.9 | F11: 82 | G11: 0 | H11: 125 | I11: 0 | J11: 4.1 | K11: 2.21 | L11: 0 | M11: 0 | N11: 52.9 | O11: 0.001566 | P11: 0.005043 | Q11: 0.004557
A12: 2-Finger Parallelgreifer | B12: DPG 125 AS | C12: 370264 | D12: 138 | E12: 59.9 | F12: 122 | G12: 0 | H12: 125 | I12: 0 | J12: 4.1 | K12: 2.67 | L12: 0 | M12: 0 | N12: 44.6 | O12: 0.003076 | P12: 0.006578 | Q12: 0.004807
A13: 2-Finger Parallelgreifer | B13: DPG 64 | C13: 370251 | D13: 73 | E13: 36.1 | F13: 50 | G13: 0 | H13: 64 | I13: 0 | J13: 0.65 | K13: 0.43 | L13: 0 | M13: 0 | N13: 31.3 | O13: 0.000113 | P13: 0.000282 | Q13: 0.000238
A14: 2-Finger Parallelgreifer | B14: DPG 64 AS | C14: 370261 | D14: 73 | E14: 36.1 | F14: 68 | G14: 0 | H14: 64 | I14: 0 | J14: 0.65 | K14: 0.51 | L14: 0 | M14: 0 | N14: 27.5 | O14: 0.000212 | P14: 0.000426 | Q14: 0.000287
A15: 2-Finger Parallelgreifer | B15: DPG 80 | C15: 370252 | D15: 88 | E15: 42.1 | F15: 60.5 | G15: 0 | H15: 80 | I15: 0 | J15: 1.25 | K15: 0.72 | L15: 0 | M15: 0 | N15: 38.1 | O15: 0.000263 | P15: 0.000739 | Q15: 0.000639
A16: 2-Finger Parallelgreifer | B16: DPG 80 AS | C16: 370262 | D16: 88 | E16: 42.1 | F16: 81.5 | G16: 0 | H16: 80 | I16: 0 | J16: 1.25 | K16: 0.82 | L16: 0 | M16: 0 | N16: 32.9 | O16: 0.00045 | P16: 0.000928 | Q16: 0.000667
A17: 2-Finger Parallelgreifer | B17: DPG-plus 100-1 | C17: 304331 | D17: 120.6 | E17: 50.1 | F17: 63 | G17: 0 | H17: 100 | I17: 0.95 | J17: 3.1 | K17: 1.1 | L17: 0 | M17: 0 | N17: 37.9 | O17: 0.000457 | P17: 0.002063 | Q17: 0.001996
A18: 2-Finger Parallelgreifer | B18: DPG-plus 100-1 AS | C18: 304333 | D18: 120.6 | E18: 50.1 | F18: 89 | G18: 0 | H18: 100 | I18: 0.95 | J18: 3.1 | K18: 1.35 | L18: 0 | M18: 0 | N18: 55.8 | O18: 0.00098 | P18: 0.002676 | Q18: 0.002187
A19: 2-Finger Parallelgreifer | B19: DPG-plus 100-1 IS | C19: 304335 | D19: 120.6 | E19: 50.1 | F19: 89 | G19: 0 | H19: 80 | I19: 0.95 | J19: 3.1 | K19: 1.35 | L19: 0 | M19: 0 | N19: 55.8 | O19: 0.00098 | P19: 0.002463 | Q19: 0.001973
A20: 2-Finger Parallelgreifer | B20: DPG-plus 100-1-AS-EX | C20: 304242 | D20: 120.6 | E20: 50.1 | F20: 89 | G20: 0 | H20: 100 | I20: 0.95 | J20: 3.1 | K20: 1.35 | L20: 0 | M20: 0 | N20: 55.8 | O20: 0.00098 | P20: 0.002676 | Q20: 0.002187
A21: 2-Finger Parallelgreifer | B21: DPG-plus 100-1-AS-KVZ | C21: 304339 | D21: 120.6 | E21: 50.1 | F21: 89 | G21: 0 | H21: 64 | I21: 0.95 | J21: 5.6 | K21: 1.61 | L21: 0 | M21: 0 | N21: 72.3 | O21: 0.001941 | P21: 0.003743 | Q21: 0.002396
A22: 2-Finger Parallelgreifer | B22: DPG-plus 100-1-EX | C22: 304240 | D22: 120.6 | E22: 50.1 | F22: 63 | G22: 0 | H22: 100 | I22: 0.95 | J22: 3.1 | K22: 1.1 | L22: 0 | M22: 0 | N22: 37.9 | O22: 0.000457 | P22: 0.002063 | Q22: 0.001996
A23: 2-Finger Parallelgreifer | B23: DPG-plus 100-1-IS-EX | C23: 304244 | D23: 120.6 | E23: 50.1 | F23: 89 | G23: 0 | H23: 80 | I23: 0.95 | J23: 3.1 | K23: 1.35 | L23: 0 | M23: 0 | N23: 55.8 | O23: 0.00098 | P23: 0.002463 | Q23: 0.001973
A24: 2-Finger Parallelgreifer | B24: DPG-plus 100-1-IS-KVZ | C24: 304330 | D24: 120.6 | E24: 50.1 | F24: 89 | G24: 0 | H24: 64 | I24: 0.95 | J24: 5.6 | K24: 1.61 | L24: 0 | M24: 0 | N24: 72.8 | O24: 0.001904 | P24: 0.003706 | Q24: 0.002394
A25: 2-Finger Parallelgreifer | B25: DPG-plus 100-1-KVZ | C25: 304337 | D25: 120.6 | E25: 50.1 | F25: 89.5 | G25: 0 | H25: 80 | I25: 0.95 | J25: 3.1 | K25: 1.38 | L25: 0 | M25: 0 | N25: 55.8 | O25: 0.001002 | P25: 0.002704 | Q25: 0.002194
A26: 2-Finger Parallelgreifer | B26: DPG-plus 100-2 | C26: 304332 | D26: 120.6 | E26: 50.1 | F26: 63 | G26: 0 | H26: 80 | I26: 0.95 | J26: 6.5 | K26: 1.1 | L26: 0 | M26: 0 | N26: 37.9 | O26: 0.000457 | P26: 0.00185 | Q26: 0.001783
A27: 2-Finger Parallelgreifer | B27: DPG-plus 100-2 AS | C27: 304334 | D27: 120.6 | E27: 50.1 | F27: 89 | G27: 0 | H27: 80 | I27: 0.95 | J27: 6.5 | K27: 1.35 | L27: 0 | M27: 0 | N27: 56.2 | O27: 0.000965 | P27: 0.002661 | Q27: 0.002185
A28: 2-Finger Parallelgreifer | B28: DPG-plus 100-2 IS | C28: 304336 | D28: 120.6 | E28: 50.1 | F28: 89 | G28: 0 | H28: 80 | I28: 0.95 | J28: 6.5 | K28: 1.35 | L28: 0 | M28: 0 | N28: 56.2 | O28: 0.000965 | P28: 0.002448 | Q28: 0.001972
A29: 2-Finger Parallelgreifer | B29: DPG-plus 100-2-AS-EX | C29: 304243 | D29: 120.6 | E29: 50.1 | F29: 89 | G29: 0 | H29: 80 | I29: 0.95 | J29: 6.5 | K29: 1.35 | L29: 0 | M29: 0 | N29: 56.2 | O29: 0.000965 | P29: 0.002661 | Q29: 0.002185
A30: 2-Finger Parallelgreifer | B30: DPG-plus 100-2-EX | C30: 304241 | D30: 120.6 | E30: 50.1 | F30: 63 | G30: 0 | H30: 80 | I30: 0.95 | J30: 6.5 | K30: 1.1 | L30: 0 | M30: 0 | N30: 37.9 | O30: 0.000457 | P30: 0.00185 | Q30: 0.001783
A31: 2-Finger Parallelgreifer | B31: DPG-plus 100-2-IS-EX | C31: 304245 | D31: 120.6 | E31: 50.1 | F31: 89 | G31: 0 | H31: 80 | I31: 0.95 | J31: 6.5 | K31: 1.35 | L31: 0 | M31: 0 | N31: 56.2 | O31: 0.000965 | P31: 0.002448 | Q31: 0.001972
A32: 2-Finger Parallelgreifer | B32: DPG-plus 100-2-KVZ | C32: 304338 | D32: 120.6 | E32: 50.1 | F32: 89.5 | G32: 0 | H32: 64 | I32: 0.95 | J32: 11.7 | K32: 1.38 | L32: 0 | M32: 0 | N32: 55.7 | O32: 0.001001 | P32: 0.00249 | Q32: 0.001981
A33: 2-Finger Parallelgreifer | B33: DPG-plus 125-1 | C33: 304341 | D33: 151.6 | E33: 60.1 | F33: 72.5 | G33: 0 | H33: 125 | I33: 1.75 | J33: 5.1 | K33: 1.9 | L33: 0 | M33: 0 | N33: 43.7 | O33: 0.001088 | P33: 0.00576 | Q33: 0.005654
A34: 2-Finger Parallelgreifer | B34: DPG-plus 125-1 AS | C34: 304343 | D34: 151.6 | E34: 60.1 | F34: 120.5 | G34: 0 | H34: 125 | I34: 1.75 | J34: 5.1 | K34: 2.35 | L34: 0 | M34: 0 | N34: 63.9 | O34: 0.00233 | P34: 0.007273 | Q34: 0.006183
A35: 2-Finger Parallelgreifer | B35: DPG-plus 125-1 IS | C35: 304345 | D35: 151.6 | E35: 60.1 | F35: 120.5 | G35: 0 | H35: 100 | I35: 1.75 | J35: 5.1 | K35: 2.35 | L35: 0 | M35: 0 | N35: 63.8 | O35: 0.002325 | P35: 0.00663 | Q35: 0.005544
A36: 2-Finger Parallelgreifer | B36: DPG-plus 125-1-AS-EX | C36: 304252 | D36: 151.6 | E36: 60.1 | F36: 120.5 | G36: 0 | H36: 125 | I36: 1.75 | J36: 5.1 | K36: 2.35 | L36: 0 | M36: 0 | N36: 63.9 | O36: 0.00233 | P36: 0.007273 | Q36: 0.006183
A37: 2-Finger Parallelgreifer | B37: DPG-plus 125-1-AS-KVZ | C37: 304349 | D37: 151.6 | E37: 60.1 | F37: 120.5 | G37: 0 | H37: 64 | I37: 1.75 | J37: 9.2 | K37: 2.9 | L37: 0 | M37: 0 | N37: 84 | O37: 0.004771 | P37: 0.009984 | Q37: 0.00671
A38: 2-Finger Parallelgreifer | B38: DPG-plus 125-1-EX | C38: 304250 | D38: 151.6 | E38: 60.1 | F38: 72.5 | G38: 0 | H38: 125 | I38: 1.75 | J38: 5.1 | K38: 1.9 | L38: 0 | M38: 0 | N38: 43.7 | O38: 0.001088 | P38: 0.00576 | Q38: 0.005654
A39: 2-Finger Parallelgreifer | B39: DPG-plus 125-1-IS-EX | C39: 304254 | D39: 151.6 | E39: 60.1 | F39: 120.5 | G39: 0 | H39: 100 | I39: 1.75 | J39: 5.1 | K39: 2.35 | L39: 0 | M39: 0 | N39: 63.8 | O39: 0.002325 | P39: 0.00663 | Q39: 0.005544
A40: 2-Finger Parallelgreifer | B40: DPG-plus 125-1-IS-KVZ | C40: 304340 | D40: 151.6 | E40: 60.1 | F40: 120.5 | G40: 0 | H40: 64 | I40: 1.75 | J40: 9.2 | K40: 2.9 | L40: 0 | M40: 0 | N40: 85.9 | O40: 0.004514 | P40: 0.009709 | Q40: 0.006666
A41: 2-Finger Parallelgreifer | B41: DPG-plus 125-1-KVZ | C41: 304347 | D41: 151.6 | E41: 60.1 | F41: 105.4 | G41: 0 | H41: 80 | I41: 1.75 | J41: 5.1 | K41: 2.4 | L41: 0 | M41: 0 | N41: 65.7 | O41: 0.002448 | P41: 0.007405 | Q41: 0.0062
A42: 2-Finger Parallelgreifer | B42: DPG-plus 125-2 | C42: 304342 | D42: 151.6 | E42: 60.1 | F42: 72.5 | G42: 0 | H42: 100 | I42: 1.75 | J42: 10.6 | K42: 1.9 | L42: 0 | M42: 0 | N42: 43.6 | O42: 0.001087 | P42: 0.005119 | Q42: 0.005014
A43: 2-Finger Parallelgreifer | B43: DPG-plus 125-2 AS | C43: 304344 | D43: 151.6 | E43: 60.1 | F43: 102.5 | G43: 0 | H43: 80 | I43: 1.75 | J43: 10.6 | K43: 2.35 | L43: 0 | M43: 0 | N43: 65 | O43: 0.002238 | P43: 0.007164 | Q43: 0.006138
A44: 2-Finger Parallelgreifer | B44: DPG-plus 125-2 IS | C44: 304346 | D44: 151.6 | E44: 60.1 | F44: 102.5 | G44: 0 | H44: 80 | I44: 1.75 | J44: 10.6 | K44: 2.35 | L44: 0 | M44: 0 | N44: 65 | O44: 0.002234 | P44: 0.006521 | Q44: 0.005499
A45: 2-Finger Parallelgreifer | B45: DPG-plus 125-2-AS-EX | C45: 304253 | D45: 151.6 | E45: 60.1 | F45: 102.5 | G45: 0 | H45: 80 | I45: 1.75 | J45: 10.6 | K45: 2.35 | L45: 0 | M45: 0 | N45: 65 | O45: 0.002238 | P45: 0.007164 | Q45: 0.006138
A46: 2-Finger Parallelgreifer | B46: DPG-plus 125-2-EX | C46: 304251 | D46: 151.6 | E46: 60.1 | F46: 72.5 | G46: 0 | H46: 100 | I46: 1.75 | J46: 10.6 | K46: 1.9 | L46: 0 | M46: 0 | N46: 43.6 | O46: 0.001087 | P46: 0.005119 | Q46: 0.005014
A47: 2-Finger Parallelgreifer | B47: DPG-plus 125-2-IS-EX | C47: 304255 | D47: 151.6 | E47: 60.1 | F47: 102.5 | G47: 0 | H47: 80 | I47: 1.75 | J47: 10.6 | K47: 2.35 | L47: 0 | M47: 0 | N47: 65 | O47: 0.002234 | P47: 0.006521 | Q47: 0.005499
A48: 2-Finger Parallelgreifer | B48: DPG-plus 125-2-KVZ | C48: 304348 | D48: 151.6 | E48: 60.1 | F48: 105.4 | G48: 0 | H48: 64 | I48: 1.75 | J48: 19.1 | K48: 2.4 | L48: 0 | M48: 0 | N48: 65.6 | O48: 0.002443 | P48: 0.006762 | Q48: 0.005561
A49: 2-Finger Parallelgreifer | B49: DPG-plus 160-1 | C49: 304351 | D49: 194.6 | E49: 72.1 | F49: 89.4 | G49: 0 | H49: 160 | I49: 3 | J49: 7.8 | K49: 3.65 | L49: 0 | M49: 0 | N49: 53.8 | O49: 0.00303 | P49: 0.018013 | Q49: 0.0177
A50: 2-Finger Parallelgreifer | B50: DPG-plus 160-1 AS | C50: 304353 | D50: 194.6 | E50: 72.1 | F50: 129.4 | G50: 0 | H50: 160 | I50: 3 | J50: 7.8 | K50: 4.65 | L50: 0 | M50: 0 | N50: 80.3 | O50: 0.007169 | P50: 0.022965 | Q50: 0.0193
A51: 2-Finger Parallelgreifer | B51: DPG-plus 160-1 IS | C51: 304355 | D51: 194.6 | E51: 72.1 | F51: 129.4 | G51: 0 | H51: 125 | I51: 3 | J51: 7.8 | K51: 4.65 | L51: 0 | M51: 0 | N51: 80.1 | O51: 0.007134 | P51: 0.021004 | Q51: 0.017373
A52: 2-Finger Parallelgreifer | B52: DPG-plus 160-1-AS-EX | C52: 304262 | D52: 194.6 | E52: 72.1 | F52: 129.4 | G52: 0 | H52: 160 | I52: 3 | J52: 7.8 | K52: 4.65 | L52: 0 | M52: 0 | N52: 80.3 | O52: 0.007169 | P52: 0.022965 | Q52: 0.0193
A53: 2-Finger Parallelgreifer | B53: DPG-plus 160-1-AS-KVZ | C53: 304359 | D53: 194.6 | E53: 72.1 | F53: 129.4 | G53: 0 | H53: 80 | I53: 3 | J53: 14 | K53: 8 | L53: 0 | M53: 0 | N53: 103.8 | O53: 0.014027 | P53: 0.030631 | Q53: 0.020765
A54: 2-Finger Parallelgreifer | B54: DPG-plus 160-1-EX | C54: 304260 | D54: 194.6 | E54: 72.1 | F54: 89.4 | G54: 0 | H54: 160 | I54: 3 | J54: 7.8 | K54: 3.65 | L54: 0 | M54: 0 | N54: 53.8 | O54: 0.00303 | P54: 0.018013 | Q54: 0.0177
A55: 2-Finger Parallelgreifer | B55: DPG-plus 160-1-IS-EX | C55: 304264 | D55: 194.6 | E55: 72.1 | F55: 129.4 | G55: 0 | H55: 125 | I55: 3 | J55: 7.8 | K55: 4.65 | L55: 0 | M55: 0 | N55: 80.1 | O55: 0.007134 | P55: 0.021004 | Q55: 0.017373
A56: 2-Finger Parallelgreifer | B56: DPG-plus 160-1-IS-KVZ | C56: 304350 | D56: 194.6 | E56: 72.1 | F56: 129.4 | G56: 0 | H56: 80 | I56: 3 | J56: 14 | K56: 8 | L56: 0 | M56: 0 | N56: 105 | O56: 0.013705 | P56: 0.030309 | Q56: 0.02071
A57: 2-Finger Parallelgreifer | B57: DPG-plus 160-1-KVZ | C57: 304357 | D57: 194.6 | E57: 72.1 | F57: 126.9 | G57: 0 | H57: 100 | I57: 3 | J57: 7.8 | K57: 5.8 | L57: 0 | M57: 0 | N57: 80.5 | O57: 0.006291 | P57: 0.021967 | Q57: 0.019025
A58: 2-Finger Parallelgreifer | B58: DPG-plus 160-2 | C58: 304352 | D58: 194.6 | E58: 72.1 | F58: 89.4 | G58: 0 | H58: 125 | I58: 3 | J58: 15.2 | K58: 3.65 | L58: 0 | M58: 0 | N58: 53.6 | O58: 0.003017 | P58: 0.016073 | Q58: 0.015773
A59: 2-Finger Parallelgreifer | B59: DPG-plus 160-2 AS | C59: 304354 | D59: 194.6 | E59: 72.1 | F59: 129.4 | G59: 0 | H59: 100 | I59: 3 | J59: 15.2 | K59: 4.65 | L59: 0 | M59: 0 | N59: 81.2 | O59: 0.007035 | P59: 0.022832 | Q59: 0.019246
A60: 2-Finger Parallelgreifer | B60: DPG-plus 160-2 IS | C60: 304356 | D60: 194.6 | E60: 72.1 | F60: 129.4 | G60: 0 | H60: 100 | I60: 3 | J60: 15.2 | K60: 4.65 | L60: 0 | M60: 0 | N60: 81 | O60: 0.007002 | P60: 0.020872 | Q60: 0.017318
A61: 2-Finger Parallelgreifer | B61: DPG-plus 160-2-AS-EX | C61: 304263 | D61: 194.6 | E61: 72.1 | F61: 129.4 | G61: 0 | H61: 100 | I61: 3 | J61: 15.2 | K61: 4.65 | L61: 0 | M61: 0 | N61: 81.2 | O61: 0.007035 | P61: 0.022832 | Q61: 0.019246
A62: 2-Finger Parallelgreifer | B62: DPG-plus 160-2-EX | C62: 304261 | D62: 194.6 | E62: 72.1 | F62: 89.4 | G62: 0 | H62: 125 | I62: 3 | J62: 15.2 | K62: 3.65 | L62: 0 | M62: 0 | N62: 53.6 | O62: 0.003017 | P62: 0.016073 | Q62: 0.015773
A63: 2-Finger Parallelgreifer | B63: DPG-plus 160-2-IS-EX | C63: 304265 | D63: 194.6 | E63: 72.1 | F63: 129.4 | G63: 0 | H63: 100 | I63: 3 | J63: 15.2 | K63: 4.65 | L63: 0 | M63: 0 | N63: 81 | O63: 0.007002 | P63: 0.020872 | Q63: 0.017318
A64: 2-Finger Parallelgreifer | B64: DPG-plus 160-2-KVZ | C64: 304358 | D64: 194.6 | E64: 72.1 | F64: 126.9 | G64: 0 | H64: 80 | I64: 3 | J64: 27.3 | K64: 5.8 | L64: 0 | M64: 0 | N64: 80.3 | O64: 0.006261 | P64: 0.020011 | Q64: 0.017097
A65: 2-Finger Parallelgreifer | B65: DPG-plus 200-1 | C65: 304361 | D65: 236 | E65: 100.1 | F65: 106.4 | G65: 0 | H65: 200 | I65: 5.5 | J65: 12.8 | K65: 7.3 | L65: 0 | M65: 0 | N65: 63.5 | O65: 0.009841 | P65: 0.054956 | Q65: 0.055512
A66: 2-Finger Parallelgreifer | B66: DPG-plus 200-1 AS | C66: 304363 | D66: 236 | E66: 100.1 | F66: 156.4 | G66: 0 | H66: 200 | I66: 5.5 | J66: 12.8 | K66: 9.5 | L66: 0 | M66: 0 | N66: 95.9 | O66: 0.023293 | P66: 0.071046 | Q66: 0.061578
A67: 2-Finger Parallelgreifer | B67: DPG-plus 200-1 IS | C67: 304365 | D67: 236 | E67: 100.1 | F67: 156.4 | G67: 0 | H67: 160 | I67: 5.5 | J67: 12.8 | K67: 9.5 | L67: 0 | M67: 0 | N67: 95.9 | O67: 0.023332 | P67: 0.064959 | Q67: 0.05545
A68: 2-Finger Parallelgreifer | B68: DPG-plus 200-1-AS-EX | C68: 304272 | D68: 236 | E68: 100.1 | F68: 156.4 | G68: 0 | H68: 200 | I68: 5.5 | J68: 12.8 | K68: 9.5 | L68: 0 | M68: 0 | N68: 95.9 | O68: 0.023293 | P68: 0.071046 | Q68: 0.061578
A69: 2-Finger Parallelgreifer | B69: DPG-plus 200-1-EX | C69: 304270 | D69: 236 | E69: 100.1 | F69: 106.4 | G69: 0 | H69: 200 | I69: 5.5 | J69: 12.8 | K69: 7.3 | L69: 0 | M69: 0 | N69: 63.5 | O69: 0.009841 | P69: 0.054956 | Q69: 0.055512
A70: 2-Finger Parallelgreifer | B70: DPG-plus 200-1-IS-EX | C70: 304274 | D70: 236 | E70: 100.1 | F70: 156.4 | G70: 0 | H70: 160 | I70: 5.5 | J70: 12.8 | K70: 9.5 | L70: 0 | M70: 0 | N70: 95.9 | O70: 0.023332 | P70: 0.064959 | Q70: 0.05545
A71: 2-Finger Parallelgreifer | B71: DPG-plus 200-2 | C71: 304362 | D71: 236 | E71: 100.1 | F71: 106.4 | G71: 0 | H71: 160 | I71: 5.5 | J71: 22.1 | K71: 7.3 | L71: 0 | M71: 0 | N71: 63.5 | O71: 0.009869 | P71: 0.048857 | Q71: 0.049384
A72: 2-Finger Parallelgreifer | B72: DPG-plus 200-2 AS | C72: 304364 | D72: 236 | E72: 100.1 | F72: 156.4 | G72: 0 | H72: 125 | I72: 5.5 | J72: 22.1 | K72: 9.5 | L72: 0 | M72: 0 | N72: 95.9 | O72: 0.02354 | P72: 0.071276 | Q72: 0.061525
A73: 2-Finger Parallelgreifer | B73: DPG-plus 200-2 IS | C73: 304366 | D73: 236 | E73: 100.1 | F73: 156.4 | G73: 0 | H73: 125 | I73: 5.5 | J73: 22.1 | K73: 9.5 | L73: 0 | M73: 0 | N73: 95.9 | O73: 0.023579 | P73: 0.065189 | Q73: 0.055396
A74: 2-Finger Parallelgreifer | B74: DPG-plus 200-2-AS-EX | C74: 304273 | D74: 236 | E74: 100.1 | F74: 156.4 | G74: 0 | H74: 125 | I74: 5.5 | J74: 22.1 | K74: 9.5 | L74: 0 | M74: 0 | N74: 95.9 | O74: 0.02354 | P74: 0.071276 | Q74: 0.061525
A75: 2-Finger Parallelgreifer | B75: DPG-plus 200-2-EX | C75: 304271 | D75: 236 | E75: 100.1 | F75: 106.4 | G75: 0 | H75: 160 | I75: 5.5 | J75: 22.1 | K75: 7.3 | L75: 0 | M75: 0 | N75: 63.5 | O75: 0.009869 | P75: 0.048857 | Q75: 0.049384
A76: 2-Finger Parallelgreifer | B76: DPG-plus 200-2-IS-EX | C76: 304275 | D76: 236 | E76: 100.1 | F76: 156.4 | G76: 0 | H76: 125 | I76: 5.5 | J76: 22.1 | K76: 9.5 | L76: 0 | M76: 0 | N76: 95.9 | O76: 0.023579 | P76: 0.065189 | Q76: 0.055396
A77: 2-Finger Parallelgreifer | B77: DPG-plus 240-1 | C77: 304371 | D77: 278 | E77: 115 | F77: 121.4 | G77: 0 | H77: 240 | I77: 5.5 | J77: 18.9 | K77: 11.5 | L77: 0 | M77: 0 | N77: 73.5 | O77: 0.019842 | P77: 0.111004 | Q77: 0.111871
A78: 2-Finger Parallelgreifer | B78: DPG-plus 240-1-AS | C78: 304373 | D78: 278 | E78: 115 | F78: 177.7 | G78: 0 | H78: 200 | I78: 5.5 | J78: 18.9 | K78: 14.6 | L78: 0 | M78: 0 | N78: 109.58 | O78: 0.047288 | P78: 0.144818 | Q78: 0.12507
A79: 2-Finger Parallelgreifer | B79: DPG-plus 240-1-AS-EX | C79: 304282 | D79: 278 | E79: 115 | F79: 177.7 | G79: 0 | H79: 200 | I79: 5.5 | J79: 18.9 | K79: 14.6 | L79: 0 | M79: 0 | N79: 109.58 | O79: 0.047288 | P79: 0.144818 | Q79: 0.12507
A80: 2-Finger Parallelgreifer | B80: DPG-plus 240-1-EX | C80: 304280 | D80: 278 | E80: 115 | F80: 121.4 | G80: 0 | H80: 240 | I80: 5.5 | J80: 18.9 | K80: 11.5 | L80: 0 | M80: 0 | N80: 73.5 | O80: 0.019842 | P80: 0.111004 | Q80: 0.111871
A81: 2-Finger Parallelgreifer | B81: DPG-plus 240-1-IS | C81: 304375 | D81: 278 | E81: 115 | F81: 177.7 | G81: 0 | H81: 200 | I81: 5.5 | J81: 18.9 | K81: 14.6 | L81: 0 | M81: 0 | N81: 110.25 | O81: 0.046952 | P81: 0.144479 | Q81: 0.124951
A82: 2-Finger Parallelgreifer | B82: DPG-plus 240-1-IS-EX | C82: 304284 | D82: 278 | E82: 115 | F82: 177.7 | G82: 0 | H82: 200 | I82: 5.5 | J82: 18.9 | K82: 14.6 | L82: 0 | M82: 0 | N82: 110.25 | O82: 0.046952 | P82: 0.144479 | Q82: 0.124951
A83: 2-Finger Parallelgreifer | B83: DPG-plus 240-2 | C83: 304372 | D83: 278 | E83: 115 | F83: 121.4 | G83: 0 | H83: 200 | I83: 5.5 | J83: 29.25 | K83: 11.5 | L83: 0 | M83: 0 | N83: 73.38 | O83: 0.019816 | P83: 0.099708 | Q83: 0.100598
A84: 2-Finger Parallelgreifer | B84: DPG-plus 240-2-AS | C84: 304374 | D84: 278 | E84: 115 | F84: 177.7 | G84: 0 | H84: 160 | I84: 5.5 | J84: 29.25 | K84: 14.6 | L84: 0 | M84: 0 | N84: 109.42 | O84: 0.047183 | P84: 0.133443 | Q84: 0.113797
A85: 2-Finger Parallelgreifer | B85: DPG-plus 240-2-AS-EX | C85: 304283 | D85: 278 | E85: 115 | F85: 177.7 | G85: 0 | H85: 160 | I85: 5.5 | J85: 29.25 | K85: 14.6 | L85: 0 | M85: 0 | N85: 109.42 | O85: 0.047183 | P85: 0.133443 | Q85: 0.113797
A86: 2-Finger Parallelgreifer | B86: DPG-plus 240-2-EX | C86: 304281 | D86: 278 | E86: 115 | F86: 121.4 | G86: 0 | H86: 200 | I86: 5.5 | J86: 29.25 | K86: 11.5 | L86: 0 | M86: 0 | N86: 73.38 | O86: 0.019816 | P86: 0.099708 | Q86: 0.100598
A87: 2-Finger Parallelgreifer | B87: DPG-plus 240-2-IS | C87: 304376 | D87: 278 | E87: 115 | F87: 177.7 | G87: 0 | H87: 160 | I87: 5.5 | J87: 29.25 | K87: 14.6 | L87: 0 | M87: 0 | N87: 109.55 | O87: 0.04775 | P87: 0.134007 | Q87: 0.113678
A88: 2-Finger Parallelgreifer | B88: DPG-plus 240-2-IS-EX | C88: 304285 | D88: 278 | E88: 115 | F88: 177.7 | G88: 0 | H88: 160 | I88: 5.5 | J88: 29.25 | K88: 14.6 | L88: 0 | M88: 0 | N88: 109.55 | O88: 0.04775 | P88: 0.134007 | Q88: 0.113678
A89: 2-Finger Parallelgreifer | B89: DPG-plus 300-1 | C89: 304381 | D89: 318 | E89: 140 | F89: 146.9 | G89: 0 | H89: 300 | I89: 5.5 | J89: 27 | K89: 19.6 | L89: 0 | M89: 0 | N89: 87.57 | O89: 0.049024 | P89: 0.267936 | Q89: 0.271272
A90: 2-Finger Parallelgreifer | B90: DPG-plus 300-1-AS | C90: 304383 | D90: 318 | E90: 140 | F90: 196.9 | G90: 0 | H90: 240 | I90: 5.5 | J90: 27 | K90: 23.6 | L90: 0 | M90: 0 | N90: 121.06 | O90: 0.090806 | P90: 0.318212 | Q90: 0.292319
A91: 2-Finger Parallelgreifer | B91: DPG-plus 300-1-AS-EX | C91: 304512 | D91: 318 | E91: 140 | F91: 196.9 | G91: 0 | H91: 240 | I91: 5.5 | J91: 27 | K91: 23.6 | L91: 0 | M91: 0 | N91: 121.06 | O91: 0.090806 | P91: 0.318212 | Q91: 0.292319
A92: 2-Finger Parallelgreifer | B92: DPG-plus 300-1-EX | C92: 304510 | D92: 318 | E92: 140 | F92: 146.9 | G92: 0 | H92: 300 | I92: 5.5 | J92: 27 | K92: 19.6 | L92: 0 | M92: 0 | N92: 87.57 | O92: 0.049024 | P92: 0.267936 | Q92: 0.271272
A93: 2-Finger Parallelgreifer | B93: DPG-plus 300-1-IS | C93: 304385 | D93: 318 | E93: 140 | F93: 196.9 | G93: 0 | H93: 240 | I93: 5.5 | J93: 27 | K93: 23.6 | L93: 0 | M93: 0 | N93: 119.79 | O93: 0.094678 | P93: 0.322036 | Q93: 0.292913
A94: 2-Finger Parallelgreifer | B94: DPG-plus 300-1-IS-EX | C94: 304514 | D94: 318 | E94: 140 | F94: 196.9 | G94: 0 | H94: 240 | I94: 5.5 | J94: 27 | K94: 23.6 | L94: 0 | M94: 0 | N94: 119.79 | O94: 0.094678 | P94: 0.322036 | Q94: 0.292913
A95: 2-Finger Parallelgreifer | B95: DPG-plus 300-2 | C95: 304382 | D95: 318 | E95: 140 | F95: 146.9 | G95: 0 | H95: 240 | I95: 5.5 | J95: 46.35 | K95: 19.6 | L95: 0 | M95: 0 | N95: 87.49 | O95: 0.04901 | P95: 0.236428 | Q95: 0.239798
A96: 2-Finger Parallelgreifer | B96: DPG-plus 300-2-AS | C96: 304384 | D96: 318 | E96: 140 | F96: 196.9 | G96: 0 | H96: 200 | I96: 5.5 | J96: 46.35 | K96: 23.6 | L96: 0 | M96: 0 | N96: 120.96 | O96: 0.090729 | P96: 0.286641 | Q96: 0.260845
A97: 2-Finger Parallelgreifer | B97: DPG-plus 300-2-AS-EX | C97: 304513 | D97: 318 | E97: 140 | F97: 196.9 | G97: 0 | H97: 200 | I97: 5.5 | J97: 46.35 | K97: 23.6 | L97: 0 | M97: 0 | N97: 120.96 | O97: 0.090729 | P97: 0.286641 | Q97: 0.260845
A98: 2-Finger Parallelgreifer | B98: DPG-plus 300-2-EX | C98: 304511 | D98: 318 | E98: 140 | F98: 146.9 | G98: 0 | H98: 240 | I98: 5.5 | J98: 46.35 | K98: 19.6 | L98: 0 | M98: 0 | N98: 87.49 | O98: 0.04901 | P98: 0.236428 | Q98: 0.239798
A99: 2-Finger Parallelgreifer | B99: DPG-plus 300-2-IS | C99: 304386 | D99: 318 | E99: 140 | F99: 196.9 | G99: 0 | H99: 200 | I99: 5.5 | J99: 46.35 | K99: 23.6 | L99: 0 | M99: 0 | N99: 119.72 | O99: 0.094545 | P99: 0.290757 | Q99: 0.261781
A100: 2-Finger Parallelgreifer | B100: DPG-plus 300-2-IS-EX | C100: 304515 | D100: 318 | E100: 140 | F100: 196.9 | G100: 0 | H100: 200 | I100: 5.5 | J100: 46.35 | K100: 23.6 | L100: 0 | M100: 0 | N100: 119.72 | O100: 0.094545 | P100: 0.290757 | Q100: 0.261781
A101: 2-Finger Parallelgreifer | B101: DPG-plus 40 | C101: 304291 | D101: 54 | E101: 24 | F101: 31.6 | G101: 0 | H101: 40 | I101: 0.01 | J101: 0.55 | K101: 0.12 | L101: 0 | M101: 0 | N101: 17.6 | O101: 1.3e-05 | P101: 4.7e-05 | Q101: 4.4e-05
A102: 2-Finger Parallelgreifer | B102: DPG-plus 40 AS | C102: 304293 | D102: 54 | E102: 24 | F102: 40.6 | G102: 0 | H102: 40 | I102: 0.01 | J102: 0.55 | K102: 0.14 | L102: 0 | M102: 0 | N102: 23.8 | O102: 2.2e-05 | P102: 5.7e-05 | Q102: 4.7e-05
A103: 2-Finger Parallelgreifer | B103: DPG-plus 40 IS | C103: 304295 | D103: 54 | E103: 24 | F103: 40.6 | G103: 0 | H103: 40 | I103: 0.01 | J103: 0.55 | K103: 0.14 | L103: 0 | M103: 0 | N103: 24 | O103: 2.2e-05 | P103: 5.7e-05 | Q103: 4.7e-05
A104: 2-Finger Parallelgreifer | B104: DPG-plus 40-AS-EX | C104: 304201 | D104: 54 | E104: 24 | F104: 40.6 | G104: 0 | H104: 40 | I104: 0.01 | J104: 0.55 | K104: 0.14 | L104: 0 | M104: 0 | N104: 23.8 | O104: 2.2e-05 | P104: 5.7e-05 | Q104: 4.7e-05
A105: 2-Finger Parallelgreifer | B105: DPG-plus 40-EX | C105: 304200 | D105: 54 | E105: 24 | F105: 31.6 | G105: 0 | H105: 40 | I105: 0.01 | J105: 0.55 | K105: 0.12 | L105: 0 | M105: 0 | N105: 17.6 | O105: 1.3e-05 | P105: 4.7e-05 | Q105: 4.4e-05
A106: 2-Finger Parallelgreifer | B106: DPG-plus 40-IS-EX | C106: 304202 | D106: 54 | E106: 24 | F106: 40.6 | G106: 0 | H106: 40 | I106: 0.01 | J106: 0.55 | K106: 0.14 | L106: 0 | M106: 0 | N106: 24 | O106: 2.2e-05 | P106: 5.7e-05 | Q106: 4.7e-05
A107: 2-Finger Parallelgreifer | B107: DPG-plus 50-1 | C107: 304301 | D107: 69.6 | E107: 30.1 | F107: 37.5 | G107: 0 | H107: 50 | I107: 0.15 | J107: 0.6 | K107: 0.25 | L107: 0 | M107: 0 | N107: 21.5 | O107: 3.5e-05 | P107: 0.000142 | Q107: 0.000137
A108: 2-Finger Parallelgreifer | B108: DPG-plus 50-1 AS | C108: 304303 | D108: 69.6 | E108: 30.1 | F108: 53.5 | G108: 0 | H108: 50 | I108: 0.15 | J108: 0.6 | K108: 0.3 | L108: 0 | M108: 0 | N108: 33 | O108: 7.3e-05 | P108: 0.000185 | Q108: 0.000149
A109: 2-Finger Parallelgreifer | B109: DPG-plus 50-1 IS | C109: 304305 | D109: 69.6 | E109: 30.1 | F109: 53.5 | G109: 0 | H109: 50 | I109: 0.15 | J109: 0.6 | K109: 0.3 | L109: 0 | M109: 0 | N109: 32.7 | O109: 7.3e-05 | P109: 0.000175 | Q109: 0.000138
A110: 2-Finger Parallelgreifer | B110: DPG-plus 50-1-AS-EX | C110: 304212 | D110: 69.6 | E110: 30.1 | F110: 53.5 | G110: 0 | H110: 50 | I110: 0.15 | J110: 0.6 | K110: 0.3 | L110: 0 | M110: 0 | N110: 33 | O110: 7.3e-05 | P110: 0.000185 | Q110: 0.000149
A111: 2-Finger Parallelgreifer | B111: DPG-plus 50-1-AS-KVZ | C111: 304309 | D111: 69.6 | E111: 30.1 | F111: 53.5 | G111: 0 | H111: 30 | I111: 0.15 | J111: 1.1 | K111: 0.34 | L111: 0 | M111: 0 | N111: 42.5 | O111: 0.000139 | P111: 0.000255 | Q111: 0.000159
A112: 2-Finger Parallelgreifer | B112: DPG-plus 50-1-EX | C112: 304210 | D112: 69.6 | E112: 30.1 | F112: 37.5 | G112: 0 | H112: 50 | I112: 0.15 | J112: 0.6 | K112: 0.25 | L112: 0 | M112: 0 | N112: 21.5 | O112: 3.5e-05 | P112: 0.000142 | Q112: 0.000137
A113: 2-Finger Parallelgreifer | B113: DPG-plus 50-1-IS-EX | C113: 304214 | D113: 69.6 | E113: 30.1 | F113: 53.5 | G113: 0 | H113: 50 | I113: 0.15 | J113: 0.6 | K113: 0.3 | L113: 0 | M113: 0 | N113: 32.7 | O113: 7.3e-05 | P113: 0.000175 | Q113: 0.000138
A114: 2-Finger Parallelgreifer | B114: DPG-plus 50-1-IS-KVZ | C114: 304300 | D114: 69.6 | E114: 30.1 | F114: 53.5 | G114: 0 | H114: 30 | I114: 0.15 | J114: 1.1 | K114: 0.34 | L114: 0 | M114: 0 | N114: 42.8 | O114: 0.000136 | P114: 0.000252 | Q114: 0.000159
A115: 2-Finger Parallelgreifer | B115: DPG-plus 50-1-KVZ | C115: 304307 | D115: 69.6 | E115: 30.1 | F115: 52.8 | G115: 0 | H115: 40 | I115: 0.15 | J115: 0.6 | K115: 0.29 | L115: 0 | M115: 0 | N115: 32.3 | O115: 7e-05 | P115: 0.00018 | Q115: 0.000147
A116: 2-Finger Parallelgreifer | B116: DPG-plus 50-2 | C116: 304302 | D116: 69.6 | E116: 30.1 | F116: 37.5 | G116: 0 | H116: 40 | I116: 0.15 | J116: 1.3 | K116: 0.25 | L116: 0 | M116: 0 | N116: 21.6 | O116: 3.5e-05 | P116: 0.000131 | Q116: 0.000126
A117: 2-Finger Parallelgreifer | B117: DPG-plus 50-2 AS | C117: 304304 | D117: 69.6 | E117: 30.1 | F117: 53.5 | G117: 0 | H117: 40 | I117: 0.15 | J117: 1.3 | K117: 0.3 | L117: 0 | M117: 0 | N117: 32.9 | O117: 7.2e-05 | P117: 0.000184 | Q117: 0.000149
A118: 2-Finger Parallelgreifer | B118: DPG-plus 50-2 IS | C118: 304306 | D118: 69.6 | E118: 30.1 | F118: 53.5 | G118: 0 | H118: 40 | I118: 0.15 | J118: 1.3 | K118: 0.3 | L118: 0 | M118: 0 | N118: 33 | O118: 7.2e-05 | P118: 0.000173 | Q118: 0.000138
A119: 2-Finger Parallelgreifer | B119: DPG-plus 50-2-AS-EX | C119: 304213 | D119: 69.6 | E119: 30.1 | F119: 53.5 | G119: 0 | H119: 40 | I119: 0.15 | J119: 1.3 | K119: 0.3 | L119: 0 | M119: 0 | N119: 32.9 | O119: 7.2e-05 | P119: 0.000184 | Q119: 0.000149
A120: 2-Finger Parallelgreifer | B120: DPG-plus 50-2-EX | C120: 304211 | D120: 69.6 | E120: 30.1 | F120: 37.5 | G120: 0 | H120: 40 | I120: 0.15 | J120: 1.3 | K120: 0.25 | L120: 0 | M120: 0 | N120: 21.6 | O120: 3.5e-05 | P120: 0.000131 | Q120: 0.000126
A121: 2-Finger Parallelgreifer | B121: DPG-plus 50-2-IS-EX | C121: 304215 | D121: 69.6 | E121: 30.1 | F121: 53.5 | G121: 0 | H121: 40 | I121: 0.15 | J121: 1.3 | K121: 0.3 | L121: 0 | M121: 0 | N121: 33 | O121: 7.2e-05 | P121: 0.000173 | Q121: 0.000138
A122: 2-Finger Parallelgreifer | B122: DPG-plus 50-2-KVZ | C122: 304308 | D122: 69.6 | E122: 30.1 | F122: 52.8 | G122: 0 | H122: 30 | I122: 0.15 | J122: 2.3 | K122: 0.29 | L122: 0 | M122: 0 | N122: 32.3 | O122: 7e-05 | P122: 0.00017 | Q122: 0.000137
A123: 2-Finger Parallelgreifer | B123: DPG-plus 64-1 | C123: 304311 | D123: 80.1 | E123: 36.1 | F123: 45.4 | G123: 0 | H123: 64 | I123: 0.3 | J123: 1.1 | K123: 0.39 | L123: 0 | M123: 0 | N123: 26.6 | O123: 8e-05 | P123: 0.000305 | Q123: 0.000292
A124: 2-Finger Parallelgreifer | B124: DPG-plus 64-1 AS | C124: 304313 | D124: 80.1 | E124: 36.1 | F124: 63.4 | G124: 0 | H124: 64 | I124: 0.3 | J124: 1.1 | K124: 0.46 | L124: 0 | M124: 0 | N124: 38.8 | O124: 0.000168 | P124: 0.000402 | Q124: 0.000319
A125: 2-Finger Parallelgreifer | B125: DPG-plus 64-1 IS | C125: 304315 | D125: 80.1 | E125: 36.1 | F125: 63.4 | G125: 0 | H125: 64 | I125: 0.3 | J125: 1.1 | K125: 0.46 | L125: 0 | M125: 0 | N125: 38.9 | O125: 0.000169 | P125: 0.000375 | Q125: 0.000291
A126: 2-Finger Parallelgreifer | B126: DPG-plus 64-1-AS-EX | C126: 304222 | D126: 80.1 | E126: 36.1 | F126: 63.4 | G126: 0 | H126: 64 | I126: 0.3 | J126: 1.1 | K126: 0.46 | L126: 0 | M126: 0 | N126: 38.8 | O126: 0.000168 | P126: 0.000402 | Q126: 0.000319
A127: 2-Finger Parallelgreifer | B127: DPG-plus 64-1-AS-KVZ | C127: 304319 | D127: 80.1 | E127: 36.1 | F127: 63.4 | G127: 0 | H127: 40 | I127: 0.3 | J127: 2 | K127: 0.55 | L127: 0 | M127: 0 | N127: 50.7 | O127: 0.000331 | P127: 0.000574 | Q127: 0.000347
A128: 2-Finger Parallelgreifer | B128: DPG-plus 64-1-EX | C128: 304220 | D128: 80.1 | E128: 36.1 | F128: 45.4 | G128: 0 | H128: 64 | I128: 0.3 | J128: 1.1 | K128: 0.39 | L128: 0 | M128: 0 | N128: 26.6 | O128: 8e-05 | P128: 0.000305 | Q128: 0.000292
A129: 2-Finger Parallelgreifer | B129: DPG-plus 64-1-IS-EX | C129: 304224 | D129: 80.1 | E129: 36.1 | F129: 63.4 | G129: 0 | H129: 64 | I129: 0.3 | J129: 1.1 | K129: 0.46 | L129: 0 | M129: 0 | N129: 38.9 | O129: 0.000169 | P129: 0.000375 | Q129: 0.000291
A130: 2-Finger Parallelgreifer | B130: DPG-plus 64-1-IS-KVZ | C130: 304310 | D130: 80.1 | E130: 36.1 | F130: 63.4 | G130: 0 | H130: 40 | I130: 0.3 | J130: 2 | K130: 0.55 | L130: 0 | M130: 0 | N130: 51.1 | O130: 0.000325 | P130: 0.000568 | Q130: 0.000347
A131: 2-Finger Parallelgreifer | B131: DPG-plus 64-1-KVZ | C131: 304317 | D131: 80.1 | E131: 36.1 | F131: 64.4 | G131: 0 | H131: 50 | I131: 0.3 | J131: 1.1 | K131: 0.47 | L131: 0 | M131: 0 | N131: 39.4 | O131: 0.000173 | P131: 0.000408 | Q131: 0.00032
A132: 2-Finger Parallelgreifer | B132: DPG-plus 64-2 | C132: 304312 | D132: 80.1 | E132: 36.1 | F132: 45.4 | G132: 0 | H132: 50 | I132: 0.3 | J132: 2.3 | K132: 0.39 | L132: 0 | M132: 0 | N132: 26.6 | O132: 8e-05 | P132: 0.000278 | Q132: 0.000265
A133: 2-Finger Parallelgreifer | B133: DPG-plus 64-2 AS | C133: 304314 | D133: 80.1 | E133: 36.1 | F133: 63.4 | G133: 0 | H133: 50 | I133: 0.3 | J133: 2.3 | K133: 0.46 | L133: 0 | M133: 0 | N133: 39.1 | O133: 0.000165 | P133: 0.000399 | Q133: 0.000318
A134: 2-Finger Parallelgreifer | B134: DPG-plus 64-2 IS | C134: 304316 | D134: 80.1 | E134: 36.1 | F134: 63.4 | G134: 0 | H134: 50 | I134: 0.3 | J134: 2.3 | K134: 0.46 | L134: 0 | M134: 0 | N134: 39.2 | O134: 0.000166 | P134: 0.000372 | Q134: 0.000291
A135: 2-Finger Parallelgreifer | B135: DPG-plus 64-2-AS-EX | C135: 304223 | D135: 80.1 | E135: 36.1 | F135: 63.4 | G135: 0 | H135: 50 | I135: 0.3 | J135: 2.3 | K135: 0.46 | L135: 0 | M135: 0 | N135: 39.1 | O135: 0.000165 | P135: 0.000399 | Q135: 0.000318
A136: 2-Finger Parallelgreifer | B136: DPG-plus 64-2-EX | C136: 304221 | D136: 80.1 | E136: 36.1 | F136: 45.4 | G136: 0 | H136: 50 | I136: 0.3 | J136: 2.3 | K136: 0.39 | L136: 0 | M136: 0 | N136: 26.6 | O136: 8e-05 | P136: 0.000278 | Q136: 0.000265
A137: 2-Finger Parallelgreifer | B137: DPG-plus 64-2-IS-EX | C137: 304225 | D137: 80.1 | E137: 36.1 | F137: 63.4 | G137: 0 | H137: 50 | I137: 0.3 | J137: 2.3 | K137: 0.46 | L137: 0 | M137: 0 | N137: 39.2 | O137: 0.000166 | P137: 0.000372 | Q137: 0.000291
A138: 2-Finger Parallelgreifer | B138: DPG-plus 64-2-KVZ | C138: 304318 | D138: 80.1 | E138: 36.1 | F138: 64.4 | G138: 0 | H138: 40 | I138: 0.3 | J138: 4.2 | K138: 0.47 | L138: 0 | M138: 0 | N138: 39.4 | O138: 0.000174 | P138: 0.00038 | Q138: 0.000293
A139: 2-Finger Parallelgreifer | B139: DPG-plus 80-1 | C139: 304321 | D139: 97 | E139: 42.1 | F139: 56.4 | G139: 0 | H139: 80 | I139: 0.5 | J139: 1.8 | K139: 0.68 | L139: 0 | M139: 0 | N139: 33.3 | O139: 0.000215 | P139: 0.000885 | Q139: 0.000841
A140: 2-Finger Parallelgreifer | B140: DPG-plus 80-1 AS | C140: 304323 | D140: 97 | E140: 42.1 | F140: 74.4 | G140: 0 | H140: 80 | I140: 0.5 | J140: 1.8 | K140: 0.8 | L140: 0 | M140: 0 | N140: 45.8 | O140: 0.000396 | P140: 0.001087 | Q140: 0.000898
A141: 2-Finger Parallelgreifer | B141: DPG-plus 80-1 IS | C141: 304325 | D141: 97 | E141: 42.1 | F141: 74.4 | G141: 0 | H141: 80 | I141: 0.5 | J141: 1.8 | K141: 0.8 | L141: 0 | M141: 0 | N141: 45.8 | O141: 0.000397 | P141: 0.000994 | Q141: 0.000805
A142: 2-Finger Parallelgreifer | B142: DPG-plus 80-1-AS-EX | C142: 304232 | D142: 97 | E142: 42.1 | F142: 74.4 | G142: 0 | H142: 80 | I142: 0.5 | J142: 1.8 | K142: 0.8 | L142: 0 | M142: 0 | N142: 45.8 | O142: 0.000396 | P142: 0.001087 | Q142: 0.000898
A143: 2-Finger Parallelgreifer | B143: DPG-plus 80-1-AS-KVZ | C143: 304329 | D143: 97 | E143: 42.1 | F143: 74.4 | G143: 0 | H143: 50 | I143: 0.5 | J143: 3.3 | K143: 0.95 | L143: 0 | M143: 0 | N143: 60.2 | O143: 0.000784 | P143: 0.001502 | Q143: 0.000968
A144: 2-Finger Parallelgreifer | B144: DPG-plus 80-1-EX | C144: 304230 | D144: 97 | E144: 42.1 | F144: 56.4 | G144: 0 | H144: 80 | I144: 0.5 | J144: 1.8 | K144: 0.68 | L144: 0 | M144: 0 | N144: 33.3 | O144: 0.000215 | P144: 0.000885 | Q144: 0.000841
A145: 2-Finger Parallelgreifer | B145: DPG-plus 80-1-IS-EX | C145: 304234 | D145: 97 | E145: 42.1 | F145: 74.4 | G145: 0 | H145: 80 | I145: 0.5 | J145: 1.8 | K145: 0.8 | L145: 0 | M145: 0 | N145: 45.8 | O145: 0.000397 | P145: 0.000994 | Q145: 0.000805
A146: 2-Finger Parallelgreifer | B146: DPG-plus 80-1-IS-KVZ | C146: 304320 | D146: 97 | E146: 42.1 | F146: 74.4 | G146: 0 | H146: 50 | I146: 0.5 | J146: 3.3 | K146: 0.95 | L146: 0 | M146: 0 | N146: 60.7 | O146: 0.000768 | P146: 0.001486 | Q146: 0.000967
A147: 2-Finger Parallelgreifer | B147: DPG-plus 80-1-KVZ | C147: 304327 | D147: 97 | E147: 42.1 | F147: 78.9 | G147: 0 | H147: 64 | I147: 0.5 | J147: 1.8 | K147: 0.85 | L147: 0 | M147: 0 | N147: 48.7 | O147: 0.000456 | P147: 0.001153 | Q147: 0.000911
A148: 2-Finger Parallelgreifer | B148: DPG-plus 80-2 | C148: 304322 | D148: 97 | E148: 42.1 | F148: 56.4 | G148: 0 | H148: 64 | I148: 0.5 | J148: 3.8 | K148: 0.68 | L148: 0 | M148: 0 | N148: 33.3 | O148: 0.000216 | P148: 0.000793 | Q148: 0.000748
A149: 2-Finger Parallelgreifer | B149: DPG-plus 80-2 AS | C149: 304324 | D149: 97 | E149: 42.1 | F149: 74.4 | G149: 0 | H149: 64 | I149: 0.5 | J149: 3.8 | K149: 0.8 | L149: 0 | M149: 0 | N149: 46.1 | O149: 0.00039 | P149: 0.00108 | Q149: 0.000897
A150: 2-Finger Parallelgreifer | B150: DPG-plus 80-2 IS | C150: 304326 | D150: 97 | E150: 42.1 | F150: 74.4 | G150: 0 | H150: 64 | I150: 0.5 | J150: 3.8 | K150: 0.8 | L150: 0 | M150: 0 | N150: 46.2 | O150: 0.000391 | P150: 0.000988 | Q150: 0.000804
A151: 2-Finger Parallelgreifer | B151: DPG-plus 80-2-AS-EX | C151: 304233 | D151: 97 | E151: 42.1 | F151: 74.4 | G151: 0 | H151: 64 | I151: 0.5 | J151: 3.8 | K151: 0.8 | L151: 0 | M151: 0 | N151: 46.1 | O151: 0.00039 | P151: 0.00108 | Q151: 0.000897
A152: 2-Finger Parallelgreifer | B152: DPG-plus 80-2-EX | C152: 304231 | D152: 97 | E152: 42.1 | F152: 56.4 | G152: 0 | H152: 64 | I152: 0.5 | J152: 3.8 | K152: 0.68 | L152: 0 | M152: 0 | N152: 33.3 | O152: 0.000216 | P152: 0.000793 | Q152: 0.000748
A153: 2-Finger Parallelgreifer | B153: DPG-plus 80-2-IS-EX | C153: 304235 | D153: 97 | E153: 42.1 | F153: 74.4 | G153: 0 | H153: 64 | I153: 0.5 | J153: 3.8 | K153: 0.8 | L153: 0 | M153: 0 | N153: 46.2 | O153: 0.000391 | P153: 0.000988 | Q153: 0.000804
A154: 2-Finger Parallelgreifer | B154: DPG-plus 80-2-KVZ | C154: 304328 | D154: 97 | E154: 42.1 | F154: 78.9 | G154: 0 | H154: 50 | I154: 0.5 | J154: 6.9 | K154: 0.85 | L154: 0 | M154: 0 | N154: 48.7 | O154: 0.000457 | P154: 0.001061 | Q154: 0.000817
A155: 2-Finger Parallelgreifer | B155: EGN 100 | C155: 306101 | D155: 120 | E155: 50 | F155: 54 | G155: 0 | H155: 125 | I155: 1.1 | J155: 3.3 | K155: 1.35 | L155: -1.11 | M155: 0 | N155: 4.94 | O155: 0.00252 | P155: 0.003236 | Q155: 0.001125
A156: 2-Finger Parallelgreifer | B156: EGN 160 | C156: 306102 | D156: 192 | E156: 72 | F156: 76 | G156: 0 | H156: 200 | I156: 3.5 | J156: 5.4 | K156: 3 | L156: -0.4 | M156: 0 | N156: 32 | O156: 0.00628 | P156: 0.0127 | Q156: 0.00856
A157: 2-Finger Parallelgreifer | B157: EGN 80 | C157: 306100 | D157: 96 | E157: 42 | F157: 48 | G157: 0 | H157: 100 | I157: 0.6 | J157: 2.1 | K157: 0.84 | L157: -1.52 | M157: 0 | N157: -4 | O157: 0.00177 | P157: 0.0021 | Q157: 0.000518
A158: 2-Finger Parallelgreifer | B158: EVG 55-100 | C158: 306025 | D158: 130 | E158: 55 | F158: 88 | G158: 0 | H158: 125 | I158: 0.1 | J158: 0.28 | K158: 1.1 | L158: -2.1 | M158: -0.02 | N158: 43.9 | O158: 0.00093 | P158: 0.00203 | Q158: 0.00172
A159: 2-Finger Parallelgreifer | B159: GMP 12 | C159: 313110 | D159: 35 | E159: 25 | F159: 31.5 | G159: 0 | H159: 40 | I159: 0.08 | J159: 0.25 | K159: 0.14 | L159: 0 | M159: 0 | N159: 25.75 | O159: 3.891414569e-05 | P159: 4.664009001e-05 | Q159: 2.436154583e-05
A160: 2-Finger Parallelgreifer | B160: GMP 12-D | C160: 313113 | D160: 35 | E160: 25 | F160: 41.5 | G160: 0 | H160: 40 | I160: 0.08 | J160: 0.25 | K160: 0.16 | L160: 0 | M160: 0 | N160: 30.75 | O160: 6.046030674e-05 | P160: 7.002054039e-05 | Q160: 2.735749581e-05
A161: 2-Finger Parallelgreifer | B161: GMP 12-K | C161: 313112 | D161: 35 | E161: 25 | F161: 50 | G161: 0 | H161: 40 | I161: 0.08 | J161: 0.25 | K161: 0.16 | L161: 0 | M161: 0 | N161: 35 | O161: 7.611640444e-05 | P161: 8.549757825e-05 | Q161: 2.704868345e-05
A162: 2-Finger Parallelgreifer | B162: GMP 12-S | C162: 313111 | D162: 35 | E162: 25 | F162: 50 | G162: 0 | H162: 40 | I162: 0.08 | J162: 0.25 | K162: 0.16 | L162: 0 | M162: 0 | N162: 35 | O162: 7.611640444e-05 | P162: 8.549757825e-05 | Q162: 2.704868345e-05
A163: 2-Finger Parallelgreifer | B163: GMP 12-X | C163: 313114 | D163: 35 | E163: 25 | F163: 60 | G163: 0 | H163: 40 | I163: 0.08 | J163: 0.25 | K163: 0.18 | L163: 0 | M163: 0 | N163: 40 | O163: 0.0001091835499 | P163: 0.0001195525339 | Q163: 3.011099374e-05
A164: 2-Finger Parallelgreifer | B164: GMP 12-Z | C164: 313115 | D164: 35 | E164: 25 | F164: 60 | G164: 0 | H164: 40 | I164: 0.08 | J164: 0.25 | K164: 0.18 | L164: 0 | M164: 0 | N164: 40 | O164: 0.0001091835499 | P164: 0.0001195525339 | Q164: 3.011099374e-05
A165: 2-Finger Parallelgreifer | B165: GMP 16 | C165: 313116 | D165: 41 | E165: 31 | F165: 35 | G165: 0 | H165: 50 | I165: 0.12 | J165: 0.45 | K165: 0.2 | L165: 0 | M165: 0 | N165: 28.25 | O165: 7.065930101e-05 | P165: 8.666826966e-05 | Q165: 4.932942819e-05
A166: 2-Finger Parallelgreifer | B166: GMP 16-D | C166: 313119 | D166: 41 | E166: 31 | F166: 45 | G166: 0 | H166: 50 | I166: 0.12 | J166: 0.45 | K166: 0.24 | L166: 0 | M166: 0 | N166: 33.25 | O166: 0.0001108327582 | P166: 0.0001293678278 | Q166: 5.830268201e-05
A167: 2-Finger Parallelgreifer | B167: GMP 16-K | C167: 313118 | D167: 41 | E167: 31 | F167: 53.5 | G167: 0 | H167: 50 | I167: 0.12 | J167: 0.45 | K167: 0.26 | L167: 0 | M167: 0 | N167: 37.5 | O167: 0.0001477792066 | P167: 0.0001673810949 | Q167: 6.253007465e-05
A168: 2-Finger Parallelgreifer | B168: GMP 16-S | C168: 313117 | D168: 41 | E168: 31 | F168: 53.5 | G168: 0 | H168: 50 | I168: 0.12 | J168: 0.45 | K168: 0.26 | L168: 0 | M168: 0 | N168: 37.5 | O168: 0.0001477792066 | P168: 0.0001673810949 | Q168: 6.253007465e-05
A169: 2-Finger Parallelgreifer | B169: GMP 16-X | C169: 313120 | D169: 41 | E169: 31 | F169: 63.5 | G169: 0 | H169: 50 | I169: 0.12 | J169: 0.45 | K169: 0.28 | L169: 0 | M169: 0 | N169: 42.5 | O169: 0.0002699716806 | P169: 0.0002899461935 | Q169: 6.584039401e-05
A170: 2-Finger Parallelgreifer | B170: GMP 16-Z | C170: 313121 | D170: 41 | E170: 31 | F170: 63.5 | G170: 0 | H170: 50 | I170: 0.12 | J170: 0.45 | K170: 0.28 | L170: 0 | M170: 0 | N170: 42.5 | O170: 0.0002699716806 | P170: 0.0002899461935 | Q170: 6.584039401e-05
A171: 2-Finger Parallelgreifer | B171: GMP 20 | C171: 313122 | D171: 44 | E171: 36 | F171: 39.5 | G171: 0 | H171: 75 | I171: 0.25 | J171: 0.75 | K171: 0.34 | L171: 0 | M171: 0 | N171: 33 | O171: 0.0001630710176 | P171: 0.0001771963101 | Q171: 0.000127662996
A172: 2-Finger Parallelgreifer | B172: GMP 20-D | C172: 313125 | D172: 44 | E172: 36 | F172: 51.5 | G172: 0 | H172: 75 | I172: 0.25 | J172: 0.75 | K172: 0.4 | L172: 0 | M172: 0 | N172: 39 | O172: 0.0002602874449 | P172: 0.0003069235289 | Q172: 0.0001445984344
A173: 2-Finger Parallelgreifer | B173: GMP 20-K | C173: 313124 | D173: 44 | E173: 36 | F173: 62 | G173: 0 | H173: 75 | I173: 0.25 | J173: 0.75 | K173: 0.42 | L173: 0 | M173: 0 | N173: 44.25 | O173: 0.0003412875738 | P173: 0.0003875095193 | Q173: 0.0001478276267
A174: 2-Finger Parallelgreifer | B174: GMP 20-S | C174: 313123 | D174: 44 | E174: 36 | F174: 62 | G174: 0 | H174: 75 | I174: 0.25 | J174: 0.75 | K174: 0.42 | L174: 0 | M174: 0 | N174: 44.25 | O174: 0.0003412875738 | P174: 0.0003875095193 | Q174: 0.0001478276267
A175: 2-Finger Parallelgreifer | B175: GMP 20-X | C175: 313126 | D175: 44 | E175: 36 | F175: 74 | G175: 0 | H175: 75 | I175: 0.25 | J175: 0.75 | K175: 0.48 | L175: 0 | M175: 0 | N175: 50.25 | O175: 0.0004908036699 | P175: 0.0005407526315 | Q175: 0.0001647554682
A176: 2-Finger Parallelgreifer | B176: GMP 20-Z | C176: 313127 | D176: 44 | E176: 36 | F176: 74 | G176: 0 | H176: 75 | I176: 0.25 | J176: 0.75 | K176: 0.48 | L176: 0 | M176: 0 | N176: 50.25 | O176: 0.0004908036699 | P176: 0.0005407526315 | Q176: 0.0001647554682
A177: 2-Finger Parallelgreifer | B177: GMP 28 | C177: 313128 | D177: 42 | E177: 52 | F177: 48 | G177: 0 | H177: 100 | I177: 0.45 | J177: 1.4 | K177: 0.62 | L177: 0 | M177: 0 | N177: 41.25 | O177: 0.0004189948234 | P177: 0.0005576224766 | Q177: 0.0003257359313
A178: 2-Finger Parallelgreifer | B178: GMP 28-D | C178: 313131 | D178: 42 | E178: 52 | F178: 60 | G178: 0 | H178: 100 | I178: 0.45 | J178: 1.4 | K178: 0.68 | L178: 0 | M178: 0 | N178: 63.75 | O178: 0.001093039766 | P178: 0.001214459309 | Q178: 0.0003249933014
A179: 2-Finger Parallelgreifer | B179: GMP 28-K | C179: 313130 | D179: 42 | E179: 52 | F179: 81 | G179: 0 | H179: 100 | I179: 0.45 | J179: 1.4 | K179: 0.78 | L179: 0 | M179: 0 | N179: 57.75 | O179: 0.001048175854 | P179: 0.001194496826 | Q179: 0.000380209771
A180: 2-Finger Parallelgreifer | B180: GMP 28-S | C180: 313129 | D180: 42 | E180: 52 | F180: 81 | G180: 0 | H180: 100 | I180: 0.45 | J180: 1.4 | K180: 0.78 | L180: 0 | M180: 0 | N180: 57.75 | O180: 0.001048175854 | P180: 0.001194496826 | Q180: 0.000380209771
A181: 2-Finger Parallelgreifer | B181: GMP 28-X | C181: 313132 | D181: 42 | E181: 52 | F181: 93 | G181: 0 | H181: 100 | I181: 0.45 | J181: 1.4 | K181: 0.86 | L181: 0 | M181: 0 | N181: 63.75 | O181: 0.001382373822 | P181: 0.001535933832 | Q181: 0.00041102094
A182: 2-Finger Parallelgreifer | B182: GMP 28-Z | C182: 313133 | D182: 42 | E182: 52 | F182: 93 | G182: 0 | H182: 100 | I182: 0.45 | J182: 1.4 | K182: 0.86 | L182: 0 | M182: 0 | N182: 63.75 | O182: 0.001382373822 | P182: 0.001535933832 | Q182: 0.00041102094
A183: 2-Finger Parallelgreifer | B183: HGH 40 | C183: 302920 | D183: 280 | E183: 68 | F183: 119 | G183: 0 | H183: 120 | I183: 0 | J183: 16 | K183: 6.6 | L183: 0 | M183: 0 | N183: 65 | O183: 0.006568 | P183: 0.040607 | Q183: 0.048638
A184: 2-Finger Parallelgreifer | B184: HGN 100 | C184: 370222 | D184: 122 | E184: 50 | F184: 69 | G184: 0 | H184: 100 | I184: 0 | J184: 3 | K184: 1.2 | L184: 0 | M184: 0 | N184: 40 | O184: 0.000371 | P184: 0.001156 | Q184: 0.001626
A185: 2-Finger Parallelgreifer | B185: HGN 100 AS | C185: 370226 | D185: 122 | E185: 50 | F185: 108 | G185: 0 | H185: 100 | I185: 0 | J185: 3 | K185: 1.6 | L185: 0 | M185: 0 | N185: 28 | O185: 0.000504 | P185: 0.001304 | Q185: 0.002737
A186: 2-Finger Parallelgreifer | B186: HGN 125 | C186: 370223 | D186: 152 | E186: 60 | F186: 77 | G186: 0 | H186: 125 | I186: 0 | J186: 7 | K186: 1.9 | L186: 0 | M186: 0 | N186: 44 | O186: 0.00081 | P186: 0.002791 | Q186: 0.003787
A187: 2-Finger Parallelgreifer | B187: HGN 125 AS | C187: 370227 | D187: 152 | E187: 60 | F187: 128 | G187: 0 | H187: 125 | I187: 0 | J187: 7 | K187: 2.5 | L187: 0 | M187: 0 | N187: 29 | O187: 0.001124 | P187: 0.003058 | Q187: 0.006237
A188: 2-Finger Parallelgreifer | B188: HGN 160 | C188: 370224 | D188: 193 | E188: 72 | F188: 90 | G188: 0 | H188: 160 | I188: 0 | J188: 10 | K188: 3.4 | L188: 0 | M188: 0 | N188: 53 | O188: 0.002025 | P188: 0.007983 | Q188: 0.01057
A189: 2-Finger Parallelgreifer | B189: HGN 160 AS | C189: 370228 | D189: 193 | E189: 72 | F189: 160 | G189: 0 | H189: 160 | I189: 0 | J189: 10 | K189: 4.4 | L189: 0 | M189: 0 | N189: 33 | O189: 0.002922 | P189: 0.008481 | Q189: 0.017184
A190: 2-Finger Parallelgreifer | B190: HGN 80 | C190: 370221 | D190: 96 | E190: 42 | F190: 62 | G190: 0 | H190: 80 | I190: 0 | J190: 1.6 | K190: 0.7 | L190: 0 | M190: 0 | N190: 38 | O190: 0.000161 | P190: 0.000447 | Q190: 0.000671
A191: 2-Finger Parallelgreifer | B191: HGN 80 AS | C191: 370225 | D191: 96 | E191: 42 | F191: 93 | G191: 0 | H191: 80 | I191: 0 | J191: 1.6 | K191: 0.85 | L191: 0 | M191: 0 | N191: 27 | O191: 0.000195 | P191: 0.000543 | Q191: 0.000845
A192: 2-Finger Parallelgreifer | B192: JGP 100-1 | C192: 308640 | D192: 100 | E192: 50 | F192: 54 | G192: 0 | H192: 125 | I192: 1.1 | J192: 3.3 | K192: 0.81 | L192: 0 | M192: 0 | N192: 33.7 | O192: 0.000306 | P192: 0.000945 | Q192: 0.000899
A193: 2-Finger Parallelgreifer | B193: JGP 100-1 BOSCH | C193: 30052058 | D193: 100 | E193: 50 | F193: 54 | G193: 0 | H193: 125 | I193: 1.1 | J193: 3.3 | K193: 0.81 | L193: 0 | M193: 0 | N193: 33.7 | O193: 0.000306 | P193: 0.000945 | Q193: 0.000899
A194: 2-Finger Parallelgreifer | B194: JGP 100-1-AS | C194: 308641 | D194: 100 | E194: 50 | F194: 80 | G194: 0 | H194: 115 | I194: 1.1 | J194: 3.3 | K194: 1 | L194: 0 | M194: 0 | N194: 49.1 | O194: 0.000743 | P194: 0.00148 | Q194: 0.00109
A195: 2-Finger Parallelgreifer | B195: JGP 100-1-AS BOSCH | C195: 30052059 | D195: 100 | E195: 50 | F195: 80 | G195: 0 | H195: 115 | I195: 1.1 | J195: 3.3 | K195: 1 | L195: 0 | M195: 0 | N195: 49.1 | O195: 0.000743 | P195: 0.00148 | Q195: 0.00109
A196: 2-Finger Parallelgreifer | B196: JGP 100-1-IS | C196: 308642 | D196: 100 | E196: 50 | F196: 80 | G196: 0 | H196: 115 | I196: 1.1 | J196: 3.3 | K196: 1 | L196: 0 | M196: 0 | N196: 50 | O196: 0.000724 | P196: 0.00146 | Q196: 0.00109
A197: 2-Finger Parallelgreifer | B197: JGP 100-2 | C197: 308645 | D197: 100 | E197: 50 | F197: 54 | G197: 0 | H197: 115 | I197: 1.1 | J197: 3.3 | K197: 0.81 | L197: 0 | M197: 0 | N197: 33.7 | O197: 0.000306 | P197: 0.000945 | Q197: 0.000899
A198: 2-Finger Parallelgreifer | B198: JGP 100-2 BOSCH | C198: 30052080 | D198: 100 | E198: 50 | F198: 54 | G198: 0 | H198: 115 | I198: 1.1 | J198: 3.3 | K198: 0.81 | L198: 0 | M198: 0 | N198: 33.7 | O198: 0.000306 | P198: 0.000945 | Q198: 0.000899
A199: 2-Finger Parallelgreifer | B199: JGP 100-2-AS | C199: 308646 | D199: 100 | E199: 50 | F199: 80 | G199: 0 | H199: 100 | I199: 1.1 | J199: 3.3 | K199: 1 | L199: 0 | M199: 0 | N199: 49.1 | O199: 0.000743 | P199: 0.00148 | Q199: 0.00109
A200: 2-Finger Parallelgreifer | B200: JGP 100-2-AS BOSCH | C200: 30052081 | D200: 100 | E200: 50 | F200: 80 | G200: 0 | H200: 100 | I200: 1.1 | J200: 3.3 | K200: 1 | L200: 0 | M200: 0 | N200: 49.1 | O200: 0.000743 | P200: 0.00148 | Q200: 0.00109
... 1588 more rows

Sheet J
N5: =Uebersetzung!A33 -> Max. Radius Arbeitsbereich [mm] | R5: =VLOOKUP(Q6,Listen!N2:O10,2) -> 500
Q6: 7 | AA6: 9 Uhr
N7: =Uebersetzung!A34 -> Kundenname: | P7: KUNDE | AA7: 3 Uhr
N8: =Uebersetzung!A35 -> Angebot-Nr: | P8: 999999
N9: =Uebersetzung!A36 -> Bearbeiter: | P9: NAME | W9: Radius Arbeitsbereich | Y9: 500
N10: =Uebersetzung!A37 -> Datum: | P10: =TODAY() -> 2018-08-08 | W10: Faktor | Y10: =VLOOKUP(r_arbeitsbereich,Listen!Q2:S10,2,FALSE) -> 0.4
W11: Referenzpunkt hor | Y11: 330
N12: =Uebersetzung!A38 -> Schwerpunktsabstand Rs [mm] | Q12: =IF(summe_masse<>0,SQRT(Q13^2+Q14^2),0) -> 0 | W12: Referenzpunkt ver | Y12: 15
N13: =Uebersetzung!A39 -> Schwerpunktsabstand Xs [mm] | Q13: =IF(summe_masse<>0,S16/summe_masse,0) -> 0 | W13: Ansicht | Y13: XZ
N14: =Uebersetzung!A40 -> Schwerpunktsabstand Ys [mm] | Q14: =IF(summe_masse<>0,S17/summe_masse,0) -> 0 | W14: Form | Y14: Rechteck
N15: =Uebersetzung!A41 -> Schwerpunktsabstand Zs [mm] | Q15: =IF(summe_masse<>0,S18/summe_masse,0) -> 0 | W15: Versatz ver in XY | Y15: 100
S16: =SUM(J22:J51*L22:L51) -> 0 | W16: Referenzpkt ver XY | Y16: =ref_ver+Y15 -> 115
S17: =SUM(J22:J51*M22:M51) -> 0
S18: =SUM(J22:J51*N22:N51) -> 0 | AE18: Faktor_alt | CD18: =MAX(B22:B51) -> 0
AE19: 0.4 | AG19: Ansichtsdarstellung Körper | AM19: Ansichtsdarstellung Achse | AS19: Form in XZ | AY19: Form in YZ | BE19: Achse in XZ | BK19: Achse in YZ | BQ19: Form in XY | BW19: Achse in XY | CC19: Reihenfolge Darstellung
Q20: 17 | R20: 18 | S20: 19 | T20: 20 | U20: 21 | V20: 22 | W20: 23 | X20: 24 | Y20: 25 | Z20: 26 | AA20: 27 | AB20: 28 | AC20: 29 | AD20: 30 | AE20: 31 | AF20: 32 | AG20: 33 | AH20: 34 | AI20: 35 | AJ20: 36 | AK20: 37 | AL20: 38 | AM20: 39 | AN20: 40 | AO20: 41 | AP20: 42 | AQ20: 43 | AR20: 44 | AS20: 45 | AT20: 46 | AU20: 47 | AV20: 48 | AW20: 49 | AX20: 50 | AY20: 51 | AZ20: 52 | BA20: 53 | BB20: 54 | BC20: 55 | BD20: 56 | BE20: 57 | BF20: 58 | BG20: 59 | BH20: 60 | BI20: 61 | BJ20: 62 | BK20: 63 | BL20: 64 | BM20: 65 | BN20: 66 | BO20: 67 | BP20: 68 | BQ20: 69 | BR20: 70 | BS20: 71 | BT20: 72 | BU20: 73 | BV20: 74 | BW20: 75 | BX20: 76 | BY20: 77 | BZ20: 78 | CA20: 79
A21: + | B21: =Uebersetzung!A2 -> Nr. | C21: =Uebersetzung!B2 -> Nr. | D21: =Uebersetzung!A4 -> L [mm] | E21: =Uebersetzung!A5 -> B [mm] | F21: =Uebersetzung!A6 -> H [mm] | G21: =Uebersetzung!A7 -> R außen [mm] | H21: =Uebersetzung!A8 -> R innen [mm] | I21: =Uebersetzung!A9 -> Typ | J21: =Uebersetzung!A10 -> Masse [kg] | K21: =Uebersetzung!A11 -> Eigenträgheit [kg*m²] | L21: =Uebersetzung!A12 -> Abstand Schwerpkt. X [mm] | M21: =Uebersetzung!A13 -> Abstand Schwerpkt. Y [mm] | N21: =Uebersetzung!A14 -> Abstand Schwerpkt. Z [mm] | O21: =Uebersetzung!A15 -> Massenträgheit [kg*m²] | P21: =Uebersetzung!A16 -> Bestellnr. | Q21: =Uebersetzung!A17 -> Löschen | R21: =Uebersetzung!A18 -> Editieren | W21: R | X21: G | Y21: B | AC21: Geometrieart | AD21: Achsen-ausrichtung | AE21: Faktor | AF21: Farbe | AG21: Form | AH21: Start X | AI21: Start Y | AJ21: Ende X / L | AK21: Ende Y / H | AM21: Form | AN21: Start X | AO21: Start Y | AP21: Ende X / L | AQ21: Ende Y / H | AR21: Rangfolge | AS21: Form | AT21: Start X | AU21: Start Y | AV21: Ende X / L | AW21: Ende Y / H | AY21: Form | AZ21: Start X | BA21: Start Y | BB21: Ende X / L | BC21: Ende Y / H | BE21: Form | BF21: Start X | BG21: Start Y | BH21: Ende X / L | BI21: Ende Y / H | BK21: Form | BL21: Start X | BM21: Start Y | BN21: Ende X / L | BO21: Ende Y / H | BQ21: Form | BR21: Start X | BS21: Start Y | BT21: Ende X / L | BU21: Ende Y / H | BW21: Form | BX21: Start X | BY21: Start Y | BZ21: Ende X / L | CA21: Ende Y / H | CC21: Ansicht XZ | CD21: Rang XZ | CE21: Ansicht YZ | CF21: Rang YZ | CG21: Ansicht XY | CH21: Rang XY
A22: 1 | AG22: =IF(ansicht="XZ",AS22,IF(ansicht="YZ",AY22,IF(ansicht="XY",BQ22))) -> 0 | AH22: =IF(ansicht="XZ",AT22,IF(ansicht="YZ",AZ22,IF(ansicht="XY",BR22))) -> 0 | AI22: =IF(ansicht="XZ",AU22,IF(ansicht="YZ",BA22,IF(ansicht="XY",BS22))) -> 0 | AJ22: =IF(ansicht="XZ",AV22,IF(ansicht="YZ",BB22,IF(ansicht="XY",BT22))) -> 0 | AK22: =IF(ansicht="XZ",AW22,IF(ansicht="YZ",BC22,IF(ansicht="XY",BU22))) -> 0 | AM22: =IF(ansicht="XZ",BE22,IF(ansicht="YZ",BK22,IF(ansicht="XY",BW22))) -> 0 | AN22: =IF(ansicht="XZ",BF22,IF(ansicht="YZ",BL22,IF(ansicht="XY",BX22))) -> 0 | AO22: =IF(ansicht="XZ",BG22,IF(ansicht="YZ",BM22,IF(ansicht="XY",BY22))) -> 0 | AP22: =IF(ansicht="XZ",BH22,IF(ansicht="YZ",BN22,IF(ansicht="XY",BZ22))) -> 0 | AQ22: =IF(ansicht="XZ",BI22,IF(ansicht="YZ",BO22,IF(ansicht="XY",CA22))) -> 0 | AR22: =IF(ansicht="XZ",CD22,IF(ansicht="YZ",CF22,IF(ansicht="XY",CH22))) ->  | CC22: =IF(B22<>"",AZ22+BB22+(ROW()/10000000),"") ->  | CD22: =IF(B22<>"",RANK(CC22,$CC$22:$CC$51,1),"") ->  | CE22: =IF(B22<>"",AT22+AV22+(ROW()/10000000),"") ->  | CF22: =IF(B22<>"",RANK(CE22,$CE$22:$CE$51,1),"") ->  | CG22: =IF(B22<>"",AU22+AW22+(ROW()/10000000),"") ->  | CH22: =IF(B22<>"",RANK(CG22,$CG$22:$CG$51,1),"") ->  | CJ22: Kleinste Ziffer bekommt Rang 1. Wird als erstes gezeichnet.
A23: =1+A22 -> 2 | AG23: 0 | AH23: =IF(ansicht="XZ",AT23,IF(ansicht="YZ",AZ23,IF(ansicht="XY",BR23))) -> 0 | AI23: 0 | AJ23: 0 | AK23: 0 | AM23: 0 | AN23: 0 | AO23: 0 | AP23: 0 | AQ23: 0 | AR23: =IF(ansicht="XZ",CD23,IF(ansicht="YZ",CF23,IF(ansicht="XY",CH23))) ->  | CC23: =IF(B23<>"",AZ23+BB23+(ROW()/10000000),"") ->  | CD23: =IF(B23<>"",RANK(CC23,$CC$22:$CC$51,1),"") ->  | CE23: =IF(B23<>"",AT23+AV23+(ROW()/10000000),"") ->  | CF23: =IF(B23<>"",RANK(CE23,$CE$22:$CE$51,1),"") ->  | CG23: =IF(B23<>"",AU23+AW23+(ROW()/10000000),"") ->  | CH23: =IF(B23<>"",RANK(CG23,$CG$22:$CG$51,1),"") ->  | CJ23: Tritt in den Hintergrund.
A24: =1+A23 -> 3 | AG24: 0 | AH24: 0 | AI24: 0 | AJ24: 0 | AK24: 0 | AM24: 0 | AN24: 0 | AO24: 0 | AP24: 0 | AQ24: 0 | CC24: =IF(B24<>"",AZ24+BB24+(ROW()/10000000),"") ->  | CD24: =IF(B24<>"",RANK(CC24,$CC$22:$CC$51,1),"") ->  | CG24: =IF(B24<>"",AU24+AW24+(ROW()/10000000),"") ->  | CH24: =IF(B24<>"",RANK(CG24,$CG$22:$CG$51,1),"") ->  | CJ24: Rang XY abhängig von Form in XZ (Start Y/ Ende Y).
A25: 4 | AG25: 0 | AH25: 0 | AI25: 0 | AJ25: 0 | AK25: 0 | AM25: 0 | AN25: 0 | AO25: 0 | AP25: 0 | AQ25: 0 | CC25: =IF(B25<>"",AZ25+BB25+(ROW()/10000000),"") ->  | CG25: =IF(B25<>"",AU25+AW25+(ROW()/10000000),"") ->  | CJ25: Rang YZ abhängig von Form in XZ (Start X/ Ende X).
A26: 5 | AG26: 0 | AH26: 0 | AI26: 0 | AJ26: 0 | AK26: 0 | AM26: 0 | AN26: 0 | AO26: 0 | AP26: 0 | AQ26: 0 | CG26: =IF(B26<>"",AU26+AW26+(ROW()/10000000),"") ->  | CJ26: Rang XZ abhängig von Form in YZ (Start X/ Ende X).
A27: 6 | AG27: 0 | AH27: 0 | AI27: 0 | AJ27: 0 | AK27: 0 | AM27: 0 | AN27: 0 | AO27: 0 | AP27: 0 | AQ27: 0
A28: 7 | AG28: 0 | AH28: 0 | AI28: 0 | AJ28: 0 | AK28: 0 | AM28: 0 | AN28: 0 | AO28: 0 | AP28: 0 | AQ28: 0 | CJ28: Der in der jeweiligen Ansicht flachste Körper wird als erstes gezeichnet
A29: 8 | AG29: 0 | AH29: 0 | AI29: 0 | AJ29: 0 | AK29: 0 | AM29: 0 | AN29: 0 | AO29: 0 | AP29: 0 | AQ29: 0 | CJ29: und tritt in den Hintergrund.
A30: 9 | AG30: 0 | AH30: 0 | AI30: 0 | AJ30: 0 | AK30: 0 | AM30: 0 | AN30: 0 | AO30: 0 | AP30: 0 | AQ30: 0
A31: 10 | AG31: 0 | AH31: 0 | AI31: 0 | AJ31: 0 | AK31: 0 | AM31: 0 | AN31: 0 | AO31: 0 | AP31: 0 | AQ31: 0
A32: 11 | AG32: 0 | AH32: 0 | AI32: 0 | AJ32: 0 | AK32: 0 | AM32: 0 | AN32: 0 | AO32: 0 | AP32: 0 | AQ32: 0
A33: 12 | AG33: 0 | AH33: 0 | AI33: 0 | AJ33: 0 | AK33: 0 | AM33: 0 | AN33: 0 | AO33: 0 | AP33: 0 | AQ33: 0
A34: 13 | AG34: 0 | AH34: 0 | AI34: 0 | AJ34: 0 | AK34: 0 | AM34: 0 | AN34: 0 | AO34: 0 | AP34: 0 | AQ34: 0
A35: 14 | AG35: 0 | AH35: 0 | AI35: 0 | AJ35: 0 | AK35: 0 | AM35: 0 | AN35: 0 | AO35: 0 | AP35: 0 | AQ35: 0
A36: 15 | AG36: =IF(ansicht="XZ",AS36,IF(ansicht="YZ",AY36,IF(ansicht="XY",BQ36))) -> 0 | AH36: =IF(ansicht="XZ",AT36,IF(ansicht="YZ",AZ36,IF(ansicht="XY",BR36))) -> 0 | AI36: =IF(ansicht="XZ",AU36,IF(ansicht="YZ",BA36,IF(ansicht="XY",BS36))) -> 0 | AJ36: =IF(ansicht="XZ",AV36,IF(ansicht="YZ",BB36,IF(ansicht="XY",BT36))) -> 0 | AK36: =IF(ansicht="XZ",AW36,IF(ansicht="YZ",BC36,IF(ansicht="XY",BU36))) -> 0 | AM36: =IF(ansicht="XZ",BE36,IF(ansicht="YZ",BK36,IF(ansicht="XY",BW36))) -> 0 | AN36: =IF(ansicht="XZ",BF36,IF(ansicht="YZ",BL36,IF(ansicht="XY",BX36))) -> 0 | AO36: =IF(ansicht="XZ",BG36,IF(ansicht="YZ",BM36,IF(ansicht="XY",BY36))) -> 0 | AP36: =IF(ansicht="XZ",BH36,IF(ansicht="YZ",BN36,IF(ansicht="XY",BZ36))) -> 0 | AQ36: =IF(ansicht="XZ",BI36,IF(ansicht="YZ",BO36,IF(ansicht="XY",CA36))) -> 0 | AR36: =IF(ansicht="XZ",CD36,IF(ansicht="YZ",CF36,IF(ansicht="XY",CH36))) ->  | CC36: =IF(B36<>"",AZ36+BB36+(ROW()/10000000),"") ->  | CD36: =IF(B36<>"",RANK(CC36,$CC$22:$CC$51,1),"") ->  | CE36: =IF(B36<>"",AT36+AV36+(ROW()/10000000),"") ->  | CF36: =IF(B36<>"",RANK(CE36,$CE$22:$CE$51,1),"") ->  | CG36: =IF(B36<>"",AU36+AW36+(ROW()/10000000),"") ->  | CH36: =IF(B36<>"",RANK(CG36,$CG$22:$CG$51,1),"") -> 
A37: 16 | AG37: 0 | AH37: 0 | AI37: 0 | AJ37: 0 | AK37: 0 | AM37: 0 | AN37: 0 | AO37: 0 | AP37: 0 | AQ37: 0
A38: 17 | AG38: 0 | AH38: 0 | AI38: 0 | AJ38: 0 | AK38: 0 | AM38: 0 | AN38: 0 | AO38: 0 | AP38: 0 | AQ38: 0
A39: 18 | AG39: 0 | AH39: 0 | AI39: 0 | AJ39: 0 | AK39: 0 | AM39: 0 | AN39: 0 | AO39: 0 | AP39: 0 | AQ39: 0
A40: 19 | AG40: 0 | AH40: 0 | AI40: 0 | AJ40: 0 | AK40: 0 | AM40: 0 | AN40: 0 | AO40: 0 | AP40: 0 | AQ40: 0
A41: 20 | AG41: 0 | AH41: 0 | AI41: 0 | AJ41: 0 | AK41: 0 | AM41: 0 | AN41: 0 | AO41: 0 | AP41: 0 | AQ41: 0
A42: 21 | AG42: 0 | AH42: 0 | AI42: 0 | AJ42: 0 | AK42: 0 | AM42: 0 | AN42: 0 | AO42: 0 | AP42: 0 | AQ42: 0
A43: 22 | AG43: 0 | AH43: 0 | AI43: 0 | AJ43: 0 | AK43: 0 | AM43: 0 | AN43: 0 | AO43: 0 | AP43: 0 | AQ43: 0 | CE43: =IF(D43<>"",BB43+BD43+(ROW()/10000000),"") ->  | CF43: =IF(D43<>"",RANK(CE43,$CC$22:$CC$51,1),"") ->  | CG43: =IF(D43<>"",AV43+AX43+(ROW()/10000000),"") ->  | CH43: =IF(D43<>"",RANK(CG43,$CE$22:$CE$51,1),"") ->  | CI43: =IF(D43<>"",AW43+AY43+(ROW()/10000000),"") ->  | CJ43: =IF(D43<>"",RANK(CI43,$CG$22:$CG$51,1),"") -> 
A44: 23 | AG44: 0 | AH44: 0 | AI44: 0 | AJ44: 0 | AK44: 0 | AM44: 0 | AN44: 0 | AO44: 0 | AP44: 0 | AQ44: 0
A45: 24 | AG45: 0 | AH45: 0 | AI45: 0 | AJ45: 0 | AK45: 0 | AM45: 0 | AN45: 0 | AO45: 0 | AP45: 0 | AQ45: 0
A46: 25 | AG46: 0 | AH46: 0 | AI46: 0 | AJ46: 0 | AK46: 0 | AM46: 0 | AN46: 0 | AO46: 0 | AP46: 0 | AQ46: 0
A47: 26 | AG47: 0 | AH47: 0 | AI47: 0 | AJ47: 0 | AK47: 0 | AM47: 0 | AN47: 0 | AO47: 0 | AP47: 0 | AQ47: 0
A48: 27 | AG48: 0 | AH48: 0 | AI48: 0 | AJ48: 0 | AK48: 0 | AM48: 0 | AN48: 0 | AO48: 0 | AP48: 0 | AQ48: 0
A49: 28 | AG49: 0 | AH49: 0 | AI49: 0 | AJ49: 0 | AK49: 0 | AM49: 0 | AN49: 0 | AO49: 0 | AP49: 0 | AQ49: 0
A50: 29 | AG50: =IF(ansicht="XZ",AS50,IF(ansicht="YZ",AY50,IF(ansicht="XY",BQ50))) -> 0 | AH50: 0 | AI50: 0 | AJ50: 0 | AK50: 0 | AM50: =IF(ansicht="XZ",BE50,IF(ansicht="YZ",BK50,IF(ansicht="XY",BW50))) -> 0 | AN50: 0 | AO50: 0 | AP50: 0 | AQ50: 0 | AR50: =IF(ansicht="XZ",CD50,IF(ansicht="YZ",CF50,IF(ansicht="XY",CH50))) -> 
A51: 30 | AG51: 0 | AH51: 0 | AI51: 0 | AJ51: 0 | AK51: 0 | AM51: 0 | AN51: 0 | AO51: 0 | AP51: 0 | AQ51: 0
J52: =SUM(J22:J51) -> 0 | O52: =SUM(O22:O51) -> 0 | Q52: =version -> SSE 7.3.0 | AC52: Schwerpunkt | AD52: keine Achse | AE52: =AE22 -> 0 | AF52: rot | AG52: Kreis | AH52: =IF(ansicht="XZ",AT52,IF(ansicht="YZ",AZ52,IF(ansicht="XY",BR52))) -> 325 | AI52: 10 | AJ52: 10 | AK52: 10 | AM52: ohne | AN52: - | AO52: - | AP52: - | AQ52: - | AS52: Kreis | AT52: =325+Q13*AE52 -> 325 | AU52: =10+SA_Z*AE52 -> 10 | AV52: 10 | AW52: 10 | AY52: Kreis | AZ52: =325+Q14*AE52 -> 325 | BA52: =10+SA_Z*AE52 -> 10 | BB52: 10 | BC52: 10 | BE52: ohne | BF52: - | BG52: - | BH52: - | BI52: - | BK52: ohne | BL52: - | BM52: - | BN52: - | BO52: - | BQ52: Kreis | BR52: =325+Q13*AE52 -> 325 | BS52: =110-Q14*AE52 -> 110 | BT52: 10 | BU52: 10 | BW52: ohne | BX52: - | BY52: - | BZ52: - | CA52: - | CC52: =AZ52+BB52+(ROW()/10000000) -> 335.0000052 | CE52: =AT52+AV52+(ROW()/10000000) -> 335.0000052 | CG52: =AU52+AW52+(ROW()/10000000) -> 20.0000052
I53: M virtuell | L53: M statisch (nur zur Prüfung) | P53: Moment SSE | W53: Ersatzabstand
H54: 1 | I54: =(J22*9.81*((L22/1000)^2+(M22/1000)^2)^0.5) -> 0 | K54: 1 | L54: =(J22*9.81*((L22/1000)^2+(M22/1000)^2)^0.5)*M54*N54 -> 0 | M54: =SIGN(L22) -> 0 | N54: =IF(M22=0,1,SIGN(M22)) -> 1 | P54: ='SRU+40-W'!AN52 -> 0 | R54: Faktor J_max | W54: R ers | Y54: m ers
H55: 2 | I55: =(J23*9.81*((L23/1000)^2+(M23/1000)^2)^0.5) -> 0 | K55: 2 | L55: =(J23*9.81*((L23/1000)^2+(M23/1000)^2)^0.5)*M55*N55 -> 0 | M55: =SIGN(L23) -> 0 | N55: =IF(M23=0,1,SIGN(M23)) -> 1 | R55: =IF(I80=0,0,P54/I80) -> 0 | W55: =((summe_J/summe_masse)^0.5)*1000 ->  | Y55: =summe_J/(Rs/1000)^2 -> 
H56: 3 | I56: =(J24*9.81*((L24/1000)^2+(M24/1000)^2)^0.5) -> 0 | K56: 3 | L56: =(J24*9.81*((L24/1000)^2+(M24/1000)^2)^0.5)*M56*N56 -> 0 | M56: =SIGN(L24) -> 0 | N56: =IF(M24=0,1,SIGN(M24)) -> 1
H57: 4 | I57: 0 | K57: 4 | L57: 0 | M57: =SIGN(L25) -> 0 | N57: =IF(M25=0,1,SIGN(M25)) -> 1
H58: 5 | I58: 0 | K58: 5 | L58: 0 | M58: 0 | N58: 1
H59: 6 | I59: 0 | K59: 6 | L59: 0 | M59: 0 | N59: 1
H60: 7 | I60: 0 | K60: 7 | L60: 0 | M60: 0 | N60: 1
H61: 8 | I61: 0 | K61: 8 | L61: 0 | M61: 0 | N61: 1
H62: 9 | I62: 0 | K62: 9 | L62: 0 | M62: 0 | N62: 1
H63: 10 | I63: 0 | K63: 10 | L63: 0 | M63: 0 | N63: 1
H64: 11 | I64: 0 | K64: 11 | L64: 0 | M64: 0 | N64: 1
H65: 12 | I65: 0 | K65: 12 | L65: 0 | M65: 0 | N65: 1
H66: 13 | I66: 0 | K66: 13 | L66: 0 | M66: 0 | N66: 1
H67: 14 | I67: 0 | K67: 14 | L67: 0 | M67: 0 | N67: 1
H68: 15 | I68: 0 | K68: 15 | L68: 0 | M68: =SIGN(L36) -> 0 | N68: =IF(M36=0,1,SIGN(M36)) -> 1
H69: 16 | I69: 0 | K69: 16 | L69: 0 | M69: 0 | N69: 1
H70: 17 | I70: 0 | K70: 17 | L70: 0 | M70: 0 | N70: 1
H71: 18 | I71: 0 | K71: 18 | L71: 0 | M71: 0 | N71: 1
H72: 19 | I72: 0 | K72: 19 | L72: 0 | M72: 0 | N72: 1
H73: 20 | I73: 0 | K73: 20 | L73: 0 | M73: 0 | N73: 1
H74: 21 | I74: 0 | K74: 21 | L74: 0 | M74: 0 | N74: 1
H75: 22 | I75: 0 | K75: 22 | L75: 0 | M75: 0 | N75: 1
H76: 23 | I76: 0 | K76: 23 | L76: 0 | M76: 0 | N76: 1
H77: 24 | I77: 0 | K77: 24 | L77: 0 | M77: 0 | N77: 1
H78: 25 | I78: 0 | K78: 25 | L78: 0 | M78: 0 | N78: 1
H79: 26 | I79: 0 | K79: 26 | L79: 0 | M79: 0 | N79: 1
I80: =SUM(I54:I79) -> 0 | L80: =SUM(L54:L79) -> 0
B81: Quader
B82: Bezeichnung | C82: Länge in X-Richtung [mm] | D82: Breite in Y-Richtung [mm] | E82: Höhe in Z-Richtung [mm] | F82: Dichte [kg/dm³] | G82: J0 Eigenträg-heitsmoment [kg*m²] | H82: Masse [kg] | I82: Schwerpunkts-abstand x [mm] | J82: Schwerpunkts-abstand y [mm] | K82: Schwerpunkts-abstand z [mm] | L82: J Massenträg-heitsmoment [kg*m²] | M82: Farbe | N82: Hinzufügen | W82: R | X82: G | Y82: B | AG82: Ansichtsdarstellung Körper | AM82: Ansichtsdarstellung Achse | AS82: Form in XZ | AY82: Form in YZ | BE82: Achse in XZ | BK82: Achse in YZ | BQ82: Form in XY | BW82: Achse in XY
B83: Quader | C83: 50 | D83: 60 | E83: 70 | F83: 2.77 | G83: =((((quader_laenge_x/1000)^2+(quader_breite_y/1000)^2)/12)*quader_masse) -> 0.0002956975 | H83: =(quader_laenge_x/1000)*(quader_breite_y/1000)*(quader_hoehe_z/1000)*(quader_dichte*1000) -> 0.5817 | I83: 100 | J83: 150 | K83: 200 | L83: =(((quader_laenge_x/1000)^2+(quader_breite_y/1000)^2)/12+((quader_sa_x/1000)^2+(quader_sa_y/1000)^2))*quader_masse -> 0.0192009475 | M83: grün | AE83: 31 | AF83: 32 | AG83: 33 | AH83: 34 | AI83: 35 | AJ83: 36 | AK83: 37 | AL83: 38 | AM83: 39 | AN83: 40 | AO83: 41 | AP83: 42 | AQ83: 43 | AR83: 44 | AS83: 45 | AT83: 46 | AU83: 47 | AV83: 48 | AW83: 49 | AX83: 50 | AY83: 51 | AZ83: 52 | BA83: 53 | BB83: 54 | BC83: 55 | BD83: 56 | BE83: 57 | BF83: 58 | BG83: 59 | BH83: 60 | BI83: 61 | BJ83: 62 | BK83: 63 | BL83: 64 | BM83: 65 | BN83: 66 | BO83: 67 | BP83: 68 | BQ83: 69 | BR83: 70 | BS83: 71 | BT83: 72 | BU83: 73 | BV83: 74 | BW83: 75 | BX83: 76 | BY83: 77 | BZ83: 78 | CA83: 79 | CB83: 80 | CC83: 81 | CD83: 82 | CE83: 83 | CF83: 84 | CG83: 85 | CH83: 86
C84: =quader_laenge_x*faktor_max_l -> 20 | D84: =quader_breite_y*faktor_max_l -> 24 | E84: =quader_hoehe_z*faktor_max_l -> 28 | I84: =quader_sa_x*faktor_max_l -> 40 | J84: =quader_sa_y*faktor_max_l -> 60 | K84: =quader_sa_z*faktor_max_l -> 80 | M84: =IF(OR(quader_laenge_x="",quader_breite_y="",quader_hoehe_z="",quader_dichte="",quader_sa_x="",quader_sa_y="",quader_sa_z="",quader_farbe=""),"fehlende Werte","alles OK") -> alles OK | W84: =VLOOKUP(quader_farbe,Listen!$U$2:$X$11,2,FALSE) -> 51 | X84: =VLOOKUP(quader_farbe,Listen!$U$2:$X$11,3,FALSE) -> 204 | Y84: =VLOOKUP(quader_farbe,Listen!$U$2:$X$11,4,FALSE) -> 51 | AD84: Achsen-ausrichtung | AE84: Faktor | AF84: Farbe | AG84: Form | AH84: Start X | AI84: Start Y | AJ84: Ende X / L | AK84: Ende Y / H | AM84: Form | AN84: Start X | AO84: Start Y | AP84: Ende X / L | AQ84: Ende Y / H | AS84: Form | AT84: Start X | AU84: Start Y | AV84: Ende X / L | AW84: Ende Y / H | AY84: Form | AZ84: Start X | BA84: Start Y | BB84: Ende X / L | BC84: Ende Y / H | BE84: Form | BF84: Start X | BG84: Start Y | BH84: Ende X / L | BI84: Ende Y / H | BK84: Form | BL84: Start X | BM84: Start Y | BN84: Ende X / L | BO84: Ende Y / H | BQ84: Form | BR84: Start X | BS84: Start Y | BT84: Ende X / L | BU84: Ende Y / H | BW84: Form | BX84: Start X | BY84: Start Y | BZ84: Ende X / L | CA84: Ende Y / H
AD85: keine Achse | AF85: =quader_farbe -> grün | AS85: Rechteck | AT85: =ref_hor+quader_abstand_x-1/2*quader_laenge -> 360 | AU85: =ref_ver+quader_abstand_z-1/2*quader_hoehe -> 81 | AV85: =quader_laenge -> 20 | AW85: =quader_hoehe -> 28 | AY85: Rechteck | AZ85: =ref_hor+quader_abstand_y-1/2*quader_breite -> 378 | BA85: =ref_ver+quader_abstand_z-1/2*quader_hoehe -> 81 | BB85: =quader_breite -> 24 | BC85: =quader_hoehe -> 28 | BE85: ohne | BF85: - | BG85: - | BH85: - | BI85: - | BK85: ohne | BL85: - | BM85: - | BN85: - | BO85: - | BQ85: Rechteck | BR85: =ref_hor+quader_abstand_x-1/2*quader_laenge -> 360 | BS85: =ref_ver_XY-quader_abstand_y-1/2*quader_breite -> 43 | BT85: =quader_laenge -> 20 | BU85: =quader_breite -> 24 | BW85: ohne | BX85: - | BY85: - | BZ85: - | CA85: -
B115: Zylinder
B116: Bezeichnung | C116: Höhe Zylinder [mm] | D116: Radius außen [mm] | E116: Dichte [kg/dm³] | F116: J0 Eigenträg-heitsmoment [kg*m²] | G116: Masse [kg] | H116: Schwerpunkts-abstand x [mm] | I116: Schwerpunkts-abstand y [mm] | J116: Schwerpunkts-abstand z [mm] | K116: J Massenträg-heitsmoment [kg*m²] | L116: Farbe | M116: Hinzufügen | W116: R | X116: G | Y116: B | AG116: Ansichtsdarstellung Körper | AM116: Ansichtsdarstellung Achse | AS116: Form in XZ | AY116: Form in YZ | BE116: Achse in XZ | BK116: Achse in YZ | BQ116: Form in XY | BW116: Achse in XY
B117: Cylinder | C117: 70 | D117: 50 | E117: 7.85 | F117: =((2*zylinder_z_radius_aussen/1000)^2/8)*zylinder_z_masse -> 0.005394703635 | G117: =(PI()*(2*zylinder_z_radius_aussen/1000)^2/4)*(zylinder_z_hoehe_z/1000)*(zylinder_z_dichte*1000) -> 4.315762908 | H117: 100 | I117: 150 | J117: 200 | K117: =IF(zylinder_achsenanordnung="X-Achse",AC119,IF(zylinder_achsenanordnung="Y-Achse",AC120,AC121)) -> 0.1447219162 | L117: green | AE117: 31 | AF117: 32 | AG117: 33 | AH117: 34 | AI117: 35 | AJ117: 36 | AK117: 37 | AL117: 38 | AM117: 39 | AN117: 40 | AO117: 41 | AP117: 42 | AQ117: 43 | AR117: 44 | AS117: 45 | AT117: 46 | AU117: 47 | AV117: 48 | AW117: 49 | AX117: 50 | AY117: 51 | AZ117: 52 | BA117: 53 | BB117: 54 | BC117: 55 | BD117: 56 | BE117: 57 | BF117: 58 | BG117: 59 | BH117: 60 | BI117: 61 | BJ117: 62 | BK117: 63 | BL117: 64 | BM117: 65 | BN117: 66 | BO117: 67 | BP117: 68 | BQ117: 69 | BR117: 70 | BS117: 71 | BT117: 72 | BU117: 73 | BV117: 74 | BW117: 75 | BX117: 76 | BY117: 77 | BZ117: 78 | CA117: 79
C118: =zylinder_z_hoehe_z*faktor_max_l -> 28 | D118: =zylinder_z_radius_aussen*faktor_max_l -> 20 | H118: =zylinder_z_sa_x*faktor_max_l -> 40 | I118: =zylinder_z_sa_y*faktor_max_l -> 60 | J118: =zylinder_z_sa_z*faktor_max_l -> 80 | L118: =IF(OR(zylinder_z_hoehe_z="",zylinder_z_radius_aussen="",zylinder_z_dichte="",zylinder_achsenanordnung="",zylinder_z_sa_x="",zylinder_z_sa_y="",zylinder_z_sa_z="",zylinder_z_farbe=""),"fehlende Werte","alles OK") -> alles OK | W118: =VLOOKUP(L117,Listen!$U$2:$X$11,2,FALSE) ->  | X118: =VLOOKUP(L117,Listen!$U$2:$X$11,3,FALSE) ->  | Y118: =VLOOKUP(L117,Listen!$U$2:$X$11,4,FALSE) ->  | AC118: J | AD118: Achsen-ausrichtung | AE118: Faktor | AF118: Farbe | AG118: Form | AH118: Start X | AI118: Start Y | AJ118: Ende X / L | AK118: Ende Y / H | AM118: Form | AN118: Start X | AO118: Start Y | AP118: Ende X / L | AQ118: Ende Y / H | AS118: Form | AT118: Start X | AU118: Start Y | AV118: Ende X / L | AW118: Ende Y / H | AY118: Form | AZ118: Start X | BA118: Start Y | BB118: Ende X / L | BC118: Ende Y / H | BE118: Form | BF118: Start X | BG118: Start Y | BH118: Ende X / L | BI118: Ende Y / H | BK118: Form | BL118: Start X | BM118: Start Y | BN118: Ende X / L | BO118: Ende Y / H | BQ118: Form | BR118: Start X | BS118: Start Y | BT118: Ende X / L | BU118: Ende Y / H | BW118: Form | BX118: Start X | BY118: Start Y | BZ118: Ende X / L | CA118: Ende Y / H
B119: Symmetireachse parallel zu | D119: X-Achse | AC119: =(((zylinder_z_hoehe_z/1000)^2/12)+((2*zylinder_z_radius_aussen/1000)^2/16)+((zylinder_z_sa_x/1000)^2+(zylinder_z_sa_y/1000)^2))*zylinder_z_masse -> 0.1447219162 | AD119: X | AS119: Rechteck | AT119: =ref_hor+zylinder_z_abstand_x-1/2*zylinder_z_hoehe -> 356 | AU119: =ref_ver+zylinder_z_abstand_z-zylinder_z_laenge -> 75 | AV119: =zylinder_z_hoehe -> 28 | AW119: =2*zylinder_z_laenge -> 40 | AY119: Kreis | AZ119: =ref_hor+zylinder_z_abstand_y-zylinder_z_laenge -> 370 | BA119: =ref_ver+zylinder_z_abstand_z-zylinder_z_laenge -> 75 | BB119: =2*zylinder_z_laenge -> 40 | BC119: =2*zylinder_z_laenge -> 40 | BE119: Linie | BF119: =ref_hor+zylinder_z_abstand_x-1/2*zylinder_z_hoehe-5 -> 351 | BG119: =ref_ver+zylinder_z_abstand_z -> 95 | BH119: =ref_hor+zylinder_z_abstand_x+1/2*zylinder_z_hoehe+5 -> 389 | BI119: =ref_ver+zylinder_z_abstand_z -> 95 | BK119: ohne | BL119: - | BM119: - | BN119: - | BO119: - | BQ119: Rechteck | BR119: =ref_hor+zylinder_z_abstand_x-1/2*zylinder_z_hoehe -> 356 | BS119: =ref_ver_XY-zylinder_z_abstand_y-zylinder_z_laenge -> 35 | BT119: =zylinder_z_hoehe -> 28 | BU119: =2*zylinder_z_laenge -> 40 | BW119: Linie | BX119: =ref_hor+zylinder_z_abstand_x-1/2*zylinder_z_hoehe-5 -> 351 | BY119: =ref_ver_XY-zylinder_z_abstand_y -> 55 | BZ119: =ref_hor+zylinder_z_abstand_x+1/2*zylinder_z_hoehe+5 -> 389 | CA119: =ref_ver_XY-zylinder_z_abstand_y -> 55
AC120: =(((zylinder_z_hoehe_z/1000)^2/12)+((2*zylinder_z_radius_aussen/1000)^2/16)+((zylinder_z_sa_x/1000)^2+(zylinder_z_sa_y/1000)^2))*zylinder_z_masse -> 0.1447219162 | AD120: Y | AS120: Kreis | AT120: =ref_hor+zylinder_z_abstand_x-zylinder_z_laenge -> 350 | AU120: =ref_ver+zylinder_z_abstand_z-zylinder_z_laenge -> 75 | AV120: =2*zylinder_z_laenge -> 40 | AW120: =2*zylinder_z_laenge -> 40 | AY120: Rechteck | AZ120: =ref_hor+zylinder_z_abstand_y-1/2*zylinder_z_hoehe -> 376 | BA120: =ref_ver+zylinder_z_abstand_z-zylinder_z_laenge -> 75 | BB120: =zylinder_z_hoehe -> 28 | BC120: =2*zylinder_z_laenge -> 40 | BE120: ohne | BF120: - | BG120: - | BH120: - | BI120: - | BK120: Linie | BL120: =ref_hor+zylinder_z_abstand_y-1/2*zylinder_z_hoehe-5 -> 371 | BM120: =ref_ver+zylinder_z_abstand_z -> 95 | BN120: =ref_hor+zylinder_z_abstand_y+1/2*zylinder_z_hoehe+5 -> 409 | BO120: =ref_ver+zylinder_z_abstand_z -> 95 | BQ120: Rechteck | BR120: =ref_hor+zylinder_z_abstand_x-zylinder_z_laenge -> 350 | BS120: =ref_ver_XY-zylinder_z_abstand_y-1/2*zylinder_z_hoehe -> 41 | BT120: =2*zylinder_z_laenge -> 40 | BU120: =zylinder_z_hoehe -> 28 | BW120: Linie | BX120: =ref_hor+zylinder_z_abstand_x -> 370 | BY120: =ref_ver_XY-zylinder_z_abstand_y-1/2*zylinder_z_hoehe-5 -> 36 | BZ120: =ref_hor+zylinder_z_abstand_x -> 370 | CA120: =ref_ver_XY-zylinder_z_abstand_y+1/2*zylinder_z_hoehe+5 -> 74
AC121: =(((2*zylinder_z_radius_aussen/1000)^2/8)+((zylinder_z_sa_x/1000)^2+(zylinder_z_sa_y/1000)^2))*zylinder_z_masse -> 0.1456569981 | AD121: Z | AS121: Rechteck | AT121: =ref_hor+zylinder_z_abstand_x-zylinder_z_laenge -> 350 | AU121: =ref_ver+zylinder_z_abstand_z-1/2*zylinder_z_hoehe -> 81 | AV121: =2*zylinder_z_laenge -> 40 | AW121: =zylinder_z_hoehe -> 28 | AY121: Rechteck | AZ121: =ref_hor+zylinder_z_abstand_y-zylinder_z_laenge -> 370 | BA121: =ref_ver+zylinder_z_abstand_z-1/2*zylinder_z_hoehe -> 81 | BB121: =2*zylinder_z_laenge -> 40 | BC121: =zylinder_z_hoehe -> 28 | BE121: Linie | BF121: =ref_hor+zylinder_z_abstand_x -> 370 | BG121: =ref_ver+zylinder_z_abstand_z-1/2*zylinder_z_hoehe-5 -> 76 | BH121: =ref_hor+zylinder_z_abstand_x -> 370 | BI121: =ref_ver+zylinder_z_abstand_z+1/2*zylinder_z_hoehe+5 -> 114 | BK121: Linie | BL121: =ref_hor+zylinder_z_abstand_y -> 390 | BM121: =ref_ver+zylinder_z_abstand_z-1/2*zylinder_z_hoehe-5 -> 76 | BN121: =ref_hor+zylinder_z_abstand_y -> 390 | BO121: =ref_ver+zylinder_z_abstand_z+1/2*zylinder_z_hoehe+5 -> 114 | BQ121: Kreis | BR121: =ref_hor+zylinder_z_abstand_x-zylinder_z_laenge -> 350 | BS121: =ref_ver_XY-zylinder_z_abstand_y-zylinder_z_laenge -> 35 | BT121: =2*zylinder_z_laenge -> 40 | BU121: =2*zylinder_z_laenge -> 40 | BW121: ohne | BX121: - | BY121: - | BZ121: - | CA121: -
B165: Zylinder XY
B166: Bezeichnung | C166: Höhe Zylinder [mm] | D166: Radius außen [mm] | F166: Dichte [kg/dm³] | G166: J0 Eigenträg-heitsmoment [kg*m²] | H166: Masse [kg] | I166: Schwerpunkts-abstand x [mm] | J166: Schwerpunkts-abstand y [mm] | K166: Schwerpunkts-abstand z [mm] | L166: J Massenträg-heitsmoment [kg*m²] | M166: Farbe | W166: R | X166: G | Y166: B
B167: Zylinder XY 1 | C167: 400 | D167: 50 | F167: 2.77 | G167: =((zylinder_xy_hoehe_zylinder^2/12)+((2*zylinder_xy_radius_aussen)^2/16))*zylinder_xy_masse/1000000 -> 0.121468371 | H167: =(PI()*(2*zylinder_xy_radius_aussen)^2/4)*zylinder_xy_hoehe_zylinder*zylinder_xy_dichte/1000000 -> 8.70221165 | I167: 800 | J167: 120 | K167: 180 | L167: =((zylinder_xy_hoehe_zylinder^2/12)+((2*zylinder_xy_radius_aussen)^2/16)+(zylinder_xy_sa_x^2+zylinder_xy_sa_y^2))*zylinder_xy_masse/1000000 -> 5.816195675 | M167: hellgrün
C168: =zylinder_xy_hoehe_zylinder*faktor_max_l -> 160 | D168: =zylinder_xy_radius_aussen*faktor_max_l -> 20 | I168: =I167*faktor_max_l -> 320 | J168: =zylinder_xy_sa_y*faktor_max_l -> 48 | K168: =zylinder_xy_sa_z*faktor_max_l-zylinder_xy_hoehe -> 52 | W168: =VLOOKUP(M167,Listen!$U$2:$X$11,2,FALSE) -> 0 | X168: =VLOOKUP(M167,Listen!$U$2:$X$11,3,FALSE) -> 255 | Y168: =VLOOKUP(M167,Listen!$U$2:$X$11,4,FALSE) -> 0
E169: Material
E171: Direkte Masseneingabe [kg] | H171: 5
B215: Hohlzylinder
B216: Bezeichnung | C216: Höhe Zylinder [mm] | D216: Radius außen [mm] | E216: Radius innen [mm] | F216: Dichte [kg/dm³] | G216: J0 Eigenträg-heitsmoment [kg*m²] | H216: Masse [kg] | I216: Schwerpunkts-abstand x [mm] | J216: Schwerpunkts-abstand y [mm] | K216: Schwerpunkts-abstand z [mm] | L216: J Massenträg-heitsmoment [kg*m²] | M216: Farbe | N216: Hinzufügen | W216: R | X216: G | Y216: B | AG216: Ansichtsdarstellung Körper | AM216: Ansichtsdarstellung Achse | AS216: Form in XZ | AY216: Form in YZ | BE216: Achse in XZ | BK216: Achse in YZ | BQ216: Form in XY | BW216: Achse in XY
B217: Hohlzylinder | C217: 70 | D217: 50 | E217: 30 | F217: 7.85 | G217: =(((2*hohlzylinder_z_radius_aussen/1000)^2+(2*hohlzylinder_z_radius_innen/1000)^2)/8)*hohlzylinder_z_masse -> 0.004695550044 | H217: =(PI()*(hohlzylinder_z_hoehe_z/1000)/4*((2*hohlzylinder_z_radius_aussen/1000)^2-(2*hohlzylinder_z_radius_innen/1000)^2))*(hohlzylinder_z_dichte*1000) -> 2.762088261 | I217: 100 | J217: 150 | K217: 200 | L217: =IF(hohlzylinder_achsenanordnung="X-Achse",AC219,IF(hohlzylinder_achsenanordnung="Y-Achse",AC220,AC221)) -> 0.09324349621 | M217: rot | AE217: 31 | AF217: 32 | AG217: 33 | AH217: 34 | AI217: 35 | AJ217: 36 | AK217: 37 | AL217: 38 | AM217: 39 | AN217: 40 | AO217: 41 | AP217: 42 | AQ217: 43 | AR217: 44 | AS217: 45 | AT217: 46 | AU217: 47 | AV217: 48 | AW217: 49 | AX217: 50 | AY217: 51 | AZ217: 52 | BA217: 53 | BB217: 54 | BC217: 55 | BD217: 56 | BE217: 57 | BF217: 58 | BG217: 59 | BH217: 60 | BI217: 61 | BJ217: 62 | BK217: 63 | BL217: 64 | BM217: 65 | BN217: 66 | BO217: 67 | BP217: 68 | BQ217: 69 | BR217: 70 | BS217: 71 | BT217: 72 | BU217: 73 | BV217: 74 | BW217: 75 | BX217: 76 | BY217: 77 | BZ217: 78 | CA217: 79
C218: =hohlzylinder_z_hoehe_z*faktor_max_l -> 28 | D218: =hohlzylinder_z_radius_aussen*faktor_max_l -> 20 | I218: =hohlzylinder_z_sa_x*faktor_max_l -> 40 | J218: =hohlzylinder_z_sa_y*faktor_max_l -> 60 | K218: =hohlzylinder_z_sa_z*faktor_max_l -> 80 | M218: =IF(OR(hohlzylinder_achsenanordnung="",hohlzylinder_z_hoehe_z="",hohlzylinder_z_radius_aussen="",hohlzylinder_z_radius_innen="",hohlzylinder_z_dichte="",hohlzylinder_z_sa_x="",hohlzylinder_z_sa_y="",hohlzylinder_z_sa_z="",hohlzylinder_z_farbe=""),"fehlende Werte","alles OK") -> alles OK | W218: =VLOOKUP(M217,Listen!$U$2:$X$11,2,FALSE) -> 230 | X218: =VLOOKUP(M217,Listen!$U$2:$X$11,3,FALSE) -> 0 | Y218: =VLOOKUP(M217,Listen!$U$2:$X$11,4,FALSE) -> 0 | AC218: J | AD218: Achsen-ausrichtung | AE218: Faktor | AF218: Farbe | AG218: Form | AH218: Start X | AI218: Start Y | AJ218: Ende X / L | AK218: Ende Y / H | AM218: Form | AN218: Start X | AO218: Start Y | AP218: Ende X / L | AQ218: Ende Y / H | AS218: Form | AT218: Start X | AU218: Start Y | AV218: Ende X / L | AW218: Ende Y / H | AY218: Form | AZ218: Start X | BA218: Start Y | BB218: Ende X / L | BC218: Ende Y / H | BE218: Form | BF218: Start X | BG218: Start Y | BH218: Ende X / L | BI218: Ende Y / H | BK218: Form | BL218: Start X | BM218: Start Y | BN218: Ende X / L | BO218: Ende Y / H | BQ218: Form | BR218: Start X | BS218: Start Y | BT218: Ende X / L | BU218: Ende Y / H | BW218: Form | BX218: Start X | BY218: Start Y | BZ218: Ende X / L | CA218: Ende Y / H
B219: Symmetireachse parallel zu | D219: X-Achse | AC219: =(((hohlzylinder_z_hoehe_z/1000)^2/12)+(((2*hohlzylinder_z_radius_aussen/1000)^2+(2*hohlzylinder_z_radius_innen/1000)^2)/16)+((hohlzylinder_z_sa_x/1000)^2+(hohlzylinder_z_sa_y/1000)^2))*hohlzylinder_z_masse -> 0.09324349621 | AD219: X | AS219: Rechteck | AT219: =ref_hor+hohlzylinder_z_abstand_x-1/2*hohlzylinder_z_hoehe -> 356 | AU219: =ref_ver+hohlzylinder_z_abstand_z-hohlzylinder_z_laenge -> 75 | AV219: =hohlzylinder_z_hoehe -> 28 | AW219: =2*hohlzylinder_z_laenge -> 40 | AY219: Kreis | AZ219: =ref_hor+hohlzylinder_z_abstand_y-hohlzylinder_z_laenge -> 370 | BA219: =ref_ver+hohlzylinder_z_abstand_z-hohlzylinder_z_laenge -> 75 | BB219: =2*hohlzylinder_z_laenge -> 40 | BC219: =2*hohlzylinder_z_laenge -> 40 | BE219: Linie | BF219: =ref_hor+hohlzylinder_z_abstand_x-1/2*hohlzylinder_z_hoehe-5 -> 351 | BG219: =ref_ver+hohlzylinder_z_abstand_z -> 95 | BH219: =ref_hor+hohlzylinder_z_abstand_x+1/2*hohlzylinder_z_hoehe+5 -> 389 | BI219: =ref_ver+hohlzylinder_z_abstand_z -> 95 | BK219: ohne | BL219: - | BM219: - | BN219: - | BO219: - | BQ219: Rechteck | BR219: =ref_hor+hohlzylinder_z_abstand_x-1/2*hohlzylinder_z_hoehe -> 356 | BS219: =ref_ver_XY-hohlzylinder_z_abstand_y-hohlzylinder_z_laenge -> 35 | BT219: =hohlzylinder_z_hoehe -> 28 | BU219: =2*hohlzylinder_z_laenge -> 40 | BW219: Linie | BX219: =ref_hor+hohlzylinder_z_abstand_x-1/2*hohlzylinder_z_hoehe-5 -> 351 | BY219: =ref_ver_XY-hohlzylinder_z_abstand_y -> 55 | BZ219: =ref_hor+hohlzylinder_z_abstand_x+1/2*hohlzylinder_z_hoehe+5 -> 389 | CA219: =ref_ver_XY-hohlzylinder_z_abstand_y -> 55
AC220: =(((hohlzylinder_z_hoehe_z/1000)^2/12)+(((2*hohlzylinder_z_radius_aussen/1000)^2+(2*hohlzylinder_z_radius_innen/1000)^2)/16)+((hohlzylinder_z_sa_x/1000)^2+(hohlzylinder_z_sa_y/1000)^2))*hohlzylinder_z_masse -> 0.09324349621 | AD220: Y | AS220: Kreis | AT220: =ref_hor+hohlzylinder_z_abstand_x-hohlzylinder_z_laenge -> 350 | AU220: =ref_ver+hohlzylinder_z_abstand_z-hohlzylinder_z_laenge -> 75 | AV220: =2*hohlzylinder_z_laenge -> 40 | AW220: =2*hohlzylinder_z_laenge -> 40 | AY220: Rechteck | AZ220: =ref_hor+hohlzylinder_z_abstand_y-1/2*hohlzylinder_z_hoehe -> 376 | BA220: =ref_ver+hohlzylinder_z_abstand_z-hohlzylinder_z_laenge -> 75 | BB220: =hohlzylinder_z_hoehe -> 28 | BC220: =2*hohlzylinder_z_laenge -> 40 | BE220: ohne | BF220: - | BG220: - | BH220: - | BI220: - | BK220: Linie | BL220: =ref_hor+hohlzylinder_z_abstand_y-1/2*hohlzylinder_z_hoehe-5 -> 371 | BM220: =ref_ver+hohlzylinder_z_abstand_z -> 95 | BN220: =ref_hor+hohlzylinder_z_abstand_y+1/2*hohlzylinder_z_hoehe+5 -> 409 | BO220: =ref_ver+hohlzylinder_z_abstand_z -> 95 | BQ220: Rechteck | BR220: =ref_hor+hohlzylinder_z_abstand_x-hohlzylinder_z_laenge -> 350 | BS220: =ref_ver_XY-hohlzylinder_z_abstand_y-1/2*hohlzylinder_z_hoehe -> 41 | BT220: =2*hohlzylinder_z_laenge -> 40 | BU220: =hohlzylinder_z_hoehe -> 28 | BW220: Linie | BX220: =ref_hor+hohlzylinder_z_abstand_x -> 370 | BY220: =ref_ver_XY-hohlzylinder_z_abstand_y-1/2*hohlzylinder_z_hoehe-5 -> 36 | BZ220: =ref_hor+hohlzylinder_z_abstand_x -> 370 | CA220: =ref_ver_XY-hohlzylinder_z_abstand_y+1/2*hohlzylinder_z_hoehe+5 -> 74
AC221: =((((2*hohlzylinder_z_radius_aussen/1000)^2+(2*hohlzylinder_z_radius_innen/1000)^2)/8)+((hohlzylinder_z_sa_x/1000)^2+(hohlzylinder_z_sa_y/1000)^2))*hohlzylinder_z_masse -> 0.09446341853 | AD221: Z | AS221: Rechteck | AT221: =ref_hor+hohlzylinder_z_abstand_x-hohlzylinder_z_laenge -> 350 | AU221: =ref_ver+hohlzylinder_z_abstand_z-1/2*hohlzylinder_z_hoehe -> 81 | AV221: =2*hohlzylinder_z_laenge -> 40 | AW221: =hohlzylinder_z_hoehe -> 28 | AY221: Rechteck | AZ221: =ref_hor+hohlzylinder_z_abstand_y-hohlzylinder_z_laenge -> 370 | BA221: =ref_ver+hohlzylinder_z_abstand_z-1/2*hohlzylinder_z_hoehe -> 81 | BB221: =2*hohlzylinder_z_laenge -> 40 | BC221: =hohlzylinder_z_hoehe -> 28 | BE221: Linie | BF221: =ref_hor+hohlzylinder_z_abstand_x -> 370 | BG221: =ref_ver+hohlzylinder_z_abstand_z-1/2*hohlzylinder_z_hoehe-5 -> 76 | BH221: =ref_hor+hohlzylinder_z_abstand_x -> 370 | BI221: =ref_ver+hohlzylinder_z_abstand_z+1/2*hohlzylinder_z_hoehe+5 -> 114 | BK221: Linie | BL221: =ref_hor+hohlzylinder_z_abstand_y -> 390 | BM221: =ref_ver+hohlzylinder_z_abstand_z-1/2*hohlzylinder_z_hoehe-5 -> 76 | BN221: =ref_hor+hohlzylinder_z_abstand_y -> 390 | BO221: =ref_ver+hohlzylinder_z_abstand_z+1/2*hohlzylinder_z_hoehe+5 -> 114 | BQ221: Kreis | BR221: =ref_hor+hohlzylinder_z_abstand_x-hohlzylinder_z_laenge -> 350 | BS221: =ref_ver_XY-hohlzylinder_z_abstand_y-hohlzylinder_z_laenge -> 35 | BT221: =2*hohlzylinder_z_laenge -> 40 | BU221: =2*hohlzylinder_z_laenge -> 40 | BW221: ohne | BX221: - | BY221: - | BZ221: - | CA221: -
B265: Hohlzylinder XY
B266: Bezeichnung | C266: Höhe Zylinder [mm] | D266: Radius außen [mm] | E266: Radius innen [mm] | F266: Dichte [kg/dm³] | G266: J0 Eigenträg-heitsmoment [kg*m²] | H266: Masse [kg] | I266: Schwerpunkts-abstand x [mm] | J266: Schwerpunkts-abstand y [mm] | K266: Schwerpunkts-abstand z [mm] | L266: J Massenträg-heitsmoment [kg*m²] | M266: Farbe | W266: R | X266: G | Y266: B
B267: Hohlzylinder XY 1 | C267: 400 | D267: 25 | E267: 20 | F267: 2.77 | G267: =(((hohlzylinder_xy_hoehe_zylinder^2/12)+((2*hohlzylinder_xy_radius_aussen)^2+(2*hohlzylinder_xy_radius_innen)^2)/16)*hohlzylinder_xy_masse)/1000000 -> 0.01064334874 | H267: =(PI()*hohlzylinder_xy_hoehe_zylinder/4*((2*hohlzylinder_xy_radius_aussen)^2-(2*hohlzylinder_xy_radius_innen)^2))*hohlzylinder_xy_dichte/1000000 -> 0.7831990485 | I267: 350 | J267: -100 | K267: 400 | L267: =(((hohlzylinder_xy_hoehe_zylinder^2/12)+(((2*hohlzylinder_xy_radius_aussen)^2+(2*hohlzylinder_xy_radius_innen)^2)/16)+(hohlzylinder_xy_sa_x^2+hohlzylinder_xy_sa_y^2))*hohlzylinder_xy_masse)/1000000 -> 0.1144172227 | M267: grau
C268: =hohlzylinder_xy_hoehe_zylinder*faktor_max_l -> 160 | D268: =hohlzylinder_xy_radius_aussen*faktor_max_l -> 10 | I268: =hohlzylinder_xy_sa_x*faktor_max_l -> 140 | J268: =hohlzylinder_xy_sa_y*faktor_max_l -> -40 | K268: =hohlzylinder_xy_sa_z*faktor_max_l-hohlzylinder_xy_hoehe -> 150 | W268: =VLOOKUP(M267,Listen!$U$2:$X$11,2,FALSE) -> 150 | X268: =VLOOKUP(M267,Listen!$U$2:$X$11,3,FALSE) -> 150 | Y268: =VLOOKUP(M267,Listen!$U$2:$X$11,4,FALSE) -> 150
E269: Material
E271: Direkte Masseneingabe [kg] | H271: 5
B315: Kugel
B316: Bezeichnung | C316: Radius außen [mm] | D316: Dichte [kg/dm³] | E316: J0 Eigenträg-heitsmoment [kg*m²] | F316: Masse [kg] | G316: Schwerpunkts-abstand x [mm] | H316: Schwerpunkts-abstand y [mm] | I316: Schwerpunkts-abstand z [mm] | J316: J Massenträg-heitsmoment [kg*m²] | K316: Farbe | L316: Hinzufügen | W316: R | X316: G | Y316: B | AG316: Ansichtsdarstellung Körper | AM316: Ansichtsdarstellung Achse | AS316: Form in XZ | AY316: Form in YZ | BE316: Achse in XZ | BK316: Achse in YZ | BQ316: Form in XY | BW316: Achse in XY
B317: Sphere1 | C317: 25 | D317: 2.77 | E317: =(2/5*kugel_masse*(kugel_radius_aussen/1000)^2) -> 4.532401901e-05 | F317: =(PI()*(2*kugel_radius_aussen/1000)^3/6)*(kugel_dichte*1000) -> 0.1812960761 | G317: 50 | H317: 80 | I317: 100 | J317: =(2/5*(kugel_radius_aussen/1000)^2+((kugel_sa_x/1000)^2+(kugel_sa_y/1000)^2))*kugel_masse -> 0.001658859096 | K317: green | AE317: 31 | AF317: 32 | AG317: 33 | AH317: 34 | AI317: 35 | AJ317: 36 | AK317: 37 | AL317: 38 | AM317: 39 | AN317: 40 | AO317: 41 | AP317: 42 | AQ317: 43 | AR317: 44 | AS317: 45 | AT317: 46 | AU317: 47 | AV317: 48 | AW317: 49 | AX317: 50 | AY317: 51 | AZ317: 52 | BA317: 53 | BB317: 54 | BC317: 55 | BD317: 56 | BE317: 57 | BF317: 58 | BG317: 59 | BH317: 60 | BI317: 61 | BJ317: 62 | BK317: 63 | BL317: 64 | BM317: 65 | BN317: 66 | BO317: 67 | BP317: 68 | BQ317: 69 | BR317: 70 | BS317: 71 | BT317: 72 | BU317: 73 | BV317: 74 | BW317: 75 | BX317: 76 | BY317: 77 | BZ317: 78 | CA317: 79
C318: =kugel_radius_aussen*faktor_max_l -> 10 | G318: =kugel_sa_x*faktor_max_l -> 20 | H318: =kugel_sa_y*faktor_max_l -> 32 | I318: =kugel_sa_z*faktor_max_l -> 40 | K318: =IF(OR(kugel_radius_aussen="",kugel_dichte="",kugel_sa_x="",kugel_sa_y="",kugel_sa_z="",kugel_farbe=""),"fehlende Werte","alles OK") -> alles OK | W318: =VLOOKUP(K317,Listen!$U$2:$X$11,2,FALSE) ->  | X318: =VLOOKUP(K317,Listen!$U$2:$X$11,3,FALSE) ->  | Y318: =VLOOKUP(K317,Listen!$U$2:$X$11,4,FALSE) ->  | AD318: Achsen-ausrichtung | AE318: Faktor | AF318: Farbe | AG318: Form | AH318: Start X | AI318: Start Y | AJ318: Ende X / L | AK318: Ende Y / H | AM318: Form | AN318: Start X | AO318: Start Y | AP318: Ende X / L | AQ318: Ende Y / H | AS318: Form | AT318: Start X | AU318: Start Y | AV318: Ende X / L | AW318: Ende Y / H | AY318: Form | AZ318: Start X | BA318: Start Y | BB318: Ende X / L | BC318: Ende Y / H | BE318: Form | BF318: Start X | BG318: Start Y | BH318: Ende X / L | BI318: Ende Y / H | BK318: Form | BL318: Start X | BM318: Start Y | BN318: Ende X / L | BO318: Ende Y / H | BQ318: Form | BR318: Start X | BS318: Start Y | BT318: Ende X / L | BU318: Ende Y / H | BW318: Form | BX318: Start X | BY318: Start Y | BZ318: Ende X / L | CA318: Ende Y / H
AD319: keine Achse | AF319: =kugel_farbe -> green | AS319: Kreis | AT319: =ref_hor+kugel_abstand_x-kugel_radius -> 340 | AU319: =ref_ver+kugel_abstand_z-kugel_radius -> 45 | AV319: =2*kugel_radius -> 20 | AW319: =2*kugel_radius -> 20 | AY319: Kreis | AZ319: =ref_hor+kugel_abstand_y-kugel_radius -> 352 | BA319: =ref_ver+kugel_abstand_z-kugel_radius -> 45 | BB319: =2*kugel_radius -> 20 | BC319: =2*kugel_radius -> 20 | BE319: ohne | BF319: - | BG319: - | BH319: - | BI319: - | BK319: ohne | BL319: - | BM319: - | BN319: - | BO319: - | BQ319: Kreis | BR319: =ref_hor+kugel_abstand_x-kugel_radius -> 340 | BS319: =ref_ver_XY-kugel_abstand_y-kugel_radius -> 73 | BT319: =2*kugel_radius -> 20 | BU319: =2*kugel_radius -> 20 | BW319: ohne | BX319: - | BY319: - | BZ319: - | CA319: -
B365: Freier Aufbau
B366: Bezeichnung | C366: J0 Eigenträg-heitsmoment [kg*m²] | D366: Radius außen [mm] | E366: Masse [kg] | F366: Schwerpunkts-abstand x [mm] | G366: Schwerpunkts-abstand y [mm] | H366: Schwerpunkts-abstand z [mm] | I366: J Massenträg-heitsmoment [kg*m²] | J366: Farbe | K366: Hinzufügen | W366: R | X366: G | Y366: B | AG366: Ansichtsdarstellung Körper | AM366: Ansichtsdarstellung Achse | AS366: Form in XZ | AY366: Form in YZ | BE366: Achse in XZ | BK366: Achse in YZ | BQ366: Form in XY | BW366: Achse in XY
B367: Freier Aufbau | C367: 6.99215 | D367: 25 | E367: 2 | F367: 30 | G367: 55 | H367: 100 | I367: =freier_aufbau_J0+freier_aufbau_masse*((freier_aufbau_sa_x/1000)^2+(freier_aufbau_sa_y/1000)^2) -> 7 | J367: grün | AE367: 31 | AF367: 32 | AG367: 33 | AH367: 34 | AI367: 35 | AJ367: 36 | AK367: 37 | AL367: 38 | AM367: 39 | AN367: 40 | AO367: 41 | AP367: 42 | AQ367: 43 | AR367: 44 | AS367: 45 | AT367: 46 | AU367: 47 | AV367: 48 | AW367: 49 | AX367: 50 | AY367: 51 | AZ367: 52 | BA367: 53 | BB367: 54 | BC367: 55 | BD367: 56 | BE367: 57 | BF367: 58 | BG367: 59 | BH367: 60 | BI367: 61 | BJ367: 62 | BK367: 63 | BL367: 64 | BM367: 65 | BN367: 66 | BO367: 67 | BP367: 68 | BQ367: 69 | BR367: 70 | BS367: 71 | BT367: 72 | BU367: 73 | BV367: 74 | BW367: 75 | BX367: 76 | BY367: 77 | BZ367: 78 | CA367: 79
D368: =D367*faktor_max_l -> 10 | F368: =freier_aufbau_sa_x*faktor_max_l -> 12 | G368: =freier_aufbau_sa_y*faktor_max_l -> 22 | H368: =freier_aufbau_sa_z*faktor_max_l -> 40 | J368: =IF(OR(freier_aufbau_J0="",freier_aufbau_radius_aussen="",freier_aufbau_masse="",zg_4f_sa_x="",freier_aufbau_sa_x="",freier_aufbau_sa_y="",freier_aufbau_sa_z=""),"fehlende Werte","alles OK") -> alles OK | W368: =VLOOKUP(J367,Listen!$U$2:$X$11,2,FALSE) -> 51 | X368: =VLOOKUP(J367,Listen!$U$2:$X$11,3,FALSE) -> 204 | Y368: =VLOOKUP(J367,Listen!$U$2:$X$11,4,FALSE) -> 51 | AD368: Achsen-ausrichtung | AE368: Faktor | AF368: Farbe | AG368: Form | AH368: Start X | AI368: Start Y | AJ368: Ende X / L | AK368: Ende Y / H | AM368: Form | AN368: Start X | AO368: Start Y | AP368: Ende X / L | AQ368: Ende Y / H | AS368: Form | AT368: Start X | AU368: Start Y | AV368: Ende X / L | AW368: Ende Y / H | AY368: Form | AZ368: Start X | BA368: Start Y | BB368: Ende X / L | BC368: Ende Y / H | BE368: Form | BF368: Start X | BG368: Start Y | BH368: Ende X / L | BI368: Ende Y / H | BK368: Form | BL368: Start X | BM368: Start Y | BN368: Ende X / L | BO368: Ende Y / H | BQ368: Form | BR368: Start X | BS368: Start Y | BT368: Ende X / L | BU368: Ende Y / H | BW368: Form | BX368: Start X | BY368: Start Y | BZ368: Ende X / L | CA368: Ende Y / H
AD369: keine Achse | AF369: =freier_aufbau_farbe -> grün | AS369: Kreis | AT369: =ref_hor+freier_aufbau_abstand_x-freier_aufbau_radius -> 332 | AU369: =ref_ver+freier_aufbau_abstand_z-freier_aufbau_radius -> 45 | AV369: =2*freier_aufbau_radius -> 20 | AW369: =2*freier_aufbau_radius -> 20 | AY369: Kreis | AZ369: =ref_hor+freier_aufbau_abstand_y-freier_aufbau_radius -> 342 | BA369: =ref_ver+freier_aufbau_abstand_z-freier_aufbau_radius -> 45 | BB369: =2*freier_aufbau_radius -> 20 | BC369: =2*freier_aufbau_radius -> 20 | BE369: ohne | BF369: - | BG369: - | BH369: - | BI369: - | BK369: ohne | BL369: - | BM369: - | BN369: - | BO369: - | BQ369: Kreis | BR369: =ref_hor+freier_aufbau_abstand_x-freier_aufbau_radius -> 332 | BS369: =ref_ver_XY-freier_aufbau_abstand_y-freier_aufbau_radius -> 83 | BT369: =2*freier_aufbau_radius -> 20 | BU369: =2*freier_aufbau_radius -> 20 | BW369: ohne | BX369: - | BY369: - | BZ369: - | CA369: -
N463: Jx | O463: Jy | P463: Jz | AS463: Zeilen +6
N464: =VLOOKUP(pg_2f_greifertyp,Tabelle7[[Typ]:[Jzs]],14,FALSE) -> 1.3e-05 | O464: =VLOOKUP(pg_2f_greifertyp,Tabelle7[[Typ]:[Jzs]],15,FALSE) -> 2.5e-05 | P464: =VLOOKUP(pg_2f_greifertyp,Tabelle7[[Typ]:[Jzs]],16,FALSE) -> 2.4e-05
B465: 2-Finger Parallelgreifer
B466: Bezeichnung | C466: Greifertyp | D466: Bestellnr. | E466: Länge [mm] | F466: Breite [mm] | G466: Höhe [mm] | H466: Masse [kg] | I466: Abstand Greiferursprung in X-Richtung [mm] | J466: Abstand Greiferursprung in Y-Richtung [mm] | K466: Abstand Greiferursprung in Z-Richtung [mm] | L466: Massenträg-heitsmoment [kg*m²] | M466: Farbe | N466: Abstand Schwerpkt von Greiferursprung xs | O466: Abstand Schwerpkt von Greiferursprung ys | P466: Abstand Schwerpkt von Greiferursprung zs | Q466: SP X | R466: SP Y | S466: SP Z | W466: R | X466: G | Y466: B | AG466: Ansichtsdarstellung Körper | AM466: Ansichtsdarstellung Achse | AS466: Form in XZ | AY466: Form in YZ | BE466: Achse in XZ | BK466: Achse in YZ | BQ466: Form in XY | BW466: Achse in XY
B467: Greifer | C467: DKG 44 | D467: =VLOOKUP(pg_2f_greifertyp,Tabelle7[[Typ]:[Jzs]],2,FALSE) -> 340030 | E467: =VLOOKUP(pg_2f_greifertyp,Tabelle7[[Typ]:[Jzs]],3,FALSE) -> 44 | F467: =VLOOKUP(pg_2f_greifertyp,Tabelle7[[Typ]:[Jzs]],4,FALSE) -> 20 | G467: =VLOOKUP(pg_2f_greifertyp,Tabelle7[[Typ]:[Jzs]],5,FALSE) -> 30 | H467: =VLOOKUP(pg_2f_greifertyp,Tabelle7[[Typ]:[Jzs]],10,FALSE) -> 0.11 | I467: 0 | J467: 0 | K467: 0 | L467: =VLOOKUP(pg_2f_code,P469:AB480,13,FALSE) -> 2.4e-05 | M467: rot | N467: =VLOOKUP(pg_2f_greifertyp,Tabelle7[[Typ]:[Jzs]],11,FALSE) -> 0 | O467: =VLOOKUP(pg_2f_greifertyp,Tabelle7[[Typ]:[Jzs]],12,FALSE) -> 0 | P467: =VLOOKUP(pg_2f_greifertyp,Tabelle7[[Typ]:[Jzs]],13,FALSE) -> 15.5 | Q467: =VLOOKUP(pg_2f_code,P469:S480,2,FALSE) -> 0 | R467: =VLOOKUP(pg_2f_code,P469:S480,3,FALSE) -> 0 | S467: =VLOOKUP(pg_2f_code,P469:S480,4,FALSE) -> 15.5 | AE467: 31 | AF467: 32 | AG467: 33 | AH467: 34 | AI467: 35 | AJ467: 36 | AK467: 37 | AL467: 38 | AM467: 39 | AN467: 40 | AO467: 41 | AP467: 42 | AQ467: 43 | AR467: 44 | AS467: 45 | AT467: 46 | AU467: 47 | AV467: 48 | AW467: 49 | AX467: 50 | AY467: 51 | AZ467: 52 | BA467: 53 | BB467: 54 | BC467: 55 | BD467: 56 | BE467: 57 | BF467: 58 | BG467: 59 | BH467: 60 | BI467: 61 | BJ467: 62 | BK467: 63 | BL467: 64 | BM467: 65 | BN467: 66 | BO467: 67 | BP467: 68 | BQ467: 69 | BR467: 70 | BS467: 71 | BT467: 72 | BU467: 73 | BV467: 74 | BW467: 75 | BX467: 76 | BY467: 77 | BZ467: 78 | CA467: 79
E468: =pg_2f_laenge_x*faktor_max_l -> 17.6 | F468: =pg_2f_breite_y*faktor_max_l -> 8 | G468: =pg_2f_hoehe_z*faktor_max_l -> 12 | I468: =pg_2f_sa_x*faktor_max_l -> 0 | J468: =pg_2f_sa_y*faktor_max_l -> 0 | K468: =pg_2f_sa_z*faktor_max_l -> 0 | M468: =IF(OR(pg_2f_achsenanordnung="",pg_2f_grundbackenbewegung="",pg_2f_sa_x="",pg_2f_sa_y="",pg_2f_sa_z="",pg_2f_farbe=""),"fehlende Werte","alles OK") -> alles OK | W468: =VLOOKUP(M467,Listen!$U$2:$X$11,2,FALSE) -> 230 | X468: =VLOOKUP(M467,Listen!$U$2:$X$11,3,FALSE) -> 0 | Y468: =VLOOKUP(M467,Listen!$U$2:$X$11,4,FALSE) -> 0 | AB468: J | AC468: Zeilennr. | AD468: Achsen-ausrichtung | AE468: Faktor | AF468: Farbe | AG468: Form | AH468: Start X | AI468: Start Y | AJ468: Ende X / L | AK468: Ende Y / H | AM468: Form | AN468: Start X | AO468: Start Y | AP468: Ende X / L | AQ468: Ende Y / H | AS468: Form | AT468: Start X | AU468: Start Y | AV468: Ende X / L | AW468: Ende Y / H | AY468: Form | AZ468: Start X | BA468: Start Y | BB468: Ende X / L | BC468: Ende Y / H | BE468: Form | BF468: Start X | BG468: Start Y | BH468: Ende X / L | BI468: Ende Y / H | BK468: Form | BL468: Start X | BM468: Start Y | BN468: Ende X / L | BO468: Ende Y / H | BQ468: Form | BR468: Start X | BS468: Start Y | BT468: Ende X / L | BU468: Ende Y / H | BW468: Form | BX468: Start X | BY468: Start Y | BZ468: Ende X / L | CA468: Ende Y / H
B469: Z-Achse Greifer parallel zu | E469: Z-Achse | G469: Bewegung Grundbacken parallel zu | K469: X-Achse | P469: X+Y | Q469: =pg_2f_sa_x+pg_2f_zs -> 15.5 | R469: =pg_2f_sa_y -> 0 | S469: =pg_2f_sa_z -> 0 | AB469: =pg_2f_Jy+pg_2f_masse*(((pg_2f_sa_x+pg_2f_zs)/1000)^2+(pg_2f_sa_y/1000)^2) -> 5.14275e-05 | AC469: =ROW(AD469) -> 469 | AD469: =P469 -> X+Y | AF469: =pg_2f_farbe -> rot | AR469: Referenzmaße für Greifer | AS469: Rechteck | AT469: =ref_hor+pg_2f_abstand_x -> 330 | AU469: =ref_ver+pg_2f_abstand_z-1/2*pg_2f_b -> 11 | AV469: =pg_2f_h -> 12 | AW469: =pg_2f_b -> 8 | AY469: Rechteck | AZ469: =ref_hor+pg_2f_abstand_y-1/2*pg_2f_l -> 321.2 | BA469: =ref_ver+pg_2f_abstand_z-1/2*pg_2f_b -> 11 | BB469: =pg_2f_l -> 17.6 | BC469: =pg_2f_b -> 8 | BE469: ohne | BF469: - | BG469: - | BH469: - | BI469: - | BK469: ohne | BL469: - | BM469: - | BN469: - | BO469: - | BQ469: Rechteck | BR469: =ref_hor+pg_2f_abstand_x -> 330 | BS469: =ref_ver_XY-pg_2f_abstand_y-1/2*pg_2f_l -> 106.2 | BT469: =pg_2f_h -> 12 | BU469: =pg_2f_l -> 17.6 | BW469: ohne | BX469: - | BY469: - | BZ469: - | CA469: -
B470: Orientierung der Grundbacken | E470: Richtung + | G470: Code | K470: =Codierung(pg_2f_achsenanordnung,pg_2f_grundbackenorientierung,pg_2f_grundbackenbewegung) -> Z+X | P470: X-Y | Q470: =pg_2f_sa_x-pg_2f_zs -> -15.5 | R470: =pg_2f_sa_y -> 0 | S470: 0 | AB470: =pg_2f_Jy+pg_2f_masse*(((pg_2f_sa_x-pg_2f_zs)/1000)^2+(pg_2f_sa_y/1000)^2) -> 5.14275e-05 | AC470: =ROW(AD470) -> 470 | AD470: X-Y | AF470: rot | AS470: Rechteck | AT470: =ref_hor+pg_2f_abstand_x-pg_2f_h -> 318 | AU470: =ref_ver+pg_2f_abstand_z-1/2*pg_2f_b -> 11 | AV470: =pg_2f_h -> 12 | AW470: =pg_2f_b -> 8 | AY470: Rechteck | AZ470: =ref_hor+pg_2f_abstand_y-1/2*pg_2f_l -> 321.2 | BA470: =ref_ver+pg_2f_abstand_z-1/2*pg_2f_b -> 11 | BB470: =pg_2f_l -> 17.6 | BC470: =pg_2f_b -> 8 | BE470: ohne | BF470: - | BG470: - | BH470: - | BI470: - | BK470: ohne | BL470: - | BM470: - | BN470: - | BO470: - | BQ470: Rechteck | BR470: =ref_hor+pg_2f_abstand_x-pg_2f_h -> 318 | BS470: =ref_ver_XY-pg_2f_abstand_y-1/2*pg_2f_l -> 106.2 | BT470: =pg_2f_h -> 12 | BU470: =pg_2f_l -> 17.6 | BW470: ohne | BX470: - | BY470: - | BZ470: - | CA470: -
B471: Finger (allg. für alle Greifer) | P471: X+Z | Q471: =pg_2f_sa_x+pg_2f_zs -> 15.5 | R471: =pg_2f_sa_y -> 0 | S471: 0 | AB471: =pg_2f_Jx+pg_2f_masse*(((pg_2f_sa_x+pg_2f_zs)/1000)^2+(pg_2f_sa_y/1000)^2) -> 3.94275e-05 | AC471: 471 | AD471: X+Z | AF471: rot | AS471: Rechteck | AT471: =ref_hor+pg_2f_abstand_x -> 330 | AU471: =ref_ver+pg_2f_abstand_z-1/2*pg_2f_l -> 6.2 | AV471: =pg_2f_h -> 12 | AW471: =pg_2f_l -> 17.6 | AY471: Rechteck | AZ471: =ref_hor+pg_2f_abstand_y-1/2*pg_2f_b -> 326 | BA471: =ref_ver+pg_2f_abstand_z-1/2*pg_2f_l -> 6.2 | BB471: =pg_2f_b -> 8 | BC471: =pg_2f_l -> 17.6 | BE471: ohne | BF471: - | BG471: - | BH471: - | BI471: - | BK471: ohne | BL471: - | BM471: - | BN471: - | BO471: - | BQ471: Rechteck | BR471: =ref_hor+pg_2f_abstand_x -> 330 | BS471: =ref_ver_XY-pg_2f_abstand_y-1/2*pg_2f_b -> 111 | BT471: =pg_2f_h -> 12 | BU471: =pg_2f_b -> 8 | BW471: ohne | BX471: - | BY471: - | BZ471: - | CA471: -
B472: Bezeichnung | C472: Länge in X-Richtung [mm] | D472: Breite in Y-Richtung [mm] | E472: Höhe in Z-Richtung [mm] | F472: Dichte [kg/dm³] | G472: Eigenträg-heitsmoment [kg*m²] | H472: Masse [kg] | I472: Schwerpunkts-abstand x [mm] | J472: Schwerpunkts-abstand y [mm] | K472: Schwerpunkts-abstand z [mm] | L472: Massenträg-heitsmoment [kg*m²] | M472: Farbe | P472: X-Z | Q472: =pg_2f_sa_x-pg_2f_zs -> -15.5 | R472: =pg_2f_sa_y -> 0 | S472: 0 | AB472: =pg_2f_Jx+pg_2f_masse*(((pg_2f_sa_x-pg_2f_zs)/1000)^2+(pg_2f_sa_y/1000)^2) -> 3.94275e-05 | AC472: 472 | AD472: X-Z | AF472: rot | AS472: Rechteck | AT472: =ref_hor+pg_2f_abstand_x-pg_2f_h -> 318 | AU472: =ref_ver+pg_2f_abstand_z-1/2*pg_2f_l -> 6.2 | AV472: =pg_2f_h -> 12 | AW472: =pg_2f_l -> 17.6 | AY472: Rechteck | AZ472: =ref_hor+pg_2f_abstand_y-1/2*pg_2f_b -> 326 | BA472: =ref_ver+pg_2f_abstand_z-1/2*pg_2f_l -> 6.2 | BB472: =pg_2f_b -> 8 | BC472: =pg_2f_l -> 17.6 | BE472: ohne | BF472: - | BG472: - | BH472: - | BI472: - | BK472: ohne | BL472: - | BM472: - | BN472: - | BO472: - | BQ472: Rechteck | BR472: =ref_hor+pg_2f_abstand_x-pg_2f_h -> 318 | BS472: =ref_ver_XY-pg_2f_abstand_y-1/2*pg_2f_b -> 111 | BT472: =pg_2f_h -> 12 | BU472: =pg_2f_b -> 8 | BW472: ohne | BX472: - | BY472: - | BZ472: - | CA472: -
B473: Fin PG_2F | C473: 50 | D473: 60 | E473: 70 | F473: 7.85 | G473: =(((pg_2f_finger1_laenge_x^2+pg_2f_finger1_breite_y^2)/12)*pg_2f_finger1_masse)/1000000 -> 0.0008379875 | H473: =pg_2f_finger1_laenge_x*pg_2f_finger1_breite_y*pg_2f_finger1_hoehe_z*pg_2f_finger1_dichte/1000000 -> 1.6485 | I473: 100 | J473: 150 | K473: 200 | L473: =(((pg_2f_finger1_laenge_x^2+pg_2f_finger1_breite_y^2)/12+(pg_2f_finger1_sa_x^2+pg_2f_finger1_sa_y^2))*pg_2f_finger1_masse)/1000000 -> 0.0544142375 | M473: orange | P473: Y+X | Q473: =pg_2f_sa_x -> 0 | R473: =pg_2f_sa_y+pg_2f_zs -> 15.5 | S473: 0 | AB473: =pg_2f_Jy+pg_2f_masse*((pg_2f_sa_x/1000)^2+((pg_2f_sa_y+pg_2f_zs)/1000)^2) -> 5.14275e-05 | AC473: 473 | AD473: Y+X | AF473: rot | AS473: Rechteck | AT473: =ref_hor+pg_2f_abstand_x-1/2*pg_2f_l -> 321.2 | AU473: =ref_ver+pg_2f_abstand_z-1/2*pg_2f_b -> 11 | AV473: =pg_2f_l -> 17.6 | AW473: =pg_2f_b -> 8 | AY473: Rechteck | AZ473: =ref_hor+pg_2f_abstand_y -> 330 | BA473: =ref_ver+pg_2f_abstand_z-1/2*pg_2f_b -> 11 | BB473: =pg_2f_h -> 12 | BC473: =pg_2f_b -> 8 | BE473: ohne | BF473: - | BG473: - | BH473: - | BI473: - | BK473: ohne | BL473: - | BM473: - | BN473: - | BO473: - | BQ473: Rechteck | BR473: =ref_hor+pg_2f_abstand_x-1/2*pg_2f_l -> 321.2 | BS473: =ref_ver_XY-pg_2f_abstand_y-pg_2f_h -> 103 | BT473: =pg_2f_l -> 17.6 | BU473: =pg_2f_h -> 12 | BW473: ohne | BX473: - | BY473: - | BZ473: - | CA473: -
C474: =pg_2f_finger1_laenge_x*faktor_max_l -> 20 | D474: =pg_2f_finger1_breite_y*faktor_max_l -> 24 | E474: =pg_2f_finger1_hoehe_z*faktor_max_l -> 28 | I474: =pg_2f_finger1_sa_x*faktor_max_l -> 40 | J474: =pg_2f_finger1_sa_y*faktor_max_l -> 60 | K474: =pg_2f_finger1_sa_z*faktor_max_l -> 80 | M474: =IF(OR(pg_2f_finger1_laenge_x="",pg_2f_finger1_breite_y="",pg_2f_finger1_hoehe_z="",pg_2f_finger1_dichte="",pg_2f_finger1_sa_x="",pg_2f_finger1_sa_y="",pg_2f_finger1_sa_z="",pg_2f_finger1_farbe=""),"fehlende Werte","alles OK") -> alles OK | P474: Y-X | Q474: 0 | R474: =pg_2f_sa_y-pg_2f_zs -> -15.5 | S474: 0 | W474: =VLOOKUP(M473,Listen!$U$2:$X$11,2,FALSE) -> 255 | X474: =VLOOKUP(M473,Listen!$U$2:$X$11,3,FALSE) -> 153 | Y474: =VLOOKUP(M473,Listen!$U$2:$X$11,4,FALSE) -> 0 | AB474: =pg_2f_Jy+pg_2f_masse*((pg_2f_sa_x/1000)^2+((pg_2f_sa_y-pg_2f_zs)/1000)^2) -> 5.14275e-05 | AC474: 474 | AD474: Y-X | AF474: rot | AS474: Rechteck | AT474: =ref_hor+pg_2f_abstand_x-1/2*pg_2f_l -> 321.2 | AU474: =ref_ver+pg_2f_abstand_z-1/2*pg_2f_b -> 11 | AV474: =pg_2f_l -> 17.6 | AW474: =pg_2f_b -> 8 | AY474: Rechteck | AZ474: =ref_hor+pg_2f_abstand_y-pg_2f_h -> 318 | BA474: =ref_ver+pg_2f_abstand_z-1/2*pg_2f_b -> 11 | BB474: =pg_2f_h -> 12 | BC474: =pg_2f_b -> 8 | BE474: ohne | BF474: - | BG474: - | BH474: - | BI474: - | BK474: ohne | BL474: - | BM474: - | BN474: - | BO474: - | BQ474: Rechteck | BR474: =ref_hor+pg_2f_abstand_x-1/2*pg_2f_l -> 321.2 | BS474: =ref_ver_XY-pg_2f_abstand_y -> 115 | BT474: =pg_2f_l -> 17.6 | BU474: =pg_2f_h -> 12 | BW474: ohne | BX474: - | BY474: - | BZ474: - | CA474: -
P475: Y+Z | Q475: 0 | R475: =pg_2f_sa_y+pg_2f_zs -> 15.5 | S475: 0 | AB475: =pg_2f_Jx+pg_2f_masse*((pg_2f_sa_x/1000)^2+((pg_2f_sa_y+pg_2f_zs)/1000)^2) -> 3.94275e-05 | AC475: 475 | AD475: Y+Z | AF475: rot | AS475: Rechteck | AT475: =ref_hor+pg_2f_abstand_x-1/2*pg_2f_b -> 326 | AU475: =ref_ver+pg_2f_abstand_z-1/2*pg_2f_l -> 6.2 | AV475: =pg_2f_b -> 8 | AW475: =pg_2f_l -> 17.6 | AY475: Rechteck | AZ475: =ref_hor+pg_2f_abstand_y -> 330 | BA475: =ref_ver+pg_2f_abstand_z-1/2*pg_2f_l -> 6.2 | BB475: =pg_2f_h -> 12 | BC475: =pg_2f_l -> 17.6 | BE475: ohne | BF475: - | BG475: - | BH475: - | BI475: - | BK475: ohne | BL475: - | BM475: - | BN475: - | BO475: - | BQ475: Rechteck | BR475: =ref_hor+pg_2f_abstand_x-1/2*pg_2f_b -> 326 | BS475: =ref_ver_XY-pg_2f_abstand_y-pg_2f_h -> 103 | BT475: =pg_2f_b -> 8 | BU475: =pg_2f_h -> 12 | BW475: ohne | BX475: - | BY475: - | BZ475: - | CA475: -
P476: Y-Z | Q476: 0 | R476: =pg_2f_sa_y-pg_2f_zs -> -15.5 | S476: 0 | AB476: =pg_2f_Jx+pg_2f_masse*((pg_2f_sa_x/1000)^2+((pg_2f_sa_y-pg_2f_zs)/1000)^2) -> 3.94275e-05 | AC476: 476 | AD476: Y-Z | AF476: rot | AS476: Rechteck | AT476: =ref_hor+pg_2f_abstand_x-1/2*pg_2f_b -> 326 | AU476: =ref_ver+pg_2f_abstand_z-1/2*pg_2f_l -> 6.2 | AV476: =pg_2f_b -> 8 | AW476: =pg_2f_l -> 17.6 | AY476: Rechteck | AZ476: =ref_hor+pg_2f_abstand_y-pg_2f_h -> 318 | BA476: =ref_ver+pg_2f_abstand_z-1/2*pg_2f_l -> 6.2 | BB476: =pg_2f_h -> 12 | BC476: =pg_2f_l -> 17.6 | BE476: ohne | BF476: - | BG476: - | BH476: - | BI476: - | BK476: ohne | BL476: - | BM476: - | BN476: - | BO476: - | BQ476: Rechteck | BR476: =ref_hor+pg_2f_abstand_x-1/2*pg_2f_b -> 326 | BS476: =ref_ver_XY-pg_2f_abstand_y -> 115 | BT476: =pg_2f_b -> 8 | BU476: =pg_2f_h -> 12 | BW476: ohne | BX476: - | BY476: - | BZ476: - | CA476: -
P477: Z+X | Q477: =pg_2f_sa_x -> 0 | R477: =pg_2f_sa_y -> 0 | S477: =pg_2f_sa_z+pg_2f_zs -> 15.5 | AB477: =pg_2f_Jz+pg_2f_masse*((pg_2f_sa_x/1000)^2+(pg_2f_sa_y/1000)^2) -> 2.4e-05 | AC477: 477 | AD477: Z+X | AF477: rot | AS477: Rechteck | AT477: =ref_hor+pg_2f_abstand_x-1/2*pg_2f_l -> 321.2 | AU477: =ref_ver+pg_2f_abstand_z -> 15 | AV477: =pg_2f_l -> 17.6 | AW477: =pg_2f_h -> 12 | AY477: Rechteck | AZ477: =ref_hor+pg_2f_abstand_y-1/2*pg_2f_b -> 326 | BA477: =ref_ver+pg_2f_abstand_z -> 15 | BB477: =pg_2f_b -> 8 | BC477: =pg_2f_h -> 12 | BE477: ohne | BF477: - | BG477: - | BH477: - | BI477: - | BK477: ohne | BL477: - | BM477: - | BN477: - | BO477: - | BQ477: Rechteck | BR477: =ref_hor+pg_2f_abstand_x-1/2*pg_2f_l -> 321.2 | BS477: =ref_ver_XY-pg_2f_abstand_y-1/2*pg_2f_b -> 111 | BT477: =pg_2f_l -> 17.6 | BU477: =pg_2f_b -> 8 | BW477: ohne | BX477: - | BY477: - | BZ477: - | CA477: -
P478: Z-X | Q478: 0 | R478: =pg_2f_sa_y -> 0 | S478: =pg_2f_sa_z-pg_2f_zs -> -15.5 | AB478: =pg_2f_Jz+pg_2f_masse*((pg_2f_sa_x/1000)^2+(pg_2f_sa_y/1000)^2) -> 2.4e-05 | AC478: 478 | AD478: Z-X | AF478: rot | AS478: Rechteck | AT478: =ref_hor+pg_2f_abstand_x-1/2*pg_2f_l -> 321.2 | AU478: =ref_ver+pg_2f_abstand_z-pg_2f_h -> 3 | AV478: =pg_2f_l -> 17.6 | AW478: =pg_2f_h -> 12 | AY478: Rechteck | AZ478: =ref_hor+pg_2f_abstand_y-1/2*pg_2f_b -> 326 | BA478: =ref_ver+pg_2f_abstand_z-pg_2f_h -> 3 | BB478: =pg_2f_b -> 8 | BC478: =pg_2f_h -> 12 | BE478: ohne | BF478: - | BG478: - | BH478: - | BI478: - | BK478: ohne | BL478: - | BM478: - | BN478: - | BO478: - | BQ478: Rechteck | BR478: =ref_hor+pg_2f_abstand_x-1/2*pg_2f_l -> 321.2 | BS478: =ref_ver_XY-pg_2f_abstand_y-1/2*pg_2f_b -> 111 | BT478: =pg_2f_l -> 17.6 | BU478: =pg_2f_b -> 8 | BW478: ohne | BX478: - | BY478: - | BZ478: - | CA478: -
P479: Z+Y | Q479: 0 | R479: =pg_2f_sa_y -> 0 | S479: =pg_2f_sa_z+pg_2f_zs -> 15.5 | AB479: =pg_2f_Jz+pg_2f_masse*((pg_2f_sa_x/1000)^2+(pg_2f_sa_y/1000)^2) -> 2.4e-05 | AC479: 479 | AD479: Z+Y | AF479: rot | AS479: Rechteck | AT479: =ref_hor+pg_2f_abstand_x-1/2*pg_2f_b -> 326 | AU479: =ref_ver+pg_2f_abstand_z -> 15 | AV479: =pg_2f_b -> 8 | AW479: =pg_2f_h -> 12 | AY479: Rechteck | AZ479: =ref_hor+pg_2f_abstand_y-1/2*pg_2f_l -> 321.2 | BA479: =ref_ver+pg_2f_abstand_z -> 15 | BB479: =pg_2f_l -> 17.6 | BC479: =pg_2f_h -> 12 | BE479: ohne | BF479: - | BG479: - | BH479: - | BI479: - | BK479: ohne | BL479: - | BM479: - | BN479: - | BO479: - | BQ479: Rechteck | BR479: =ref_hor+pg_2f_abstand_x-1/2*pg_2f_b -> 326 | BS479: =ref_ver_XY-pg_2f_abstand_y-1/2*pg_2f_l -> 106.2 | BT479: =pg_2f_b -> 8 | BU479: =pg_2f_l -> 17.6 | BW479: ohne | BX479: - | BY479: - | BZ479: - | CA479: -
P480: Z-Y | Q480: 0 | R480: =pg_2f_sa_y -> 0 | S480: =pg_2f_sa_z-pg_2f_zs -> -15.5 | AB480: =pg_2f_Jz+pg_2f_masse*((pg_2f_sa_x/1000)^2+(pg_2f_sa_y/1000)^2) -> 2.4e-05 | AC480: 480 | AD480: Z-Y | AF480: rot | AS480: Rechteck | AT480: =ref_hor+pg_2f_abstand_x-1/2*pg_2f_b -> 326 | AU480: =ref_ver+pg_2f_abstand_z-pg_2f_h -> 3 | AV480: =pg_2f_b -> 8 | AW480: =pg_2f_h -> 12 | AY480: Rechteck | AZ480: =ref_hor+pg_2f_abstand_y-1/2*pg_2f_l -> 321.2 | BA480: =ref_ver+pg_2f_abstand_z-pg_2f_h -> 3 | BB480: =pg_2f_l -> 17.6 | BC480: =pg_2f_h -> 12 | BE480: ohne | BF480: - | BG480: - | BH480: - | BI480: - | BK480: ohne | BL480: - | BM480: - | BN480: - | BO480: - | BQ480: Rechteck | BR480: =ref_hor+pg_2f_abstand_x-1/2*pg_2f_b -> 326 | BS480: =ref_ver_XY-pg_2f_abstand_y-1/2*pg_2f_l -> 106.2 | BT480: =pg_2f_b -> 8 | BU480: =pg_2f_l -> 17.6 | BW480: ohne | BX480: - | BY480: - | BZ480: - | CA480: -
AR482: Finger 1 | AS482: Rechteck | AT482: =ref_hor+pg_2f_finger1_abstand_x-1/2*pg_2f_finger1_laenge -> 360 | AU482: =ref_ver+pg_2f_finger1_abstand_z-1/2*pg_2f_finger1_hoehe -> 81 | AV482: =pg_2f_finger1_laenge -> 20 | AW482: =pg_2f_finger1_hoehe -> 28 | AY482: Rechteck | AZ482: =ref_hor+pg_2f_finger1_abstand_y-1/2*pg_2f_finger1_breite -> 378 | BA482: =ref_ver+pg_2f_finger1_abstand_z-1/2*pg_2f_finger1_hoehe -> 81 | BB482: =pg_2f_finger1_breite -> 24 | BC482: =pg_2f_finger1_hoehe -> 28 | BE482: ohne | BF482: - | BG482: - | BH482: - | BI482: - | BK482: ohne | BL482: - | BM482: - | BN482: - | BO482: - | BQ482: Rechteck | BR482: =ref_hor+pg_2f_finger1_abstand_x-1/2*pg_2f_finger1_laenge -> 360 | BS482: =ref_ver_XY-pg_2f_finger1_abstand_y-1/2*pg_2f_finger1_breite -> 43 | BT482: =pg_2f_finger1_laenge -> 20 | BU482: =pg_2f_finger1_breite -> 24 | BW482: ohne | BX482: - | BY482: - | BZ482: - | CA482: -
N512: Jx | O512: Jy | P512: Jz
N513: =VLOOKUP(wg_2f_greifertyp,Tabelle12[[Typ]:[Jzs]],14,FALSE) -> 0.0007214264137 | O513: =VLOOKUP(wg_2f_greifertyp,Tabelle12[[Typ]:[Jzs]],15,FALSE) -> 0.000823 | P513: =VLOOKUP(wg_2f_greifertyp,Tabelle12[[Typ]:[Jzs]],16,FALSE) -> 0.0002639432517
B514: 2-Finger Winkelgreifer
B515: Bezeichnung | C515: Greifertyp | D515: Bestellnr. | E515: Länge [mm] | F515: Breite [mm] | G515: Höhe [mm] | H515: Masse [kg] | I515: Abstand Greiferursprung in X-Richtung [mm] | J515: Abstand Greiferursprung in Y-Richtung [mm] | K515: Abstand Greiferursprung in Z-Richtung [mm] | L515: J Massenträg-heitsmoment [kg*m²] | M515: Farbe | N515: Abstand Schwerpkt von Greiferursprung xs | O515: Abstand Schwerpkt von Greiferursprung ys | P515: Abstand Schwerpkt von Greiferursprung zs | Q515: SP X | R515: SP Y | S515: SP Z | W515: R | X515: G | Y515: B | AG515: Ansichtsdarstellung Körper | AM515: Ansichtsdarstellung Achse | AS515: Form in XZ | AY515: Form in YZ | BE515: Achse in XZ | BK515: Achse in YZ | BQ515: Form in XY | BW515: Achse in XY
B516: Gripper | C516: GAP-20 | D516: =VLOOKUP(wg_2f_greifertyp,Tabelle12[[Typ]:[Jzs]],2,FALSE) -> 0 | E516: =VLOOKUP(wg_2f_greifertyp,Tabelle12[[Typ]:[Jzs]],3,FALSE) -> 50 | F516: =VLOOKUP(wg_2f_greifertyp,Tabelle12[[Typ]:[Jzs]],4,FALSE) -> 30 | G516: =VLOOKUP(wg_2f_greifertyp,Tabelle12[[Typ]:[Jzs]],5,FALSE) -> 66.7 | H516: =VLOOKUP(wg_2f_greifertyp,Tabelle12[[Typ]:[Jzs]],10,FALSE) -> 0.29 | I516: 100 | J516: 150 | K516: 200 | L516: =VLOOKUP(wg_2f_code,P518:AB529,13,FALSE) -> 0.009688943252 | M516: green | N516: =VLOOKUP(wg_2f_greifertyp,Tabelle12[[Typ]:[Jzs]],11,FALSE) -> 0 | O516: =VLOOKUP(wg_2f_greifertyp,Tabelle12[[Typ]:[Jzs]],12,FALSE) -> 0 | P516: =VLOOKUP(wg_2f_greifertyp,Tabelle12[[Typ]:[Jzs]],13,FALSE) -> 40 | Q516: =VLOOKUP(wg_2f_code,P518:S529,2,FALSE) -> 100 | R516: =VLOOKUP(wg_2f_code,P518:S529,3,FALSE) -> 150 | S516: =VLOOKUP(wg_2f_code,P518:S529,4,FALSE) -> 240 | AE516: 31 | AF516: 32 | AG516: 33 | AH516: 34 | AI516: 35 | AJ516: 36 | AK516: 37 | AL516: 38 | AM516: 39 | AN516: 40 | AO516: 41 | AP516: 42 | AQ516: 43 | AR516: 44 | AS516: 45 | AT516: 46 | AU516: 47 | AV516: 48 | AW516: 49 | AX516: 50 | AY516: 51 | AZ516: 52 | BA516: 53 | BB516: 54 | BC516: 55 | BD516: 56 | BE516: 57 | BF516: 58 | BG516: 59 | BH516: 60 | BI516: 61 | BJ516: 62 | BK516: 63 | BL516: 64 | BM516: 65 | BN516: 66 | BO516: 67 | BP516: 68 | BQ516: 69 | BR516: 70 | BS516: 71 | BT516: 72 | BU516: 73 | BV516: 74 | BW516: 75 | BX516: 76 | BY516: 77 | BZ516: 78 | CA516: 79
E517: =wg_2f_laenge_x*faktor_max_l -> 20 | F517: =wg_2f_breite_y*faktor_max_l -> 12 | G517: =wg_2f_hoehe_z*faktor_max_l -> 26.68 | I517: =wg_2f_sa_x*faktor_max_l -> 40 | J517: =wg_2f_sa_y*faktor_max_l -> 60 | K517: =wg_2f_sa_z*faktor_max_l -> 80 | M517: =IF(OR(wg_2f_achsenanordnung="",wg_2f_grundbackenbewegung="",wg_2f_sa_x="",wg_2f_sa_y="",wg_2f_sa_z="",wg_2f_farbe=""),"fehlende Werte","alles OK") -> alles OK | W517: =VLOOKUP(M516,Listen!$U$2:$X$11,2,FALSE) ->  | X517: =VLOOKUP(M516,Listen!$U$2:$X$11,3,FALSE) ->  | Y517: =VLOOKUP(M516,Listen!$U$2:$X$11,4,FALSE) ->  | AB517: J | AC517: Zeilennr. | AD517: Achsen-ausrichtung | AE517: Faktor | AF517: Farbe | AG517: Form | AH517: Start X | AI517: Start Y | AJ517: Ende X / L | AK517: Ende Y / H | AM517: Form | AN517: Start X | AO517: Start Y | AP517: Ende X / L | AQ517: Ende Y / H | AS517: Form | AT517: Start X | AU517: Start Y | AV517: Ende X / L | AW517: Ende Y / H | AY517: Form | AZ517: Start X | BA517: Start Y | BB517: Ende X / L | BC517: Ende Y / H | BE517: Form | BF517: Start X | BG517: Start Y | BH517: Ende X / L | BI517: Ende Y / H | BK517: Form | BL517: Start X | BM517: Start Y | BN517: Ende X / L | BO517: Ende Y / H | BQ517: Form | BR517: Start X | BS517: Start Y | BT517: Ende X / L | BU517: Ende Y / H | BW517: Form | BX517: Start X | BY517: Start Y | BZ517: Ende X / L | CA517: Ende Y / H
B518: Z-Achse Greifer parallel zu | E518: Z-Achse | G518: Bewegung Grundbacken parallel zu | K518: X-Achse | P518: X+Y | Q518: =wg_2f_sa_x+wg_2f_zs -> 140 | R518: =wg_2f_sa_y -> 150 | S518: =wg_2f_sa_z -> 200 | AB518: =wg_2f_Jy+wg_2f_masse*(((wg_2f_sa_x+wg_2f_zs)/1000)^2+(wg_2f_sa_y/1000)^2) -> 0.013032 | AC518: =ROW(AD518) -> 518 | AD518: =P518 -> X+Y | AF518: =wg_2f_farbe -> green | AR518: Referenzmaße für Greifer | AS518: Rechteck | AT518: =ref_hor+wg_2f_abstand_x -> 370 | AU518: =ref_ver+wg_2f_abstand_z-1/2*wg_2f_b -> 89 | AV518: =wg_2f_h -> 26.68 | AW518: =wg_2f_b -> 12 | AY518: Rechteck | AZ518: =ref_hor+wg_2f_abstand_y-1/2*wg_2f_l -> 380 | BA518: =ref_ver+wg_2f_abstand_z-1/2*wg_2f_b -> 89 | BB518: =wg_2f_l -> 20 | BC518: =wg_2f_b -> 12 | BE518: ohne | BF518: - | BG518: - | BH518: - | BI518: - | BK518: ohne | BL518: - | BM518: - | BN518: - | BO518: - | BQ518: Rechteck | BR518: =ref_hor+wg_2f_abstand_x -> 370 | BS518: =ref_ver_XY-wg_2f_abstand_y-1/2*wg_2f_l -> 45 | BT518: =wg_2f_h -> 26.68 | BU518: =wg_2f_l -> 20 | BW518: ohne | BX518: - | BY518: - | BZ518: - | CA518: -
B519: Orientierung der Grundbacken | E519: Richtung + | G519: Code | K519: =Codierung(wg_2f_achsenanordnung,wg_2f_grundbackenorientierung,wg_2f_grundbackenbewegung) -> Z+X | P519: X-Y | Q519: =wg_2f_sa_x-wg_2f_zs -> 60 | R519: =wg_2f_sa_y -> 150 | S519: 200 | AB519: =wg_2f_Jy+wg_2f_masse*(((wg_2f_sa_x-wg_2f_zs)/1000)^2+(wg_2f_sa_y/1000)^2) -> 0.008392 | AC519: =ROW(AD519) -> 519 | AD519: =P519 -> X-Y | AF519: green | AS519: Rechteck | AT519: =ref_hor+wg_2f_abstand_x-wg_2f_h -> 343.32 | AU519: =ref_ver+wg_2f_abstand_z-1/2*wg_2f_b -> 89 | AV519: =wg_2f_h -> 26.68 | AW519: =wg_2f_b -> 12 | AY519: Rechteck | AZ519: =ref_hor+wg_2f_abstand_y-1/2*wg_2f_l -> 380 | BA519: =ref_ver+wg_2f_abstand_z-1/2*wg_2f_b -> 89 | BB519: =wg_2f_l -> 20 | BC519: =wg_2f_b -> 12 | BE519: ohne | BF519: - | BG519: - | BH519: - | BI519: - | BK519: ohne | BL519: - | BM519: - | BN519: - | BO519: - | BQ519: Rechteck | BR519: =ref_hor+wg_2f_abstand_x-wg_2f_h -> 343.32 | BS519: =ref_ver_XY-wg_2f_abstand_y-1/2*wg_2f_l -> 45 | BT519: =wg_2f_h -> 26.68 | BU519: =wg_2f_l -> 20 | BW519: ohne | BX519: - | BY519: - | BZ519: - | CA519: -
P520: X+Z | Q520: =wg_2f_sa_x+wg_2f_zs -> 140 | R520: =wg_2f_sa_y -> 150 | S520: 200 | AB520: =wg_2f_Jx+wg_2f_masse*(((wg_2f_sa_x+wg_2f_zs)/1000)^2+(wg_2f_sa_y/1000)^2) -> 0.01293042641 | AC520: 520 | AD520: X+Z | AF520: green | AS520: Rechteck | AT520: =ref_hor+wg_2f_abstand_x -> 370 | AU520: =ref_ver+wg_2f_abstand_z-1/2*wg_2f_l -> 85 | AV520: =wg_2f_h -> 26.68 | AW520: =wg_2f_l -> 20 | AY520: Rechteck | AZ520: =ref_hor+wg_2f_abstand_y-1/2*wg_2f_b -> 384 | BA520: =ref_ver+wg_2f_abstand_z-1/2*wg_2f_l -> 85 | BB520: =wg_2f_b -> 12 | BC520: =wg_2f_l -> 20 | BE520: ohne | BF520: - | BG520: - | BH520: - | BI520: - | BK520: ohne | BL520: - | BM520: - | BN520: - | BO520: - | BQ520: Rechteck | BR520: =ref_hor+wg_2f_abstand_x -> 370 | BS520: =ref_ver_XY-wg_2f_abstand_y-1/2*wg_2f_b -> 49 | BT520: =wg_2f_h -> 26.68 | BU520: =wg_2f_b -> 12 | BW520: ohne | BX520: - | BY520: - | BZ520: - | CA520: -
P521: X-Z | Q521: =wg_2f_sa_x-wg_2f_zs -> 60 | R521: =wg_2f_sa_y -> 150 | S521: 200 | AB521: =wg_2f_Jx+wg_2f_masse*(((wg_2f_sa_x-wg_2f_zs)/1000)^2+(wg_2f_sa_y/1000)^2) -> 0.008290426414 | AC521: 521 | AD521: X-Z | AF521: green | AS521: Rechteck | AT521: =ref_hor+wg_2f_abstand_x-wg_2f_h -> 343.32 | AU521: =ref_ver+wg_2f_abstand_z-1/2*wg_2f_l -> 85 | AV521: =wg_2f_h -> 26.68 | AW521: =wg_2f_l -> 20 | AY521: Rechteck | AZ521: =ref_hor+wg_2f_abstand_y-1/2*wg_2f_b -> 384 | BA521: =ref_ver+wg_2f_abstand_z-1/2*wg_2f_l -> 85 | BB521: =wg_2f_b -> 12 | BC521: =wg_2f_l -> 20 | BE521: ohne | BF521: - | BG521: - | BH521: - | BI521: - | BK521: ohne | BL521: - | BM521: - | BN521: - | BO521: - | BQ521: Rechteck | BR521: =ref_hor+wg_2f_abstand_x-wg_2f_h -> 343.32 | BS521: =ref_ver_XY-wg_2f_abstand_y-1/2*wg_2f_b -> 49 | BT521: =wg_2f_h -> 26.68 | BU521: =wg_2f_b -> 12 | BW521: ohne | BX521: - | BY521: - | BZ521: - | CA521: -
P522: Y+X | Q522: =wg_2f_sa_x -> 100 | R522: =wg_2f_sa_y+wg_2f_zs -> 190 | S522: 200 | AB522: =wg_2f_Jy+wg_2f_masse*((wg_2f_sa_x/1000)^2+((wg_2f_sa_y+wg_2f_zs)/1000)^2) -> 0.014192 | AC522: 522 | AD522: Y+X | AF522: green | AS522: Rechteck | AT522: =ref_hor+wg_2f_abstand_x-1/2*wg_2f_l -> 360 | AU522: =ref_ver+wg_2f_abstand_z-1/2*wg_2f_b -> 89 | AV522: =wg_2f_l -> 20 | AW522: =wg_2f_b -> 12 | AY522: Rechteck | AZ522: =ref_hor+wg_2f_abstand_y -> 390 | BA522: =ref_ver+wg_2f_abstand_z-1/2*wg_2f_b -> 89 | BB522: =wg_2f_h -> 26.68 | BC522: =wg_2f_b -> 12 | BE522: ohne | BF522: - | BG522: - | BH522: - | BI522: - | BK522: ohne | BL522: - | BM522: - | BN522: - | BO522: - | BQ522: Rechteck | BR522: =ref_hor+wg_2f_abstand_x-1/2*wg_2f_l -> 360 | BS522: =ref_ver_XY-wg_2f_abstand_y-wg_2f_h -> 28.32 | BT522: =wg_2f_l -> 20 | BU522: =wg_2f_h -> 26.68 | BW522: ohne | BX522: - | BY522: - | BZ522: - | CA522: -
P523: Y-X | Q523: 100 | R523: =wg_2f_sa_y-wg_2f_zs -> 110 | S523: 200 | AB523: =wg_2f_Jy+wg_2f_masse*((wg_2f_sa_x/1000)^2+((wg_2f_sa_y-wg_2f_zs)/1000)^2) -> 0.007232 | AC523: 523 | AD523: Y-X | AF523: green | AS523: Rechteck | AT523: =ref_hor+wg_2f_abstand_x-1/2*wg_2f_l -> 360 | AU523: =ref_ver+wg_2f_abstand_z-1/2*wg_2f_b -> 89 | AV523: =wg_2f_l -> 20 | AW523: =wg_2f_b -> 12 | AY523: Rechteck | AZ523: =ref_hor+wg_2f_abstand_y-wg_2f_h -> 363.32 | BA523: =ref_ver+wg_2f_abstand_z-1/2*wg_2f_b -> 89 | BB523: =wg_2f_h -> 26.68 | BC523: =wg_2f_b -> 12 | BE523: ohne | BF523: - | BG523: - | BH523: - | BI523: - | BK523: ohne | BL523: - | BM523: - | BN523: - | BO523: - | BQ523: Rechteck | BR523: =ref_hor+wg_2f_abstand_x-1/2*wg_2f_l -> 360 | BS523: =ref_ver_XY-wg_2f_abstand_y -> 55 | BT523: =wg_2f_l -> 20 | BU523: =wg_2f_h -> 26.68 | BW523: ohne | BX523: - | BY523: - | BZ523: - | CA523: -
P524: Y+Z | Q524: 100 | R524: =wg_2f_sa_y+wg_2f_zs -> 190 | S524: 200 | AB524: =wg_2f_Jx+wg_2f_masse*((wg_2f_sa_x/1000)^2+((wg_2f_sa_y+wg_2f_zs)/1000)^2) -> 0.01409042641 | AC524: 524 | AD524: Y+Z | AF524: green | AS524: Rechteck | AT524: =ref_hor+wg_2f_abstand_x-1/2*wg_2f_b -> 364 | AU524: =ref_ver+wg_2f_abstand_z-1/2*wg_2f_l -> 85 | AV524: =wg_2f_b -> 12 | AW524: =wg_2f_l -> 20 | AY524: Rechteck | AZ524: =ref_hor+wg_2f_abstand_y -> 390 | BA524: =ref_ver+wg_2f_abstand_z-1/2*wg_2f_l -> 85 | BB524: =wg_2f_h -> 26.68 | BC524: =wg_2f_l -> 20 | BE524: ohne | BF524: - | BG524: - | BH524: - | BI524: - | BK524: ohne | BL524: - | BM524: - | BN524: - | BO524: - | BQ524: Rechteck | BR524: =ref_hor+wg_2f_abstand_x-1/2*wg_2f_b -> 364 | BS524: =ref_ver_XY-wg_2f_abstand_y-wg_2f_h -> 28.32 | BT524: =wg_2f_b -> 12 | BU524: =wg_2f_h -> 26.68 | BW524: ohne | BX524: - | BY524: - | BZ524: - | CA524: -
P525: Y-Z | Q525: 100 | R525: =wg_2f_sa_y-wg_2f_zs -> 110 | S525: 200 | AB525: =wg_2f_Jx+wg_2f_masse*((wg_2f_sa_x/1000)^2+((wg_2f_sa_y-wg_2f_zs)/1000)^2) -> 0.007130426414 | AC525: 525 | AD525: Y-Z | AF525: green | AS525: Rechteck | AT525: =ref_hor+wg_2f_abstand_x-1/2*wg_2f_b -> 364 | AU525: =ref_ver+wg_2f_abstand_z-1/2*wg_2f_l -> 85 | AV525: =wg_2f_b -> 12 | AW525: =wg_2f_l -> 20 | AY525: Rechteck | AZ525: =ref_hor+wg_2f_abstand_y-wg_2f_h -> 363.32 | BA525: =ref_ver+wg_2f_abstand_z-1/2*wg_2f_l -> 85 | BB525: =wg_2f_h -> 26.68 | BC525: =wg_2f_l -> 20 | BE525: ohne | BF525: - | BG525: - | BH525: - | BI525: - | BK525: ohne | BL525: - | BM525: - | BN525: - | BO525: - | BQ525: Rechteck | BR525: =ref_hor+wg_2f_abstand_x-1/2*wg_2f_b -> 364 | BS525: =ref_ver_XY-wg_2f_abstand_y -> 55 | BT525: =wg_2f_b -> 12 | BU525: =wg_2f_h -> 26.68 | BW525: ohne | BX525: - | BY525: - | BZ525: - | CA525: -
P526: Z+X | Q526: 100 | R526: =wg_2f_sa_y -> 150 | S526: =wg_2f_sa_z+wg_2f_zs -> 240 | AB526: =wg_2f_Jz+wg_2f_masse*((wg_2f_sa_x/1000)^2+(wg_2f_sa_y/1000)^2) -> 0.009688943252 | AC526: 526 | AD526: Z+X | AF526: green | AS526: Rechteck | AT526: =ref_hor+wg_2f_abstand_x-1/2*wg_2f_l -> 360 | AU526: =ref_ver+wg_2f_abstand_z -> 95 | AV526: =wg_2f_l -> 20 | AW526: =wg_2f_h -> 26.68 | AY526: Rechteck | AZ526: =ref_hor+wg_2f_abstand_y-1/2*wg_2f_b -> 384 | BA526: =ref_ver+wg_2f_abstand_z -> 95 | BB526: =wg_2f_b -> 12 | BC526: =wg_2f_h -> 26.68 | BE526: ohne | BF526: - | BG526: - | BH526: - | BI526: - | BK526: ohne | BL526: - | BM526: - | BN526: - | BO526: - | BQ526: Rechteck | BR526: =ref_hor+wg_2f_abstand_x-1/2*wg_2f_l -> 360 | BS526: =ref_ver_XY-wg_2f_abstand_y-1/2*wg_2f_b -> 49 | BT526: =wg_2f_l -> 20 | BU526: =wg_2f_b -> 12 | BW526: ohne | BX526: - | BY526: - | BZ526: - | CA526: -
P527: Z-X | Q527: 100 | R527: =wg_2f_sa_y -> 150 | S527: =wg_2f_sa_z-wg_2f_zs -> 160 | AB527: =wg_2f_Jz+wg_2f_masse*((wg_2f_sa_x/1000)^2+(wg_2f_sa_y/1000)^2) -> 0.009688943252 | AC527: 527 | AD527: Z-X | AF527: green | AS527: Rechteck | AT527: =ref_hor+wg_2f_abstand_x-1/2*wg_2f_l -> 360 | AU527: =ref_ver+wg_2f_abstand_z-wg_2f_h -> 68.32 | AV527: =wg_2f_l -> 20 | AW527: =wg_2f_h -> 26.68 | AY527: Rechteck | AZ527: =ref_hor+wg_2f_abstand_y-1/2*wg_2f_b -> 384 | BA527: =ref_ver+wg_2f_abstand_z-wg_2f_h -> 68.32 | BB527: =wg_2f_b -> 12 | BC527: =wg_2f_h -> 26.68 | BE527: ohne | BF527: - | BG527: - | BH527: - | BI527: - | BK527: ohne | BL527: - | BM527: - | BN527: - | BO527: - | BQ527: Rechteck | BR527: =ref_hor+wg_2f_abstand_x-1/2*wg_2f_l -> 360 | BS527: =ref_ver_XY-wg_2f_abstand_y-1/2*wg_2f_b -> 49 | BT527: =wg_2f_l -> 20 | BU527: =wg_2f_b -> 12 | BW527: ohne | BX527: - | BY527: - | BZ527: - | CA527: -
P528: Z+Y | Q528: 100 | R528: =wg_2f_sa_y -> 150 | S528: =wg_2f_sa_z+wg_2f_zs -> 240 | AB528: =wg_2f_Jz+wg_2f_masse*((wg_2f_sa_x/1000)^2+(wg_2f_sa_y/1000)^2) -> 0.009688943252 | AC528: 528 | AD528: Z+Y | AF528: green | AS528: Rechteck | AT528: =ref_hor+wg_2f_abstand_x-1/2*wg_2f_b -> 364 | AU528: =ref_ver+wg_2f_abstand_z -> 95 | AV528: =wg_2f_b -> 12 | AW528: =wg_2f_h -> 26.68 | AY528: Rechteck | AZ528: =ref_hor+wg_2f_abstand_y-1/2*wg_2f_l -> 380 | BA528: =ref_ver+wg_2f_abstand_z -> 95 | BB528: =wg_2f_l -> 20 | BC528: =wg_2f_h -> 26.68 | BE528: ohne | BF528: - | BG528: - | BH528: - | BI528: - | BK528: ohne | BL528: - | BM528: - | BN528: - | BO528: - | BQ528: Rechteck | BR528: =ref_hor+wg_2f_abstand_x-1/2*wg_2f_b -> 364 | BS528: =ref_ver_XY-wg_2f_abstand_y-1/2*wg_2f_l -> 45 | BT528: =wg_2f_b -> 12 | BU528: =wg_2f_l -> 20 | BW528: ohne | BX528: - | BY528: - | BZ528: - | CA528: -
P529: Z-Y | Q529: 100 | R529: =wg_2f_sa_y -> 150 | S529: =wg_2f_sa_z-wg_2f_zs -> 160 | AB529: =wg_2f_Jz+wg_2f_masse*((wg_2f_sa_x/1000)^2+(wg_2f_sa_y/1000)^2) -> 0.009688943252 | AC529: 529 | AD529: Z-Y | AF529: green | AS529: Rechteck | AT529: =ref_hor+wg_2f_abstand_x-1/2*wg_2f_b -> 364 | AU529: =ref_ver+wg_2f_abstand_z-wg_2f_h -> 68.32 | AV529: =wg_2f_b -> 12 | AW529: =wg_2f_h -> 26.68 | AY529: Rechteck | AZ529: =ref_hor+wg_2f_abstand_y-1/2*wg_2f_l -> 380 | BA529: =ref_ver+wg_2f_abstand_z-wg_2f_h -> 68.32 | BB529: =wg_2f_l -> 20 | BC529: =wg_2f_h -> 26.68 | BE529: ohne | BF529: - | BG529: - | BH529: - | BI529: - | BK529: ohne | BL529: - | BM529: - | BN529: - | BO529: - | BQ529: Rechteck | BR529: =ref_hor+wg_2f_abstand_x-1/2*wg_2f_b -> 364 | BS529: =ref_ver_XY-wg_2f_abstand_y-1/2*wg_2f_l -> 45 | BT529: =wg_2f_b -> 12 | BU529: =wg_2f_l -> 20 | BW529: ohne | BX529: - | BY529: - | BZ529: - | CA529: -
N560: Jx | O560: Jy | P560: Jz
N561: =VLOOKUP(rg_2f_greifertyp,Tabelle9[[Typ]:[Jzs]],14,FALSE) -> 0.01595 | O561: =VLOOKUP(rg_2f_greifertyp,Tabelle9[[Typ]:[Jzs]],15,FALSE) -> 0.019789 | P561: =VLOOKUP(rg_2f_greifertyp,Tabelle9[[Typ]:[Jzs]],16,FALSE) -> 0.007667
B562: 2-Finger Radialgreifer
B563: Bezeichnung | C563: Greifertyp | D563: Bestellnr. | E563: Länge [mm] | F563: Breite [mm] | G563: Höhe [mm] | H563: Masse [kg] | I563: Abstand Greiferursprung in X-Richtung [mm] | J563: Abstand Greiferursprung in Y-Richtung [mm] | K563: Abstand Greiferursprung in Z-Richtung [mm] | L563: J Massenträg-heitsmoment [kg*m²] | M563: Farbe | N563: Abstand Schwerpkt von Greiferursprung xs | O563: Abstand Schwerpkt von Greiferursprung ys | P563: Abstand Schwerpkt von Greiferursprung zs | Q563: SP X | R563: SP Y | S563: SP Z | W563: R | X563: G | Y563: B | AG563: Ansichtsdarstellung Körper | AM563: Ansichtsdarstellung Achse | AS563: Form in XZ | AY563: Form in YZ | BE563: Achse in XZ | BK563: Achse in YZ | BQ563: Form in XY | BW563: Achse in XY
B564: Gripper | C564: DRG 100 | D564: =VLOOKUP(rg_2f_greifertyp,Tabelle9[[Typ]:[Jzs]],2,FALSE) -> 307110 | E564: =VLOOKUP(rg_2f_greifertyp,Tabelle9[[Typ]:[Jzs]],3,FALSE) -> 100 | F564: =VLOOKUP(rg_2f_greifertyp,Tabelle9[[Typ]:[Jzs]],4,FALSE) -> 63.6 | G564: =VLOOKUP(rg_2f_greifertyp,Tabelle9[[Typ]:[Jzs]],5,FALSE) -> 178.5 | H564: =VLOOKUP(rg_2f_greifertyp,Tabelle9[[Typ]:[Jzs]],10,FALSE) -> 4.46 | I564: 100 | J564: 150 | K564: 200 | L564: =VLOOKUP(rg_2f_code,P566:AB577,13,FALSE) ->  | M564: purple | N564: =VLOOKUP(rg_2f_greifertyp,Tabelle9[[Typ]:[Jzs]],11,FALSE) -> 0 | O564: =VLOOKUP(rg_2f_greifertyp,Tabelle9[[Typ]:[Jzs]],12,FALSE) -> 0 | P564: =VLOOKUP(rg_2f_greifertyp,Tabelle9[[Typ]:[Jzs]],13,FALSE) -> 115.2 | Q564: =VLOOKUP(rg_2f_code,P566:S577,2,FALSE) ->  | R564: =VLOOKUP(rg_2f_code,P566:S577,3,FALSE) ->  | S564: =VLOOKUP(rg_2f_code,P566:S577,4,FALSE) ->  | AE564: 31 | AF564: 32 | AG564: 33 | AH564: 34 | AI564: 35 | AJ564: 36 | AK564: 37 | AL564: 38 | AM564: 39 | AN564: 40 | AO564: 41 | AP564: 42 | AQ564: 43 | AR564: 44 | AS564: 45 | AT564: 46 | AU564: 47 | AV564: 48 | AW564: 49 | AX564: 50 | AY564: 51 | AZ564: 52 | BA564: 53 | BB564: 54 | BC564: 55 | BD564: 56 | BE564: 57 | BF564: 58 | BG564: 59 | BH564: 60 | BI564: 61 | BJ564: 62 | BK564: 63 | BL564: 64 | BM564: 65 | BN564: 66 | BO564: 67 | BP564: 68 | BQ564: 69 | BR564: 70 | BS564: 71 | BT564: 72 | BU564: 73 | BV564: 74 | BW564: 75 | BX564: 76 | BY564: 77 | BZ564: 78 | CA564: 79
E565: =rg_2f_laenge_x*faktor_max_l -> 40 | F565: =rg_2f_breite_y*faktor_max_l -> 25.44 | G565: =rg_2f_hoehe_z*faktor_max_l -> 71.4 | I565: =rg_2f_sa_x*faktor_max_l -> 40 | J565: =rg_2f_sa_y*faktor_max_l -> 60 | K565: =rg_2f_sa_z*faktor_max_l -> 80 | M565: =IF(OR(rg_2f_achsenanordnung="",rg_2f_grundbackenbewegung="",rg_2f_sa_x="",rg_2f_sa_y="",rg_2f_sa_z="",rg_2f_farbe=""),"fehlende Werte","alles OK") -> alles OK | W565: =VLOOKUP(M564,Listen!$U$2:$X$11,2,FALSE) ->  | X565: =VLOOKUP(M564,Listen!$U$2:$X$11,3,FALSE) ->  | Y565: =VLOOKUP(M564,Listen!$U$2:$X$11,4,FALSE) ->  | AB565: J | AC565: Zeilennr. | AD565: Achsen-ausrichtung | AE565: Faktor | AF565: Farbe | AG565: Form | AH565: Start X | AI565: Start Y | AJ565: Ende X / L | AK565: Ende Y / H | AM565: Form | AN565: Start X | AO565: Start Y | AP565: Ende X / L | AQ565: Ende Y / H | AS565: Form | AT565: Start X | AU565: Start Y | AV565: Ende X / L | AW565: Ende Y / H | AY565: Form | AZ565: Start X | BA565: Start Y | BB565: Ende X / L | BC565: Ende Y / H | BE565: Form | BF565: Start X | BG565: Start Y | BH565: Ende X / L | BI565: Ende Y / H | BK565: Form | BL565: Start X | BM565: Start Y | BN565: Ende X / L | BO565: Ende Y / H | BQ565: Form | BR565: Start X | BS565: Start Y | BT565: Ende X / L | BU565: Ende Y / H | BW565: Form | BX565: Start X | BY565: Start Y | BZ565: Ende X / L | CA565: Ende Y / H
B566: Z-Achse Greifer parallel zu | E566: Z-Axis | G566: Bewegung Grundbacken parallel zu | K566: X-Axis | P566: X+Y | Q566: =rg_2f_sa_x+rg_2f_zs -> 215.2 | R566: =rg_2f_sa_y -> 150 | S566: =rg_2f_sa_z -> 200 | AB566: =rg_2f_Jy+rg_2f_masse*(((rg_2f_sa_x+rg_2f_zs)/1000)^2+(rg_2f_sa_y/1000)^2) -> 0.3266862384 | AC566: =ROW(AD566) -> 566 | AD566: =P566 -> X+Y | AF566: =rg_2f_farbe -> purple | AR566: Referenzmaße für Greifer | AS566: Rechteck | AT566: =ref_hor+rg_2f_abstand_x -> 370 | AU566: =ref_ver+rg_2f_abstand_z-1/2*rg_2f_b -> 82.28 | AV566: =rg_2f_h -> 71.4 | AW566: =rg_2f_b -> 25.44 | AY566: Rechteck | AZ566: =ref_hor+rg_2f_abstand_y-1/2*rg_2f_l -> 370 | BA566: =ref_ver+rg_2f_abstand_z-1/2*rg_2f_b -> 82.28 | BB566: =rg_2f_l -> 40 | BC566: =rg_2f_b -> 25.44 | BE566: ohne | BF566: - | BG566: - | BH566: - | BI566: - | BK566: ohne | BL566: - | BM566: - | BN566: - | BO566: - | BQ566: Rechteck | BR566: =ref_hor+rg_2f_abstand_x -> 370 | BS566: =ref_ver_XY-rg_2f_abstand_y-1/2*rg_2f_l -> 35 | BT566: =rg_2f_h -> 71.4 | BU566: =rg_2f_l -> 40 | BW566: ohne | BX566: - | BY566: - | BZ566: - | CA566: -
B567: Orientierung der Grundbacken | E567: Direction + | G567: Code | K567: =Codierung(rg_2f_achsenanordnung,rg_2f_grundbackenorientierung,rg_2f_grundbackenbewegung) ->  | P567: X-Y | Q567: =rg_2f_sa_x-rg_2f_zs -> -15.2 | R567: =rg_2f_sa_y -> 150 | S567: 200 | AB567: =rg_2f_Jy+rg_2f_masse*(((rg_2f_sa_x-rg_2f_zs)/1000)^2+(rg_2f_sa_y/1000)^2) -> 0.1211694384 | AC567: =ROW(AD567) -> 567 | AD567: =P567 -> X-Y | AF567: purple | AS567: Rechteck | AT567: =ref_hor+rg_2f_abstand_x-rg_2f_h -> 298.6 | AU567: =ref_ver+rg_2f_abstand_z-1/2*rg_2f_b -> 82.28 | AV567: =rg_2f_h -> 71.4 | AW567: =rg_2f_b -> 25.44 | AY567: Rechteck | AZ567: =ref_hor+rg_2f_abstand_y-1/2*rg_2f_l -> 370 | BA567: =ref_ver+rg_2f_abstand_z-1/2*rg_2f_b -> 82.28 | BB567: =rg_2f_l -> 40 | BC567: =rg_2f_b -> 25.44 | BE567: ohne | BF567: - | BG567: - | BH567: - | BI567: - | BK567: ohne | BL567: - | BM567: - | BN567: - | BO567: - | BQ567: Rechteck | BR567: =ref_hor+rg_2f_abstand_x-rg_2f_h -> 298.6 | BS567: =ref_ver_XY-rg_2f_abstand_y-1/2*rg_2f_l -> 35 | BT567: =rg_2f_h -> 71.4 | BU567: =rg_2f_l -> 40 | BW567: ohne | BX567: - | BY567: - | BZ567: - | CA567: -
P568: X+Z | Q568: =rg_2f_sa_x+rg_2f_zs -> 215.2 | R568: =rg_2f_sa_y -> 150 | S568: 200 | AB568: =rg_2f_Jx+rg_2f_masse*(((rg_2f_sa_x+rg_2f_zs)/1000)^2+(rg_2f_sa_y/1000)^2) -> 0.3228472384 | AC568: 568 | AD568: X+Z | AF568: purple | AS568: Rechteck | AT568: =ref_hor+rg_2f_abstand_x -> 370 | AU568: =ref_ver+rg_2f_abstand_z-1/2*rg_2f_l -> 75 | AV568: =rg_2f_h -> 71.4 | AW568: =rg_2f_l -> 40 | AY568: Rechteck | AZ568: =ref_hor+rg_2f_abstand_y-1/2*rg_2f_b -> 377.28 | BA568: =ref_ver+rg_2f_abstand_z-1/2*rg_2f_l -> 75 | BB568: =rg_2f_b -> 25.44 | BC568: =rg_2f_l -> 40 | BE568: ohne | BF568: - | BG568: - | BH568: - | BI568: - | BK568: ohne | BL568: - | BM568: - | BN568: - | BO568: - | BQ568: Rechteck | BR568: =ref_hor+rg_2f_abstand_x -> 370 | BS568: =ref_ver_XY-rg_2f_abstand_y-1/2*rg_2f_b -> 42.28 | BT568: =rg_2f_h -> 71.4 | BU568: =rg_2f_b -> 25.44 | BW568: ohne | BX568: - | BY568: - | BZ568: - | CA568: -
P569: X-Z | Q569: =rg_2f_sa_x-rg_2f_zs -> -15.2 | R569: =rg_2f_sa_y -> 150 | S569: 200 | AB569: =rg_2f_Jx+rg_2f_masse*(((rg_2f_sa_x-rg_2f_zs)/1000)^2+(rg_2f_sa_y/1000)^2) -> 0.1173304384 | AC569: 569 | AD569: X-Z | AF569: purple | AS569: Rechteck | AT569: =ref_hor+rg_2f_abstand_x-rg_2f_h -> 298.6 | AU569: =ref_ver+rg_2f_abstand_z-1/2*rg_2f_l -> 75 | AV569: =rg_2f_h -> 71.4 | AW569: =rg_2f_l -> 40 | AY569: Rechteck | AZ569: =ref_hor+rg_2f_abstand_y-1/2*rg_2f_b -> 377.28 | BA569: =ref_ver+rg_2f_abstand_z-1/2*rg_2f_l -> 75 | BB569: =rg_2f_b -> 25.44 | BC569: =rg_2f_l -> 40 | BE569: ohne | BF569: - | BG569: - | BH569: - | BI569: - | BK569: ohne | BL569: - | BM569: - | BN569: - | BO569: - | BQ569: Rechteck | BR569: =ref_hor+rg_2f_abstand_x-rg_2f_h -> 298.6 | BS569: =ref_ver_XY-rg_2f_abstand_y-1/2*rg_2f_b -> 42.28 | BT569: =rg_2f_h -> 71.4 | BU569: =rg_2f_b -> 25.44 | BW569: ohne | BX569: - | BY569: - | BZ569: - | CA569: -
P570: Y+X | Q570: =rg_2f_sa_x -> 100 | R570: =rg_2f_sa_y+rg_2f_zs -> 265.2 | S570: 200 | AB570: =rg_2f_Jy+rg_2f_masse*((rg_2f_sa_x/1000)^2+((rg_2f_sa_y+rg_2f_zs)/1000)^2) -> 0.3780654384 | AC570: 570 | AD570: Y+X | AF570: purple | AS570: Rechteck | AT570: =ref_hor+rg_2f_abstand_x-1/2*rg_2f_l -> 350 | AU570: =ref_ver+rg_2f_abstand_z-1/2*rg_2f_b -> 82.28 | AV570: =rg_2f_l -> 40 | AW570: =rg_2f_b -> 25.44 | AY570: Rechteck | AZ570: =ref_hor+rg_2f_abstand_y -> 390 | BA570: =ref_ver+rg_2f_abstand_z-1/2*rg_2f_b -> 82.28 | BB570: =rg_2f_h -> 71.4 | BC570: =rg_2f_b -> 25.44 | BE570: ohne | BF570: - | BG570: - | BH570: - | BI570: - | BK570: ohne | BL570: - | BM570: - | BN570: - | BO570: - | BQ570: Rechteck | BR570: =ref_hor+rg_2f_abstand_x-1/2*rg_2f_l -> 350 | BS570: =ref_ver_XY-rg_2f_abstand_y-rg_2f_h -> -16.4 | BT570: =rg_2f_l -> 40 | BU570: =rg_2f_h -> 71.4 | BW570: ohne | BX570: - | BY570: - | BZ570: - | CA570: -
P571: Y-X | Q571: 100 | R571: =rg_2f_sa_y-rg_2f_zs -> 34.8 | S571: 200 | AB571: =rg_2f_Jy+rg_2f_masse*((rg_2f_sa_x/1000)^2+((rg_2f_sa_y-rg_2f_zs)/1000)^2) -> 0.0697902384 | AC571: 571 | AD571: Y-X | AF571: purple | AS571: Rechteck | AT571: =ref_hor+rg_2f_abstand_x-1/2*rg_2f_l -> 350 | AU571: =ref_ver+rg_2f_abstand_z-1/2*rg_2f_b -> 82.28 | AV571: =rg_2f_l -> 40 | AW571: =rg_2f_b -> 25.44 | AY571: Rechteck | AZ571: =ref_hor+rg_2f_abstand_y-rg_2f_h -> 318.6 | BA571: =ref_ver+rg_2f_abstand_z-1/2*rg_2f_b -> 82.28 | BB571: =rg_2f_h -> 71.4 | BC571: =rg_2f_b -> 25.44 | BE571: ohne | BF571: - | BG571: - | BH571: - | BI571: - | BK571: ohne | BL571: - | BM571: - | BN571: - | BO571: - | BQ571: Rechteck | BR571: =ref_hor+rg_2f_abstand_x-1/2*rg_2f_l -> 350 | BS571: =ref_ver_XY-rg_2f_abstand_y -> 55 | BT571: =rg_2f_l -> 40 | BU571: =rg_2f_h -> 71.4 | BW571: ohne | BX571: - | BY571: - | BZ571: - | CA571: -
P572: Y+Z | Q572: 100 | R572: =rg_2f_sa_y+rg_2f_zs -> 265.2 | S572: 200 | AB572: =rg_2f_Jx+rg_2f_masse*((rg_2f_sa_x/1000)^2+((rg_2f_sa_y+rg_2f_zs)/1000)^2) -> 0.3742264384 | AC572: 572 | AD572: Y+Z | AF572: purple | AS572: Rechteck | AT572: =ref_hor+rg_2f_abstand_x-1/2*rg_2f_b -> 357.28 | AU572: =ref_ver+rg_2f_abstand_z-1/2*rg_2f_l -> 75 | AV572: =rg_2f_b -> 25.44 | AW572: =rg_2f_l -> 40 | AY572: Rechteck | AZ572: =ref_hor+rg_2f_abstand_y -> 390 | BA572: =ref_ver+rg_2f_abstand_z-1/2*rg_2f_l -> 75 | BB572: =rg_2f_h -> 71.4 | BC572: =rg_2f_l -> 40 | BE572: ohne | BF572: - | BG572: - | BH572: - | BI572: - | BK572: ohne | BL572: - | BM572: - | BN572: - | BO572: - | BQ572: Rechteck | BR572: =ref_hor+rg_2f_abstand_x-1/2*rg_2f_b -> 357.28 | BS572: =ref_ver_XY-rg_2f_abstand_y-rg_2f_h -> -16.4 | BT572: =rg_2f_b -> 25.44 | BU572: =rg_2f_h -> 71.4 | BW572: ohne | BX572: - | BY572: - | BZ572: - | CA572: -
P573: Y-Z | Q573: 100 | R573: =rg_2f_sa_y-rg_2f_zs -> 34.8 | S573: 200 | AB573: =rg_2f_Jx+rg_2f_masse*((rg_2f_sa_x/1000)^2+((rg_2f_sa_y-rg_2f_zs)/1000)^2) -> 0.0659512384 | AC573: 573 | AD573: Y-Z | AF573: purple | AS573: Rechteck | AT573: =ref_hor+rg_2f_abstand_x-1/2*rg_2f_b -> 357.28 | AU573: =ref_ver+rg_2f_abstand_z-1/2*rg_2f_l -> 75 | AV573: =rg_2f_b -> 25.44 | AW573: =rg_2f_l -> 40 | AY573: Rechteck | AZ573: =ref_hor+rg_2f_abstand_y-rg_2f_h -> 318.6 | BA573: =ref_ver+rg_2f_abstand_z-1/2*rg_2f_l -> 75 | BB573: =rg_2f_h -> 71.4 | BC573: =rg_2f_l -> 40 | BE573: ohne | BF573: - | BG573: - | BH573: - | BI573: - | BK573: ohne | BL573: - | BM573: - | BN573: - | BO573: - | BQ573: Rechteck | BR573: =ref_hor+rg_2f_abstand_x-1/2*rg_2f_b -> 357.28 | BS573: =ref_ver_XY-rg_2f_abstand_y -> 55 | BT573: =rg_2f_b -> 25.44 | BU573: =rg_2f_h -> 71.4 | BW573: ohne | BX573: - | BY573: - | BZ573: - | CA573: -
P574: Z+X | Q574: 100 | R574: =rg_2f_sa_y -> 150 | S574: =rg_2f_sa_z+rg_2f_zs -> 315.2 | AB574: =rg_2f_Jz+rg_2f_masse*((rg_2f_sa_x/1000)^2+(rg_2f_sa_y/1000)^2) -> 0.152617 | AC574: 574 | AD574: Z+X | AF574: purple | AS574: Rechteck | AT574: =ref_hor+rg_2f_abstand_x-1/2*rg_2f_l -> 350 | AU574: =ref_ver+rg_2f_abstand_z -> 95 | AV574: =rg_2f_l -> 40 | AW574: =rg_2f_h -> 71.4 | AY574: Rechteck | AZ574: =ref_hor+rg_2f_abstand_y-1/2*rg_2f_b -> 377.28 | BA574: =ref_ver+rg_2f_abstand_z -> 95 | BB574: =rg_2f_b -> 25.44 | BC574: =rg_2f_h -> 71.4 | BE574: ohne | BF574: - | BG574: - | BH574: - | BI574: - | BK574: ohne | BL574: - | BM574: - | BN574: - | BO574: - | BQ574: Rechteck | BR574: =ref_hor+rg_2f_abstand_x-1/2*rg_2f_l -> 350 | BS574: =ref_ver_XY-rg_2f_abstand_y-1/2*rg_2f_b -> 42.28 | BT574: =rg_2f_l -> 40 | BU574: =rg_2f_b -> 25.44 | BW574: ohne | BX574: - | BY574: - | BZ574: - | CA574: -
P575: Z-X | Q575: 100 | R575: =rg_2f_sa_y -> 150 | S575: =rg_2f_sa_z-rg_2f_zs -> 84.8 | AB575: =rg_2f_Jz+rg_2f_masse*((rg_2f_sa_x/1000)^2+(rg_2f_sa_y/1000)^2) -> 0.152617 | AC575: 575 | AD575: Z-X | AF575: purple | AS575: Rechteck | AT575: =ref_hor+rg_2f_abstand_x-1/2*rg_2f_l -> 350 | AU575: =ref_ver+rg_2f_abstand_z-rg_2f_h -> 23.6 | AV575: =rg_2f_l -> 40 | AW575: =rg_2f_h -> 71.4 | AY575: Rechteck | AZ575: =ref_hor+rg_2f_abstand_y-1/2*rg_2f_b -> 377.28 | BA575: =ref_ver+rg_2f_abstand_z-rg_2f_h -> 23.6 | BB575: =rg_2f_b -> 25.44 | BC575: =rg_2f_h -> 71.4 | BE575: ohne | BF575: - | BG575: - | BH575: - | BI575: - | BK575: ohne | BL575: - | BM575: - | BN575: - | BO575: - | BQ575: Rechteck | BR575: =ref_hor+rg_2f_abstand_x-1/2*rg_2f_l -> 350 | BS575: =ref_ver_XY-rg_2f_abstand_y-1/2*rg_2f_b -> 42.28 | BT575: =rg_2f_l -> 40 | BU575: =rg_2f_b -> 25.44 | BW575: ohne | BX575: - | BY575: - | BZ575: - | CA575: -
P576: Z+Y | Q576: 100 | R576: =rg_2f_sa_y -> 150 | S576: =rg_2f_sa_z+rg_2f_zs -> 315.2 | AB576: =rg_2f_Jz+rg_2f_masse*((rg_2f_sa_x/1000)^2+(rg_2f_sa_y/1000)^2) -> 0.152617 | AC576: 576 | AD576: Z+Y | AF576: purple | AS576: Rechteck | AT576: =ref_hor+rg_2f_abstand_x-1/2*rg_2f_b -> 357.28 | AU576: =ref_ver+rg_2f_abstand_z -> 95 | AV576: =rg_2f_b -> 25.44 | AW576: =rg_2f_h -> 71.4 | AY576: Rechteck | AZ576: =ref_hor+rg_2f_abstand_y-1/2*rg_2f_l -> 370 | BA576: =ref_ver+rg_2f_abstand_z -> 95 | BB576: =rg_2f_l -> 40 | BC576: =rg_2f_h -> 71.4 | BE576: ohne | BF576: - | BG576: - | BH576: - | BI576: - | BK576: ohne | BL576: - | BM576: - | BN576: - | BO576: - | BQ576: Rechteck | BR576: =ref_hor+rg_2f_abstand_x-1/2*rg_2f_b -> 357.28 | BS576: =ref_ver_XY-rg_2f_abstand_y-1/2*rg_2f_l -> 35 | BT576: =rg_2f_b -> 25.44 | BU576: =rg_2f_l -> 40 | BW576: ohne | BX576: - | BY576: - | BZ576: - | CA576: -
P577: Z-Y | Q577: 100 | R577: =rg_2f_sa_y -> 150 | S577: =rg_2f_sa_z-rg_2f_zs -> 84.8 | AB577: =rg_2f_Jz+rg_2f_masse*((rg_2f_sa_x/1000)^2+(rg_2f_sa_y/1000)^2) -> 0.152617 | AC577: 577 | AD577: Z-Y | AF577: purple | AS577: Rechteck | AT577: =ref_hor+rg_2f_abstand_x-1/2*rg_2f_b -> 357.28 | AU577: =ref_ver+rg_2f_abstand_z-rg_2f_h -> 23.6 | AV577: =rg_2f_b -> 25.44 | AW577: =rg_2f_h -> 71.4 | AY577: Rechteck | AZ577: =ref_hor+rg_2f_abstand_y-1/2*rg_2f_l -> 370 | BA577: =ref_ver+rg_2f_abstand_z-rg_2f_h -> 23.6 | BB577: =rg_2f_l -> 40 | BC577: =rg_2f_h -> 71.4 | BE577: ohne | BF577: - | BG577: - | BH577: - | BI577: - | BK577: ohne | BL577: - | BM577: - | BN577: - | BO577: - | BQ577: Rechteck | BR577: =ref_hor+rg_2f_abstand_x-1/2*rg_2f_b -> 357.28 | BS577: =ref_ver_XY-rg_2f_abstand_y-1/2*rg_2f_l -> 35 | BT577: =rg_2f_b -> 25.44 | BU577: =rg_2f_l -> 40 | BW577: ohne | BX577: - | BY577: - | BZ577: - | CA577: -
M608: Jx | N608: Jy | O608: Jz
M609: =VLOOKUP(zg_3f_greifertyp,Tabelle16[[Typ]:[Jzs]],14,FALSE) -> 0.0032 | N609: =VLOOKUP(zg_3f_greifertyp,Tabelle16[[Typ]:[Jzs]],15,FALSE) -> 0.0032 | O609: =VLOOKUP(zg_3f_greifertyp,Tabelle16[[Typ]:[Jzs]],16,FALSE) -> 0.004101
B610: 3-Finger Zentrischgreifer
B611: Bezeichnung | C611: Greifertyp | D611: Bestellnr. | E611: Durchmesser außen [mm] | F611: Höhe [mm] | G611: Masse [kg] | H611: Abstand Greiferursprung in X-Richtung [mm] | I611: Abstand Greiferursprung in Y-Richtung [mm] | J611: Abstand Greiferursprung in Z-Richtung [mm] | K611: J Massenträg-heitsmoment [kg*m²] | L611: Farbe | M611: Abstand Schwerpkt von Greiferursprung xs | N611: Abstand Schwerpkt von Greiferursprung ys | O611: Abstand Schwerpkt von Greiferursprung zs | P611: SP X | Q611: SP Y | R611: SP Z | W611: R | X611: G | Y611: B | AG611: Ansichtsdarstellung Körper | AM611: Ansichtsdarstellung Achse | AS611: Form in XZ | AY611: Form in YZ | BE611: Achse in XZ | BK611: Achse in YZ | BQ611: Form in XY | BW611: Achse in XY
B612: Greifer 2 | C612: DPZ 100 | D612: =VLOOKUP(zg_3f_greifertyp,Tabelle16[[Typ]:[Jzs]],2,FALSE) -> 300453 | E612: =VLOOKUP(zg_3f_greifertyp,Tabelle16[[Typ]:[Jzs]],6,FALSE) -> 100 | F612: =VLOOKUP(zg_3f_greifertyp,Tabelle16[[Typ]:[Jzs]],5,FALSE) -> 67.3 | G612: =VLOOKUP(zg_3f_greifertyp,Tabelle16[[Typ]:[Jzs]],10,FALSE) -> 2.54 | H612: 0 | I612: 0 | J612: 0 | K612: =VLOOKUP(zg_3f_code,O614:AB619,14,FALSE) -> 0.004101 | L612: schwarz | M612: =VLOOKUP(zg_3f_greifertyp,Tabelle16[[Typ]:[Jzs]],11,FALSE) -> 0 | N612: =VLOOKUP(zg_3f_greifertyp,Tabelle16[[Typ]:[Jzs]],12,FALSE) -> 0 | O612: =VLOOKUP(zg_3f_greifertyp,Tabelle16[[Typ]:[Jzs]],13,FALSE) -> 49 | P612: =VLOOKUP(zg_3f_code,O614:R619,2,FALSE) -> 0 | Q612: =VLOOKUP(zg_3f_code,O614:R619,3,FALSE) -> 0 | R612: =VLOOKUP(zg_3f_code,O614:R619,4,FALSE) -> 49 | AE612: 31 | AF612: 32 | AG612: 33 | AH612: 34 | AI612: 35 | AJ612: 36 | AK612: 37 | AL612: 38 | AM612: 39 | AN612: 40 | AO612: 41 | AP612: 42 | AQ612: 43 | AR612: 44 | AS612: 45 | AT612: 46 | AU612: 47 | AV612: 48 | AW612: 49 | AX612: 50 | AY612: 51 | AZ612: 52 | BA612: 53 | BB612: 54 | BC612: 55 | BD612: 56 | BE612: 57 | BF612: 58 | BG612: 59 | BH612: 60 | BI612: 61 | BJ612: 62 | BK612: 63 | BL612: 64 | BM612: 65 | BN612: 66 | BO612: 67 | BP612: 68 | BQ612: 69 | BR612: 70 | BS612: 71 | BT612: 72 | BU612: 73 | BV612: 74 | BW612: 75 | BX612: 76 | BY612: 77 | BZ612: 78 | CA612: 79
E613: =zg_3f_d_aussen*faktor_max_l -> 40 | F613: =zg_3f_hoehe_z*faktor_max_l -> 26.92 | H613: =zg_3f_sa_x*faktor_max_l -> 0 | I613: =zg_3f_sa_y*faktor_max_l -> 0 | J613: =zg_3f_sa_z*faktor_max_l -> 0 | L613: =IF(OR(zg_3f_achsenanordnung="",zg_3f_sa_x="",zg_3f_sa_y="",zg_3f_sa_z="",zg_3f_farbe=""),"fehlende Werte","alles OK") -> alles OK | W613: =VLOOKUP(L612,Listen!$U$2:$X$11,2,FALSE) -> 0 | X613: =VLOOKUP(L612,Listen!$U$2:$X$11,3,FALSE) -> 0 | Y613: =VLOOKUP(L612,Listen!$U$2:$X$11,4,FALSE) -> 0 | AB613: J | AC613: Zeilennr. | AD613: Achsen-ausrichtung | AE613: Faktor | AF613: Farbe | AG613: Form | AH613: Start X | AI613: Start Y | AJ613: Ende X / L | AK613: Ende Y / H | AM613: Form | AN613: Start X | AO613: Start Y | AP613: Ende X / L | AQ613: Ende Y / H | AS613: Form | AT613: Start X | AU613: Start Y | AV613: Ende X / L | AW613: Ende Y / H | AY613: Form | AZ613: Start X | BA613: Start Y | BB613: Ende X / L | BC613: Ende Y / H | BE613: Form | BF613: Start X | BG613: Start Y | BH613: Ende X / L | BI613: Ende Y / H | BK613: Form | BL613: Start X | BM613: Start Y | BN613: Ende X / L | BO613: Ende Y / H | BQ613: Form | BR613: Start X | BS613: Start Y | BT613: Ende X / L | BU613: Ende Y / H | BW613: Form | BX613: Start X | BY613: Start Y | BZ613: Ende X / L | CA613: Ende Y / H
B614: Z-Achse Greifer parallel zu | E614: Z-Achse | O614: X+0 | P614: =zg_3f_sa_x+zg_3f_zs -> 49 | Q614: =zg_3f_sa_y -> 0 | R614: =zg_3f_sa_z -> 0 | AB614: =zg_3f_Jx+zg_3f_masse*(((zg_3f_sa_x+zg_3f_zs)/1000)^2+(zg_3f_sa_y/1000)^2) -> 0.00929854 | AC614: =ROW(AD614) -> 614 | AD614: =O614 -> X+0 | AF614: =zg_3f_farbe -> schwarz | AR614: Referenzmaße für Greifer | AS614: Rechteck | AT614: =ref_hor+zg_3f_abstand_x -> 330 | AU614: =ref_ver+zg_3f_abstand_z-1/2*zg_3f_l -> -5 | AV614: =zg_3f_h -> 26.92 | AW614: =zg_3f_l -> 40 | AY614: Kreis | AZ614: =ref_hor+zg_3f_abstand_y-1/2*zg_3f_l -> 310 | BA614: =ref_ver+zg_3f_abstand_z-1/2*zg_3f_l -> -5 | BB614: =zg_3f_l -> 40 | BC614: =zg_3f_l -> 40 | BE614: Linie | BF614: =ref_hor+zg_3f_abstand_x-5 -> 325 | BG614: =ref_ver+zg_3f_abstand_z -> 15 | BH614: =ref_hor+zg_3f_abstand_x+zg_3f_h+5 -> 361.92 | BI614: =ref_ver+zg_3f_abstand_z -> 15 | BK614: ohne | BL614: - | BM614: - | BN614: - | BO614: - | BQ614: Rechteck | BR614: =ref_hor+zg_3f_abstand_x -> 330 | BS614: =ref_ver_XY-zg_3f_abstand_y-1/2*zg_3f_l -> 95 | BT614: =zg_3f_h -> 26.92 | BU614: =zg_3f_l -> 40 | BW614: Linie | BX614: =ref_hor+zg_3f_abstand_x-5 -> 325 | BY614: =ref_ver_XY-zg_3f_abstand_y -> 115 | BZ614: =ref_hor+zg_3f_abstand_x+zg_3f_h+5 -> 361.92 | CA614: =ref_ver_XY-zg_3f_abstand_y -> 115
B615: Orientierung der Grundbacken | E615: Richtung + | G615: Code | K615: =Codierung(zg_3f_achsenanordnung,zg_3f_grundbackenorientierung,"0") -> Z+0 | O615: X-0 | P615: =zg_3f_sa_x-zg_3f_zs -> -49 | Q615: =zg_3f_sa_y -> 0 | R615: =zg_3f_sa_z -> 0 | AB615: =zg_3f_Jx+zg_3f_masse*(((zg_3f_sa_x-zg_3f_zs)/1000)^2+(zg_3f_sa_y/1000)^2) -> 0.00929854 | AC615: 615 | AD615: X-0 | AF615: schwarz | AS615: Rechteck | AT615: =ref_hor+zg_3f_abstand_x-zg_3f_h -> 303.08 | AU615: =ref_ver+zg_3f_abstand_z-1/2*zg_3f_l -> -5 | AV615: =zg_3f_h -> 26.92 | AW615: =zg_3f_l -> 40 | AY615: Kreis | AZ615: =ref_hor+zg_3f_abstand_y-1/2*zg_3f_l -> 310 | BA615: =ref_ver+zg_3f_abstand_z-1/2*zg_3f_l -> -5 | BB615: =zg_3f_l -> 40 | BC615: =zg_3f_l -> 40 | BE615: Linie | BF615: =ref_hor+zg_3f_abstand_x+5 -> 335 | BG615: =ref_ver+zg_3f_abstand_z -> 15 | BH615: =ref_hor+zg_3f_abstand_x-zg_3f_h-5 -> 298.08 | BI615: =ref_ver+zg_3f_abstand_z -> 15 | BK615: ohne | BL615: - | BM615: - | BN615: - | BO615: - | BQ615: Rechteck | BR615: =ref_hor+zg_3f_abstand_x-zg_3f_h -> 303.08 | BS615: =ref_ver_XY-zg_3f_abstand_y-1/2*zg_3f_l -> 95 | BT615: =zg_3f_h -> 26.92 | BU615: =zg_3f_l -> 40 | BW615: Linie | BX615: =ref_hor+zg_3f_abstand_x+5 -> 335 | BY615: =ref_ver_XY-zg_3f_abstand_y -> 115 | BZ615: =ref_hor+zg_3f_abstand_x-zg_3f_h-5 -> 298.08 | CA615: =ref_ver_XY-zg_3f_abstand_y -> 115
O616: Y+0 | P616: =zg_3f_sa_x -> 0 | Q616: =zg_3f_sa_y+zg_3f_zs -> 49 | R616: =zg_3f_sa_z -> 0 | AB616: =zg_3f_Jy+zg_3f_masse*((zg_3f_sa_x/1000)^2+((zg_3f_sa_y+zg_3f_zs)/1000)^2) -> 0.00929854 | AC616: 616 | AD616: Y+0 | AF616: schwarz | AS616: Kreis | AT616: =ref_hor+zg_3f_abstand_x-1/2*zg_3f_l -> 310 | AU616: =ref_ver+zg_3f_abstand_z-1/2*zg_3f_l -> -5 | AV616: =zg_3f_l -> 40 | AW616: =zg_3f_l -> 40 | AY616: Rechteck | AZ616: =ref_hor+zg_3f_abstand_y -> 330 | BA616: =ref_ver+zg_3f_abstand_z-1/2*zg_3f_l -> -5 | BB616: =zg_3f_h -> 26.92 | BC616: =zg_3f_l -> 40 | BE616: ohne | BF616: - | BG616: - | BH616: - | BI616: - | BK616: Linie | BL616: =ref_hor+zg_3f_abstand_y-5 -> 325 | BM616: =ref_ver+zg_3f_abstand_z -> 15 | BN616: =ref_hor+zg_3f_abstand_y+zg_3f_h+5 -> 361.92 | BO616: =ref_ver+zg_3f_abstand_z -> 15 | BQ616: Rechteck | BR616: =ref_hor+zg_3f_abstand_x-1/2*zg_3f_l -> 310 | BS616: =ref_ver_XY-zg_3f_abstand_y-zg_3f_h -> 88.08 | BT616: =zg_3f_l -> 40 | BU616: =zg_3f_h -> 26.92 | BW616: Linie | BX616: =ref_hor+zg_3f_abstand_x -> 330 | BY616: =ref_ver_XY-zg_3f_abstand_y+5 -> 120 | BZ616: =ref_hor+zg_3f_abstand_x -> 330 | CA616: =ref_ver_XY-zg_3f_abstand_y-zg_3f_h-5 -> 83.08
O617: Y-0 | P617: =zg_3f_sa_x -> 0 | Q617: =zg_3f_sa_y-zg_3f_zs -> -49 | R617: =zg_3f_sa_z -> 0 | AB617: =zg_3f_Jy+zg_3f_masse*((zg_3f_sa_x/1000)^2+((zg_3f_sa_y-zg_3f_zs)/1000)^2) -> 0.00929854 | AC617: 617 | AD617: Y-0 | AF617: schwarz | AS617: Kreis | AT617: =ref_hor+zg_3f_abstand_x-1/2*zg_3f_l -> 310 | AU617: =ref_ver+zg_3f_abstand_z-1/2*zg_3f_l -> -5 | AV617: =zg_3f_l -> 40 | AW617: =zg_3f_l -> 40 | AY617: Rechteck | AZ617: =ref_hor+zg_3f_abstand_y-zg_3f_h -> 303.08 | BA617: =ref_ver+zg_3f_abstand_z-1/2*zg_3f_l -> -5 | BB617: =zg_3f_h -> 26.92 | BC617: =zg_3f_l -> 40 | BE617: ohne | BF617: - | BG617: - | BH617: - | BI617: - | BK617: Linie | BL617: =ref_hor+zg_3f_abstand_y+5 -> 335 | BM617: =ref_ver+zg_3f_abstand_z -> 15 | BN617: =ref_hor+zg_3f_abstand_y-zg_3f_h-5 -> 298.08 | BO617: =ref_ver+zg_3f_abstand_z -> 15 | BQ617: Rechteck | BR617: =ref_hor+zg_3f_abstand_x-1/2*zg_3f_l -> 310 | BS617: =ref_ver_XY-zg_3f_abstand_y -> 115 | BT617: =zg_3f_l -> 40 | BU617: =zg_3f_h -> 26.92 | BW617: Linie | BX617: =ref_hor+zg_3f_abstand_x -> 330 | BY617: =ref_ver_XY-zg_3f_abstand_y-5 -> 110 | BZ617: =ref_hor+zg_3f_abstand_x -> 330 | CA617: =ref_ver_XY-zg_3f_abstand_y+zg_3f_h+5 -> 146.92
O618: Z+0 | P618: =zg_3f_sa_x -> 0 | Q618: =zg_3f_sa_y -> 0 | R618: =zg_3f_sa_z+zg_3f_zs -> 49 | AB618: =zg_3f_Jz+zg_3f_masse*((zg_3f_sa_x/1000)^2+(zg_3f_sa_y/1000)^2) -> 0.004101 | AC618: 618 | AD618: Z+0 | AF618: schwarz | AS618: Rechteck | AT618: =ref_hor+zg_3f_abstand_x-1/2*zg_3f_l -> 310 | AU618: =ref_ver+zg_3f_abstand_z -> 15 | AV618: =zg_3f_l -> 40 | AW618: =zg_3f_h -> 26.92 | AY618: Rechteck | AZ618: =ref_hor+zg_3f_abstand_y-1/2*zg_3f_l -> 310 | BA618: =ref_ver+zg_3f_abstand_z -> 15 | BB618: =zg_3f_l -> 40 | BC618: =zg_3f_h -> 26.92 | BE618: Linie | BF618: =ref_hor+zg_3f_abstand_x -> 330 | BG618: =ref_ver+zg_3f_abstand_z-5 -> 10 | BH618: =ref_hor+zg_3f_abstand_x -> 330 | BI618: =ref_ver+zg_3f_abstand_z+zg_3f_h+5 -> 46.92 | BK618: Linie | BL618: =ref_hor+zg_3f_abstand_y -> 330 | BM618: =ref_ver+zg_3f_abstand_z-5 -> 10 | BN618: =ref_hor+zg_3f_abstand_y -> 330 | BO618: =ref_ver+zg_3f_abstand_z+zg_3f_h+5 -> 46.92 | BQ618: Kreis | BR618: =ref_hor+zg_3f_abstand_x-1/2*zg_3f_l -> 310 | BS618: =ref_ver_XY-zg_3f_abstand_y-1/2*zg_3f_l -> 95 | BT618: =zg_3f_l -> 40 | BU618: =zg_3f_l -> 40 | BW618: ohne | BX618: - | BY618: - | BZ618: - | CA618: -
O619: Z-0 | P619: =zg_3f_sa_x -> 0 | Q619: =zg_3f_sa_y -> 0 | R619: =zg_3f_sa_z-zg_3f_zs -> -49 | AB619: =zg_3f_Jz+zg_3f_masse*((zg_3f_sa_x/1000)^2+(zg_3f_sa_y/1000)^2) -> 0.004101 | AC619: 619 | AD619: Z-0 | AF619: schwarz | AS619: Rechteck | AT619: =ref_hor+zg_3f_abstand_x-1/2*zg_3f_l -> 310 | AU619: =ref_ver+zg_3f_abstand_z-zg_3f_h -> -11.92 | AV619: =zg_3f_l -> 40 | AW619: =zg_3f_h -> 26.92 | AY619: Rechteck | AZ619: =ref_hor+zg_3f_abstand_y-1/2*zg_3f_l -> 310 | BA619: =ref_ver+zg_3f_abstand_z-zg_3f_h -> -11.92 | BB619: =zg_3f_l -> 40 | BC619: =zg_3f_h -> 26.92 | BE619: Linie | BF619: =ref_hor+zg_3f_abstand_x -> 330 | BG619: =ref_ver+zg_3f_abstand_z+5 -> 20 | BH619: =ref_hor+zg_3f_abstand_x -> 330 | BI619: =ref_ver+zg_3f_abstand_z-zg_3f_h-5 -> -16.92 | BK619: Linie | BL619: =ref_hor+zg_3f_abstand_y -> 330 | BM619: =ref_ver+zg_3f_abstand_z+5 -> 20 | BN619: =ref_hor+zg_3f_abstand_y -> 330 | BO619: =ref_ver+zg_3f_abstand_z-zg_3f_h-5 -> -16.92 | BQ619: Kreis | BR619: =ref_hor+zg_3f_abstand_x-1/2*zg_3f_l -> 310 | BS619: =ref_ver_XY-zg_3f_abstand_y-1/2*zg_3f_l -> 95 | BT619: =zg_3f_l -> 40 | BU619: =zg_3f_l -> 40 | BW619: ohne | BX619: - | BY619: - | BZ619: - | CA619: -
M655: Jx | N655: Jy | O655: Jz
M656: =VLOOKUP(zg_4f_greifertyp,Tabelle18[[Typ]:[Jzs]],14,FALSE) -> 0.00014 | N656: =VLOOKUP(zg_4f_greifertyp,Tabelle18[[Typ]:[Jzs]],15,FALSE) -> 0.000158 | O656: =VLOOKUP(zg_4f_greifertyp,Tabelle18[[Typ]:[Jzs]],16,FALSE) -> 0.000223
B657: 4-Finger Zentrischgreifer
B658: Bezeichnung | C658: Greifertyp | D658: Bestellnr. | E658: Durchmesser außen [mm] | F658: Höhe [mm] | G658: Masse [kg] | H658: Abstand Greifermitte x [mm] | I658: Abstand Greifermitte y [mm] | J658: Abstand Greifermitte z [mm] | K658: J Massenträg-heitsmoment [kg*m²] | L658: Farbe | M658: Abstand Schwerpkt von Greiferursprung xs | N658: Abstand Schwerpkt von Greiferursprung ys | O658: Abstand Schwerpkt von Greiferursprung zs | P658: SP X | Q658: SP Y | R658: SP Z | W658: R | X658: G | Y658: B | AG658: Ansichtsdarstellung Körper | AM658: Ansichtsdarstellung Achse | AS658: Form in XZ | AY658: Form in YZ | BE658: Achse in XZ | BK658: Achse in YZ | BQ658: Form in XY | BW658: Achse in XY
B659: Gripper | C659: PZV 100 | D659: =VLOOKUP(zg_4f_greifertyp,Tabelle18[[Typ]:[Jzs]],2,FALSE) -> 304002 | E659: =VLOOKUP(zg_4f_greifertyp,Tabelle18[[Typ]:[Jzs]],6,FALSE) -> 112 | F659: =VLOOKUP(zg_4f_greifertyp,Tabelle18[[Typ]:[Jzs]],5,FALSE) -> 38 | G659: =VLOOKUP(zg_4f_greifertyp,Tabelle18[[Typ]:[Jzs]],10,FALSE) -> 1.6 | H659: 100 | I659: 150 | J659: 200 | K659: =VLOOKUP(zg_4f_code,O661:AB666,14,FALSE) -> 0.052223 | L659: blue | M659: =VLOOKUP(zg_4f_greifertyp,Tabelle18[[Typ]:[Jzs]],11,FALSE) -> 0 | N659: =VLOOKUP(zg_4f_greifertyp,Tabelle18[[Typ]:[Jzs]],12,FALSE) -> 0 | O659: =VLOOKUP(zg_4f_greifertyp,Tabelle18[[Typ]:[Jzs]],13,FALSE) -> 31.8 | P659: =VLOOKUP(zg_4f_code,O661:R666,2,FALSE) -> 100 | Q659: =VLOOKUP(zg_4f_code,O661:R666,3,FALSE) -> 150 | R659: =VLOOKUP(zg_4f_code,O661:R666,4,FALSE) -> 231.8 | AE659: 31 | AF659: 32 | AG659: 33 | AH659: 34 | AI659: 35 | AJ659: 36 | AK659: 37 | AL659: 38 | AM659: 39 | AN659: 40 | AO659: 41 | AP659: 42 | AQ659: 43 | AR659: 44 | AS659: 45 | AT659: 46 | AU659: 47 | AV659: 48 | AW659: 49 | AX659: 50 | AY659: 51 | AZ659: 52 | BA659: 53 | BB659: 54 | BC659: 55 | BD659: 56 | BE659: 57 | BF659: 58 | BG659: 59 | BH659: 60 | BI659: 61 | BJ659: 62 | BK659: 63 | BL659: 64 | BM659: 65 | BN659: 66 | BO659: 67 | BP659: 68 | BQ659: 69 | BR659: 70 | BS659: 71 | BT659: 72 | BU659: 73 | BV659: 74 | BW659: 75 | BX659: 76 | BY659: 77 | BZ659: 78 | CA659: 79
E660: =zg_4f_d_aussen*faktor_max_l -> 44.8 | F660: =zg_4f_hoehe_z*faktor_max_l -> 15.2 | H660: =zg_4f_sa_x*faktor_max_l -> 40 | I660: =zg_4f_sa_y*faktor_max_l -> 60 | J660: =zg_4f_sa_z*faktor_max_l -> 80 | L660: =IF(OR(zg_4f_achsenanordnung="",zg_4f_sa_x="",zg_4f_sa_y="",zg_4f_sa_z="",zg_4f_farbe=""),"fehlende Werte","alles OK") -> alles OK | W660: =VLOOKUP(L659,Listen!$U$2:$X$11,2,FALSE) ->  | X660: =VLOOKUP(L659,Listen!$U$2:$X$11,3,FALSE) ->  | Y660: =VLOOKUP(L659,Listen!$U$2:$X$11,4,FALSE) ->  | AB660: J | AC660: Zeilennr. | AD660: Achsen-ausrichtung | AE660: Faktor | AF660: Farbe | AG660: Form | AH660: Start X | AI660: Start Y | AJ660: Ende X / L | AK660: Ende Y / H | AM660: Form | AN660: Start X | AO660: Start Y | AP660: Ende X / L | AQ660: Ende Y / H | AS660: Form | AT660: Start X | AU660: Start Y | AV660: Ende X / L | AW660: Ende Y / H | AY660: Form | AZ660: Start X | BA660: Start Y | BB660: Ende X / L | BC660: Ende Y / H | BE660: Form | BF660: Start X | BG660: Start Y | BH660: Ende X / L | BI660: Ende Y / H | BK660: Form | BL660: Start X | BM660: Start Y | BN660: Ende X / L | BO660: Ende Y / H | BQ660: Form | BR660: Start X | BS660: Start Y | BT660: Ende X / L | BU660: Ende Y / H | BW660: Form | BX660: Start X | BY660: Start Y | BZ660: Ende X / L | CA660: Ende Y / H
B661: Z-Achse Greifer parallel zu | E661: Z-Achse | O661: X+0 | P661: =zg_4f_sa_x+zg_4f_zs -> 131.8 | Q661: =zg_4f_sa_y -> 150 | R661: =zg_4f_sa_z -> 200 | AB661: =zg_4f_Jx+zg_4f_masse*(((zg_4f_sa_x+zg_4f_zs)/1000)^2+(zg_4f_sa_y/1000)^2) -> 0.063933984 | AC661: =ROW(AD661) -> 661 | AD661: =O661 -> X+0 | AF661: =zg_4f_farbe -> blue | AR661: Referenzmaße für Greifer | AS661: Rechteck | AT661: =ref_hor+zg_4f_abstand_x -> 370 | AU661: =ref_ver+zg_4f_abstand_z-1/2*zg_4f_l -> 72.6 | AV661: =zg_4f_h -> 15.2 | AW661: =zg_4f_l -> 44.8 | AY661: Kreis | AZ661: =ref_hor+zg_4f_abstand_y-1/2*zg_4f_l -> 367.6 | BA661: =ref_ver+zg_4f_abstand_z-1/2*zg_4f_l -> 72.6 | BB661: =zg_4f_l -> 44.8 | BC661: =zg_4f_l -> 44.8 | BE661: Linie | BF661: =ref_hor+zg_4f_abstand_x-5 -> 365 | BG661: =ref_ver+zg_4f_abstand_z -> 95 | BH661: =ref_hor+zg_4f_abstand_x+zg_4f_h+5 -> 390.2 | BI661: =ref_ver+zg_4f_abstand_z -> 95 | BK661: ohne | BL661: - | BM661: - | BN661: - | BO661: - | BQ661: Rechteck | BR661: =ref_hor+zg_4f_abstand_x -> 370 | BS661: =ref_ver_XY-zg_4f_abstand_y-1/2*zg_4f_l -> 32.6 | BT661: =zg_4f_h -> 15.2 | BU661: =zg_4f_l -> 44.8 | BW661: Linie | BX661: =ref_hor+zg_4f_abstand_x-5 -> 365 | BY661: =ref_ver_XY-zg_4f_abstand_y -> 55 | BZ661: =ref_hor+zg_4f_abstand_x+zg_4f_h+5 -> 390.2 | CA661: =ref_ver_XY-zg_4f_abstand_y -> 55
B662: Orientierung der Grundbacken | E662: Richtung + | G662: Code | K662: =Codierung(zg_4f_achsenanordnung,zg_4f_grundbackenorientierung,"0") -> Z+0 | O662: X-0 | P662: =zg_4f_sa_x-zg_4f_zs -> 68.2 | Q662: =zg_4f_sa_y -> 150 | R662: =zg_4f_sa_z -> 200 | AB662: =zg_4f_Jx+zg_4f_masse*(((zg_4f_sa_x-zg_4f_zs)/1000)^2+(zg_4f_sa_y/1000)^2) -> 0.043581984 | AC662: 662 | AD662: X-0 | AF662: blue | AS662: Rechteck | AT662: =ref_hor+zg_4f_abstand_x-zg_4f_h -> 354.8 | AU662: =ref_ver+zg_4f_abstand_z-1/2*zg_4f_l -> 72.6 | AV662: =zg_4f_h -> 15.2 | AW662: =zg_4f_l -> 44.8 | AY662: Kreis | AZ662: =ref_hor+zg_4f_abstand_y-1/2*zg_4f_l -> 367.6 | BA662: =ref_ver+zg_4f_abstand_z-1/2*zg_4f_l -> 72.6 | BB662: =zg_4f_l -> 44.8 | BC662: =zg_4f_l -> 44.8 | BE662: Linie | BF662: =ref_hor+zg_4f_abstand_x+5 -> 375 | BG662: =ref_ver+zg_4f_abstand_z -> 95 | BH662: =ref_hor+zg_4f_abstand_x-zg_4f_h-5 -> 349.8 | BI662: =ref_ver+zg_4f_abstand_z -> 95 | BK662: ohne | BL662: - | BM662: - | BN662: - | BO662: - | BQ662: Rechteck | BR662: =ref_hor+zg_4f_abstand_x-zg_4f_h -> 354.8 | BS662: =ref_ver_XY-zg_4f_abstand_y-1/2*zg_4f_l -> 32.6 | BT662: =zg_4f_h -> 15.2 | BU662: =zg_4f_l -> 44.8 | BW662: Linie | BX662: =ref_hor+zg_4f_abstand_x+5 -> 375 | BY662: =ref_ver_XY-zg_4f_abstand_y -> 55 | BZ662: =ref_hor+zg_4f_abstand_x-zg_4f_h-5 -> 349.8 | CA662: =ref_ver_XY-zg_4f_abstand_y -> 55
O663: Y+0 | P663: =zg_4f_sa_x -> 100 | Q663: =zg_4f_sa_y+zg_4f_zs -> 181.8 | R663: =zg_4f_sa_z -> 200 | AB663: =zg_4f_Jy+zg_4f_masse*((zg_4f_sa_x/1000)^2+((zg_4f_sa_y+zg_4f_zs)/1000)^2) -> 0.069039984 | AC663: 663 | AD663: Y+0 | AF663: blue | AS663: Kreis | AT663: =ref_hor+zg_4f_abstand_x-1/2*zg_4f_l -> 347.6 | AU663: =ref_ver+zg_4f_abstand_z-1/2*zg_4f_l -> 72.6 | AV663: =zg_4f_l -> 44.8 | AW663: =zg_4f_l -> 44.8 | AY663: Rechteck | AZ663: =ref_hor+zg_4f_abstand_y -> 390 | BA663: =ref_ver+zg_4f_abstand_z-1/2*zg_4f_l -> 72.6 | BB663: =zg_4f_h -> 15.2 | BC663: =zg_4f_l -> 44.8 | BE663: ohne | BF663: - | BG663: - | BH663: - | BI663: - | BK663: Linie | BL663: =ref_hor+zg_4f_abstand_y-5 -> 385 | BM663: =ref_ver+zg_4f_abstand_z -> 95 | BN663: =ref_hor+zg_4f_abstand_y+zg_4f_h+5 -> 410.2 | BO663: =ref_ver+zg_4f_abstand_z -> 95 | BQ663: Rechteck | BR663: =ref_hor+zg_4f_abstand_x-1/2*zg_4f_l -> 347.6 | BS663: =ref_ver_XY-zg_4f_abstand_y-zg_4f_h -> 39.8 | BT663: =zg_4f_l -> 44.8 | BU663: =zg_4f_h -> 15.2 | BW663: Linie | BX663: =ref_hor+zg_4f_abstand_x -> 370 | BY663: =ref_ver_XY-zg_4f_abstand_y+5 -> 60 | BZ663: =ref_hor+zg_4f_abstand_x -> 370 | CA663: =ref_ver_XY-zg_4f_abstand_y-zg_4f_h-5 -> 34.8
O664: Y-0 | P664: =zg_4f_sa_x -> 100 | Q664: =zg_4f_sa_y-zg_4f_zs -> 118.2 | R664: =zg_4f_sa_z -> 200 | AB664: =zg_4f_Jy+zg_4f_masse*((zg_4f_sa_x/1000)^2+((zg_4f_sa_y-zg_4f_zs)/1000)^2) -> 0.038511984 | AC664: 664 | AD664: Y-0 | AF664: blue | AS664: Kreis | AT664: =ref_hor+zg_4f_abstand_x-1/2*zg_4f_l -> 347.6 | AU664: =ref_ver+zg_4f_abstand_z-1/2*zg_4f_l -> 72.6 | AV664: =zg_4f_l -> 44.8 | AW664: =zg_4f_l -> 44.8 | AY664: Rechteck | AZ664: =ref_hor+zg_4f_abstand_y-zg_4f_h -> 374.8 | BA664: =ref_ver+zg_4f_abstand_z-1/2*zg_4f_l -> 72.6 | BB664: =zg_4f_h -> 15.2 | BC664: =zg_4f_l -> 44.8 | BE664: ohne | BF664: - | BG664: - | BH664: - | BI664: - | BK664: Linie | BL664: =ref_hor+zg_4f_abstand_y+5 -> 395 | BM664: =ref_ver+zg_4f_abstand_z -> 95 | BN664: =ref_hor+zg_4f_abstand_y-zg_4f_h-5 -> 369.8 | BO664: =ref_ver+zg_4f_abstand_z -> 95 | BQ664: Rechteck | BR664: =ref_hor+zg_4f_abstand_x-1/2*zg_4f_l -> 347.6 | BS664: =ref_ver_XY-zg_4f_abstand_y -> 55 | BT664: =zg_4f_l -> 44.8 | BU664: =zg_4f_h -> 15.2 | BW664: Linie | BX664: =ref_hor+zg_4f_abstand_x -> 370 | BY664: =ref_ver_XY-zg_4f_abstand_y-5 -> 50 | BZ664: =ref_hor+zg_4f_abstand_x -> 370 | CA664: =ref_ver_XY-zg_4f_abstand_y+zg_4f_h+5 -> 75.2
O665: Z+0 | P665: =zg_4f_sa_x -> 100 | Q665: =zg_4f_sa_y -> 150 | R665: =zg_4f_sa_z+zg_4f_zs -> 231.8 | AB665: =zg_4f_Jz+zg_4f_masse*((zg_4f_sa_x/1000)^2+(zg_4f_sa_y/1000)^2) -> 0.052223 | AC665: 665 | AD665: Z+0 | AF665: blue | AS665: Rechteck | AT665: =ref_hor+zg_4f_abstand_x-1/2*zg_4f_l -> 347.6 | AU665: =ref_ver+zg_4f_abstand_z -> 95 | AV665: =zg_4f_l -> 44.8 | AW665: =zg_4f_h -> 15.2 | AY665: Rechteck | AZ665: =ref_hor+zg_4f_abstand_y-1/2*zg_4f_l -> 367.6 | BA665: =ref_ver+zg_4f_abstand_z -> 95 | BB665: =zg_4f_l -> 44.8 | BC665: =zg_4f_h -> 15.2 | BE665: Linie | BF665: =ref_hor+zg_4f_abstand_x -> 370 | BG665: =ref_ver+zg_4f_abstand_z-5 -> 90 | BH665: =ref_hor+zg_4f_abstand_x -> 370 | BI665: =ref_ver+zg_4f_abstand_z+zg_4f_h+5 -> 115.2 | BK665: Linie | BL665: =ref_hor+zg_4f_abstand_y -> 390 | BM665: =ref_ver+zg_4f_abstand_z-5 -> 90 | BN665: =ref_hor+zg_4f_abstand_y -> 390 | BO665: =ref_ver+zg_4f_abstand_z+zg_4f_h+5 -> 115.2 | BQ665: Kreis | BR665: =ref_hor+zg_4f_abstand_x-1/2*zg_4f_l -> 347.6 | BS665: =ref_ver_XY-zg_4f_abstand_y-1/2*zg_4f_l -> 32.6 | BT665: =zg_4f_l -> 44.8 | BU665: =zg_4f_l -> 44.8 | BW665: ohne | BX665: - | BY665: - | BZ665: - | CA665: -
O666: Z-0 | P666: =zg_4f_sa_x -> 100 | Q666: =zg_4f_sa_y -> 150 | R666: =zg_4f_sa_z-zg_4f_zs -> 168.2 | AB666: =zg_4f_Jz+zg_4f_masse*((zg_4f_sa_x/1000)^2+(zg_4f_sa_y/1000)^2) -> 0.052223 | AC666: 666 | AD666: Z-0 | AF666: blue | AS666: Rechteck | AT666: =ref_hor+zg_4f_abstand_x-1/2*zg_4f_l -> 347.6 | AU666: =ref_ver+zg_4f_abstand_z-zg_4f_h -> 79.8 | AV666: =zg_4f_l -> 44.8 | AW666: =zg_4f_h -> 15.2 | AY666: Rechteck | AZ666: =ref_hor+zg_4f_abstand_y-1/2*zg_4f_l -> 367.6 | BA666: =ref_ver+zg_4f_abstand_z-zg_4f_h -> 79.8 | BB666: =zg_4f_l -> 44.8 | BC666: =zg_4f_h -> 15.2 | BE666: Linie | BF666: =ref_hor+zg_4f_abstand_x -> 370 | BG666: =ref_ver+zg_4f_abstand_z+5 -> 100 | BH666: =ref_hor+zg_4f_abstand_x -> 370 | BI666: =ref_ver+zg_4f_abstand_z-zg_4f_h-5 -> 74.8 | BK666: Linie | BL666: =ref_hor+zg_4f_abstand_y -> 390 | BM666: =ref_ver+zg_4f_abstand_z+5 -> 100 | BN666: =ref_hor+zg_4f_abstand_y -> 390 | BO666: =ref_ver+zg_4f_abstand_z-zg_4f_h-5 -> 74.8 | BQ666: Kreis | BR666: =ref_hor+zg_4f_abstand_x-1/2*zg_4f_l -> 347.6 | BS666: =ref_ver_XY-zg_4f_abstand_y-1/2*zg_4f_l -> 32.6 | BT666: =zg_4f_l -> 44.8 | BU666: =zg_4f_l -> 44.8 | BW666: ohne | BX666: - | BY666: - | BZ666: - | CA666: -
N703: Jx | O703: Jy | P703: Jz
N704: =VLOOKUP(se_typ,Tabelle22[[Typ]:[Jzs]],10,FALSE) -> 0.000691 | O704: =VLOOKUP(se_typ,Tabelle22[[Typ]:[Jzs]],11,FALSE) -> 0.001749 | P704: =VLOOKUP(se_typ,Tabelle22[[Typ]:[Jzs]],12,FALSE) -> 0.00207
B705: Schwenkeinheit
B706: Bezeichnung | C706: Typ | D706: Bestellnr. | E706: Länge [mm] | F706: Breite [mm] | G706: Höhe [mm] | H706: Masse [kg] | I706: Abstand Mitte Schwenkeinh. x [mm] | J706: Abstand Mitte Schwenkeinh. y [mm] | K706: Abstand Mitte Schwenkeinh. z [mm] | L706: J Massenträg-heitsmoment [kg*m²] | M706: Farbe | N706: Abstand Schwerpkt von Greiferursprung xs | O706: Abstand Schwerpkt von Greiferursprung ys | P706: Abstand Schwerpkt von Greiferursprung zs | Q706: SP X | R706: SP Y | S706: SP Z | W706: R | X706: G | Y706: B | AG706: Ansichtsdarstellung Körper | AM706: Ansichtsdarstellung Achse | AS706: Form in XZ | AY706: Form in YZ | BE706: Achse in XZ | BK706: Achse in YZ | BQ706: Form in XY | BW706: Achse in XY
... 29 more rows

Sheet 90_Grad
A1: Berechnung Schwenkzeiten 90° Schwenkbewegung
A3: Startposition Schwerpunkt | C3: =Startposi -> 9 | D3: =Startposi
A4: Endposition Schwerpunkt | C4: =Endposi -> 3 | D4: =Endposi
A5: Schwenkwinkel | C5: =Winkel -> 180 | D5: =Winkel
A6: Lage des Aufbaus | C6: =lage_aufbau -> stehend | D6: =lage_aufbau
B11: SRU+20-W vertikal | D11: SRU+20-W hebend | F11: SRU+20-W fallend
A13: Prozentuale Auslastung | B13: ='SRU+20-W'!I12 -> 0 | D13: ='SRU+20-W'!I56 ->  | F13: ='SRU+20-W'!AE56 -> 
A14: Schwenkzeit 180° | B14: ='SRU+20-W'!G6 -> 0.45 | D14: ='SRU+20-W'!G50 ->  | F14: ='SRU+20-W'!AC50 -> 
A15: Auswahl Schwenkzeitanpassung | B15: =IF(B13>0.3,IF(B13>0.6,3,2),1) -> 1 | D15: =IF(D13>0.3,IF(D13>0.6,3,2),1) ->  | F15: =IF(F13>0.3,IF(F13>0.6,3,2),1) -> 
A16: Schwenkzeit 90° | B16: =IF(B14="unzulässig","unzulässig",IF(B15=1,B14-0.05,IF(B15=2,B14-0.1,IF(B15=3,B14-0.15)))) -> 0.4 | D16: =IF(D14="unzulässig","unzulässig",IF(D15=1,D14-0.05,IF(D15=2,D14-0.1,IF(D15=3,D14-0.15)))) ->  | F16: =IF(F14="unzulässig","unzulässig",IF(F15=1,F14-0.05,IF(F15=2,F14-0.1,IF(F15=3,F14-0.15)))) -> 
B20: SRU+20-S vertikal | D20: SRU+20-S hebend | F20: SRU+20-S fallend
A22: Prozentuale Auslastung | B22: ='SRU+20-S'!I12 -> 0 | D22: ='SRU+20-S'!I56 ->  | F22: ='SRU+20-S'!AE56 -> 
A23: Schwenkzeit 180° | B23: ='SRU+20-S'!G6 -> 0.3 | D23: ='SRU+20-S'!G50 ->  | F23: ='SRU+20-S'!AC50 -> 
A24: Auswahl Schwenkzeitanpassung | B24: =IF(B22>0.3,IF(B22>0.6,3,2),1) -> 1 | D24: =IF(D22>0.3,IF(D22>0.6,3,2),1) ->  | F24: =IF(F22>0.3,IF(F22>0.6,3,2),1) -> 
A25: Schwenkzeit 90° | B25: =IF(B23="unzulässig","unzulässig",IF(B24=1,B23-0.05,IF(B24=2,B23-0.1,IF(B24=3,B23-0.15)))) -> 0.25 | D25: =IF(D23="unzulässig","unzulässig",IF(D24=1,D23-0.05,IF(D24=2,D23-0.1,IF(D24=3,D23-0.15)))) ->  | F25: =IF(F23="unzulässig","unzulässig",IF(F24=1,F23-0.05,IF(F24=2,F23-0.1,IF(F24=3,F23-0.15)))) -> 
B29: SRU+25-W vertikal | D29: SRU+25-W hebend | F29: SRU+25-W fallend
A31: Prozentuale Auslastung | B31: ='SRU+25-W'!I12 -> 0 | D31: ='SRU+25-W'!I56 ->  | F31: ='SRU+25-W'!AE56 -> 
A32: Schwenkzeit 180° | B32: ='SRU+25-W'!G6 -> 0.5 | D32: ='SRU+25-W'!G50 ->  | F32: ='SRU+25-W'!AC50 -> 
A33: Auswahl Schwenkzeitanpassung | B33: =IF(B31>0.3,IF(B31>0.6,3,2),1) -> 1 | D33: =IF(D31>0.3,IF(D31>0.6,3,2),1) ->  | F33: =IF(F31>0.3,IF(F31>0.6,3,2),1) -> 
A34: Schwenkzeit 90° | B34: =IF(B32="unzulässig","unzulässig",IF(B33=1,B32-0.05,IF(B33=2,B32-0.1,IF(B33=3,B32-0.15)))) -> 0.45 | D34: =IF(D32="unzulässig","unzulässig",IF(D33=1,D32-0.05,IF(D33=2,D32-0.1,IF(D33=3,D32-0.15)))) ->  | F34: =IF(F32="unzulässig","unzulässig",IF(F33=1,F32-0.05,IF(F33=2,F32-0.1,IF(F33=3,F32-0.15)))) -> 
B38: SRU+25-H vertikal | D38: SRU+25-H hebend | F38: SRU+25-H fallend
A40: Prozentuale Auslastung | B40: ='SRU+25-H'!I12 -> 0 | D40: ='SRU+25-H'!I56 -> 0 | F40: ='SRU+25-H'!AE56 -> 0
A41: Schwenkzeit 180° | B41: ='SRU+25-H'!G6 -> 0.6 | D41: ='SRU+25-H'!G50 -> 0.6 | F41: ='SRU+25-H'!AC50 -> 0.6
A42: Auswahl Schwenkzeitanpassung | B42: =IF(B40>0.3,IF(B40>0.6,3,2),1) -> 1 | D42: =IF(D40>0.3,IF(D40>0.6,3,2),1) -> 1 | F42: =IF(F40>0.3,IF(F40>0.6,3,2),1) -> 1
A43: Schwenkzeit 90° | B43: =IF(B41="unzulässig","unzulässig",IF(B42=1,B41-0.05,IF(B42=2,B41-0.1,IF(B42=3,B41-0.15)))) -> 0.55 | D43: =IF(D41="unzulässig","unzulässig",IF(D42=1,D41-0.05,IF(D42=2,D41-0.1,IF(D42=3,D41-0.15)))) -> 0.55 | F43: =IF(F41="unzulässig","unzulässig",IF(F42=1,F41-0.05,IF(F42=2,F41-0.1,IF(F42=3,F41-0.15)))) -> 0.55
B47: SRU+30-W vertikal | D47: SRU+30-W hebend | F47: SRU+30-W fallend
A49: Prozentuale Auslastung | B49: ='SRU+30-W'!I12 -> 0 | D49: ='SRU+30-W'!I56 ->  | F49: ='SRU+30-W'!AE56 -> 
A50: Schwenkzeit 180° | B50: ='SRU+30-W'!G6 -> 0.8 | D50: ='SRU+30-W'!G50 ->  | F50: ='SRU+30-W'!AC50 -> 
A51: Auswahl Schwenkzeitanpassung | B51: =IF(B49>0.3,IF(B49>0.6,3,2),1) -> 1 | D51: =IF(D49>0.3,IF(D49>0.6,3,2),1) ->  | F51: =IF(F49>0.3,IF(F49>0.6,3,2),1) -> 
A52: Schwenkzeit 90° | B52: =IF(B50="unzulässig","unzulässig",IF(B51=1,B50-0.05,IF(B51=2,B50-0.1,IF(B51=3,B50-0.15)))) -> 0.75 | D52: =IF(D50="unzulässig","unzulässig",IF(D51=1,D50-0.05,IF(D51=2,D50-0.1,IF(D51=3,D50-0.15)))) ->  | F52: =IF(F50="unzulässig","unzulässig",IF(F51=1,F50-0.05,IF(F51=2,F50-0.1,IF(F51=3,F50-0.15)))) -> 
B56: SRU+30-H vertikal | D56: SRU+30-H hebend | F56: SRU+30-H fallend
A58: Prozentuale Auslastung | B58: ='SRU+30-H'!I12 -> 0 | D58: ='SRU+30-H'!I56 -> 0 | F58: ='SRU+30-H'!AE56 -> 0
A59: Schwenkzeit 180° | B59: ='SRU+30-H'!G6 -> 1.4 | D59: ='SRU+30-H'!G50 -> 1.4 | F59: ='SRU+30-H'!AC50 -> 1.4
A60: Auswahl Schwenkzeitanpassung | B60: =IF(B58>0.3,IF(B58>0.6,3,2),1) -> 1 | D60: =IF(D58>0.3,IF(D58>0.6,3,2),1) -> 1 | F60: =IF(F58>0.3,IF(F58>0.6,3,2),1) -> 1
A61: Schwenkzeit 90° | B61: =IF(B59="unzulässig","unzulässig",IF(B60=1,B59-0.05,IF(B60=2,B59-0.1,IF(B60=3,B59-0.15)))) -> 1.35 | D61: =IF(D59="unzulässig","unzulässig",IF(D60=1,D59-0.05,IF(D60=2,D59-0.1,IF(D60=3,D59-0.15)))) -> 1.35 | F61: =IF(F59="unzulässig","unzulässig",IF(F60=1,F59-0.05,IF(F60=2,F59-0.1,IF(F60=3,F59-0.15)))) -> 1.35
B65: SRU+35-W vertikal | D65: SRU+35-W hebend | F65: SRU+35-W fallend
A67: Prozentuale Auslastung | B67: ='SRU+35-W'!I12 -> 0 | D67: ='SRU+35-W'!I56 ->  | F67: ='SRU+35-W'!AE56 -> 
A68: Schwenkzeit 180° | B68: ='SRU+35-W'!G6 -> 0.9 | D68: ='SRU+35-W'!G50 ->  | F68: ='SRU+35-W'!AC50 -> 
A69: Auswahl Schwenkzeitanpassung | B69: =IF(B67>0.3,IF(B67>0.6,3,2),1) -> 1 | D69: =IF(D67>0.3,IF(D67>0.6,3,2),1) ->  | F69: =IF(F67>0.3,IF(F67>0.6,3,2),1) -> 
A70: Schwenkzeit 90° | B70: =IF(B68="unzulässig","unzulässig",IF(B69=1,B68-0.05,IF(B69=2,B68-0.1,IF(B69=3,B68-0.15)))) -> 0.85 | D70: =IF(D68="unzulässig","unzulässig",IF(D69=1,D68-0.05,IF(D69=2,D68-0.1,IF(D69=3,D68-0.15)))) ->  | F70: =IF(F68="unzulässig","unzulässig",IF(F69=1,F68-0.05,IF(F69=2,F68-0.1,IF(F69=3,F68-0.15)))) -> 
B74: SRU+40-W vertikal | D74: SRU+40-W hebend | F74: SRU+40-W fallend
A76: Prozentuale Auslastung | B76: ='SRU+40-W'!I12 -> 0 | D76: ='SRU+40-W'!I56 ->  | F76: ='SRU+40-W'!AE56 -> 
A77: Schwenkzeit 180° | B77: ='SRU+40-W'!G6 -> 0.89 | D77: ='SRU+40-W'!G50 ->  | F77: ='SRU+40-W'!AC50 -> 
A78: Auswahl Schwenkzeitanpassung | B78: =IF(B76>0.3,IF(B76>0.6,3,2),1) -> 1 | D78: =IF(D76>0.3,IF(D76>0.6,3,2),1) ->  | F78: =IF(F76>0.3,IF(F76>0.6,3,2),1) -> 
A79: Schwenkzeit 90° | B79: =IF(B77="unzulässig","unzulässig",IF(B78=1,B77-0.1,IF(B78=2,B77-0.2,IF(B78=3,B77-0.3)))) -> 0.79 | D79: =IF(D77="unzulässig","unzulässig",IF(D78=1,D77-0.1,IF(D78=2,D77-0.2,IF(D78=3,D77-0.3)))) ->  | F79: =IF(F77="unzulässig","unzulässig",IF(F78=1,F77-0.1,IF(F78=2,F77-0.2,IF(F78=3,F77-0.3)))) -> 
B83: SRU+40-H vertikal | D83: SRU+40-H hebend | F83: SRU+40-H fallend
A85: Prozentuale Auslastung | B85: ='SRU+40-H'!I12 -> 0 | D85: ='SRU+40-H'!I56 -> 0 | F85: ='SRU+40-H'!AE56 -> 0
A86: Schwenkzeit 180° | B86: ='SRU+40-H'!G6 -> 1.3 | D86: ='SRU+40-H'!G50 -> 1.3 | F86: ='SRU+40-H'!AC50 -> 1.3
A87: Auswahl Schwenkzeitanpassung | B87: =IF(B85>0.3,IF(B85>0.6,3,2),1) -> 1 | D87: =IF(D85>0.3,IF(D85>0.6,3,2),1) -> 1 | F87: =IF(F85>0.3,IF(F85>0.6,3,2),1) -> 1
A88: Schwenkzeit 90° | B88: =IF(B86="unzulässig","unzulässig",IF(B87=1,B86-0.1,IF(B87=2,B86-0.2,IF(B87=3,B86-0.3)))) -> 1.2 | D88: =IF(D86="unzulässig","unzulässig",IF(D87=1,D86-0.1,IF(D87=2,D86-0.2,IF(D87=3,D86-0.3)))) -> 1.2 | F88: =IF(F86="unzulässig","unzulässig",IF(F87=1,F86-0.1,IF(F87=2,F86-0.2,IF(F87=3,F86-0.3)))) -> 1.2
B92: SRU+50-W vertikal | D92: SRU+50-W hebend | F92: SRU+50-W fallend
A94: Prozentuale Auslastung | B94: ='SRU+50-W'!I12 -> 0 | D94: ='SRU+50-W'!I56 ->  | F94: ='SRU+50-W'!AE56 -> 
A95: Schwenkzeit 180° | B95: ='SRU+50-W'!G6 -> 1.1 | D95: ='SRU+50-W'!G50 ->  | F95: ='SRU+50-W'!AC50 -> 
A96: Auswahl Schwenkzeitanpassung | B96: =IF(B94>0.3,IF(B94>0.6,3,2),1) -> 1 | D96: =IF(D94>0.3,IF(D94>0.6,3,2),1) ->  | F96: =IF(F94>0.3,IF(F94>0.6,3,2),1) -> 
A97: Schwenkzeit 90° | B97: =IF(B95="unzulässig","unzulässig",IF(B96=1,B95-0.1,IF(B96=2,B95-0.2,IF(B96=3,B95-0.3)))) -> 1 | D97: =IF(D95="unzulässig","unzulässig",IF(D96=1,D95-0.1,IF(D96=2,D95-0.2,IF(D96=3,D95-0.3)))) ->  | F97: =IF(F95="unzulässig","unzulässig",IF(F96=1,F95-0.1,IF(F96=2,F95-0.2,IF(F96=3,F95-0.3)))) -> 
B101: SRU+50-H vertikal | D101: SRU+50-H hebend | F101: SRU+50-H fallend
A103: Prozentuale Auslastung | B103: ='SRU+50-H'!I12 -> 0 | D103: ='SRU+50-H'!I56 -> 0 | F103: ='SRU+50-H'!AE56 -> 0
A104: Schwenkzeit 180° | B104: ='SRU+50-H'!G6 -> 1.3 | D104: ='SRU+50-H'!G50 -> 1.3 | F104: ='SRU+50-H'!AC50 -> 1.3
A105: Auswahl Schwenkzeitanpassung | B105: =IF(B103>0.3,IF(B103>0.6,3,2),1) -> 1 | D105: =IF(D103>0.3,IF(D103>0.6,3,2),1) -> 1 | F105: =IF(F103>0.3,IF(F103>0.6,3,2),1) -> 1
A106: Schwenkzeit 90° | B106: =IF(B104="unzulässig","unzulässig",IF(B105=1,B104-0.1,IF(B105=2,B104-0.2,IF(B105=3,B104-0.3)))) -> 1.2 | D106: =IF(D104="unzulässig","unzulässig",IF(D105=1,D104-0.1,IF(D105=2,D104-0.2,IF(D105=3,D104-0.3)))) -> 1.2 | F106: =IF(F104="unzulässig","unzulässig",IF(F105=1,F104-0.1,IF(F105=2,F104-0.2,IF(F105=3,F104-0.3)))) -> 1.2
B110: SRU+60-W vertikal | D110: SRU+60-W hebend | F110: SRU+60-W fallend
A112: Prozentuale Auslastung | B112: ='SRU+60-W'!I12 -> 0 | D112: ='SRU+60-W'!I56 ->  | F112: ='SRU+60-W'!AE56 -> 
A113: Schwenkzeit 180° | B113: ='SRU+60-W'!G6 -> 1.3 | D113: ='SRU+60-W'!G50 ->  | F113: ='SRU+60-W'!AC50 -> 
A114: Auswahl Schwenkzeitanpassung | B114: =IF(B112>0.3,IF(B112>0.6,3,2),1) -> 1 | D114: =IF(D112>0.3,IF(D112>0.6,3,2),1) ->  | F114: =IF(F112>0.3,IF(F112>0.6,3,2),1) -> 
A115: Schwenkzeit 90° | B115: =IF(B113="unzulässig","unzulässig",IF(B114=1,B113-0.1,IF(B114=2,B113-0.2,IF(B114=3,B113-0.3)))) -> 1.2 | D115: =IF(D113="unzulässig","unzulässig",IF(D114=1,D113-0.1,IF(D114=2,D113-0.2,IF(D114=3,D113-0.3)))) ->  | F115: =IF(F113="unzulässig","unzulässig",IF(F114=1,F113-0.1,IF(F114=2,F113-0.2,IF(F114=3,F113-0.3)))) -> 
B117: SRU+63-W vertikal | D117: SRU+63-W hebend | F117: SRU+63-W fallend
A119: Prozentuale Auslastung | B119: ='SRU+63-W'!I12 -> 0 | D119: ='SRU+63-W'!I56 ->  | F119: ='SRU+63-W'!AE56 -> 
A120: Schwenkzeit 180° | B120: ='SRU+63-W'!G6 -> 1.8 | D120: ='SRU+63-W'!G50 ->  | F120: ='SRU+63-W'!AC50 -> 
A121: Auswahl Schwenkzeitanpassung | B121: =IF(B119>0.3,IF(B119>0.6,3,2),1) -> 1 | D121: =IF(D119>0.3,IF(D119>0.6,3,2),1) ->  | F121: =IF(F119>0.3,IF(F119>0.6,3,2),1) -> 
A122: Schwenkzeit 90° | B122: =IF(B120="unzulässig","unzulässig",IF(B121=1,B120-0.1,IF(B121=2,B120-0.2,IF(B121=3,B120-0.3)))) -> 1.7 | D122: =IF(D120="unzulässig","unzulässig",IF(D121=1,D120-0.1,IF(D121=2,D120-0.2,IF(D121=3,D120-0.3)))) ->  | F122: =IF(F120="unzulässig","unzulässig",IF(F121=1,F120-0.1,IF(F121=2,F120-0.2,IF(F121=3,F120-0.3)))) -> 
B124: SRM-16-H vertikal | D124: SRM-16-H hebend | F124: SRM-16-H fallend
A126: Prozentuale Auslastung | B126: ='SRM-16-H'!I12 -> 0 | D126: ='SRM-16-H'!I56 ->  | F126: ='SRM-16-H'!AE56 -> 
A127: Schwenkzeit 180° | B127: ='SRM-16-H'!G6 -> 0.4 | D127: ='SRM-16-H'!G50 ->  | F127: ='SRM-16-H'!AC50 -> 
A128: Auswahl Schwenkzeitanpassung | B128: =IF(B126>0.3,IF(B126>0.6,3,2),1) -> 1 | D128: =IF(D126>0.3,IF(D126>0.6,3,2),1) ->  | F128: =IF(F126>0.3,IF(F126>0.6,3,2),1) -> 
A129: Schwenkzeit 90° | B129: =IF(B127="unzulässig","unzulässig",IF(B128=1,B127-0.05,IF(B128=2,B127-0.1,IF(B128=3,B127-0.15)))) -> 0.35 | D129: =IF(D127="unzulässig","unzulässig",IF(D128=1,D127-0.05,IF(D128=2,D127-0.1,IF(D128=3,D127-0.15)))) ->  | F129: =IF(F127="unzulässig","unzulässig",IF(F128=1,F127-0.05,IF(F128=2,F127-0.1,IF(F128=3,F127-0.15)))) -> 
B131: SRM-25-H vertikal | D131: SRM-25-H hebend | F131: SRM-25-H fallend
A133: Prozentuale Auslastung | B133: ='SRM-25-H'!I12 -> 0 | D133: ='SRM-25-H'!I56 ->  | F133: ='SRM-25-H'!AE56 -> 
A134: Schwenkzeit 180° | B134: ='SRM-25-H'!G6 -> 0.45 | D134: ='SRM-25-H'!G50 ->  | F134: ='SRM-25-H'!AC50 -> 
A135: Auswahl Schwenkzeitanpassung | B135: =IF(B133>0.3,IF(B133>0.6,3,2),1) -> 1 | D135: =IF(D133>0.3,IF(D133>0.6,3,2),1) ->  | F135: =IF(F133>0.3,IF(F133>0.6,3,2),1) -> 
A136: Schwenkzeit 90° | B136: =IF(B134="unzulässig","unzulässig",IF(B135=1,B134-0.05,IF(B135=2,B134-0.1,IF(B135=3,B134-0.15)))) -> 0.4 | D136: =IF(D134="unzulässig","unzulässig",IF(D135=1,D134-0.05,IF(D135=2,D134-0.1,IF(D135=3,D134-0.15)))) ->  | F136: =IF(F134="unzulässig","unzulässig",IF(F135=1,F134-0.05,IF(F135=2,F134-0.1,IF(F135=3,F134-0.15)))) -> 
B138: SRM-40-H vertikal | D138: SRM-40-H hebend | F138: SRM-40-H fallend
A140: Prozentuale Auslastung | B140: ='SRM-40-H'!I12 -> 0 | D140: ='SRM-40-H'!I56 ->  | F140: ='SRM-40-H'!AE56 -> 
A141: Schwenkzeit 180° | B141: ='SRM-40-H'!G6 -> 1.4 | D141: ='SRM-40-H'!G50 ->  | F141: ='SRM-40-H'!AC50 -> 
A142: Auswahl Schwenkzeitanpassung | B142: =IF(B140>0.3,IF(B140>0.6,3,2),1) -> 1 | D142: =IF(D140>0.3,IF(D140>0.6,3,2),1) ->  | F142: =IF(F140>0.3,IF(F140>0.6,3,2),1) -> 
A143: Schwenkzeit 90° | B143: =IF(B141="unzulässig","unzulässig",IF(B142=1,B141-0.1,IF(B142=2,B141-0.2,IF(B142=3,B141-0.3)))) -> 1.3 | D143: =IF(D141="unzulässig","unzulässig",IF(D142=1,D141-0.1,IF(D142=2,D141-0.2,IF(D142=3,D141-0.3)))) ->  | F143: =IF(F141="unzulässig","unzulässig",IF(F142=1,F141-0.1,IF(F142=2,F141-0.2,IF(F142=3,F141-0.3)))) -> 
B145: SRM-14-E vertikal | D145: SRM-14-E hebend | F145: SRM-14-E fallend
A147: Prozentuale Auslastung | B147: ='SRM-14-E'!I19 -> 0 | D147: ='SRM-14-E'!I56 ->  | F147: ='SRM-14-E'!AC56 -> 
A148: Schwenkzeit 180° | B148: ='SRM-14-E'!G6 -> 0.15 | D148: ='SRM-14-E'!G50 ->  | F148: ='SRM-14-E'!AC50 -> 
A149: Auswahl Schwenkzeitanpassung | B149: =IF(B147>0.3,IF(B147>0.6,3,2),1) -> 1 | D149: =IF(D147>0.3,IF(D147>0.6,3,2),1) ->  | F149: =IF(F147>0.3,IF(F147>0.6,3,2),1) -> 
A150: Schwenkzeit 90° | B150: =IF(B148="unzulässig","unzulässig",IF(B149=1,B148-0,IF(B149=2,B148-0,IF(B149=3,B148-0)))) -> 0.15 | D150: =IF(D148="unzulässig","unzulässig",IF(D149=1,D148-0,IF(D149=2,D148-0,IF(D149=3,D148-0)))) ->  | F150: =IF(F148="unzulässig","unzulässig",IF(F149=1,F148-0,IF(F149=2,F148-0,IF(F149=3,F148-0)))) -> 
B152: SRM-14-X vertikal | D152: SRM-14-X hebend | F152: SRM-14-X fallend
A154: Prozentuale Auslastung | B154: ='SRM-14-X'!I12 -> 0 | D154: ='SRM-14-X'!I56 ->  | F154: ='SRM-14-X'!AE56 -> 
A155: Schwenkzeit 180° | B155: ='SRM-14-X'!G6 -> 0.2 | D155: ='SRM-14-X'!G50 ->  | F155: ='SRM-14-X'!AC50 -> 
A156: Auswahl Schwenkzeitanpassung | B156: =IF(B154>0.3,IF(B154>0.6,3,2),1) -> 1 | D156: =IF(D154>0.3,IF(D154>0.6,3,2),1) ->  | F156: =IF(F154>0.3,IF(F154>0.6,3,2),1) -> 
A157: Schwenkzeit 90° | B157: =IF(B155="unzulässig","unzulässig",IF(B156=1,B155-0,IF(B156=2,B155-0,IF(B156=3,B155-0.1)))) -> 0.2 | D157: =IF(D155="unzulässig","unzulässig",IF(D156=1,D155-0,IF(D156=2,D155-0,IF(D156=3,D155-0)))) ->  | F157: =IF(F155="unzulässig","unzulässig",IF(F156=1,F155-0,IF(F156=2,F155-0,IF(F156=3,F155-0)))) -> 
B160: SRM-14-H vertikal | D160: SRM-14-H hebend | F160: SRM-14-H fallend
A162: Prozentuale Auslastung | B162: ='SRM-14-H'!I12 -> 0 | D162: ='SRM-14-H'!I56 ->  | F162: ='SRM-14-H'!AE56 -> 
A163: Schwenkzeit 180° | B163: ='SRM-14-H'!G6 -> 0.27 | D163: ='SRM-14-H'!G50 ->  | F163: ='SRM-14-H'!AC50 -> 
A164: Auswahl Schwenkzeitanpassung | B164: =IF(B162>0.3,IF(B162>0.6,3,2),1) -> 1 | D164: =IF(D162>0.3,IF(D162>0.6,3,2),1) ->  | F164: =IF(F162>0.3,IF(F162>0.6,3,2),1) -> 
A165: Schwenkzeit 90° | B165: =IF(B163="unzulässig","unzulässig",IF(B164=1,B163-0.05,IF(B164=2,B163-0.1,IF(B164=3,B163-0.15)))) -> 0.22 | D165: =IF(D163="unzulässig","unzulässig",IF(D164=1,D163-0,IF(D164=2,D163-0,IF(D164=3,D163-0)))) ->  | F165: =IF(F163="unzulässig","unzulässig",IF(F164=1,F163-0,IF(F164=2,F163-0,IF(F164=3,F163-0)))) -> 

Sheet Vergleich-Mittelstellung
R1: =version -> SSE 7.3.0
B2: =Uebersetzung!A42 -> SSE 7.3.0 - Übersicht Schwenkmodule
B4: =Uebersetzung!A181 -> Neigungswinkel [Grad] | D4: 0
B5: =Uebersetzung!A182 -> Startposition | D5: 6 | E5: =Uebersetzung!A197 -> Uhr | I5: =Uebersetzung!A34 -> Kundenname: | N5: =J!P7 -> KUNDE | X5: =Uebersetzung!A185 -> Schwenkbewegung Schwerpunkt
B6: =Uebersetzung!A183 -> Endposition | D6: 12 | E6: =Uebersetzung!A197 -> Uhr | I6: =Uebersetzung!A35 -> Angebot-Nr: | N6: =J!P8 -> 999999 | X6: =Uebersetzung!A186 -> Startposition Schwerpunkt | AA6: 12 | AB6: =Uebersetzung!A197 -> Uhr
B7: =Uebersetzung!A44 -> Schwenkwinkel [Grad] | D7: 180 | I7: =Uebersetzung!A36 -> Bearbeiter: | N7: =J!P9 -> NAME | X7: =Uebersetzung!A187 -> Endposition Schwerpunkt | AA7: 6 | AB7: =Uebersetzung!A197 -> Uhr
B8: =Uebersetzung!A184 -> Schwenkbewegung | D8: Uhrzeigersinn | I8: =Uebersetzung!A37 -> Datum: | N8: =J!P10 -> 2018-08-08 | X8: =Uebersetzung!A44 -> Schwenkwinkel [Grad] | AA8: 180 | AC8: =Winkel -> 180
B9: =Uebersetzung!A45 -> Betriebsdruck [bar] | D9: 6 | X9: =Uebersetzung!A46 -> Lage des Aufbaus | AA9: stehend | AC9: =IF(Uebersetzung!A1=2,IF(lage_auf="lifting","hebend",IF(lage_auf="falling","fallend",IF(lage_auf="stationary","stehend",IF(lage_auf="hanging","hängend",IF(lage_auf="9 to 3 via 6","9 auf 3 über 6",IF(lage_auf="9 to 3 via 12","9 auf 3 über 12")))))),lage_auf) -> stehend | AD9: =lage_auf -> stehend
B10: Mittelstellung | D10: ?
B11: Schwenkbewegung Schwerpunkt
B12: =Uebersetzung!A47 -> Massenträgheitsmoment Aufbau [kgm²] | D12: =summe_J -> 0
B15: SRU-mini-Speed-M
D16: SRU 10-S-M | F16: SRU 12-S-M | H16: SRU 14-S-M
B17: =Uebersetzung!A56 -> Eignung | D17: ='SRU 10-S-M'!$J$166 -> unzulässig | F17: ='SRU 12-S-M'!$J$166 -> zulässig | H17: ='SRU 14-S-M'!$J$166 -> zulässig
B18: =Uebersetzung!A57 -> Massenträgheitsmoment | C18: J | D18: ='SRU 10-S-M'!$I$160 -> 0 | F18: ='SRU 12-S-M'!$I$160 -> 0 | H18: ='SRU 14-S-M'!$I$160 -> 0
B19: =Uebersetzung!A58 -> Lastmoment | C19: ML | D19: ='SRU 10-S-M'!$I$159 -> zulässig | F19: ='SRU 12-S-M'!$I$159 -> zulässig | H19: ='SRU 14-S-M'!$I$159 -> zulässig
B20: =Uebersetzung!A59 -> Energie pro Zyklus | C20: W3 | D20: ='SRU 10-S-M'!$I$161 -> Elastomer | F20: ='SRU 12-S-M'!$I$161 -> Elastomer | H20: ='SRU 14-S-M'!$I$161 -> Elastomer
B21: =Uebersetzung!A60 -> Energie pro Stunde | C21: W4 | D21: ='SRU 10-S-M'!$I$162 -> Elastomer | F21: ='SRU 12-S-M'!$I$162 -> Elastomer | H21: ='SRU 14-S-M'!$I$162 -> Elastomer
B22: =Uebersetzung!A61 -> Antriebsmoment | C22: Man | D22: ='SRU 10-S-M'!$I$163 -> zulässig | F22: ='SRU 12-S-M'!$I$163 -> zulässig | H22: ='SRU 14-S-M'!$I$163 -> zulässig
B23: =Uebersetzung!A62 -> Lagerbelastung 1 | C23: P01 | D23: ='SRU 10-S-M'!$I$164 -> unzulässig | F23: ='SRU 12-S-M'!$I$164 -> 0 | H23: ='SRU 14-S-M'!$I$164 -> 0
B24: =Uebersetzung!A63 -> Lagerbelastung 2 | C24: P02 | D24: ='SRU 10-S-M'!$I$165 -> unzulässig | F24: ='SRU 12-S-M'!$I$165 -> 0 | H24: ='SRU 14-S-M'!$I$165 -> 0
B25: =Uebersetzung!A201 -> Schwenkzeit 0° - 180° | C25: ts1 | D25: ='SRU 10-S-M'!$G$153 ->  | F25: ='SRU 12-S-M'!$G$153 -> 0.1574 | H25: ='SRU 14-S-M'!$G$153 -> 0.1995
B26: =Uebersetzung!A202 -> Schwenkzeit 0° - 90° | C26: ts2 | D26: ='SRU 10-S-M'!$G$154 ->  | F26: ='SRU 12-S-M'!$G$154 -> 0.15 | H26: ='SRU 14-S-M'!$G$154 -> 0.1465
B27: =Uebersetzung!A203 -> Schwenkzeit 90° -0° | C27: ts3 | D27: ='SRU 10-S-M'!$G$155 ->  | F27: ='SRU 12-S-M'!$G$155 -> 0.14 | H27: ='SRU 14-S-M'!$G$155 -> 0.2155
B28: =Uebersetzung!A204 -> Dämpferbeaufschlagung pro Std. | C28: amax | D28: ='SRU 10-S-M'!$G$156 ->  | F28: ='SRU 12-S-M'!$G$156 -> 4600 | H28: ='SRU 14-S-M'!$G$156 -> 4200
B31: SRU-plus-M
D32: SRU+20-S-M | F32: SRU+25-W-M | H32: SRU+30-W-M | J32: SRU+35-W-M | L32: SRU+40-W-M | N32: SRU+50-W-M | P32: SRU+60-W-M
B33: =Uebersetzung!A56 -> Eignung | D33: ='SRU+20-S-M'!$J$166 -> nicht sinnvoll | F33: ='SRU+25-W-M'!$J$166 -> nicht sinnvoll | H33: ='SRU+30-W-M'!$J$166 -> nicht sinnvoll | J33: ='SRU+35-W-M'!$J$166 -> nicht sinnvoll | L33: ='SRU+40-W-M'!$J$166 -> nicht sinnvoll | N33: ='SRU+50-W-M'!$J$166 -> nicht sinnvoll | P33: ='SRU+40-W-M'!$J$166 -> nicht sinnvoll
B34: =Uebersetzung!A57 -> Massenträgheitsmoment | C34: J | D34: ='SRU+20-S-M'!$I$160 -> 0 | F34: ='SRU+25-W-M'!$I$160 -> 0 | H34: ='SRU+30-W-M'!$I$160 -> 0 | J34: ='SRU+35-W-M'!$I$160 -> 0 | L34: ='SRU+40-W-M'!$I$160 -> 0 | N34: ='SRU+50-W-M'!$I$160 -> 0 | P34: ='SRU+60-W-M'!$I$160 -> 0
B35: =Uebersetzung!A58 -> Lastmoment | C35: ML | D35: ='SRU+20-S-M'!$I$159 -> zulässig | F35: ='SRU+25-W-M'!$I$159 -> zulässig | H35: ='SRU+30-W-M'!$I$159 -> zulässig | J35: ='SRU+35-W-M'!$I$159 -> zulässig | L35: ='SRU+40-W-M'!$I$159 -> zulässig | N35: ='SRU+50-W-M'!$I$159 -> zulässig | P35: ='SRU+60-W-M'!$I$159 -> zulässig
B36: =Uebersetzung!A59 -> Energie pro Zyklus | C36: W3 | D36: ='SRU+20-S-M'!$I$161 -> Elastomer | F36: ='SRU+25-W-M'!$I$161 -> unzulässig | H36: ='SRU+30-W-M'!$I$161 -> unzulässig | J36: ='SRU+35-W-M'!$I$161 -> unzulässig | L36: ='SRU+40-W-M'!$I$161 -> unzulässig | N36: ='SRU+50-W-M'!$I$161 -> unzulässig | P36: ='SRU+60-W-M'!$I$161 -> unzulässig
B37: =Uebersetzung!A60 -> Energie pro Stunde | C37: W4 | D37: ='SRU+20-S-M'!$I$162 -> Elastomer | F37: ='SRU+25-W-M'!$I$162 -> unzulässig | H37: ='SRU+30-W-M'!$I$162 -> unzulässig | J37: ='SRU+35-W-M'!$I$162 -> unzulässig | L37: ='SRU+40-W-M'!$I$162 -> unzulässig | N37: ='SRU+50-W-M'!$I$162 -> unzulässig | P37: ='SRU+60-W-M'!$I$162 -> unzulässig
B38: =Uebersetzung!A61 -> Antriebsmoment | C38: Man | D38: ='SRU+20-S-M'!$I$163 -> zulässig | F38: ='SRU+25-W-M'!$I$163 -> zulässig | H38: ='SRU+30-W-M'!$I$163 -> zulässig | J38: ='SRU+35-W-M'!$I$163 -> zulässig | L38: ='SRU+40-W-M'!$I$163 -> zulässig | N38: ='SRU+50-W-M'!$I$163 -> zulässig | P38: ='SRU+60-W-M'!$I$163 -> zulässig
B39: =Uebersetzung!A62 -> Lagerbelastung 1 | C39: P01 | D39: ='SRU+20-S-M'!$I$160 -> 0 | F39: ='SRU+25-W-M'!$I$160 -> 0 | H39: ='SRU+30-W-M'!$I$160 -> 0 | J39: ='SRU+35-W-M'!$I$160 -> 0 | L39: ='SRU+40-W-M'!$I$160 -> 0 | N39: ='SRU+50-W-M'!$I$160 -> 0 | P39: ='SRU+60-W-M'!$I$160 -> 0
B40: =Uebersetzung!A63 -> Lagerbelastung 2 | C40: P02 | D40: ='SRU+20-S-M'!$I$164 -> unzulässig | F40: ='SRU+25-W-M'!$I$164 -> unzulässig | H40: ='SRU+30-W-M'!$I$164 -> unzulässig | J40: ='SRU+35-W-M'!$I$164 -> unzulässig | L40: ='SRU+40-W-M'!$I$164 -> unzulässig | N40: ='SRU+50-W-M'!$I$164 -> unzulässig | P40: ='SRU+60-W-M'!$I$164 -> unzulässig
B41: =Uebersetzung!A201 -> Schwenkzeit 0° - 180° | C41: ts1 | D41: ='SRU+20-S-M'!$G$153 -> 0.2407 | F41: ='SRU+25-W-M'!$G$153 -> 0.4834 | H41: ='SRU+30-W-M'!$G$153 -> 0.5862 | J41: ='SRU+35-W-M'!$G$153 -> 0.7865 | L41: ='SRU+40-W-M'!$G$153 -> 0.6297 | N41: ='SRU+50-W-M'!$G$153 -> 0.8208 | P41: ='SRU+60-W-M'!$G$153 -> 1.0814
B42: =Uebersetzung!A202 -> Schwenkzeit 0° - 90° | C42: ts2 | D42: ='SRU+20-S-M'!$G$154 -> 0.3502 | F42: ='SRU+25-W-M'!$G$154 -> 0.1649 | H42: ='SRU+30-W-M'!$G$154 -> 0.3377 | J42: ='SRU+35-W-M'!$G$154 -> 0.5876 | L42: ='SRU+40-W-M'!$G$154 -> 0.367 | N42: ='SRU+50-W-M'!$G$154 -> 0.4372 | P42: ='SRU+60-W-M'!$G$154 -> 0.4372
B43: =Uebersetzung!A203 -> Schwenkzeit 90° -0° | C43: ts3 | D43: ='SRU+20-S-M'!$G$155 -> 0.1827 | F43: ='SRU+25-W-M'!$G$155 -> 0.4377 | H43: ='SRU+30-W-M'!$G$155 -> 0.4718 | J43: ='SRU+35-W-M'!$G$155 -> 0.4225 | L43: ='SRU+40-W-M'!$G$155 -> 0.4225 | N43: ='SRU+50-W-M'!$G$155 -> 0.5851 | P43: ='SRU+60-W-M'!$G$155 -> 0.788
B44: =Uebersetzung!A204 -> Dämpferbeaufschlagung pro Std. | C44: amax | D44: ='SRU+20-S-M'!$G$156 -> 3600 | F44: ='SRU+25-W-M'!$G$156 -> 1350 | H44: ='SRU+30-W-M'!$G$156 -> 1100 | J44: ='SRU+35-W-M'!$G$156 -> 1150 | L44: ='SRU+40-W-M'!$G$156 -> 1150 | N44: ='SRU+50-W-M'!$G$156 -> 900 | P44: ='SRU+60-W-M'!$G$156 -> 800
N56: Moment SSE
N57: ='SRU+40-W'!AS52 -> 0

Sheet Vergleich
R1: =version -> SSE 7.3.0
B2: =Uebersetzung!A42 -> SSE 7.3.0 - Übersicht Schwenkmodule
B4: =Uebersetzung!A181 -> Neigungswinkel [Grad] | D4: 0
B5: =Uebersetzung!A182 -> Startposition | D5: 3 | E5: =Uebersetzung!A197 -> Uhr | I5: =Uebersetzung!A34 -> Kundenname: | N5: =J!P7 -> KUNDE | X5: =Uebersetzung!A185 -> Schwenkbewegung Schwerpunkt
B6: =Uebersetzung!A183 -> Endposition | D6: 9 | E6: =Uebersetzung!A197 -> Uhr | I6: =Uebersetzung!A35 -> Angebot-Nr: | N6: =J!P8 -> 999999 | X6: =Uebersetzung!A186 -> Startposition Schwerpunkt | AA6: 9 | AB6: =Uebersetzung!A197 -> Uhr
B7: =Uebersetzung!A44 -> Schwenkwinkel [Grad] | D7: 180 | I7: =Uebersetzung!A36 -> Bearbeiter: | N7: =J!P9 -> NAME | X7: =Uebersetzung!A187 -> Endposition Schwerpunkt | AA7: 3 | AB7: =Uebersetzung!A197 -> Uhr
B8: =Uebersetzung!A184 -> Schwenkbewegung | D8: gegen Uhrzeigersinn | I8: =Uebersetzung!A37 -> Datum: | N8: =J!P10 -> 2018-08-08 | X8: =Uebersetzung!A44 -> Schwenkwinkel [Grad] | AA8: 180
B9: =Uebersetzung!A45 -> Betriebsdruck [bar] | D9: 6 | X9: =Uebersetzung!A46 -> Lage des Aufbaus | AA9: stehend | AC9: =IF(Uebersetzung!A1=2,IF(lage_auf="lifting","hebend",IF(lage_auf="falling","fallend",IF(lage_auf="stationary","stehend",IF(lage_auf="hanging","hängend",IF(lage_auf="9 to 3 via 6","9 auf 3 über 6",IF(lage_auf="9 to 3 via 12","9 auf 3 über 12")))))),lage_auf) -> stehend
B10: =Uebersetzung!A185 -> Schwenkbewegung Schwerpunkt
B11: =Uebersetzung!A47 -> Massenträgheitsmoment Aufbau [kgm²] | D11: =summe_J -> 0
B14: SRU-mini
D15: SRU 08-W | F15: SRU 08-H | H15: SRU 10-W | J15: SRU 10-H | L15: SRU 12-W | N15: SRU 12-H | P15: SRU 14-W | R15: SRU 14-H
B16: =Uebersetzung!A56 -> Eignung | D16: ='SRU 08-W'!$J$162 -> zulässig | F16: ='SRU 08-H'!$J$162 -> zulässig | H16: ='SRU 10-W'!$J$162 -> zulässig | J16: ='SRU 10-H'!$J$162 -> zulässig | L16: ='SRU 12-W'!$J$162 -> zulässig | N16: ='SRU 12-H'!$J$162 -> zulässig | P16: ='SRU 14-W'!$J$162 -> zulässig | R16: ='SRU 14-H'!$J$162 -> zulässig
B17: =Uebersetzung!A57 -> Massenträgheitsmoment | C17: J | D17: ='SRU 08-W'!$I$156 -> 0 | F17: ='SRU 08-H'!$I$156 -> 0 | H17: ='SRU 10-W'!$I$156 -> 0 | J17: ='SRU 10-H'!$I$156 -> 0 | L17: ='SRU 12-W'!$I$156 -> 0 | N17: ='SRU 12-H'!$I$156 -> 0 | P17: ='SRU 14-W'!$I$156 -> 0 | R17: ='SRU 14-H'!$I$156 -> 0
B18: =Uebersetzung!A58 -> Lastmoment | C18: ML | D18: ='SRU 08-W'!$I$155 -> zulässig | F18: ='SRU 08-H'!$I$155 -> zulässig | H18: ='SRU 10-W'!$I$155 -> zulässig | J18: ='SRU 10-H'!$I$155 -> zulässig | L18: ='SRU 12-W'!$I$155 -> zulässig | N18: ='SRU 12-H'!$I$155 -> zulässig | P18: ='SRU 14-W'!$I$155 -> zulässig | R18: ='SRU 14-H'!$I$155 -> zulässig
B19: =Uebersetzung!A59 -> Energie pro Zyklus | C19: W3 | D19: ='SRU 08-W'!$I$157 -> Elastomer | F19: ='SRU 08-H'!$I$157 -> 0.2050831684 | H19: ='SRU 10-W'!$I$157 -> Elastomer | J19: ='SRU 10-H'!$I$157 -> 0.3204424507 | L19: ='SRU 12-W'!$I$157 -> Elastomer | N19: ='SRU 12-H'!$I$157 -> 0.1615029951 | P19: ='SRU 14-W'!$I$157 -> Elastomer | R19: ='SRU 14-H'!$I$157 -> 0.1334642807
B20: =Uebersetzung!A60 -> Energie pro Stunde | C20: W4 | D20: ='SRU 08-W'!$I$158 -> Elastomer | F20: ='SRU 08-H'!$I$158 -> 0.1757855729 | H20: ='SRU 10-W'!$I$158 -> Elastomer | J20: ='SRU 10-H'!$I$158 -> 0.2632205845 | L20: ='SRU 12-W'!$I$158 -> Elastomer | N20: ='SRU 12-H'!$I$158 -> 0.1211272464 | P20: ='SRU 14-W'!$I$158 -> Elastomer | R20: ='SRU 14-H'!$I$158 -> 0.07473999719
B21: =Uebersetzung!A61 -> Antriebsmoment | C21: Man | D21: ='SRU 08-W'!$I$159 -> zulässig | F21: ='SRU 08-H'!$I$159 -> zulässig | H21: ='SRU 10-W'!$I$159 -> zulässig | J21: ='SRU 10-H'!$I$159 -> zulässig | L21: ='SRU 12-W'!$I$159 -> zulässig | N21: ='SRU 12-H'!$I$159 -> zulässig | P21: ='SRU 14-W'!$I$159 -> zulässig | R21: ='SRU 14-H'!$I$159 -> zulässig
B22: =Uebersetzung!A62 -> Lagerbelastung 1 | C22: P01 | D22: ='SRU 08-W'!$I$160 -> 0 | F22: ='SRU 08-H'!$I$160 -> 0 | H22: ='SRU 10-W'!$I$160 -> 0 | J22: ='SRU 10-H'!$I$160 -> 0 | L22: ='SRU 12-W'!$I$160 -> 0 | N22: ='SRU 12-H'!$I$160 -> 0 | P22: ='SRU 14-W'!$I$160 -> 0 | R22: ='SRU 14-H'!$I$160 -> 0
B23: =Uebersetzung!A63 -> Lagerbelastung 2 | C23: P02 | D23: ='SRU 08-W'!$I$161 -> 0 | F23: ='SRU 08-H'!$I$161 -> 0 | H23: ='SRU 10-W'!$I$161 -> 0 | J23: ='SRU 10-H'!$I$161 -> 0 | L23: ='SRU 12-W'!$I$161 -> 0 | N23: ='SRU 12-H'!$I$161 -> 0 | P23: ='SRU 14-W'!$I$161 -> 0 | R23: ='SRU 14-H'!$I$161 -> 0
B24: =Uebersetzung!A64 -> Schwenkzeit | C24: ts | D24: ='SRU 08-W'!$G$151 -> 0.08 | F24: ='SRU 08-H'!$G$151 -> 0.18 | H24: ='SRU 10-W'!$G$151 -> 0.1 | J24: ='SRU 10-H'!$G$151 -> 0.21 | L24: ='SRU 12-W'!$G$151 -> 0.13 | N24: ='SRU 12-H'!$G$151 -> 0.29 | P24: ='SRU 14-W'!$G$151 -> 0.15 | R24: ='SRU 14-H'!$G$151 -> 0.31
B25: =Uebersetzung!A65 -> Zyklen pro Stunde | C25: amax | D25: ='SRU 08-W'!$G$152 -> 3600 | F25: ='SRU 08-H'!$G$152 -> 2400 | H25: ='SRU 10-W'!$G$152 -> 3600 | J25: ='SRU 10-H'!$G$152 -> 2300 | L25: ='SRU 12-W'!$G$152 -> 3600 | N25: ='SRU 12-H'!$G$152 -> 1800 | P25: ='SRU 14-W'!$G$152 -> 3600 | R25: ='SRU 14-H'!$G$152 -> 1400
B27: SRU-mini
D28: SRU 10-S | F28: SRU 12-S | H28: SRU 14-S
B29: =Uebersetzung!A56 -> Eignung | D29: ='SRU 10-S'!$J$162 -> zulässig | F29: ='SRU 12-S'!$J$162 -> zulässig | H29: ='SRU 14-S'!$J$162 -> zulässig
B30: =Uebersetzung!A57 -> Massenträgheitsmoment | C30: J | D30: ='SRU 10-S'!$I$156 -> 0 | F30: ='SRU 12-S'!$I$156 -> 0 | H30: ='SRU 14-S'!$I$156 -> 0
B31: =Uebersetzung!A58 -> Lastmoment | C31: ML | D31: ='SRU 10-S'!$I$155 -> zulässig | F31: ='SRU 12-S'!$I$155 -> zulässig | H31: ='SRU 14-S'!$I$155 -> zulässig
B32: =Uebersetzung!A59 -> Energie pro Zyklus | C32: W3 | D32: ='SRU 10-S'!$I$157 -> Elastomer | F32: ='SRU 12-S'!$I$157 -> Elastomer | H32: ='SRU 14-S'!$I$157 -> Elastomer
B33: =Uebersetzung!A60 -> Energie pro Stunde | C33: W4 | D33: ='SRU 10-S'!$I$158 -> Elastomer | F33: ='SRU 12-S'!$I$158 -> Elastomer | H33: ='SRU 14-S'!$I$158 -> Elastomer
B34: =Uebersetzung!A61 -> Antriebsmoment | C34: Man | D34: ='SRU 10-S'!$I$159 -> zulässig | F34: ='SRU 12-S'!$I$159 -> zulässig | H34: ='SRU 14-S'!$I$159 -> zulässig
B35: =Uebersetzung!A62 -> Lagerbelastung 1 | C35: P01 | D35: ='SRU 10-S'!$I$160 -> 0 | F35: ='SRU 12-S'!$I$160 -> 0 | H35: ='SRU 14-S'!$I$160 -> 0
B36: =Uebersetzung!A63 -> Lagerbelastung 2 | C36: P02 | D36: ='SRU 10-S'!$I$161 -> 0 | F36: ='SRU 12-S'!$I$161 -> 0 | H36: ='SRU 14-S'!$I$161 -> 0
B37: =Uebersetzung!A64 -> Schwenkzeit | C37: ts | D37: ='SRU 10-S'!$G$151 -> 0.16 | F37: ='SRU 12-S'!$G$151 -> 0.14 | H37: ='SRU 14-S'!$G$151 -> 0.2
B38: =Uebersetzung!A65 -> Zyklen pro Stunde | C38: amax | D38: ='SRU 10-S'!$G$152 -> 3700 | F38: ='SRU 12-S'!$G$152 -> 4600 | H38: ='SRU 14-S'!$G$152 -> 4200
B42: SRU-plus
D43: SRU+20-W | F43: SRU+20-S | H43: SRU+25-W | J43: SRU+25-H | L43: SRU+30-W | N43: SRU+30-H | P43: SRU+35-W | R43: SRU+40-W
B44: =Uebersetzung!A56 -> Eignung | D44: ='SRU+20-W'!$J$162 -> nicht sinnvoll | F44: ='SRU+20-S'!$J$162 -> nicht sinnvoll | H44: ='SRU+25-W'!$J$162 -> nicht sinnvoll | J44: ='SRU+25-H'!$J$162 -> nicht sinnvoll | L44: ='SRU+30-W'!$J$162 -> nicht sinnvoll | N44: ='SRU+30-H'!$J$162 -> nicht sinnvoll | P44: ='SRU+35-W'!$J$162 -> nicht sinnvoll | R44: ='SRU+40-W'!$J$162 -> nicht sinnvoll
B45: =Uebersetzung!A57 -> Massenträgheitsmoment | C45: J | D45: ='SRU+20-W'!$I$156 -> 0 | F45: ='SRU+20-S'!$I$156 -> 0 | H45: ='SRU+25-W'!$I$156 -> 0 | J45: ='SRU+25-H'!$I$156 -> 0 | L45: ='SRU+30-W'!$I$156 -> 0 | N45: ='SRU+30-H'!$I$156 -> 0 | P45: ='SRU+35-W'!$I$156 -> 0 | R45: ='SRU+40-W'!$I$156 -> 0
B46: =Uebersetzung!A58 -> Lastmoment | C46: ML | D46: ='SRU+20-W'!$I$155 -> zulässig | F46: ='SRU+20-S'!$I$155 -> zulässig | H46: ='SRU+25-W'!$I$155 -> zulässig | J46: ='SRU+25-H'!$I$155 -> zulässig | L46: ='SRU+30-W'!$I$155 -> zulässig | N46: ='SRU+30-H'!$I$155 -> zulässig | P46: ='SRU+35-W'!$I$155 -> zulässig | R46: ='SRU+40-W'!$I$155 -> zulässig
B47: =Uebersetzung!A59 -> Energie pro Zyklus | C47: W3 | D47: ='SRU+20-W'!$I$157 -> Elastomer | F47: ='SRU+20-S'!$I$157 -> Elastomer | H47: ='SRU+25-W'!$I$157 -> 0.1884955592 | J47: ='SRU+25-H'!$I$157 -> 0.1649336143 | L47: ='SRU+30-W'!$I$157 -> 0.09451705898 | N47: ='SRU+30-H'!$I$157 -> 0.09451705898 | P47: ='SRU+35-W'!$I$157 -> 0.1286482192 | R47: ='SRU+40-W'!$I$157 -> 0.1132512095
B48: =Uebersetzung!A60 -> Energie pro Stunde | C48: W4 | D48: ='SRU+20-W'!$I$158 -> Elastomer | F48: ='SRU+20-S'!$I$158 -> Elastomer | H48: ='SRU+25-W'!$I$158 -> 0.1781283035 | J48: ='SRU+25-H'!$I$158 -> 0.09016370916 | L48: ='SRU+30-W'!$I$158 -> 0.1532171272 | N48: ='SRU+30-H'!$I$158 -> 0.117621229 | P48: ='SRU+35-W'!$I$158 -> 0.2436748622 | R48: ='SRU+40-W'!$I$158 -> 0.227918059
B49: =Uebersetzung!A61 -> Antriebsmoment | C49: Man | D49: ='SRU+20-W'!$I$159 -> zulässig | F49: ='SRU+20-S'!$I$159 -> zulässig | H49: ='SRU+25-W'!$I$159 -> zulässig | J49: ='SRU+25-H'!$I$159 -> zulässig | L49: ='SRU+30-W'!$I$159 -> zulässig | N49: ='SRU+30-H'!$I$159 -> zulässig | P49: ='SRU+35-W'!$I$159 -> zulässig | R49: ='SRU+40-W'!$I$159 -> zulässig
B50: =Uebersetzung!A62 -> Lagerbelastung 1 | C50: P01 | D50: ='SRU+20-W'!$I$160 -> 0 | F50: ='SRU+20-S'!$I$160 -> 0 | H50: ='SRU+25-W'!$I$160 -> 0 | J50: ='SRU+25-H'!$I$160 -> 0 | L50: ='SRU+30-W'!$I$160 -> 0 | N50: ='SRU+30-H'!$I$160 -> 0 | P50: ='SRU+35-W'!$I$160 -> 0 | R50: ='SRU+40-W'!$I$160 -> 0
B51: =Uebersetzung!A63 -> Lagerbelastung 2 | C51: P02 | D51: ='SRU+20-W'!$I$161 -> 0 | F51: ='SRU+20-S'!$I$161 -> 0 | H51: ='SRU+25-W'!$I$161 -> 0 | J51: ='SRU+25-H'!$I$161 -> 0 | L51: ='SRU+30-W'!$I$161 -> 0 | N51: ='SRU+30-H'!$I$161 -> 0 | P51: ='SRU+35-W'!$I$161 -> 0 | R51: ='SRU+40-W'!$I$161 -> 0
B52: =Uebersetzung!A64 -> Schwenkzeit | C52: ts | D52: ='SRU+20-W'!$G$151 -> 0.45 | F52: ='SRU+20-S'!$G$151 -> 0.3 | H52: ='SRU+25-W'!$G$151 -> 0.5 | J52: ='SRU+25-H'!$G$151 -> 0.6 | L52: ='SRU+30-W'!$G$151 -> 0.8 | N52: ='SRU+30-H'!$G$151 -> 1.4 | P52: ='SRU+35-W'!$G$151 -> 0.9 | R52: ='SRU+40-W'!$G$151 -> 0.89
B53: =Uebersetzung!A65 -> Zyklen pro Stunde | C53: amax | D53: ='SRU+20-W'!$G$152 -> 2000 | F53: ='SRU+20-S'!$G$152 -> 3600 | H53: ='SRU+25-W'!$G$152 -> 1350 | J53: ='SRU+25-H'!$G$152 -> 820 | L53: ='SRU+30-W'!$G$152 -> 1100 | N53: ='SRU+30-H'!$G$152 -> 800 | P53: ='SRU+35-W'!$G$152 -> 1150 | R53: ='SRU+40-W'!$G$152 -> 1150
B55: SRU-plus
D56: SRU+40-H | F56: SRU+50-W | H56: SRU+50-H | J56: SRU+60-W | L56: SRU+63-W
B57: =Uebersetzung!A56 -> Eignung | D57: ='SRU+40-H'!$J$162 -> nicht sinnvoll | F57: ='SRU+50-W'!$J$162 -> nicht sinnvoll | H57: ='SRU+50-H'!$J$162 -> nicht sinnvoll | J57: ='SRU+60-W'!$J$162 -> nicht sinnvoll | L57: ='SRU+63-W'!$J$162 -> nicht sinnvoll
B58: =Uebersetzung!A57 -> Massenträgheitsmoment | C58: J | D58: ='SRU+40-H'!$I$156 -> 0 | F58: ='SRU+50-W'!$I$156 -> 0 | H58: ='SRU+50-H'!$I$156 -> 0 | J58: ='SRU+60-W'!$I$156 -> 0 | L58: ='SRU+63-W'!$I$156 -> 0
B59: =Uebersetzung!A58 -> Lastmoment | C59: ML | D59: ='SRU+40-H'!$I$155 -> zulässig | F59: ='SRU+50-W'!$I$155 -> zulässig | H59: ='SRU+50-H'!$I$155 -> zulässig | J59: ='SRU+60-W'!$I$155 -> zulässig | L59: ='SRU+63-W'!$I$155 -> zulässig
B60: =Uebersetzung!A59 -> Energie pro Zyklus | C60: W3 | D60: ='SRU+40-H'!$I$157 -> 0.1460344543 | F60: ='SRU+50-W'!$I$157 -> 0.1769550148 | H60: ='SRU+50-H'!$I$157 -> 0.2281788348 | J60: ='SRU+60-W'!$I$157 -> 0.1950929038 | L60: ='SRU+63-W'!$I$157 -> 0.1720719411
B61: =Uebersetzung!A60 -> Energie pro Stunde | C61: W4 | D61: ='SRU+40-H'!$I$158 -> 0.1849769754 | F61: ='SRU+50-W'!$I$158 -> 0.2787041483 | H61: ='SRU+50-H'!$I$158 -> 0.2167698931 | J61: ='SRU+60-W'!$I$158 -> 0.6242972921 | L61: ='SRU+63-W'!$I$158 -> 0.3234952493
B62: =Uebersetzung!A61 -> Antriebsmoment | C62: Man | D62: ='SRU+40-H'!$I$159 -> zulässig | F62: ='SRU+50-W'!$I$159 -> zulässig | H62: ='SRU+50-H'!$I$159 -> zulässig | J62: ='SRU+60-W'!$I$159 -> zulässig | L62: ='SRU+63-W'!$I$159 -> zulässig
B63: =Uebersetzung!A62 -> Lagerbelastung 1 | C63: P01 | D63: ='SRU+40-H'!$I$160 -> 0 | F63: ='SRU+50-W'!$I$160 -> 0 | H63: ='SRU+50-H'!$I$160 -> 0 | J63: ='SRU+60-W'!$I$160 -> 0 | L63: ='SRU+63-W'!$I$160 -> 0
B64: =Uebersetzung!A63 -> Lagerbelastung 2 | C64: P02 | D64: ='SRU+40-H'!$I$161 -> 0 | F64: ='SRU+50-W'!$I$161 -> 0 | H64: ='SRU+50-H'!$I$161 -> 0 | J64: ='SRU+60-W'!$I$161 -> 0 | L64: ='SRU+63-W'!$I$161 -> 0
B65: =Uebersetzung!A64 -> Schwenkzeit | C65: ts | D65: ='SRU+40-H'!$G$151 -> 1.3 | F65: ='SRU+50-W'!$G$151 -> 1.1 | H65: ='SRU+50-H'!$G$151 -> 1.3 | J65: ='SRU+60-W'!$G$151 -> 1.3 | L65: ='SRU+63-W'!$G$151 -> 1.8
B66: =Uebersetzung!A65 -> Zyklen pro Stunde | C66: amax | D66: ='SRU+40-H'!$G$152 -> 800 | F66: ='SRU+50-W'!$G$152 -> 900 | H66: ='SRU+50-H'!$G$152 -> 600 | J66: ='SRU+60-W'!$G$152 -> 800 | L66: ='SRU+63-W'!$G$152 -> 470
B68: SRM
D69: SRM-14-E | F69: SRM-14-X | H69: SRM-14-H | J69: SRM-16-H | L69: SRM-25-H | N69: SRM-40-H
B70: =Uebersetzung!A56 -> Eignung | D70: ='SRM-14-E'!$J$162 -> zulässig | F70: ='SRM-14-X'!$J$162 -> zulässig | H70: ='SRM-14-H'!$J$162 -> nicht sinnvoll | J70: ='SRM-16-H'!$J$162 -> nicht sinnvoll | L70: ='SRM-25-H'!$J$162 -> nicht sinnvoll | N70: ='SRM-40-H'!$J$162 -> nicht sinnvoll
B71: =Uebersetzung!A57 -> Massenträgheitsmoment | C71: J | D71: ='SRM-14-E'!$I$156 -> 0 | F71: ='SRM-14-X'!$I$156 -> 0 | H71: ='SRM-14-H'!$I$156 -> 0 | J71: ='SRM-16-H'!$I$156 -> 0 | L71: ='SRM-25-H'!$I$156 -> 0 | N71: ='SRM-40-H'!$I$156 -> 0
B72: =Uebersetzung!A58 -> Lastmoment | C72: ML | D72: ='SRM-14-E'!$I$155 -> zulässig | F72: ='SRM-14-X'!$I$155 -> zulässig | H72: ='SRM-14-H'!$I$155 -> zulässig | J72: ='SRM-16-H'!$I$155 -> zulässig | L72: ='SRM-25-H'!$I$155 -> zulässig | N72: ='SRM-40-H'!$I$155 -> zulässig
B73: =Uebersetzung!A59 -> Energie pro Zyklus | C73: W3 | D73: ='SRM-14-E'!$I$157 -> Elastomer | F73: ='SRM-14-X'!$I$157 -> 0.1011728165 | H73: ='SRM-14-H'!$I$157 -> 0.1315246614 | J73: ='SRM-16-H'!$I$157 -> 0.1286796351 | L73: ='SRM-25-H'!$I$157 -> 0.1884955592 | N73: ='SRM-40-H'!$I$157 -> 0.1206371579
B74: =Uebersetzung!A60 -> Energie pro Stunde | C74: W4 | D74: ='SRM-14-E'!$I$158 -> Elastomer | F74: ='SRM-14-X'!$I$158 -> 0.06137817532 | H74: ='SRM-14-H'!$I$158 -> 0.07891479684 | J74: ='SRM-16-H'!$I$158 -> 0.1222971252 | L74: ='SRM-25-H'!$I$158 -> 0.1451415806 | N74: ='SRM-40-H'!$I$158 -> 0.1573528146
B75: =Uebersetzung!A61 -> Antriebsmoment | C75: Man | D75: ='SRM-14-E'!$I$159 -> zulässig | F75: ='SRM-14-X'!$I$159 -> zulässig | H75: ='SRM-14-H'!$I$159 -> zulässig | J75: ='SRM-16-H'!$I$159 -> zulässig | L75: ='SRM-25-H'!$I$159 -> zulässig | N75: ='SRM-40-H'!$I$159 -> zulässig
B76: =Uebersetzung!A62 -> Lagerbelastung 1 | C76: P01 | D76: ='SRM-14-E'!$I$160 -> 0 | F76: ='SRM-14-X'!$I$160 -> 0 | H76: ='SRM-14-H'!$I$160 -> 0 | J76: ='SRM-16-H'!$I$160 -> 0 | L76: ='SRM-25-H'!$I$160 -> 0 | N76: ='SRM-40-H'!$I$160 -> 0
B77: =Uebersetzung!A63 -> Lagerbelastung 2 | C77: P02 | D77: ='SRM-14-E'!$I$161 -> 0 | F77: ='SRM-14-X'!$I$161 -> 0 | H77: ='SRM-14-H'!$I$161 -> 0 | J77: ='SRM-16-H'!$I$161 -> 0 | L77: ='SRM-25-H'!$I$161 -> 0 | N77: ='SRM-40-H'!$I$161 -> 0
B78: =Uebersetzung!A64 -> Schwenkzeit | C78: ts | D78: ='SRM-14-E'!$G$151 -> 0.15 | F78: ='SRM-14-X'!$G$151 -> 0.2 | H78: ='SRM-14-H'!$G$151 -> 0.27 | J78: ='SRM-16-H'!$G$151 -> 0.4 | L78: ='SRM-25-H'!$G$151 -> 0.45 | N78: ='SRM-40-H'!$G$151 -> 1.4
B79: =Uebersetzung!A65 -> Zyklen pro Stunde | C79: amax | D79: ='SRM-14-E'!$G$152 -> 3600 | F79: ='SRM-14-X'!$G$152 -> 1400 | H79: ='SRM-14-H'!$G$152 -> 1500 | J79: ='SRM-16-H'!$G$152 -> 1980 | L79: ='SRM-25-H'!$G$152 -> 1100 | N79: ='SRM-40-H'!$G$152 -> 750

Sheet M_horizontal
A1: Berechnung Schwenkzeiten und Zyklen horizontale Schwenkachse
A3: Statisches Moment | C3: =J!P54 -> 0 | E3: ='Vergleich-Mittelstellung'!N57 -> 0 | H3: Rückgabewerte: | J3: Schwenkzeit ts hebend
A4: Schwenkrichtung | C4: =lage_aufbau -> stehend | D4: =lage_aufbau | J4: Schwenkzeit ts fallend
A5: J ermittelt | C5: =summe_J -> 0 | D5: =summe_J | J5: Zyklen a
A8: Weiche Dämpfer
B10: Schwenkzeiten ts | AJ10: Zyklen pro Stunde A
D11: hebend | H11: fallend | AL11: hebend | AP11: fallend
D12: SA min | E12: SA max | F12: ts | H12: SA min | I12: SA max | J12: ts | AL12: SA min | AM12: SA max | AN12: A | AP12: SA min | AQ12: SA max | AR12: A
B13: SRU 08-W | D13: 30 | E13: 45 | F13: =C69 -> 0.2 | H13: 30 | I13: 45 | J13: =C78 -> 0.2 | AJ13: SRU 08-W | AL13: 30 | AM13: 45 | AN13: =AK69 -> 3300 | AP13: 30 | AQ13: 45 | AR13: =AK69 -> 3300
B14: SRU 08-H | D14: 30 | E14: 45 | F14: =C104 -> 0.18 | H14: 30 | I14: 45 | J14: =C113 -> 0.18 | AJ14: SRU 08-H | AL14: 30 | AM14: 45 | AN14: =AK105 -> 2400 | AP14: 30 | AQ14: 45 | AR14: =AK105 -> 2400
B15: SRU 10-W | D15: 30 | E15: 45 | F15: =C138 -> 0.22 | H15: 30 | I15: 45 | J15: =C147 -> 0.22 | AJ15: SRU 10-W | AL15: 30 | AM15: 45 | AN15: =AK139 -> 3000 | AP15: 30 | AQ15: 45 | AR15: =AK139 -> 3000
B16: SRU 10-H | D16: 30 | E16: 45 | F16: =C173 -> 0.21 | H16: 30 | I16: 45 | J16: =C182 -> 0.21 | AJ16: SRU 10-H | AL16: 30 | AM16: 45 | AN16: =AK174 -> 2200 | AP16: 30 | AQ16: 45 | AR16: =AK174 -> 2200
B17: SRU 10-S | D17: 30 | E17: 45 | F17: =C207 -> 0.16 | H17: 30 | I17: 45 | J17: =C216 -> 0.16 | AJ17: SRU 10-S | AL17: 30 | AM17: 45 | AN17: =AK207 -> 3700 | AP17: 30 | AQ17: 45 | AR17: =AK207 -> 3700
B18: SRU 12-W | D18: 30 | E18: 105 | F18: =C244 -> 0.35 | H18: 30 | I18: 105 | J18: =C253 -> 0.35 | AJ18: SRU 12-W | AL18: 30 | AM18: 105 | AN18: =AK245 -> 2500 | AP18: 30 | AQ18: 105 | AR18: =AK245 -> 2500
B19: SRU 12-H | D19: 30 | E19: 105 | F19: =C278 -> 0.29 | H19: 30 | I19: 105 | J19: =C287 -> 0.29 | AJ19: SRU 12-H | AL19: 30 | AM19: 105 | AN19: =AK279 -> 1800 | AP19: 30 | AQ19: 105 | AR19: =AK279 -> 1800
B20: SRU 12-S | D20: 30 | E20: 105 | F20: =C312 -> 0.14 | H20: 30 | I20: 105 | J20: =C321 -> 0.14 | AJ20: SRU 12-S | AL20: 30 | AM20: 105 | AN20: =AK312 -> 4600 | AP20: 30 | AQ20: 105 | AR20: =AK312 -> 4600
B21: SRU 14-W | D21: 30 | E21: 105 | F21: =C350 -> 0.15 | H21: 30 | I21: 105 | J21: =C359 -> 0.15 | AJ21: SRU 14-W | AL21: 30 | AM21: 105 | AN21: =AK351 -> 3600 | AP21: 30 | AQ21: 105 | AR21: =AK351 -> 3600
B22: SRU 14-H | D22: 30 | E22: 105 | F22: =C384 -> 0.31 | H22: 30 | I22: 105 | J22: =C393 -> 0.31 | AJ22: SRU 14-H | AL22: 30 | AM22: 105 | AN22: =AK385 -> 1400 | AP22: 30 | AQ22: 105 | AR22: =AK385 -> 1400
B23: SRU 14-S | D23: 30 | E23: 105 | F23: =C418 -> 0.2 | H23: 30 | I23: 105 | J23: =C418 -> 0.2 | AJ23: SRU 14-S | AL23: 30 | AM23: 105 | AN23: =AK418 -> 4200 | AP23: 30 | AQ23: 105 | AR23: =AK418 -> 4200
B24: SRU-plus 20 FED | D24: 60 | E24: 140 | F24: =B490 -> 0.6 | H24: 60 | I24: 140 | J24: =B499 -> 0.59 | AJ24: SRU-plus 20 FED | AL24: 60 | AM24: 140 | AN24: =AK490 -> 2000 | AP24: 60 | AQ24: 140 | AR24: =AK490 -> 2000
B25: SRU-plus 20 DED | D25: 60 | E25: 140 | F25: =B457 -> 0.47 | H25: 60 | I25: 140 | J25: =B466 -> 0.47 | AJ25: SRU-plus 20 DED | AL25: 60 | AM25: 140 | AN25: =AK458 -> 3600 | AP25: 60 | AQ25: 140 | AR25: =AK458 -> 3600
B26: SRU-plus 25 (hard) | D26: unzulässig | E26: unzulässig | F26: unzulässig | H26: unzulässig | I26: unzulässig | J26: unzulässig | AJ26: SRU-plus 25 (hard) | AL26: =D26 -> unzulässig | AM26: unzulässig | AN26: unzulässig | AP26: =H26 -> unzulässig | AQ26: unzulässig | AR26: unzulässig
B27: SRU-plus 25 (soft) | D27: 60 | E27: 140 | F27: =B523 -> 0.5 | H27: 60 | I27: 140 | J27: =B532 -> 0.5 | AJ27: SRU-plus 25 (soft) | AL27: 60 | AM27: 140 | AN27: =AK523 -> 1150 | AP27: 60 | AQ27: 140 | AR27: =AK523 -> 1150
B28: SRU-plus 30 (hard) | D28: unzulässig | E28: unzulässig | F28: unzulässig | H28: unzulässig | I28: unzulässig | J28: unzulässig | AJ28: SRU-plus 30 (hard) | AL28: unzulässig | AM28: unzulässig | AN28: unzulässig | AP28: unzulässig | AQ28: unzulässig | AR28: unzulässig
B29: SRU-plus 30 (soft) | D29: 60 | E29: 140 | F29: =B557 -> 0.9 | H29: 60 | I29: 140 | J29: =B566 -> 0.85 | AJ29: SRU-plus 30 (soft) | AL29: 60 | AM29: 140 | AN29: =AK557 -> 1100 | AP29: 60 | AQ29: 140 | AR29: =AK557 -> 1100
B30: SRU-plus 35 (soft) | D30: 60 | E30: 180 | F30: =B591 -> 0.95 | H30: 60 | I30: 180 | J30: =B600 -> 0.95 | AJ30: SRU-plus 35 (soft) | AL30: 60 | AM30: 180 | AN30: =AK591 -> 1000 | AP30: 60 | AQ30: 180 | AR30: =AK591 -> 1000
B31: SRU-plus 40 (hard) | D31: unzulässig | E31: unzulässig | F31: unzulässig | H31: unzulässig | I31: unzulässig | J31: unzulässig | AJ31: SRU-plus 40 (hard) | AL31: unzulässig | AM31: unzulässig | AN31: unzulässig | AP31: unzulässig | AQ31: unzulässig | AR31: unzulässig
B32: SRU-plus 40 (soft) | D32: 60 | E32: 180 | F32: =B625 -> 0.9 | H32: 60 | I32: 180 | J32: =B634 -> 0.9 | AJ32: SRU-plus 40 (soft) | AL32: 60 | AM32: 180 | AN32: =AK625 -> 1100 | AP32: 60 | AQ32: 180 | AR32: =AK625 -> 1100
B33: SRU-plus 50 (hard) | D33: unzulässig | E33: unzulässig | F33: unzulässig | H33: unzulässig | I33: unzulässig | J33: unzulässig | AJ33: SRU-plus 50 (hard) | AL33: unzulässig | AM33: unzulässig | AN33: unzulässig | AP33: unzulässig | AQ33: unzulässig | AR33: unzulässig
B34: SRU-plus 50 (soft) | D34: 60 | E34: 220 | F34: =B659 -> 1.2 | H34: 60 | I34: 220 | J34: =B668 -> 1.2 | AJ34: SRU-plus 50 (soft) | AL34: 60 | AM34: 220 | AN34: =AK659 -> 900 | AP34: 60 | AQ34: 220 | AR34: =AK659 -> 900
B35: SRU-plus 60 (soft) | D35: 60 | E35: 220 | F35: =B693 -> 1.3 | H35: 60 | I35: 220 | J35: =B702 -> 1.3 | AJ35: SRU-plus 60 (soft) | AL35: 60 | AM35: 220 | AN35: =AK693 -> 800 | AP35: 60 | AQ35: 220 | AR35: =AK693 -> 800
B36: SRU-plus 63 | D36: 200 | E36: 450 | F36: =B727 -> 1.8 | H36: 200 | I36: 450 | J36: =B736 -> 1.8 | AJ36: SRU-plus 63 | AL36: 200 | AM36: 450 | AN36: =AK727 -> 470 | AP36: 200 | AQ36: 450 | AR36: =AK727 -> 470
B37: SRU 08-W-M | D37: 30 | E37: 45 | F37: =C93 -> 0 | H37: 30 | I37: 45 | J37: =C102 -> 0 | AJ37: SRU 08-W-M | AL37: 30 | AM37: 45 | AP37: 30 | AQ37: 45
B38: SRU 08-H-M | D38: 30 | E38: 45 | F38: =C128 -> 0 | H38: 30 | I38: 45 | J38: =C137 -> 0 | AJ38: SRU 08-H-M | AL38: 30 | AM38: 45 | AP38: 30 | AQ38: 45
B39: SRU 10-W-M | D39: 30 | E39: 45 | F39: =C162 -> 0 | H39: 30 | I39: 45 | J39: =C171 -> 0 | AJ39: SRU 10-W-M | AL39: 30 | AM39: 45 | AP39: 30 | AQ39: 45
B40: SRU 10-H-M | D40: 30 | E40: 45 | F40: =C197 -> 0 | H40: 30 | I40: 45 | J40: =C206 -> 0 | AJ40: SRU 10-H-M | AL40: 30 | AM40: 45 | AP40: 30 | AQ40: 45
B41: SRU 10-S-M | D41: 30 | E41: 45 | F41: =C956 -> 0.1148 | H41: 30 | I41: 45 | J41: =C965 -> 0.1148 | AJ41: SRU 10-S-M | AL41: 30 | AM41: 45 | AN41: =AK956 -> 3700 | AP41: 30 | AQ41: 45 | AR41: =AK956 -> 3700
B42: SRU 12-W | D42: 30 | E42: 105 | F42: =C268 -> 0 | H42: 30 | I42: 105 | J42: =C277 -> 105 | AJ42: SRU 12-W | AL42: 30 | AM42: 105 | AP42: 30 | AQ42: 105
B43: SRU 12-H | D43: 30 | E43: 105 | F43: =C302 -> 0 | H43: 30 | I43: 105 | J43: =C311 -> 0 | AJ43: SRU 12-H | AL43: 30 | AM43: 105 | AP43: 30 | AQ43: 105
B44: SRU-12-S-M | D44: 30 | E44: 105 | F44: =C990 -> 0.1574 | H44: 30 | I44: 105 | J44: =C999 -> 0.1574 | AJ44: SRU-12-S-M | AL44: 30 | AM44: 105 | AN44: =AK990 -> 4600 | AP44: 30 | AQ44: 105 | AR44: =AK990 -> 4600
B45: SRU 14-W | D45: 30 | E45: 105 | F45: =C374 -> 0 | H45: 30 | I45: 105 | J45: =C383 -> 0 | AJ45: SRU 14-W | AL45: 30 | AM45: 105 | AP45: 30 | AQ45: 105
B46: SRU 14-H | D46: 30 | E46: 105 | F46: =C408 -> 0 | H46: 30 | I46: 105 | J46: =C417 -> 0 | AJ46: SRU 14-H | AL46: 30 | AM46: 105 | AP46: 30 | AQ46: 105
B47: SRU-14-S-M | D47: 30 | E47: 105 | F47: =C1024 -> 0.1995 | H47: 30 | I47: 105 | J47: =C1033 -> 0.1995 | AJ47: SRU-14-S-M | AL47: 30 | AM47: 105 | AN47: =AK1024 -> 4200 | AP47: 30 | AQ47: 105 | AR47: =AK1024 -> 4200
B48: SRU-plus 20 DED-M | D48: 60 | E48: 140 | F48: =C1058 -> 0.2407 | H48: 60 | I48: 140 | J48: =C1067 -> 0.2407 | AJ48: SRU-plus 20 DED-M | AL48: 60 | AM48: 140 | AN48: =AK1058 -> 3600 | AP48: 60 | AQ48: 140 | AR48: =AK1058 -> 3600
B49: SRU-plus 25-M | D49: 60 | E49: 140 | F49: =C1092 -> 0.4834 | H49: 60 | I49: 140 | J49: =C1101 -> 0.4834 | AJ49: SRU-plus 25-M | AL49: 60 | AM49: 140 | AN49: =AK523 -> 1150 | AP49: 60 | AQ49: 140 | AR49: =AK523 -> 1150
B50: SRU-plus 30-M | D50: 60 | E50: 140 | F50: =C1126 -> 0.5862 | H50: 60 | I50: 140 | J50: =C1135 -> 0.5862 | AJ50: SRU-plus 30-M | AL50: 60 | AM50: 140 | AN50: =AK557 -> 1100 | AP50: 60 | AQ50: 140 | AR50: =AK557 -> 1100
B51: SRU-plus 35-M | D51: 60 | E51: 180 | F51: =C1163 -> 0.7865 | H51: 60 | I51: 180 | J51: =C1172 -> 0.7865 | AJ51: SRU-plus 35-M | AL51: 60 | AM51: 180 | AN51: =AK591 -> 1000 | AP51: 60 | AQ51: 180 | AR51: =AK591 -> 1000
B52: SRU-plus 40-M | D52: 60 | E52: 180 | F52: =C1197 -> 0.6297 | H52: 60 | I52: 180 | J52: =C1206 -> 0.6297 | AJ52: SRU-plus 40-M | AL52: 60 | AM52: 180 | AN52: =AK1197 -> 1200 | AP52: 60 | AQ52: 180 | AR52: =AK1197 -> 1200
B53: SRU-plus 50-M | D53: 60 | E53: 220 | F53: =C1231 -> 0.8208 | H53: 60 | I53: 220 | J53: =C1240 -> 0.8208 | AJ53: SRU-plus 50-M | AL53: 60 | AM53: 220 | AN53: =AK1231 -> 900 | AP53: 60 | AQ53: 220 | AR53: =AK1231 -> 900
B54: SRU-plus 60-M | D54: 60 | E54: 220 | F54: =C1274 -> 1.0814 | H54: 60 | I54: 220 | J54: =C1283 -> 1.0814 | AJ54: SRU-plus 60-M | AL54: 60 | AM54: 220 | AN54: =AK1274 -> 800 | AP54: 60 | AQ54: 220 | AR54: =AK1274 -> 800
B55: SRM-14-E | D55: 30 | E55: 105 | F55: =C1307 -> 0.15 | H55: 30 | I55: 105 | J55: =C1316 -> 0.15 | AJ55: SRU 14-E | AL55: 30 | AM55: 105 | AN55: =AK385 -> 1400 | AP55: 30 | AQ55: 105 | AR55: =AK385 -> 1400
B56: SRM-14-X | D56: 30 | E56: 105 | AJ56: SRU 14-X | AL56: 30 | AM56: 105 | AP56: 30 | AQ56: 105
B57: SRM-14-H | D57: 30 | E57: 105 | F57: =C1369 -> 0.27 | H57: 30 | I57: 105 | J57: =C1378 -> 0.27 | AJ57: SRM-14-H | AL57: 30 | AM57: 105 | AN57: =AK1369 -> 1500 | AP57: 30 | AQ57: 105 | AR57: =AK1369 -> 1500
B58: SRM-16-H | D58: 60 | E58: 140 | F58: =C1400 -> 0.4 | H58: 60 | I58: 140 | J58: =C1409 -> 0.4 | AJ58: SRM-16-H | AL58: 60 | AM58: 140 | AN58: =AK1400 -> 1980 | AP58: 60 | AQ58: 140 | AR58: =AK1400 -> 1980
B59: SRM-25-H | D59: 60 | E59: 160 | F59: =#REF! ->  | H59: 60 | I59: 160 | J59: =#REF! ->  | AJ59: SRM-25-H | AL59: 60 | AM59: 160 | AN59: =#REF! ->  | AP59: 60 | AQ59: 160 | AR59: =#REF! -> 
B60: SRM-40-H | D60: 60 | E60: 180 | F60: =C1461 -> 1.4 | H60: 60 | I60: 180 | J60: =C1470 -> 1.4 | AJ60: SRM-40-H | AL60: 60 | AM60: 180 | AN60: =AK1461 -> 750 | AP60: 60 | AQ60: 180 | AR60: =AK1461 -> 750
B63: Modulname | C63: =$B$13 -> SRU 08-W | AJ63: Modulname | AK63: =$B$13 -> SRU 08-W
E64: hebend | Q64: fallend | AM64: hebend + fallend
G65: Zeit | S65: Zeit | AO65: Zyklen
B66: =C63 & " " & $D$518 -> SRU 08-W hebend | G66: M1 | H66: M2 | I66: SA gesucht | S66: SA1 | T66: SA2 | U66: SA gesucht | AJ66: =AK63 & " " & AM64 -> SRU 08-W hebend + fallend | AO66: SA1 | AP66: SA2 | AQ66: SA gesucht
B67: SA min | E67: Anz. Datensätze | F67: J | G67: =C67 -> 0 | H67: 0.035 | I67: =C3 -> 0 | Q67: Anz. Datensätze | R67: J | S67: =C76 -> 0 | T67: 0.035 | U67: =C3 -> 0 | AJ67: SA min | AK67: =AL13 -> 30 | AM67: Anz. Datensätze | AN67: J | AO67: 0 | AP67: 0.035 | AQ67: =C3 -> 0 | AS67: vert S.S. | AU67: vert Kat
B68: SA max | E68: 1 | F68: 0 | G68: 0.2 | H68: 0.35 | I68: =((H68-G68)*$H$89)+G68 -> 0.2 | Q68: 1 | R68: 0 | S68: 0.2 | T68: 0.32 | U68: =((T68-S68)*$T$89)+S68 -> 0.2 | AJ68: SA max | AK68: =AM13 -> 45 | AM68: 1 | AN68: 0 | AO68: 3300 | AP68: 3200 | AQ68: =((AP68-AO68)*$AP$89)+AO68 -> 3300 | AR68: =4.2/1000^2 -> 4.2e-06 | AS68: 3600 | AT68: =4.2/1000^2 -> 4.2e-06 | AU68: 3600
B69: Schwenkzeit | C69: =xyinterpol(F68:F79,I68:I79,$C$5) -> 0.2 | E69: 2 | F69: 4.2e-06 | G69: 0.2 | H69: 0.35 | I69: =((H69-G69)*$H$89)+G69 -> 0.2 | Q69: 2 | R69: 4.2e-06 | S69: 0.2 | T69: 0.33 | U69: =((T69-S69)*$T$89)+S69 -> 0.2 | AJ69: Max. Zyklenzahl | AK69: =xyinterpol(AN68:AN79,AQ68:AQ79,$C$5) -> 3300 | AM69: 2 | AN69: 4.2e-06 | AO69: 3300 | AP69: 3200 | AQ69: =((AP69-AO69)*$AP$89)+AO69 -> 3300 | AR69: =13.1/1000^2 -> 1.31e-05 | AS69: 3600 | AT69: =13.1/1000^2 -> 1.31e-05 | AU69: 3600
E70: 3 | F70: 1.31e-05 | G70: 0.2 | H70: 0.35 | I70: 0.2 | Q70: 3 | R70: 1.31e-05 | S70: 0.2 | T70: 0.34 | U70: 0.2 | AM70: 3 | AN70: 1.31e-05 | AO70: 3300 | AP70: 3180 | AQ70: 3300 | AR70: =19.5/1000^2 -> 1.95e-05 | AS70: 3600 | AT70: =19.5/1000^2 -> 1.95e-05 | AU70: 3600
E71: 4 | F71: 1.95e-05 | G71: 0.2 | H71: 0.37 | I71: 0.2 | K71: vert S.S. | M71: vert Kat | Q71: 4 | R71: 1.95e-05 | S71: 0.2 | T71: 0.35 | U71: 0.2 | AM71: 4 | AN71: 1.95e-05 | AO71: 3300 | AP71: 3150 | AQ71: 3300 | AR71: =31/1000^2 -> 3.1e-05 | AS71: 3500 | AT71: =31/1000^2 -> 3.1e-05 | AU71: 3500
E72: 5 | F72: 3.1e-05 | G72: 0.2 | H72: 0.4 | I72: 0.2 | Q72: 5 | R72: 3.1e-05 | S72: 0.2 | T72: 0.35 | U72: 0.2 | AM72: 5 | AN72: 3.1e-05 | AO72: 3300 | AP72: 3100 | AQ72: 3300 | AR72: =56.7/1000^2 -> 5.67e-05 | AS72: 3100 | AT72: =56.7/1000^2 -> 5.67e-05 | AU72: 3100
E73: 6 | F73: 5.67e-05 | G73: 0.25 | H73: 0.6 | I73: 0.25 | J73: 4.2e-06 | K73: 0.088 | L73: 4.2e-06 | M73: 0.1 | Q73: 6 | R73: 5.67e-05 | S73: 0.25 | T73: 0.43 | U73: =((T73-S73)*$T$89)+S73 -> 0.25 | AM73: 6 | AN73: 5.67e-05 | AO73: 3100 | AP73: 2700 | AQ73: 3100 | AR73: =118.2/1000^2 -> 0.0001182 | AS73: 2700 | AT73: =118.2/1000^2 -> 0.0001182 | AU73: 2700
E74: 7 | F74: 0.0001182 | G74: 0.34 | H74: 0.65 | I74: =((H74-G74)*$H$89)+G74 -> 0.34 | J74: 1.31e-05 | K74: 0.101 | L74: 1.31e-05 | M74: 0.134 | Q74: 7 | R74: 0.0001182 | S74: 0.34 | T74: 0.47 | U74: 0.34 | AM74: 7 | AN74: 0.0001182 | AO74: 2700 | AP74: 2110 | AQ74: 2700 | AR74: =265/1000^2 -> 0.000265 | AS74: 2020 | AT74: =265/1000^2 -> 0.000265 | AU74: 2020
B75: =C63 & " " & $P$518 -> SRU 08-W fallend | E75: 8 | F75: 0.0001513 | G75: 0.38 | H75: 0.7 | I75: 0.38 | J75: 1.95e-05 | K75: 0.137 | L75: 1.95e-05 | M75: 0.155 | Q75: 8 | R75: 0.0001513 | S75: 0.38 | T75: 0.46 | U75: 0.38 | AM75: 8 | AN75: 0.0001513 | AO75: 2500 | AP75: 2100 | AQ75: 2500 | AR75: =352.4/1000^2 -> 0.0003524 | AS75: 1700 | AT75: =352.4/1000^2 -> 0.0003524 | AU75: 1700
B76: SA min | E76: 9 | F76: 0.0002 | G76: 0.43 | H76: 0.9 | I76: 0.43 | J76: 3.1e-05 | K76: 0.18 | L76: 3.1e-05 | M76: 0.19 | Q76: 9 | R76: 0.00018 | S76: 0.4 | T76: 0.45 | U76: 0.4 | AM76: 9 | AN76: 0.00017 | AO76: 2400 | AP76: 1900 | AQ76: 2400 | AR76: =465.4/1000^2 -> 0.0004654 | AS76: 1350 | AT76: =465.4/1000^2 -> 0.0004654 | AU76: 1350
B77: SA max | E77: 10 | F77: 0.000265 | G77: 0.52 | H77: 1.25 | I77: 0.52 | J77: 5.67e-05 | K77: 0.25 | L77: 5.67e-05 | M77: 0.25 | Q77: 10 | R77: 0.000265 | S77: 0.52 | T77: 0.57 | U77: 0.52 | AM77: 10 | AN77: 0.000265 | AO77: 2020 | AP77: 1800 | AQ77: 2020
B78: Schwenkzeit | C78: =xyinterpol(R68:R79,U68:U79,$C$5) -> 0.2 | E78: 11 | F78: 0.0003524 | G78: 0.72 | H78: 1.5 | I78: 0.72 | J78: 0.0001182 | K78: 0.34 | L78: 0.0001182 | M78: 0.37 | Q78: 11 | R78: 0.0003524 | S78: 0.72 | T78: 0.8 | U78: 0.72 | AM78: 11 | AN78: 0.0003524 | AO78: 1700 | AP78: 1400 | AQ78: 1700 | AS78: vert SSE
B79: J max fallend | C79: =VLOOKUP(T92,Q68:U82,2) -> 0.0004654 | E79: 12 | F79: 0.0004654 | G79: 1 | H79: 1.8 | I79: 1 | J79: 0.000265 | K79: 0.52 | L79: 0.000265 | M79: 0.63 | Q79: 12 | R79: 0.0004654 | S79: 1 | T79: 1.15 | U79: 1 | AM79: 12 | AN79: 0.0004654 | AO79: 1350 | AP79: 1050 | AQ79: 1350 | AR79: 0 | AS79: 3600
B80: J max hebend | C80: =VLOOKUP(H92,E68:I82,2) -> 0.0004654 | E80: 13 | I80: =IF(OR(E80>$H$92,H80=""),"",IF($I$67<$G$67,G80,IF($I$67>$H$67,H80,G80*$H$89+H80*$H$90))) ->  | J80: 0.0003524 | K80: 0.72 | L80: 0.0003524 | M80: 0.79 | Q80: 13 | U80: =IF(OR(Q80>$T$92,T80=""),"",IF($U$67<$S$67,S80,IF($U$67>$T$67,T80,S80*$T$89+T80*$T$90))) ->  | AM80: 13 | AQ80: =IF(OR(AM80>$AP$92,AP80=""),"",IF($AQ$67<$AO$67,AO80,IF($AQ$67>$AP$67,AP80,AO80*$AP$89+AP80*$AP$90))) ->  | AR80: 4.2e-06 | AS80: 3600
E81: 14 | I81: =IF(OR(E81>$H$92,H81=""),"",IF($I$67<$G$67,G81,IF($I$67>$H$67,H81,G81*$H$89+H81*$H$90))) ->  | J81: 0.0004654 | K81: 1 | L81: 0.0004654 | M81: 1 | Q81: 14 | U81: =IF(OR(Q81>$T$92,T81=""),"",IF($U$67<$S$67,S81,IF($U$67>$T$67,T81,S81*$T$89+T81*$T$90))) ->  | AM81: 14 | AQ81: =IF(OR(AM81>$AP$92,AP81=""),"",IF($AQ$67<$AO$67,AO81,IF($AQ$67>$AP$67,AP81,AO81*$AP$89+AP81*$AP$90))) ->  | AR81: 1.31e-05 | AS81: 3600
E82: 15 | I82: =IF(OR(E82>$H$92,H82=""),"",IF($I$67<$G$67,G82,IF($I$67>$H$67,H82,G82*$H$89+H82*$H$90))) ->  | Q82: 15 | U82: =IF(OR(Q82>$T$92,T82=""),"",IF($U$67<$S$67,S82,IF($U$67>$T$67,T82,S82*$T$89+T82*$T$90))) ->  | AM82: 15 | AQ82: =IF(OR(AM82>$AP$92,AP82=""),"",IF($AQ$67<$AO$67,AO82,IF($AQ$67>$AP$67,AP82,AO82*$AP$89+AP82*$AP$90))) ->  | AR82: 1.95e-05 | AS82: 3600
K83: vert SSE | AR83: 3.1e-05 | AS83: 3500
E84: Zähle SA1 | H84: =COUNTA(G68:G82) -> 12 | J84: 0 | K84: 0.08 | Q84: Zähle SA1 | T84: =COUNTA(S68:S82) -> 12 | AM84: Zähle SA1 | AP84: =COUNTA(AO68:AO82) -> 12 | AR84: 5.67e-05 | AS84: 3100
E85: Zähle SA2 | H85: =COUNTA(H68:H82) -> 12 | J85: 4.2e-06 | K85: 0.088 | Q85: Zähle SA2 | T85: =COUNTA(T68:T82) -> 12 | AM85: Zähle SA2 | AP85: =COUNTA(AP68:AP82) -> 12 | AR85: 0.0001182 | AS85: 2700
E86: Abstand SA1 zu SA2 | J86: 1.31e-05 | K86: 0.101 | Q86: Abstand SA1 zu SA2 | AM86: Abstand SA1 zu SA2 | AR86: 0.000265 | AS86: 2020
E87: Abstand von SA1 | J87: 1.95e-05 | K87: 0.137 | Q87: Abstand von SA1 | AM87: Abstand von SA1 | AR87: 0.0003524 | AS87: 1700
E88: Abstand von SA 2 | J88: 3.1e-05 | K88: 0.18 | Q88: Abstand von SA 2 | AM88: Abstand von SA 2 | AR88: 0.0004654 | AS88: 1350
E89: Faktor SA1 | H89: =((I67-G67)/H67)^0.5 -> 0 | J89: 5.67e-05 | K89: 0.25 | Q89: Faktor SA1 | T89: =((U67-S67)/T67)^0.5 -> 0 | AM89: Faktor SA1 | AP89: =((AQ67-AO67)/AP67)^0.5 -> 0
E90: Faktor SA2 | J90: 0.0001182 | K90: 0.34 | Q90: Faktor SA2 | AM90: Faktor SA2
E91: Differenz Datensätze | H91: =ABS(H85-H84) -> 0 | J91: 0.000265 | K91: 0.52 | Q91: Differenz Datensätze | T91: =ABS(T85-T84) -> 0 | AM91: Differenz Datensätze | AP91: =ABS(AP85-AP84) -> 0
E92: Ermittle Anzahl Werte SA gesucht | H92: =IF(G67>=I67,H84,IF(H85>=ROUNDDOWN(H84+H91*H90,0),ROUNDDOWN(H84+H91*H90,0),H85)) -> 12 | J92: 0.0003524 | K92: 0.72 | Q92: Ermittle Anzahl Werte SA gesucht | T92: =IF(S67>=U67,T84,IF(T85>=ROUNDDOWN(T84+T91*T90,0),ROUNDDOWN(T84+T91*T90,0),T85)) -> 12 | AM92: Ermittle Anzahl Werte SA gesucht | AP92: =IF(AO67>=AQ67,AP84,IF(AP85>=ROUNDDOWN(AP84+AP91*AP90,0),ROUNDDOWN(AP84+AP91*AP90,0),AP85)) -> 12
J93: 0.0004654 | K93: 1
B98: Modulname | C98: =B14 -> SRU 08-H
E99: hebend | Q99: fallend | AJ99: Modulname | AK99: =AJ14 -> SRU 08-H
G100: Zeit | S100: Zeit | AM100: hebend + fallend
B101: =C98 & " " & $D$518 -> SRU 08-H hebend | G101: M1 | H101: M2 | I101: SA gesucht | S101: SA1 | T101: SA2 | U101: SA gesucht | AO101: Zyklen
B102: SA min | E102: Anz. Datensätze | F102: J | G102: =C102 -> 0 | H102: 0.025 | I102: =C3 -> 0 | Q102: Anz. Datensätze | R102: J | S102: =C111 -> 0 | T102: 0.025 | U102: =C3 -> 0 | AJ102: =AK99 & " " & AM100 -> SRU 08-H hebend + fallend | AO102: SA1 | AP102: SA2 | AQ102: SA gesucht
B103: SA max | E103: 1 | F103: 0 | G103: 0.18 | H103: 0.3 | I103: =((H103-G103)*$H$124)+G103 -> 0.18 | Q103: 1 | R103: 0 | S103: 0.18 | T103: 0.28 | U103: =((T103-S103)*$T$124)+S103 -> 0.18 | AJ103: SA min | AK103: =AL14 -> 30 | AM103: Anz. Datensätze | AN103: J | AO103: 0 | AP103: 0.025 | AQ103: =C3 -> 0 | AS103: vert S.S. | AU103: vert Kat
B104: Schwenkzeit | C104: =xyinterpol(F103:F111,I103:I111,$C$5) -> 0.18 | E104: 2 | F104: 3.1e-05 | G104: 0.18 | H104: 0.32 | I104: =((H104-G104)*$H$124)+G104 -> 0.18 | Q104: 2 | R104: 3.1e-05 | S104: 0.18 | T104: 0.3 | U104: =((T104-S104)*$T$124)+S104 -> 0.18 | AJ104: SA max | AK104: =AM14 -> 45 | AM104: 1 | AN104: 0 | AO104: 2400 | AP104: 2350 | AQ104: =((AP104-AO104)*$AP$125)+AO104 -> 2400 | AR104: 3.1e-05 | AS104: 2400 | AT104: 3.1e-05 | AU104: 2400
E105: 3 | F105: 6.5e-05 | G105: 0.21 | H105: 0.35 | I105: 0.21 | Q105: 3 | R105: 6.5e-05 | S105: 0.21 | T105: 0.32 | U105: 0.21 | AJ105: Max. Zyklenzahl | AK105: =xyinterpol(AN104:AN112,AQ104:AQ112,$C$5) -> 2400 | AM105: 2 | AN105: 3.1e-05 | AO105: 2400 | AP105: 2300 | AQ105: =((AP105-AO105)*$AP$125)+AO105 -> 2400 | AR105: 6.5e-05 | AS105: 2350 | AT105: 6.5e-05 | AU105: 2350
E106: 4 | F106: 0.000104 | G106: 0.24 | H106: 0.4 | I106: 0.24 | K106: vert S.S. | M106: vert Kat | Q106: 4 | R106: 0.000104 | S106: 0.24 | T106: 0.34 | U106: 0.24 | AM106: 3 | AN106: 6.5e-05 | AO106: 2350 | AP106: 2250 | AQ106: 2350 | AR106: 0.000104 | AS106: 2300 | AT106: 0.000104 | AU106: 2300
E107: 5 | F107: 0.000141 | G107: 0.26 | H107: 0.44 | I107: 0.26 | Q107: 5 | R107: 0.000141 | S107: 0.26 | T107: 0.37 | U107: 0.26 | AM107: 4 | AN107: 0.000104 | AO107: 2300 | AP107: 2250 | AQ107: 2300 | AR107: 0.000141 | AS107: 2275 | AT107: 0.000141 | AU107: 2275
E108: 6 | F108: 0.0001479 | G108: 0.265 | H108: 0.45 | I108: 0.265 | J108: 3.1e-05 | K108: 0.18 | L108: 3.1e-05 | M108: 0.169 | Q108: 6 | R108: 0.0001479 | S108: 0.265 | T108: 0.38 | U108: 0.265 | AM108: 5 | AN108: 0.000141 | AO108: 2275 | AP108: 2225 | AQ108: 2275 | AR108: 0.000237 | AS108: 2225 | AT108: 0.000237 | AU108: 2225
E109: 7 | F109: 0.0002 | G109: 0.29 | H109: 0.52 | I109: 0.29 | J109: 6.5e-05 | K109: 0.21 | L109: 6.5e-05 | M109: 0.2042 | Q109: 7 | R109: 0.0002 | S109: 0.29 | T109: 0.45 | U109: 0.29 | AM109: 6 | AN109: 0.0001479 | AO109: 2270 | AP109: 2220 | AQ109: 2270 | AR109: 0.000265 | AS109: 2210 | AT109: 0.000265 | AU109: 2210
B110: =C98 & " " & $P$518 -> SRU 08-H fallend | E110: 8 | F110: 0.000237 | G110: 0.305 | H110: 0.53 | I110: 0.305 | J110: 0.000104 | K110: 0.24 | L110: 0.000104 | M110: 0.2346 | Q110: 8 | R110: 0.000237 | S110: 0.305 | T110: 0.46 | U110: 0.305 | AM110: 7 | AN110: 0.0002 | AO110: 2240 | AP110: 2200 | AQ110: 2240
B111: SA min | E111: 9 | F111: 0.000265 | G111: 0.315 | H111: 0.55 | I111: 0.315 | J111: 0.000141 | K111: 0.26 | L111: 0.000141 | M111: 0.2586 | Q111: 9 | R111: 0.000265 | S111: 0.315 | T111: 0.48 | U111: 0.315 | AM111: 8 | AN111: 0.000237 | AO111: 2225 | AP111: 2180 | AQ111: 2225 | AS111: vert SSE
B112: SA max | E112: 10 | J112: 0.000237 | K112: 0.305 | L112: 0.000237 | M112: 0.3098 | Q112: 10 | AM112: 9 | AN112: 0.000265 | AO112: 2210 | AP112: 2160 | AQ112: 2210 | AR112: 0 | AS112: 2400
B113: Schwenkzeit | C113: =xyinterpol(R103:R111,U103:U111,$C$5) -> 0.18 | E113: 11 | J113: 0.000265 | K113: 0.315 | L113: 0.000265 | M113: 0.3226 | Q113: 11 | AM113: 10 | AR113: 3.1e-05 | AS113: 2400
B114: J max fallend | C114: =VLOOKUP(T127,Q103:U117,2) -> 0.000265 | E114: 12 | Q114: 12 | AM114: 11 | AR114: 6.5e-05 | AS114: 2350
B115: J max hebend | C115: =VLOOKUP(H127,E103:I117,2) -> 0.000265 | E115: 13 | K115: vert SSE | Q115: 13 | AM115: 12 | AR115: 0.000104 | AS115: 2300
E116: 14 | J116: 0 | K116: 0.18 | Q116: 14 | AM116: 13 | AR116: 0.000141 | AS116: 2275
E117: 15 | J117: 3.1e-05 | K117: 0.18 | Q117: 15 | AM117: 14 | AR117: 0.000237 | AS117: 2225
J118: 6.5e-05 | K118: 0.21 | AM118: 15 | AR118: 0.000265 | AS118: 2210
E119: Zähle SA1 | H119: =COUNTA(G103:G117) -> 9 | J119: 0.000104 | K119: 0.24 | Q119: Zähle SA1 | T119: =COUNTA(S103:S117) -> 9
E120: Zähle SA2 | H120: =COUNTA(H103:H117) -> 9 | J120: 0.000141 | K120: 0.26 | Q120: Zähle SA2 | T120: =COUNTA(T103:T117) -> 9 | AM120: Zähle SA1 | AP120: =COUNTA(AO104:AO118) -> 9
E121: Abstand SA1 zu SA2 | J121: 0.000237 | K121: 0.305 | Q121: Abstand SA1 zu SA2 | AM121: Zähle SA2 | AP121: =COUNTA(AP104:AP118) -> 9
E122: Abstand von SA1 | J122: 0.000265 | K122: 0.315 | Q122: Abstand von SA1 | AM122: Abstand SA1 zu SA2
E123: Abstand von SA 2 | Q123: Abstand von SA 2 | AM123: Abstand von SA1
E124: Faktor SA1 | H124: =((I102-G102)/H102)^0.5 -> 0 | Q124: Faktor SA1 | T124: =((U102-S102)/T102)^0.5 -> 0 | AM124: Abstand von SA 2
E125: Faktor SA2 | Q125: Faktor SA2 | AM125: Faktor SA1 | AP125: =((AQ103-AO103)/AP103)^0.5 -> 0
E126: Differenz Datensätze | H126: =ABS(H120-H119) -> 0 | Q126: Differenz Datensätze | T126: =ABS(T120-T119) -> 0 | AM126: Faktor SA2
E127: Ermittle Anzahl Werte SA gesucht | H127: =IF(G102>=I102,H119,IF(H120>=ROUNDDOWN(H119+H126*H125,0),ROUNDDOWN(H119+H126*H125,0),H120)) -> 9 | Q127: Ermittle Anzahl Werte SA gesucht | T127: =IF(S102>=U102,T119,IF(T120>=ROUNDDOWN(T119+T126*T125,0),ROUNDDOWN(T119+T126*T125,0),T120)) -> 9 | AM127: Differenz Datensätze | AP127: =ABS(AP121-AP120) -> 0
AM128: Ermittle Anzahl Werte SA gesucht | AP128: =IF(AO103>=AQ103,AP120,IF(AP121>=ROUNDDOWN(AP120+AP127*AP126,0),ROUNDDOWN(AP120+AP127*AP126,0),AP121)) -> 9
B132: Modulname | C132: =B15 -> SRU 10-W
E133: hebend | Q133: fallend | AJ133: Modulname | AK133: =AJ15 -> SRU 10-W
G134: Zeit | S134: Zeit | AM134: hebend + fallend
B135: =C132 & " " & $D$518 -> SRU 10-W hebend | G135: M1 | H135: M2 | I135: SA gesucht | S135: SA1 | T135: SA2 | U135: SA gesucht | AO135: Zyklen
B136: SA min | E136: Anz. Datensätze | F136: J | G136: =C136 -> 0 | H136: 0.09 | I136: =C3 -> 0 | Q136: Anz. Datensätze | R136: J | S136: =C145 -> 0 | T136: 0.09 | U136: =C3 -> 0 | AJ136: =AK133 & " " & AM134 -> SRU 10-W hebend + fallend | AO136: SA1 | AP136: SA2 | AQ136: SA gesucht
B137: SA max | E137: 1 | F137: 0 | G137: 0.22 | H137: 1.8 | I137: =((H137-G137)*$H$158)+G137 -> 0.22 | Q137: 1 | R137: 0 | S137: 0.22 | T137: 0.8 | U137: =((T137-S137)*$T$158)+S137 -> 0.22 | AJ137: SA min | AK137: =AL15 -> 30 | AM137: Anz. Datensätze | AN137: J | AO137: 0 | AP137: 0.09 | AQ137: =C3 -> 0 | AS137: vert Kat
B138: Schwenkzeit | C138: =xyinterpol(F137:F147,I137:I147,$C$5) -> 0.22 | E138: 2 | F138: 4.2e-06 | G138: 0.22 | H138: 1.8 | I138: =((H138-G138)*$H$158)+G138 -> 0.22 | Q138: 2 | R138: 4.2e-06 | S138: 0.22 | T138: 0.8 | U138: =((T138-S138)*$T$158)+S138 -> 0.22 | AJ138: SA max | AK138: =AM15 -> 45 | AM138: 1 | AN138: 0 | AO138: 3000 | AP138: 2300 | AQ138: =((AP138-AO138)*$AP$159)+AO138 -> 3000 | AR138: 4.2e-06 | AS138: 3600
E139: 3 | F139: 1.31e-05 | G139: 0.22 | H139: 1.8 | I139: 0.22 | Q139: 3 | R139: 1.31e-05 | S139: 0.22 | T139: 0.8 | U139: =((T139-S139)*$T$158)+S139 -> 0.22 | AJ139: Max. Zyklenzahl | AK139: =xyinterpol(AN138:AN148,AQ138:AQ148,$C$5) -> 3000 | AM139: 2 | AN139: 4.2e-06 | AO139: 3000 | AP139: 2300 | AQ139: =((AP139-AO139)*$AP$159)+AO139 -> 3000 | AR139: 1.31e-05 | AS139: 3600
E140: 4 | F140: 2.8e-05 | G140: 0.22 | H140: 1.7 | I140: 0.22 | Q140: 4 | R140: 2.8e-05 | S140: 0.22 | T140: 0.75 | U140: 0.22 | AM140: 3 | AN140: 1.31e-05 | AO140: 3000 | AP140: 2300 | AQ140: 3000 | AR140: 2.8e-05 | AS140: 3600
E141: 5 | F141: 5.6e-05 | G141: 0.265 | H141: 1.6 | I141: 0.265 | K141: vert S.S. | M141: vert Kat | Q141: 5 | R141: 5.6e-05 | S141: 0.265 | T141: 0.7 | U141: 0.265 | AM141: 4 | AN141: 2.8e-05 | AO141: 3000 | AP141: 2300 | AQ141: 3000 | AR141: 5.6e-05 | AS141: 3050
E142: 6 | F142: 0.0001182 | G142: 0.395 | H142: 1.6 | I142: 0.395 | Q142: 6 | R142: 0.0001182 | S142: 0.395 | T142: 0.5 | U142: 0.395 | AM142: 5 | AN142: 5.6e-05 | AO142: 3000 | AP142: 2300 | AQ142: 3000 | AR142: 0.0001182 | AS142: 2500
E143: 7 | F143: 0.000265 | G143: 0.62 | H143: 1 | I143: 0.62 | J143: 4.2e-06 | K143: 0.1099 | L143: 4.2e-06 | M143: 0.09 | Q143: 7 | R143: 0.000265 | S143: 0.62 | T143: 0.75 | U143: 0.62 | W143: 30 gem | Y143: 45 gem | AM143: 6 | AN143: 0.0001182 | AO143: 2500 | AP143: 2200 | AQ143: 2500 | AR143: 0.000265 | AS143: 1920
B144: =C132 & " " & $P$518 -> SRU 10-W fallend | E144: 8 | F144: 0.0003524 | G144: 0.75 | H144: 1.35 | I144: 0.75 | J144: 1.31e-05 | K144: 0.1156 | L144: 1.3e-05 | M144: 0.13 | Q144: 8 | R144: 0.0003524 | S144: 0.75 | T144: 0.77 | U144: 0.75 | V144: 3.08e-05 | W144: 0.122 | X144: 0.0001037 | Y144: 0.3506 | AM144: 7 | AN144: 0.000265 | AO144: 1920 | AP144: 1700 | AQ144: 1920 | AR144: 0.0003524 | AS144: 1700
B145: SA min | E145: 9 | F145: 0.0004654 | G145: 0.9 | H145: 1.6 | I145: 0.9 | J145: 2.8e-05 | K145: 0.15435 | L145: 2.8e-05 | M145: 0.19 | Q145: 9 | R145: 0.0004654 | S145: 0.9 | T145: 1 | U145: 0.9 | V145: 6.55e-05 | W145: 0.2438 | X145: 0.000265 | Y145: 0.5293 | AM145: 8 | AN145: 0.0003524 | AO145: 1700 | AP145: 1550 | AQ145: 1700 | AR145: 0.0004654 | AS145: 1450
B146: SA max | E146: 10 | F146: 0.0005527 | G146: 1.1 | H146: 1.8 | I146: 1.1 | J146: 5.6e-05 | K146: 0.265 | L146: 5.6e-05 | M146: 0.27 | Q146: 10 | R146: 0.0005527 | S146: 1.1 | T146: 1.2 | U146: 1.1 | V146: 0.0001513 | W146: 0.3723 | X146: 0.00034 | Y146: 0.7105 | AM146: 9 | AN146: 0.0004654 | AO146: 1450 | AP146: 1450 | AQ146: 1450 | AR146: 0.0005527 | AS146: 1250
B147: Schwenkzeit | C147: =xyinterpol(R137:R147,U137:U147,$C$5) -> 0.22 | E147: 11 | F147: 0.0006796 | G147: 1.48 | H147: 2.2 | I147: 1.48 | J147: 0.0001182 | K147: 0.395 | L147: 0.0001182 | M147: 0.4 | Q147: 11 | R147: 0.0006796 | S147: 1.48 | T147: 1.65 | U147: 1.48 | V147: 0.0003632 | W147: 0.5094 | X147: 0.0004623 | Y147: 0.8767 | AM147: 10 | AN147: 0.0005527 | AO147: 1250 | AP147: 1250 | AQ147: 1250 | AR147: 0.0006796 | AS147: 1000
B148: J max fallend | C148: =VLOOKUP(T161,Q137:U151,2) -> 0.0006796 | E148: 12 | J148: 0.000265 | K148: 0.62 | L148: 0.000265 | M148: 0.69 | Q148: 12 | AM148: 11 | AN148: 0.0006796 | AO148: 1000 | AP148: 1000 | AQ148: 1000
B149: J max hebend | C149: =VLOOKUP(H161,E137:I151,2) -> 0.0006796 | E149: 13 | J149: 0.0003524 | K149: 0.75 | L149: 0.0003524 | M149: 0.84 | Q149: 13 | AM149: 12 | AS149: vert SSE
E150: 14 | J150: 0.0004654 | K150: 0.9 | L150: 0.0004654 | M150: 1.05 | Q150: 14 | AM150: 13 | AR150: 0 | AS150: 3600
E151: 15 | J151: 0.0005527 | K151: 1.1 | L151: 0.0005527 | M151: 1.21 | Q151: 15 | AM151: 14 | AR151: 4.2e-06 | AS151: 3600
J152: 0.0006796 | K152: 1.48 | L152: 0.0006796 | M152: 1.45 | AM152: 15 | AR152: 1.31e-05 | AS152: 3600
E153: Zähle SA1 | H153: =COUNTA(G137:G151) -> 11 | K153: vert SSE | Q153: Zähle SA1 | T153: =COUNTA(S137:S151) -> 11 | AR153: 2.8e-05 | AS153: 3600
E154: Zähle SA2 | H154: =COUNTA(H137:H151) -> 11 | J154: 0 | K154: 0.1 | Q154: Zähle SA2 | T154: =COUNTA(T137:T151) -> 11 | AM154: Zähle SA1 | AP154: =COUNTA(AO138:AO152) -> 11 | AR154: 5.6e-05 | AS154: 3050
E155: Abstand SA1 zu SA2 | J155: 4.2e-06 | K155: 0.1099 | Q155: Abstand SA1 zu SA2 | AM155: Zähle SA2 | AP155: =COUNTA(AP138:AP152) -> 11 | AR155: 0.0001182 | AS155: 2500
E156: Abstand von SA1 | J156: 1.31e-05 | K156: 0.1156 | Q156: Abstand von SA1 | AM156: Abstand SA1 zu SA2 | AR156: 0.000265 | AS156: 1920
E157: Abstand von SA 2 | J157: 2.8e-05 | K157: 0.15435 | Q157: Abstand von SA 2 | AM157: Abstand von SA1 | AR157: 0.0003524 | AS157: 1700
E158: Faktor SA1 | H158: =((I136-G136)/H136) -> 0 | J158: 5.6e-05 | K158: 0.265 | Q158: Faktor SA1 | T158: =((U136-S136)/T136) -> 0 | AM158: Abstand von SA 2 | AR158: 0.0004654 | AS158: 1450
E159: Faktor SA2 | J159: 0.0001182 | K159: 0.395 | Q159: Faktor SA2 | AM159: Faktor SA1 | AP159: =((AQ137-AO137)/AP137) -> 0 | AR159: 0.0005527 | AS159: 1250
E160: Differenz Datensätze | H160: =ABS(H154-H153) -> 0 | J160: 0.000265 | K160: 0.62 | Q160: Differenz Datensätze | T160: =ABS(T154-T153) -> 0 | AM160: Faktor SA2 | AR160: 0.0006796 | AS160: 1000
E161: Ermittle Anzahl Werte SA gesucht | H161: =IF(G136>=I136,H153,IF(H154>=ROUNDDOWN(H153+H160*H159,0),ROUNDDOWN(H153+H160*H159,0),H154)) -> 11 | J161: 0.0003524 | K161: 0.75 | Q161: Ermittle Anzahl Werte SA gesucht | T161: =IF(S136>=U136,T153,IF(T154>=ROUNDDOWN(T153+T160*T159,0),ROUNDDOWN(T153+T160*T159,0),T154)) -> 11 | AM161: Differenz Datensätze | AP161: =ABS(AP155-AP154) -> 0
J162: 0.0004654 | K162: 0.9 | AM162: Ermittle Anzahl Werte SA gesucht | AP162: =IF(AO137>=AQ137,AP154,IF(AP155>=ROUNDDOWN(AP154+AP161*AP160,0),ROUNDDOWN(AP154+AP161*AP160,0),AP155)) -> 11
J163: 0.0005527 | K163: 1.1
J164: 0.0006796 | K164: 1.48
B167: Modulname | C167: =B16 -> SRU 10-H
E168: hebend | Q168: fallend | AJ168: Modulname | AK168: =AJ16 -> SRU 10-H
G169: Zeit | S169: Zeit | AM169: hebend + fallend
B170: =C167 & " " & $D$518 -> SRU 10-H hebend | G170: M1 | H170: M2 | I170: SA gesucht | K170: vert S.S. | M170: vert Kat | S170: SA1 | T170: SA2 | U170: SA gesucht | AO170: Zyklen
B171: SA min | E171: Anz. Datensätze | F171: J | G171: 0 | H171: 0.025 | I171: =C3 -> 0 | Q171: Anz. Datensätze | R171: J | S171: =C180 -> 0 | T171: 0.025 | U171: =C3 -> 0 | AJ171: =AK168 & " " & AM169 -> SRU 10-H hebend + fallend | AO171: SA1 | AP171: SA2 | AQ171: SA gesucht
B172: SA max | E172: 1 | F172: 0 | G172: 0.21 | H172: 0.29 | I172: =((H172-G172)*$H$193)+G172 -> 0.21 | J172: 3.3e-05 | K172: 0.21 | L172: 3.3e-05 | M172: 0.2 | Q172: 1 | R172: 0 | S172: 0.21 | T172: 0.25 | U172: =((T172-S172)*$T$193)+S172 -> 0.21 | AJ172: SA min | AK172: =AL16 -> 30 | AM172: Anz. Datensätze | AN172: J | AO172: 0 | AP172: 0.025 | AQ172: =C3 -> 0 | AS172: vert S.S. | AU172: vert Kat
B173: Schwenkzeit | C173: =xyinterpol(F172:F179,I172:I179,$C$5) -> 0.21 | E173: 2 | F173: 3.3e-05 | G173: 0.21 | H173: 0.29 | I173: =((H173-G173)*$H$193)+G173 -> 0.21 | J173: 6.5e-05 | K173: 0.23 | L173: 6.5e-05 | M173: 0.23 | Q173: 2 | R173: 3.3e-05 | S173: 0.21 | T173: 0.25 | U173: =((T173-S173)*$T$193)+S173 -> 0.21 | AJ173: SA max | AK173: =AM16 -> 45 | AM173: 1 | AN173: 0 | AO173: 2200 | AP173: 2200 | AQ173: =((AP173-AO173)*$AP$194)+AO173 -> 2200 | AR173: 3.3e-05 | AS173: 2300 | AT173: 3.3e-05 | AU173: 2300
E174: 3 | F174: 6.5e-05 | G174: 0.23 | H174: 0.29 | I174: 0.23 | J174: 0.000104 | K174: 0.25 | L174: 0.000104 | M174: 0.25 | Q174: 3 | R174: 6.5e-05 | S174: 0.23 | T174: 0.26 | U174: 0.23 | AJ174: Max. Zyklenzahl | AK174: =xyinterpol(AN173:AN180,AQ173:AQ180,$C$5) -> 2200 | AM174: 2 | AN174: 3.3e-05 | AO174: 2200 | AP174: 2200 | AQ174: =((AP174-AO174)*$AP$194)+AO174 -> 2200 | AR174: 6.5e-05 | AS174: 2260 | AT174: 6.5e-05 | AU174: 2260
E175: 4 | F175: 0.000104 | G175: 0.25 | H175: 0.3 | I175: 0.25 | J175: 0.000141 | K175: 0.27 | L175: 0.000141 | M175: 0.27 | Q175: 4 | R175: 0.000104 | S175: 0.25 | T175: 0.27 | U175: 0.25 | AM175: 3 | AN175: 6.5e-05 | AO175: 2200 | AP175: 2180 | AQ175: 2200 | AR175: 0.000104 | AS175: 2225 | AT175: 0.000104 | AU175: 2225
E176: 5 | F176: 0.000141 | G176: 0.27 | H176: 0.34 | I176: 0.27 | J176: 0.000265 | K176: 0.32 | L176: 0.000265 | M176: 0.32 | Q176: 5 | R176: 0.000141 | S176: 0.27 | T176: 0.305 | U176: 0.27 | AM176: 4 | AN176: 0.000104 | AO176: 2200 | AP176: 2140 | AQ176: 2200 | AR176: 0.000141 | AS176: 2200 | AT176: 0.000141 | AU176: 2200
E177: 6 | F177: 0.0001479 | G177: 0.275 | H177: 0.35 | I177: 0.275 | J177: 0.00034 | K177: 0.34 | L177: 0.00034 | M177: 0.35 | Q177: 6 | R177: 0.0001479 | S177: 0.275 | T177: 0.315 | U177: 0.275 | AM177: 5 | AN177: 0.000141 | AO177: 2200 | AP177: 2148 | AQ177: 2200 | AR177: 0.000265 | AS177: 2130 | AT177: 0.000265 | AU177: 2130
E178: 7 | F178: 0.000265 | G178: 0.32 | H178: 0.41 | I178: 0.32 | Q178: 7 | R178: 0.000265 | S178: 0.32 | T178: 0.35 | U178: =((T178-S178)*$T$193)+S178 -> 0.32 | AM178: 6 | AN178: 0.0001479 | AO178: 2198 | AP178: 2150 | AQ178: 2198 | AR178: 0.00034 | AS178: 2100 | AT178: 0.00034 | AU178: 2100
B179: =C167 & " " & $P$518 -> SRU 10-H fallend | E179: 8 | F179: 0.00034 | G179: 0.34 | H179: 0.44 | I179: =((H179-G179)*$H$193)+G179 -> 0.34 | K179: 30 gem | M179: 45 gem | Q179: 8 | R179: 0.00034 | S179: 0.34 | T179: 0.38 | U179: 0.34 | AM179: 7 | AN179: 0.000265 | AO179: 2130 | AP179: 2120 | AQ179: 2130
B180: SA min | E180: 9 | J180: 3.1e-05 | K180: 0.142 | L180: 6.73e-05 | M180: 0.1838 | Q180: 9 | AM180: 8 | AN180: 0.00034 | AO180: 2100 | AP180: 2070 | AQ180: 2100 | AS180: vert SSE
B181: SA max | E181: 10 | J181: 6.73e-05 | K181: 0.1707 | L181: 0.0001479 | M181: 0.2802 | Q181: 10 | AM181: 9 | AQ181: =IF(OR(AM181>$AP$197,AP181=""),"",IF($AQ$172<$AO$172,AO181,IF($AQ$172>$AP$172,AP181,AO181*$AP$194+AP181*$AP$195))) ->  | AR181: 0 | AS181: 2300
B182: Schwenkzeit | C182: =xyinterpol(R172:R179,U172:U179,$C$5) -> 0.21 | E182: 11 | J182: 0.0001034 | K182: 0.2341 | L182: 0.0002846 | M182: 0.3898 | Q182: 11 | AM182: 10 | AR182: 3.3e-05 | AS182: 2300
B183: J max fallend | C183: =VLOOKUP(T196,Q172:U186,2) -> 0.00034 | E183: 12 | I183: =IF(OR(E183>$H$196,H183=""),"",IF($I$171<$G$171,G183,IF($I$171>$H$171,H183,G183*$H$193+H183*$H$194))) ->  | J183: 0.0001513 | K183: 0.3164 | Q183: 12 | AM183: 11 | AR183: 6.5e-05 | AS183: 2260
B184: J max hebend | C184: =VLOOKUP(H196,E172:I186,2) -> 0.00034 | E184: 13 | I184: =IF(OR(E184>$H$196,H184=""),"",IF($I$171<$G$171,G184,IF($I$171>$H$171,H184,G184*$H$193+H184*$H$194))) ->  | J184: =352.7/1000^2 -> 0.0003527 | K184: 0.4257 | Q184: 13 | AM184: 12 | AR184: 0.000104 | AS184: 2225
E185: 14 | I185: =IF(OR(E185>$H$196,H185=""),"",IF($I$171<$G$171,G185,IF($I$171>$H$171,H185,G185*$H$193+H185*$H$194))) ->  | Q185: 14 | AM185: 13 | AR185: 0.000141 | AS185: 2200
E186: 15 | I186: =IF(OR(E186>$H$196,H186=""),"",IF($I$171<$G$171,G186,IF($I$171>$H$171,H186,G186*$H$193+H186*$H$194))) ->  | K186: vert SSE | Q186: 15 | AM186: 14 | AR186: 0.000265 | AS186: 2130
J187: 0 | K187: 0.21 | AM187: 15 | AR187: 0.00034 | AS187: 2100
E188: Zähle SA1 | H188: =COUNTA(G172:G186) -> 8 | J188: 3.3e-05 | K188: 0.21 | Q188: Zähle SA1 | T188: =COUNTA(S172:S186) -> 8
E189: Zähle SA2 | H189: =COUNTA(H172:H186) -> 8 | J189: 6.5e-05 | K189: 0.23 | Q189: Zähle SA2 | T189: =COUNTA(T172:T186) -> 8 | AM189: Zähle SA1 | AP189: =COUNTA(AO173:AO187) -> 8
E190: Abstand SA1 zu SA2 | J190: 0.000104 | K190: 0.25 | Q190: Abstand SA1 zu SA2 | AM190: Zähle SA2 | AP190: =COUNTA(AP173:AP187) -> 8
E191: Abstand von SA1 | J191: 0.000141 | K191: 0.27 | Q191: Abstand von SA1 | AM191: Abstand SA1 zu SA2
E192: Abstand von SA 2 | J192: 0.000265 | K192: 0.32 | Q192: Abstand von SA 2 | AM192: Abstand von SA1
E193: Faktor SA1 | H193: =((I171-G171)/H171) -> 0 | J193: 0.00034 | K193: 0.34 | Q193: Faktor SA1 | T193: =((U171-S171)/T171) -> 0 | AM193: Abstand von SA 2
E194: Faktor SA2 | Q194: Faktor SA2 | AM194: Faktor SA1 | AP194: =((AQ172-AO172)/AP172)^2 -> 0
E195: Differenz Datensätze | H195: =ABS(H189-H188) -> 0 | Q195: Differenz Datensätze | T195: =ABS(T189-T188) -> 0 | AM195: Faktor SA2
E196: Ermittle Anzahl Werte SA gesucht | H196: =IF(G171>=I171,H188,IF(H189>=ROUNDDOWN(H188+H195*H194,0),ROUNDDOWN(H188+H195*H194,0),H189)) -> 8 | Q196: Ermittle Anzahl Werte SA gesucht | T196: =IF(S171>=U171,T188,IF(T189>=ROUNDDOWN(T188+T195*T194,0),ROUNDDOWN(T188+T195*T194,0),T189)) -> 8 | AM196: Differenz Datensätze | AP196: =ABS(AP190-AP189) -> 0
AM197: Ermittle Anzahl Werte SA gesucht | AP197: =IF(AO172>=AQ172,AP189,IF(AP190>=ROUNDDOWN(AP189+AP196*AP195,0),ROUNDDOWN(AP189+AP196*AP195,0),AP190)) -> 8
B201: Modulname | C201: =B17 -> SRU 10-S | AJ201: Modulname | AK201: =AJ17 -> SRU 10-S
E202: hebend | Q202: fallend | AM202: hebend + fallend
G203: Zeit | S203: Zeit | AO203: Zyklen
B204: =C201 & " " & $D$518 -> SRU 10-S hebend | G204: M1 | H204: M2 | I204: SA gesucht | S204: M1 | T204: M2 | U204: SA gesucht | AJ204: =AK201 & " " & AM202 -> SRU 10-S hebend + fallend | AO204: M1 | AP204: M2 | AQ204: SA gesucht
B205: SA min | E205: Anz. Datensätze | F205: J | G205: =C205 -> 0 | H205: 0.08 | I205: =C3 -> 0 | Q205: Anz. Datensätze | R205: J | S205: =C214 -> 0 | T205: 0.08 | U205: =C3 -> 0 | AJ205: SA min | AK205: =AL17 -> 30 | AM205: Anz. Datensätze | AN205: J | AO205: 0 | AP205: 0.08 | AQ205: =C3 -> 0 | AS205: vert Kat
B206: SA max | E206: 1 | F206: 0 | G206: 0.16 | H206: 0.25 | I206: =((H206-G206)*$H$227)+G206 -> 0.16 | Q206: 1 | R206: 0 | S206: 0.16 | T206: 0.3 | U206: =((T206-S206)*$T$227)+S206 -> 0.16 | AJ206: SA max | AK206: =AM17 -> 45 | AM206: 1 | AN206: 0 | AO206: 3700 | AP206: 3675 | AQ206: =((AP206-AO206)*$AP$227)+AO206 -> 3700 | AR206: 4.2e-06 | AS206: 3600
B207: Schwenkzeit | C207: =xyinterpol(F206:F210,I206:I210,$C$5) -> 0.16 | E207: 2 | F207: 6.7e-05 | G207: 0.165 | H207: 0.25 | I207: =((H207-G207)*$H$227)+G207 -> 0.165 | Q207: 2 | R207: 6.7e-05 | S207: 0.165 | T207: 0.3 | U207: =((T207-S207)*$T$227)+S207 -> 0.165 | AJ207: Max. Zyklenzahl | AK207: =xyinterpol(AN206:AN210,AQ206:AQ210,$C$5) -> 3700 | AM207: 2 | AN207: 6.7e-05 | AO207: 3675 | AP207: 3675 | AQ207: =((AP207-AO207)*$AP$227)+AO207 -> 3675 | AR207: 1.31e-05 | AS207: 3600
E208: 3 | F208: 0.00015 | G208: 0.18 | H208: 0.48 | I208: =((H208-G208)*$H$227)+G208 -> 0.18 | Q208: 3 | R208: 0.00015 | S208: 0.18 | T208: 0.3 | U208: =((T208-S208)*$T$227)+S208 -> 0.18 | AM208: 3 | AN208: 0.00015 | AO208: 3605 | AP208: 3530 | AQ208: =((AP208-AO208)*$AP$227)+AO208 -> 3605 | AR208: 2.8e-05 | AS208: 3600
E209: 4 | F209: 0.00035 | G209: 0.22 | H209: 0.44 | I209: =((H209-G209)*$H$227)+G209 -> 0.22 | Q209: 4 | R209: 0.00035 | S209: 0.22 | T209: 0.32 | U209: =((T209-S209)*$T$227)+S209 -> 0.22 | AM209: 4 | AN209: 0.00035 | AO209: 3520 | AP209: 3410 | AQ209: =((AP209-AO209)*$AP$227)+AO209 -> 3520 | AR209: 5.6e-05 | AS209: 3050
E210: 5 | F210: 0.0004 | G210: 0.23 | H210: 0.44 | I210: =((H210-G210)*$H$227)+G210 -> 0.23 | Q210: 5 | R210: 0.0004 | S210: 0.23 | T210: 0.33 | U210: =((T210-S210)*$T$227)+S210 -> 0.23 | AM210: 5 | AN210: 0.0004 | AO210: 3500 | AP210: 3400 | AQ210: =((AP210-AO210)*$AP$227)+AO210 -> 3500 | AR210: 0.0001182 | AS210: 2500
E211: 6 | Q211: 6 | AM211: 6 | AR211: 0.000265 | AS211: 1920
E212: 7 | Q212: 7 | W212: 30 gem | Y212: 45 gem | AM212: 7 | AR212: 0.0003524 | AS212: 1700
B213: =C201 & " " & $P$518 -> SRU 10-S fallend | E213: 8 | Q213: 8 | V213: 3.08e-05 | W213: 0.122 | X213: 0.0001037 | Y213: 0.3506 | AM213: 8 | AR213: 0.0004654 | AS213: 1450
B214: SA min | E214: 9 | Q214: 9 | V214: 6.55e-05 | W214: 0.2438 | X214: 0.000265 | Y214: 0.5293 | AM214: 9 | AR214: 0.0005527 | AS214: 1250
B215: SA max | E215: 10 | Q215: 10 | V215: 0.0001513 | W215: 0.3723 | X215: 0.00034 | Y215: 0.7105 | AM215: 10 | AR215: 0.0006796 | AS215: 1000
B216: Schwenkzeit | C216: =xyinterpol(R206:R210,U206:U210,$C$5) -> 0.16 | E216: 11 | Q216: 11 | V216: 0.0003632 | W216: 0.5094 | X216: 0.0004623 | Y216: 0.8767 | AM216: 11
B217: J max fallend | C217: =VLOOKUP(T230,Q206:U220,2) -> 0.0004 | E217: 12 | Q217: 12 | AM217: 12 | AS217: vert SSE
B218: J max hebend | C218: =VLOOKUP(H230,E206:I220,2) -> 0.0004 | E218: 13 | Q218: 13 | AM218: 13 | AR218: 0 | AS218: 3600
... 1101 more rows

Sheet v_horizontal
A1: Berechnung Auftreffgeschwindigkeit horizontale Schwenkachse
A3: Schwerpunktsabstand | C3: =Rs -> 0 | D3: =Rs
A4: Schwenkrichtung | C4: =lage_aufbau -> stehend | D4: =lage_aufbau
A5: J ermittelt | C5: =summe_J -> 0 | D5: =summe_J
A9: Übersicht horizontale Schwenkachse
D11: hebend | H11: fallend | AL11: hebend | AP11: fallend
D12: SA min | E12: SA max | H12: SA min | I12: SA max | AL12: SA min | AM12: SA max | AN12: A | AP12: SA min | AQ12: SA max | AR12: A
B13: SRU 08-W | D13: 30 | E13: 45 | H13: 30 | I13: 45 | AJ13: SRU 08-E | AL13: 30 | AM13: 45 | AP13: 30 | AQ13: 45
B14: SRU 08-H | D14: 30 | E14: 45 | H14: 30 | I14: 45 | AJ14: SRU 08-S | AL14: 30 | AM14: 45 | AP14: 30 | AQ14: 45
B15: SRU 10-W | D15: 30 | E15: 45 | H15: 30 | I15: 45 | AJ15: SRU 10-E | AL15: 30 | AM15: 45 | AP15: 30 | AQ15: 45
B16: SRU 10-H | D16: 30 | E16: 45 | H16: 30 | I16: 45 | AJ16: SRU 10-S | AL16: 30 | AM16: 45 | AP16: 30 | AQ16: 45
B17: SRU 10-S | D17: 30 | E17: 45 | H17: 30 | I17: 45
B18: SRU 12-W | D18: 30 | E18: 105 | H18: 30 | I18: 105 | AJ18: SRU 12-E | AL18: 30 | AM18: 105 | AP18: 30 | AQ18: 105
B19: SRU 12-H | D19: 30 | E19: 105 | H19: 30 | I19: 105 | AJ19: SRU 12-S | AL19: 30 | AM19: 105 | AP19: 30 | AQ19: 105
B20: SRU 12-S | D20: 30 | E20: 105 | H20: 30 | I20: 105
B21: SRU 14-W | D21: 30 | E21: 105 | H21: 30 | I21: 105 | AJ21: SRU 14-E | AL21: 30 | AM21: 105 | AP21: 30 | AQ21: 105
B22: SRU 14-S | D22: 30 | E22: 105 | H22: 30 | I22: 105 | AJ22: SRU 14-S | AL22: 30 | AM22: 105 | AP22: 30 | AQ22: 105
B23: SRU 14-S | D23: 30 | E23: 105 | H23: 30 | I23: 105
B24: SRU-plus 20 FED | D24: 60 | E24: 140 | H24: 60 | I24: 140 | AJ24: SRU-plus 20 FED | AL24: =D24 -> 60 | AM24: =E24 -> 140 | AP24: =H24 -> 60 | AQ24: =I24 -> 140
B25: SRU-plus 20 DED | D25: 60 | E25: 140 | H25: 60 | I25: 140 | AJ25: SRU-plus 20 DED | AL25: =D25 -> 60 | AM25: =E25 -> 140 | AP25: =H25 -> 60 | AQ25: =I25 -> 140
B26: SRU-plus 25 (hard) | D26: unzulässig | E26: unzulässig | H26: unzulässig | I26: unzulässig | AJ26: SRU-plus 25 (hard) | AL26: =D26 -> unzulässig | AM26: unzulässig | AP26: =H26 -> unzulässig | AQ26: unzulässig
B27: SRU-plus 25 (soft) | D27: 60 | E27: 140 | H27: 60 | I27: 140 | AJ27: SRU-plus 25 (soft) | AL27: 60 | AM27: 140 | AP27: 60 | AQ27: 140
B28: SRU-plus 30 (hard) | D28: unzulässig | E28: unzulässig | H28: unzulässig | I28: unzulässig | AJ28: SRU-plus 30 (hard) | AL28: unzulässig | AM28: unzulässig | AP28: unzulässig | AQ28: unzulässig
B29: SRU-plus 30 (soft) | D29: 60 | E29: 140 | H29: 60 | I29: 140 | AJ29: SRU-plus 30 (soft) | AL29: 60 | AM29: 140 | AP29: 60 | AQ29: 140
B30: SRU-plus 35 (soft) | D30: 60 | E30: 180 | H30: 60 | I30: 180 | AJ30: SRU-plus 35 (soft) | AL30: 60 | AM30: 180 | AP30: 60 | AQ30: 180
B31: SRU-plus 40 (hard) | D31: unzulässig | E31: unzulässig | H31: unzulässig | I31: unzulässig | AJ31: SRU-plus 40 (hard) | AL31: unzulässig | AM31: unzulässig | AP31: unzulässig | AQ31: unzulässig
B32: SRU-plus 40 (soft) | D32: 60 | E32: 180 | H32: 60 | I32: 180 | AJ32: SRU-plus 40 (soft) | AL32: 60 | AM32: 180 | AP32: 60 | AQ32: 180
B33: SRU-plus 50 (hard) | D33: unzulässig | E33: unzulässig | H33: unzulässig | I33: unzulässig | AJ33: SRU-plus 50 (hard) | AL33: unzulässig | AM33: unzulässig | AP33: unzulässig | AQ33: unzulässig
B34: SRU-plus 50 (soft) | D34: 60 | E34: 220 | H34: 60 | I34: 220 | AJ34: SRU-plus 50 (soft) | AL34: 60 | AM34: 220 | AP34: 60 | AQ34: 220
B35: SRU-plus 60 (soft) | D35: 60 | E35: 220 | H35: 60 | I35: 220 | AJ35: SRU-plus 60 (soft) | AL35: 60 | AM35: 220 | AP35: 60 | AQ35: 220
B36: SRU-plus 63 | D36: 200 | E36: 450 | H36: 200 | I36: 450 | AJ36: SRU-plus 63 | AL36: 200 | AM36: 450 | AP36: 200 | AQ36: 450
B37: SRM-14-E | D37: 30 | E37: 105 | H37: 30 | I37: 105 | AJ37: SRM-14-E | AL37: 30 | AM37: 105 | AP37: 30 | AQ37: 105
B38: SRM-14-X | D38: 45 | E38: 105 | H38: 45 | I38: 105 | AJ38: SRM-14-X | AL38: 30 | AM38: 105 | AP38: 30 | AQ38: 105
B39: SRM-14-H | D39: 30 | E39: 105 | H39: 30 | I39: 105 | AJ39: SRM-14-H | AL39: 30 | AM39: 105 | AP39: 30 | AQ39: 105
